Workbook

Sheet GUIA PARA PREENCHIMENTO
A1: GUIA PARA PREENCHIMENTO
A3: 1 - Preencher apenas as guias azuis:
A5: 2 - Recomendamos preencher somente as células com fundo azul claro. As demais possuem fórmulas e sugerimos não alterá-las.

Sheet MODELO PROPOSTA
B2: MODELO DA PROPOSTA COMPLETA
B4: .
B5: I – FORMALIZAÇÃO
B7: PREGÃO ELETRÔNICO 90117/2025
B8: OBJETO: Contratação de serviços na área de copa, cozinha, limpeza e conservação na Residência Oficial e de copa, em prédios administrativos da Câmara dos Deputados, com fornecimento de materiais sob demanda, a serem executados com regime de dedicação exclusiva de mão de obra, pelo período de 30 (trinta) meses.
B9: LICITANTE: _____________________________________________________
B10: CNPJ: ________________________________________________________
B11: ENDEREÇO COMPLETO: _________________________________________
B12: TELEFONE:_____________________________________________________
B13: E-MAIL: ________________________________________________________
B15: Apresentamos nossa proposta para o item único da presente licitação, de acordo com as disposições do Edital.
B16: Decorre do conteúdo da presente proposta a explicitação do seguinte PREÇO DE JULGAMENTO GLOBAL (para 30 MESES de contrato) PARA O ITEM ÚNICO:
B17: R$ | E17: (em algarismos)
B20: (por extenso)
B22: No valor proposto estão incluídos todos os custos e todas as despesas, diretas e indiretas, para a execução dos serviços objeto da licitação, em conformidade com as especificações e demais condições e exigências constantes do Edital.
B23: Informamos que eventuais rubricas dispostas em Acordo ou Convenção Coletiva de Trabalho que não se relacionem ao custo direto da venda do serviço, tais como “Participação nos Resultados” e “Abono substitutivo de Participação nos Resultados”, serão consideradas nos custos indiretos da proposta.
B24: O prazo de validade da presente proposta é de ______ (por extenso) dias. (observado o disposto no Título 4 do Edital).
B25: Convenção coletiva de trabalho ou a norma coletiva a que estamos obrigados:
B26: Justificativa para a adoção da Convenção
B27: Data-Base:
B28: Número do Registro no MTE:
B29: Atividade Econômica Preponderante (indicar conforme CNAE)
B30: Enquadramento Sindical (quem a representa legalmente)
B31: Cópia da carta ou registro sindical do sindicato ao qual ele declara ser enquadrado, em razão do regramento sindical previsto na CLT ou por força de decisão judicial
B32: Regime de tributação da empresa:
B33: Empresa é beneficiada pela desoneração da folha de pagamento instituída pela Lei n. 12.546/2001, alterada pela Lei n. 13.161/2015 e pela Lei n. 14.973/2024?
B34: Empresa adere ao PAT (Programa de Alimentação do Trabalhador)?
B35: Na hipótese de adesão ao PAT e de previsão de qualquer desconto no valor do auxílio-alimentação em norma coletiva, os valores do auxílio-alimentação apresentados nesta proposta deverão corresponder aos valores líquidos efetivamente pagos pela empresa aos seus empregados.
B37: DECLARAÇÕES
B38: Declaramos que: a) Disponibilizaremos todos os itens necessários à execução dos serviços, sejam eles insumos ou materiais, bem como pessoal técnico adequado para a realização do objeto da presente licitação;
B39: b) Seremos responsáveis pelo descarte ambientalmente responsável de qualquer resíduo do serviço a ser prestado, objeto desta licitação – incluindo consumíveis, peças usadas, embalagens – e que temos conhecimento da legislação ambiental sobre o descarte de materiais, em especial a Lei n. 9.605/1998 e a Lei n. 12.305/2010, além da NBR 10.004.
B40: A SEREM PRESTADAS SOMENTE NA HIPÓTESE DE LICITANTE MICROEMPRESA OU EMPRESA DE PEQUENO PORTE, EM CONFORMIDADE COM OS ARTIGOS 17, 18, 30 E 31 DA LEI COMPLEMENTAR N. 123/2006, E O ACÓRDÃO TCU 2798/2010-PLENÁRIO
B41: Declaramos que: a) em se tratando dos serviços vedados descritos no artigo 17 da Lei Complementar n. 123/2006, notadamente os descritos no inciso XII (cessão ou locação de mão de obra), ressalvados os serviços listados nos § 5º-C, inciso VI, c/c § 5º-H do art. 18 ou no § 1º do art. 17 da referida Lei, a proposta apresentada não contempla qualquer benefício tributário referente ao SIMPLES NACIONAL, conforme os itens 4.20 e 4.21 do Edital; b) na hipótese de contratação desta Microempresa ou Empresa de Pequeno Porte inscrita no SIMPLES NACIONAL e executora de atividade vedada, ficamos sujeitos à exclusão obrigatória no SIMPLES NACIONAL a contar do mês seguinte ao da contratação, em consequência do que dispõem o artigo 17, inciso XII e o artigo 31, inciso II da Lei Complementar n, 123/2006, devendo entregar à Câmara dos Deputados, à título de comprovação, cópia de ofício – com comprovante de entrega e recebimento, que comunique a assinatura do contrato de prestação de serviços mediante cessão de mão de obra e encaminhado pela contratada à Secretaria Especial da Receita Federal do Brasil até o último dia útil do mês subsequente ao da contratação, consoante artigo 30, § 1º, inciso II da Lei Complementar n. 123/2006.
B42: A SEREM PRESTADAS SOMENTE NA HIPÓTESE DE LICITANTE BENEFICIADA PELA DESONERAÇÃO DA FOLHA DE PAGAMENTO INSTITUÍDA PELA LEI N. 12.546/2011, ALTERADA PELA LEI N. 13.161/2015 E PELA LEI 14.973/2024.
B43: Declaramos, sob as penas da Lei, que: a) recolhemos a contribuição previdenciária incidente sobre o valor da receita bruta, em substituição às contribuições previdenciárias incidentes sobre a folha de pagamento, previstas nos incisos I e III do caput do artigo 22 da Lei n. 8.212/1991, na forma do caput do artigo 9º-A da Lei n. 12.546/2011, alteradas pela Lei n. 13.161/2015 e pela Lei n. 14.973/2024; b) temos ciência que nossa manifestação, conforme alínea “a” anterior, será remetida à Secretaria Especial da Receita Federal do Brasil e que, em caso de constatação de falsidade, estará sujeita às sanções administrativas cabíveis, sem prejuízo do encaminhamento dos documentos ao Ministério Público para apuração de eventual responsabilidade criminal desta declarante; c) temos ciência de que a variação das alíquotas previstas no art. 9º-A da Lei n. 12.546/2011, incluído pela Lei n. 14.973/2024, bem como a transição gradual de reoneração da folha de pagamento, foram integralmente consideradas na formulação da presente proposta, não cabendo, em nenhuma hipótese, pedido de reequilíbrio econômico-financeiro, repactuação ou apostilamento, durante a vigência contratual ou em eventuais prorrogações, por se tratar de fato previsível e anterior à apresentação da proposta.
B44: NOTAS EXPLICATIVAS – PREMISSAS DE CÁLCULO (Conforme o subitem 4.5.1.4 do Termo de Referência) Abaixo apresentamos as notas explicativas com as premissas adotadas no cálculo dos encargos sociais e tributários, especialmente quanto à aplicação da Lei n. 14.973/2024, que trata da reoneração gradual da folha de pagamento. As informações apresentadas visam garantir a transparência e exequibilidade da proposta, demonstrando como os efeitos da referida lei foram integralmente considerados na composição dos preços. ________________________________________________________________________________________________________________________________________________________________________________________________________________________________________________________________________________________ (Indicar os marcos anuais de transição das alíquotas considerados no cálculo; Descrever a metodologia de projeção dos custos até a reoneração total da folha;Confirmar que todos os impactos foram internalizados na proposta e não ensejarão pedido de reequilíbrio, repactuação ou apostilamento durante a vigência contratual ou apostilamento durante a vigência contratual ou prorrogações.)
B45: OU
B46: A SEREM PRESTADAS SOMENTE NA HIPÓTESE DE LICITANTE NÃO BENEFICIADA PELA DESONERAÇÃO DA FOLHA DE PAGAMENTO INSTITUÍDA PELA LEI N. 12.546, DE 2011, ALTERADA PELA LEI N. 13.161, DE 2015
B47: Declaramos, sob as penas da Lei, que: a) não recolhemos a contribuição previdenciária incidente sobre o valor da receita bruta, em substituição às contribuições previdenciárias incidentes sobre a folha de pagamento, previstas nos incisos I e III do caput do artigo 22 da Lei n. 8.212/1991, na forma do caput do artigo 7º (ou 8º) da Lei n. 12.546/2011, alterada pela Lei n. 13.161/2015; b) temos ciência que nossa manifestação, conforme alínea “a” anterior, será remetida à Secretaria Especial da Receita Federal do Brasil e que, em caso de constatação de falsidade, estará sujeita às sanções administrativas cabíveis, sem prejuízo do encaminhamento dos documentos ao Ministério Público para apuração de eventual responsabilidade criminal desta declarante.
B48: A SEREM PRESTADAS SOMENTE PARA A LICITANTE QUE SEJA A ATUAL TITULAR DO CONTRATO QUE SERÁ SUCEDIDO PELA CONTRATAÇÃO DECORRENTE DO PREGÃO EM EPÍGRAFE, NA HIPÓTESE DE HAVER SALÁRIO(S) PRATICADO(S) NO CONTRATO VIGENTE SUPERIOR(ES) AOS MÍNIMOS FIXADOS NO EDITAL E QUE TENHA OPTADO POR TOMAR COMO BASE EM SEUS LANCES E NA PRESENTE PROPOSTA DE PREÇOS SALÁRIO(S) FIXADO(S) NESTE EDITAL:
B49: Declaramos que: a) estamos cientes de que deveremos apresentar à Câmara dos Deputados, no prazo improrrogável de 60 (sessenta) dias, contado da data de início da vigência do contrato, a convenção ou o acordo coletivo de trabalho, entabulado com a participação do sindicato dos trabalhadores, em que se autoriza a redução salarial, na forma do art. 7°, VI, da Constituição Federal, considerado, ainda, o disposto no subitem 10.10.2.1 do Título 10 da minuta do Termo de Contrato anexa; b) estamos cientes de que, na hipótese de não cumprirmos o disposto no teor da declaração da alínea anterior (“a”) e não logrado êxito na contratação de remanescente, sendo necessária a realização de nova licitação, caso participemos do certame, deveremos tomar como base em nossos lances e em nossa proposta de preços o(s) salário(s) maior(es), absorvendo ou acrescentando eventual diferença no BDI, sob pena de desclassificação.
B51: É OBRIGATÓRIA A COMPROVAÇÃO A QUE SE REFERE O ITEM 4.3 DO TÍTULO 4 DO TERMO DE REFERÊNCIA (referente ao valor do Fator Acidentário de Prevenção (FAP)).
B54: DADOS PARA ASSINATURA DO CONTRATO
B55: Nome do signatário
B56: Cargo
B57: Qualificação (CPF, naturalidade e domicílio)
B58: OBS.: O signatário deve possuir poderes de administração estabelecidos em contrato social e/ou possuir procuração com poderes para assinar contratos em nome da empresa. A documentação comprobatória deverá ser encaminhada quando da assinatura do contrato.
B61: Brasília, de de 2025.
B63: Assinatura do representante legal da empresa
B66: Nome do representante legal da empresa

Sheet Remunerações
B1: QUADRO DE REMUNERAÇÕES
C3: ITEM | D3: POSTO DE TRABALHO | E3: QUANTIDADE | F3: SALÁRIO | G3: ADICIONAL DE PERICULOSIDADE | H3: ADICIONAL DE INSALUBRIDADE | I3: ADICIONAL NOTURNO | J3: SOBREAVISO OU HORA EXTRA | K3: SALÁRIO COM ADICIONAIS
C4: 1 | D4: =HLOOKUP(C4,'Dados Gerais'!$D$6:$BI$11,6) -> ENCARREGADO GERAL | E4: =HLOOKUP($C4,'Dados Gerais'!$D$6:$BI$15,10) -> 1 | F4: ='1'!$F$9 -> 9452.69 | G4: ='1'!$F$10 -> 0 | H4: ='1'!$F$11 -> 0 | I4: ='1'!$F$12 -> 0 | J4: ='1'!$F$13+'1'!$F$15 -> 0 | K4: =SUM(F4:J4) -> 9452.69
C5: =C4+1 -> 2 | D5: =HLOOKUP(C5,'Dados Gerais'!$D$6:$BI$11,6) -> ENCARREGADA DE SETOR | E5: =HLOOKUP($C5,'Dados Gerais'!$D$6:$BI$15,10) -> 5 | F5: ='2'!$F$9 -> 4764.77 | G5: ='2'!$F$10 -> 0 | H5: ='2'!$F$11 -> 0 | I5: ='2'!$F$12 -> 0 | J5: ='2'!$F$13+'2'!$F$15 -> 0 | K5: 4764.77
C6: =C5+1 -> 3 | D6: =HLOOKUP(C6,'Dados Gerais'!$D$6:$BI$11,6) -> COPEIRA | E6: =HLOOKUP($C6,'Dados Gerais'!$D$6:$BI$15,10) -> 201 | F6: ='3'!$F$9 -> 2176.92 | G6: ='3'!$F$10 -> 0 | H6: ='3'!$F$11 -> 0 | I6: ='3'!$F$12 -> 0 | J6: ='3'!$F$13+'3'!$F$15 -> 0 | K6: 2176.92
C7: 4 | D7: =HLOOKUP(C7,'Dados Gerais'!$D$6:$BI$11,6) -> COPEIRO | E7: =HLOOKUP($C7,'Dados Gerais'!$D$6:$BI$15,10) -> 18 | F7: ='4'!$F$9 -> 2176.92 | G7: ='4'!$F$10 -> 0 | H7: ='4'!$F$11 -> 0 | I7: ='4'!$F$12 -> 0 | J7: ='4'!$F$13+'4'!$F$15 -> 0 | K7: =SUM(F7:J7) -> 2176.92
C8: 5 | D8: =HLOOKUP(C8,'Dados Gerais'!$D$6:$BI$11,6) -> GARÇONETE | E8: =HLOOKUP($C8,'Dados Gerais'!$D$6:$BI$15,10) -> 10 | F8: ='5'!$F$9 -> 3027.53 | G8: ='5'!$F$10 -> 0 | H8: ='5'!$F$11 -> 0 | I8: ='5'!$F$12 -> 0 | J8: ='5'!$F$13+'5'!$F$15 -> 0 | K8: 3027.53
C9: 6 | D9: =HLOOKUP(C9,'Dados Gerais'!$D$6:$BI$11,6) -> GARÇOM | E9: =HLOOKUP($C9,'Dados Gerais'!$D$6:$BI$15,10) -> 30 | F9: ='6'!$F$9 -> 3027.53 | G9: ='6'!$F$10 -> 0 | H9: ='6'!$F$11 -> 0 | I9: ='6'!$F$12 -> 0 | J9: ='6'!$F$13+'6'!$F$15 -> 0 | K9: 3027.53
C10: 7 | D10: =HLOOKUP(C10,'Dados Gerais'!$D$6:$BI$11,6) -> AUXILIAR DE ENCARREGADO (FEMININO) | E10: =HLOOKUP($C10,'Dados Gerais'!$D$6:$BI$15,10) -> 1 | F10: ='7'!$F$9 -> 3108.64 | G10: ='7'!$F$10 -> 0 | H10: ='7'!$F$11 -> 0 | I10: ='7'!$F$12 -> 0 | J10: ='7'!$F$13+'7'!$F$15 -> 0 | K10: 3108.64
C11: 8 | D11: =HLOOKUP(C11,'Dados Gerais'!$D$6:$BI$11,6) -> GARÇONETE DO GABINETE DA PRESIDÊNCIA | E11: =HLOOKUP($C11,'Dados Gerais'!$D$6:$BI$15,10) -> 1 | F11: ='8'!$F$9 -> 4225.4 | G11: ='8'!$F$10 -> 0 | H11: ='8'!$F$11 -> 0 | I11: ='8'!$F$12 -> 0 | J11: ='8'!$F$13+'8'!$F$15 -> 0 | K11: 4225.4
C12: 9 | D12: =HLOOKUP(C12,'Dados Gerais'!$D$6:$BI$11,6) -> GARÇOM DO GABINETE DA PRESIDÊNCIA | E12: =HLOOKUP($C12,'Dados Gerais'!$D$6:$BI$15,10) -> 2 | F12: ='9'!$F$9 -> 4225.4 | G12: ='9'!$F$10 -> 0 | H12: ='9'!$F$11 -> 0 | I12: ='9'!$F$12 -> 0 | J12: ='9'!$F$13+'9'!$F$15 -> 0 | K12: 4225.4
C13: 10 | D13: =HLOOKUP(C13,'Dados Gerais'!$D$6:$BI$11,6) -> ARRUMADEIRA | E13: =HLOOKUP($C13,'Dados Gerais'!$D$6:$BI$15,10) -> 4 | F13: ='10'!$F$9 -> 3196.66 | G13: ='10'!$F$10 -> 0 | H13: ='10'!$F$11 -> 0 | I13: ='10'!$F$12 -> 0 | J13: ='10'!$F$13+'10'!$F$15 -> 0 | K13: 3196.66
C14: 11 | D14: =HLOOKUP(C14,'Dados Gerais'!$D$6:$BI$11,6) -> AUXILIAR DE COZINHA (FEMININO) | E14: =HLOOKUP($C14,'Dados Gerais'!$D$6:$BI$15,10) -> 2 | F14: ='11'!$F$9 -> 2878.22 | G14: ='11'!$F$10 -> 0 | H14: ='11'!$F$11 -> 0 | I14: ='11'!$F$12 -> 0 | J14: ='11'!$F$13+'11'!$F$15 -> 0 | K14: 2878.22
C15: 12 | D15: =HLOOKUP(C15,'Dados Gerais'!$D$6:$BI$11,6) -> AUXILIAR DE COZINHA (MASCULINO) | E15: =HLOOKUP($C15,'Dados Gerais'!$D$6:$BI$15,10) -> 1 | F15: ='12'!$F$9 -> 2878.22 | G15: ='12'!$F$10 -> 0 | H15: ='12'!$F$11 -> 0 | I15: ='12'!$F$12 -> 0 | J15: ='12'!$F$13+'12'!$F$15 -> 0 | K15: 2878.22
C16: 13 | D16: =HLOOKUP(C16,'Dados Gerais'!$D$6:$BI$11,6) -> COZINHEIRA | E16: =HLOOKUP($C16,'Dados Gerais'!$D$6:$BI$15,10) -> 2 | F16: ='13'!$F$9 -> 3713.5 | G16: ='13'!$F$10 -> 0 | H16: ='13'!$F$11 -> 291.78 | I16: ='13'!$F$12 -> 0 | J16: ='13'!$F$13+'13'!$F$15 -> 0 | K16: 4005.28
C17: 14 | D17: =HLOOKUP(C17,'Dados Gerais'!$D$6:$BI$11,6) -> COZINHEIRO | E17: =HLOOKUP($C17,'Dados Gerais'!$D$6:$BI$15,10) -> 1 | F17: ='14'!$F$9 -> 3713.5 | G17: ='14'!$F$10 -> 0 | H17: ='14'!$F$11 -> 291.78 | I17: ='14'!$F$12 -> 0 | J17: ='14'!$F$13+'14'!$F$15 -> 0 | K17: 4005.28
C18: 15 | D18: =HLOOKUP(C18,'Dados Gerais'!$D$6:$BI$11,6) -> CHEFE DE COZINHA (FEMININO) | E18: =HLOOKUP($C18,'Dados Gerais'!$D$6:$BI$15,10) -> 1 | F18: ='15'!$F$9 -> 7350.75 | G18: ='15'!$F$10 -> 0 | H18: ='15'!$F$11 -> 0 | I18: ='15'!$F$12 -> 0 | J18: ='15'!$F$13+'15'!$F$15 -> 0 | K18: 7350.75
C19: 16 | D19: =HLOOKUP(C19,'Dados Gerais'!$D$6:$BI$11,6) -> CHEFE DE COZINHA (MASCULINO) | E19: =HLOOKUP($C19,'Dados Gerais'!$D$6:$BI$15,10) -> 2 | F19: ='16'!$F$9 -> 7350.75 | G19: ='16'!$F$10 -> 0 | H19: ='16'!$F$11 -> 0 | I19: ='16'!$F$12 -> 0 | J19: ='16'!$F$13+'16'!$F$15 -> 0 | K19: 7350.75
C20: 17 | D20: =HLOOKUP(C20,'Dados Gerais'!$D$6:$BI$11,6) -> GARÇOM DA RESIDÊNCIA OFICIAL DO PRESIDENTE | E20: =HLOOKUP($C20,'Dados Gerais'!$D$6:$BI$15,10) -> 3 | F20: ='17'!$F$9 -> 5343.2 | G20: ='17'!$F$10 -> 0 | H20: ='17'!$F$11 -> 0 | I20: ='17'!$F$12 -> 0 | J20: ='17'!$F$13+'17'!$F$15 -> 0 | K20: 5343.2
C21: 18 | D21: =HLOOKUP(C21,'Dados Gerais'!$D$6:$BI$11,6) -> GARÇOM DA RESIDÊNCIA OFICIAL DO PRESIDENTE (COM ADICIONAL NOTURNO) | E21: =HLOOKUP($C21,'Dados Gerais'!$D$6:$BI$15,10) -> 2 | F21: ='18'!$F$9 -> 5343.2 | G21: ='18'!$F$10 -> 0 | H21: ='18'!$F$11 -> 0 | I21: ='18'!$F$12 -> 491.82 | J21: ='18'!$F$13+'18'!$F$15 -> 0 | K21: 5835.02
C22: 19 | D22: =HLOOKUP(C22,'Dados Gerais'!$D$6:$BI$11,6) -> AUXILIAR DE SERVIÇOS GERAIS | E22: =HLOOKUP($C22,'Dados Gerais'!$D$6:$BI$15,10) -> 2 | F22: ='19'!$F$9 -> 2995.52 | G22: ='19'!$F$10 -> 0 | H22: ='19'!$F$11 -> 0 | I22: ='19'!$F$12 -> 0 | J22: ='19'!$F$13+'19'!$F$15 -> 0 | K22: 2995.52
C23: =#REF!+1 ->  | D23: =HLOOKUP(C23,'Dados Gerais'!$D$6:$BI$11,6) ->  | E23: =HLOOKUP($C23,'Dados Gerais'!$D$6:$BI$15,10) ->  | F23: =#REF! ->  | G23: =#REF! ->  | H23: =#REF! ->  | I23: =#REF! ->  | J23: =#REF!+#REF! -> 
D24: =HLOOKUP(C24,'Dados Gerais'!$D$6:$BI$11,6) ->  | E24: =HLOOKUP($C24,'Dados Gerais'!$D$6:$BI$15,10) ->  | F24: =#REF! ->  | G24: =#REF! ->  | H24: =#REF! ->  | I24: =#REF! ->  | J24: =#REF!+#REF! -> 
D25: =HLOOKUP(C25,'Dados Gerais'!$D$6:$BI$11,6) ->  | E25: =HLOOKUP($C25,'Dados Gerais'!$D$6:$BI$15,10) ->  | F25: =#REF! ->  | G25: =#REF! ->  | H25: =#REF! ->  | I25: =#REF! ->  | J25: =#REF!+#REF! -> 
D26: =HLOOKUP(C26,'Dados Gerais'!$D$6:$BI$11,6) ->  | E26: =HLOOKUP($C26,'Dados Gerais'!$D$6:$BI$15,10) ->  | F26: =#REF! ->  | G26: =#REF! ->  | H26: =#REF! ->  | I26: =#REF! ->  | J26: =#REF!+#REF! -> 
D27: =HLOOKUP(C27,'Dados Gerais'!$D$6:$BI$11,6) ->  | E27: =HLOOKUP($C27,'Dados Gerais'!$D$6:$BI$15,10) ->  | F27: =#REF! ->  | G27: =#REF! ->  | H27: =#REF! ->  | I27: =#REF! ->  | J27: =#REF!+#REF! -> 
D28: =HLOOKUP(C28,'Dados Gerais'!$D$6:$BI$11,6) ->  | E28: =HLOOKUP($C28,'Dados Gerais'!$D$6:$BI$15,10) ->  | F28: =#REF! ->  | G28: =#REF! ->  | H28: =#REF! ->  | I28: =#REF! ->  | J28: =#REF!+#REF! -> 
D29: =HLOOKUP(C29,'Dados Gerais'!$D$6:$BI$11,6) ->  | E29: =HLOOKUP($C29,'Dados Gerais'!$D$6:$BI$15,10) ->  | F29: =#REF! ->  | G29: =#REF! ->  | H29: =#REF! ->  | I29: =#REF! ->  | J29: =#REF!+#REF! -> 
D30: =HLOOKUP(C30,'Dados Gerais'!$D$6:$BI$11,6) ->  | E30: =HLOOKUP($C30,'Dados Gerais'!$D$6:$BI$15,10) ->  | F30: =#REF! ->  | G30: =#REF! ->  | H30: =#REF! ->  | I30: =#REF! ->  | J30: =#REF!+#REF! -> 
D31: =HLOOKUP(C31,'Dados Gerais'!$D$6:$BI$11,6) ->  | E31: =HLOOKUP($C31,'Dados Gerais'!$D$6:$BI$15,10) ->  | F31: =#REF! ->  | G31: =#REF! ->  | H31: =#REF! ->  | I31: =#REF! ->  | J31: =#REF!+#REF! -> 
D32: =HLOOKUP(C32,'Dados Gerais'!$D$6:$BI$11,6) ->  | E32: =HLOOKUP($C32,'Dados Gerais'!$D$6:$BI$15,10) ->  | F32: =#REF! ->  | G32: =#REF! ->  | H32: =#REF! ->  | I32: =#REF! ->  | J32: =#REF!+#REF! -> 
D33: =HLOOKUP(C33,'Dados Gerais'!$D$6:$BI$11,6) ->  | E33: =HLOOKUP($C33,'Dados Gerais'!$D$6:$BI$15,10) ->  | F33: =#REF! ->  | G33: =#REF! ->  | H33: =#REF! ->  | I33: =#REF! ->  | J33: =#REF!+#REF! -> 
D34: =HLOOKUP(C34,'Dados Gerais'!$D$6:$BI$11,6) ->  | E34: =HLOOKUP($C34,'Dados Gerais'!$D$6:$BI$15,10) ->  | F34: =#REF! ->  | G34: =#REF! ->  | H34: =#REF! ->  | I34: =#REF! ->  | J34: =#REF!+#REF! -> 
D35: =HLOOKUP(C35,'Dados Gerais'!$D$6:$BI$11,6) ->  | E35: =HLOOKUP($C35,'Dados Gerais'!$D$6:$BI$15,10) ->  | F35: =#REF! ->  | G35: =#REF! ->  | H35: =#REF! ->  | I35: =#REF! ->  | J35: =#REF!+#REF! -> 
D36: =HLOOKUP(C36,'Dados Gerais'!$D$6:$BI$11,6) ->  | E36: =HLOOKUP($C36,'Dados Gerais'!$D$6:$BI$15,10) ->  | F36: =#REF! ->  | G36: =#REF! ->  | H36: =#REF! ->  | I36: =#REF! ->  | J36: =#REF!+#REF! -> 
D37: =HLOOKUP(C37,'Dados Gerais'!$D$6:$BI$11,6) ->  | E37: =HLOOKUP($C37,'Dados Gerais'!$D$6:$BI$15,10) ->  | F37: =#REF! ->  | G37: =#REF! ->  | H37: =#REF! ->  | I37: =#REF! ->  | J37: =#REF!+#REF! -> 
D38: =HLOOKUP(C38,'Dados Gerais'!$D$6:$BI$11,6) ->  | E38: =HLOOKUP($C38,'Dados Gerais'!$D$6:$BI$15,10) ->  | F38: =#REF! ->  | G38: =#REF! ->  | H38: =#REF! ->  | I38: =#REF! ->  | J38: =#REF!+#REF! -> 
D39: =HLOOKUP(C39,'Dados Gerais'!$D$6:$BI$11,6) ->  | E39: =HLOOKUP($C39,'Dados Gerais'!$D$6:$BI$15,10) ->  | F39: =#REF! ->  | G39: =#REF! ->  | H39: =#REF! ->  | I39: =#REF! ->  | J39: =#REF!+#REF! -> 
D40: =HLOOKUP(C40,'Dados Gerais'!$D$6:$BI$11,6) ->  | E40: =HLOOKUP($C40,'Dados Gerais'!$D$6:$BI$15,10) ->  | F40: =#REF! ->  | G40: =#REF! ->  | H40: =#REF! ->  | I40: =#REF! ->  | J40: =#REF!+#REF! -> 
D41: =HLOOKUP(C41,'Dados Gerais'!$D$6:$BI$11,6) ->  | E41: =HLOOKUP($C41,'Dados Gerais'!$D$6:$BI$15,10) ->  | F41: =#REF! ->  | G41: =#REF! ->  | H41: =#REF! ->  | I41: =#REF! ->  | J41: =#REF!+#REF! -> 
D42: =HLOOKUP(C42,'Dados Gerais'!$D$6:$BI$11,6) ->  | E42: =HLOOKUP($C42,'Dados Gerais'!$D$6:$BI$15,10) ->  | F42: =#REF! ->  | G42: =#REF! ->  | H42: =#REF! ->  | I42: =#REF! ->  | J42: =#REF!+#REF! -> 
D43: =HLOOKUP(C43,'Dados Gerais'!$D$6:$BI$11,6) ->  | E43: =HLOOKUP($C43,'Dados Gerais'!$D$6:$BI$15,10) ->  | F43: =#REF! ->  | G43: =#REF! ->  | H43: =#REF! ->  | I43: =#REF! ->  | J43: =#REF!+#REF! -> 
D44: =HLOOKUP(C44,'Dados Gerais'!$D$6:$BI$11,6) ->  | E44: =HLOOKUP($C44,'Dados Gerais'!$D$6:$BI$15,10) ->  | F44: =#REF! ->  | G44: =#REF! ->  | H44: =#REF! ->  | I44: =#REF! ->  | J44: =#REF!+#REF! -> 
D45: =HLOOKUP(C45,'Dados Gerais'!$D$6:$BI$11,6) ->  | E45: =HLOOKUP($C45,'Dados Gerais'!$D$6:$BI$15,10) ->  | F45: =#REF! ->  | G45: =#REF! ->  | H45: =#REF! ->  | I45: =#REF! ->  | J45: =#REF!+#REF! -> 
D46: =HLOOKUP(C46,'Dados Gerais'!$D$6:$BI$11,6) ->  | E46: =HLOOKUP($C46,'Dados Gerais'!$D$6:$BI$15,10) ->  | F46: =#REF! ->  | G46: =#REF! ->  | H46: =#REF! ->  | I46: =#REF! ->  | J46: =#REF!+#REF! -> 
D47: =HLOOKUP(C47,'Dados Gerais'!$D$6:$BI$11,6) ->  | E47: =HLOOKUP($C47,'Dados Gerais'!$D$6:$BI$15,10) ->  | F47: =#REF! ->  | G47: =#REF! ->  | H47: =#REF! ->  | I47: =#REF! ->  | J47: =#REF!+#REF! -> 
D48: =HLOOKUP(C48,'Dados Gerais'!$D$6:$BI$11,6) ->  | E48: =HLOOKUP($C48,'Dados Gerais'!$D$6:$BI$15,10) ->  | F48: =#REF! ->  | G48: =#REF! ->  | H48: =#REF! ->  | I48: =#REF! ->  | J48: =#REF!+#REF! -> 
D49: =HLOOKUP(C49,'Dados Gerais'!$D$6:$BI$11,6) ->  | E49: =HLOOKUP($C49,'Dados Gerais'!$D$6:$BI$15,10) ->  | F49: =#REF! ->  | G49: =#REF! ->  | H49: =#REF! ->  | I49: =#REF! ->  | J49: =#REF!+#REF! -> 
D51: TOTAL | E51: =SUM(E4:E22) -> 289

Sheet Resumo
B4: RESUMO - TOTAIS MENSAIS - FATURA ORDINÁRIA
C7: ITEM | D7: POSTO DE TRABALHO | E7: QUANTIDADE | F7: PREÇO UNIT POR EMPREGADO | K7: PREÇO TOTAL (MENSAL)
C8: 1 | D8: =HLOOKUP(C8,'Dados Gerais'!$D$6:$BI$11,6) -> ENCARREGADO GERAL | E8: ='Dados Gerais'!D$15 -> 1 | F8: ='1'!$E$112 -> 21339.38 | K8: =TRUNC(F8*E8,2) -> 21339.38
C9: 2 | D9: =HLOOKUP(C9,'Dados Gerais'!$D$6:$BI$11,6) -> ENCARREGADA DE SETOR | E9: ='Dados Gerais'!E$15 -> 5 | F9: ='2'!$E$112 -> 11513.29 | K9: =TRUNC(F9*E9,2) -> 57566.45
C10: 3 | D10: =HLOOKUP(C10,'Dados Gerais'!$D$6:$BI$11,6) -> COPEIRA | E10: ='Dados Gerais'!F$15 -> 201 | F10: ='3'!$E$112 -> 6157.12 | K10: 1237581.12
C11: 4 | D11: =HLOOKUP(C11,'Dados Gerais'!$D$6:$BI$11,6) -> COPEIRO | E11: ='Dados Gerais'!G$15 -> 18 | F11: ='4'!$E$112 -> 6217.48 | K11: 111914.64
C12: 5 | D12: =HLOOKUP(C12,'Dados Gerais'!$D$6:$BI$11,6) -> GARÇONETE | E12: ='Dados Gerais'!H$15 -> 10 | F12: ='5'!$E$112 -> 7953.76 | K12: 79537.6
C13: 6 | D13: =HLOOKUP(C13,'Dados Gerais'!$D$6:$BI$11,6) -> GARÇOM | E13: ='Dados Gerais'!I$15 -> 30 | F13: ='6'!$E$112 -> 7977.99 | K13: 239339.7
C14: 7 | D14: =HLOOKUP(C14,'Dados Gerais'!$D$6:$BI$11,6) -> AUXILIAR DE ENCARREGADO (FEMININO) | E14: ='Dados Gerais'!J$15 -> 1 | F14: ='7'!$E$112 -> 8156.11 | K14: 8156.11
C15: 8 | D15: =HLOOKUP(C15,'Dados Gerais'!$D$6:$BI$11,6) -> GARÇONETE DO GABINETE DA PRESIDÊNCIA | E15: ='Dados Gerais'!K$15 -> 1 | F15: ='8'!$E$112 -> 10382.01 | K15: 10382.01
C16: 9 | D16: =HLOOKUP(C16,'Dados Gerais'!$D$6:$BI$11,6) -> GARÇOM DO GABINETE DA PRESIDÊNCIA | E16: ='Dados Gerais'!L$15 -> 2 | F16: ='9'!$E$112 -> 10406.24 | K16: 20812.48
C17: 10 | D17: =HLOOKUP(C17,'Dados Gerais'!$D$6:$BI$11,6) -> ARRUMADEIRA | E17: ='Dados Gerais'!M$15 -> 4 | F17: ='10'!$E$112 -> 8615.45 | K17: 34461.8
C18: 11 | D18: =HLOOKUP(C18,'Dados Gerais'!$D$6:$BI$11,6) -> AUXILIAR DE COZINHA (FEMININO) | E18: ='Dados Gerais'!N$15 -> 2 | F18: ='11'!$E$112 -> 8110.52 | K18: 16221.04
C19: 12 | D19: =HLOOKUP(C19,'Dados Gerais'!$D$6:$BI$11,6) -> AUXILIAR DE COZINHA (MASCULINO) | E19: ='Dados Gerais'!O$15 -> 1 | F19: ='12'!$E$112 -> 8110.52 | K19: 8110.52
C20: 13 | D20: =HLOOKUP(C20,'Dados Gerais'!$D$6:$BI$11,6) -> COZINHEIRA | E20: ='Dados Gerais'!P$15 -> 2 | F20: ='13'!$E$112 -> 10325.21 | K20: 20650.42
C21: 14 | D21: =HLOOKUP(C21,'Dados Gerais'!$D$6:$BI$11,6) -> COZINHEIRO | E21: ='Dados Gerais'!Q$15 -> 1 | F21: ='14'!$E$112 -> 10325.21 | K21: 10325.21
C22: 15 | D22: =HLOOKUP(C22,'Dados Gerais'!$D$6:$BI$11,6) -> CHEFE DE COZINHA (FEMININO) | E22: ='Dados Gerais'!R$15 -> 1 | F22: ='15'!$E$112 -> 17177.22 | K22: 17177.22
C23: 16 | D23: =HLOOKUP(C23,'Dados Gerais'!$D$6:$BI$11,6) -> CHEFE DE COZINHA (MASCULINO) | E23: ='Dados Gerais'!S$15 -> 2 | F23: ='16'!$E$112 -> 17177.22 | K23: 34354.44
C24: 17 | D24: =HLOOKUP(C24,'Dados Gerais'!$D$6:$BI$11,6) -> GARÇOM DA RESIDÊNCIA OFICIAL DO PRESIDENTE | E24: ='Dados Gerais'!T$15 -> 3 | F24: ='17'!$E$112 -> 13226.46 | K24: 39679.38
C25: 18 | D25: =HLOOKUP(C25,'Dados Gerais'!$D$6:$BI$11,6) -> GARÇOM DA RESIDÊNCIA OFICIAL DO PRESIDENTE (COM ADICIONAL NOTURNO) | E25: ='Dados Gerais'!U$15 -> 2 | F25: ='18'!$E$112 -> 13579.01 | K25: 27158.02
C26: 19 | D26: =HLOOKUP(C26,'Dados Gerais'!$D$6:$BI$11,6) -> AUXILIAR DE SERVIÇOS GERAIS | E26: ='Dados Gerais'!V$15 -> 2 | F26: ='19'!$E$112 -> 8236.58 | K26: 16473.16
D28: TOTAL MENSAL - SALÁRIOS | K28: =SUM(K8:K27) -> 2011240.7
B32: RESUMO - TOTAIS MENSAIS - ITENS COMPLEMENTARES À FOLHA
C35: ITEM | D35: DESCRIÇÃO | K35: PREÇO TOTAL (MENSAL)
C36: SREP | D36: SISTEMA DE REGISTRO ELETRÔNICO DE PRESENÇA - SREP | K36: =SREP!$M$46 -> 723.24
C37: EPI - N.REL | D37: EPI NÃO RELACIONADOS DIRETAMENTE A UM POSTO DE TRABALHO | K37: ='EPI - N.Rel'!$J$12 -> 34.69
C38: MATERIAIS - CONSUMO | D38: MATERIAIS DE CONSUMO NÃO RELACIONADOS DIRETAMENTE A UM POSTO DE TRABALHO | K38: ='Materiais - Consumo'!$J$42 -> 62044.32
C39: FERRAM. | D39: FERRAMENTAS NÃO RELACIONADAS DIRETAMENTE A UM POSTO DE TRABALHO | K39: =Ferramentas!O240 -> 0
C40: EQUIPAM | D40: EQUIPAMENTOS NÃO RELACIONADOS DIRETAMENTE A UM POSTO DE TRABALHO | K40: =Equipamentos!O43 -> 0
C41: CONSUMO | D41: MATERIAIS DE CONSUMO | K41: ='Mat Consumo'!L76 -> 0
C42: PROF.NÃO.RESID | D42: PROFISSIONAL NÃO-RESIDENTE | K42: =Prof.N.Resid!L11 -> 0
C43: VEÍCULOS | D43: VEÍCULOS PARA TRANSPORTE DE COLABORADORES E DE MATERIAIS | K43: =Veículos!L25 -> 0
C44: SERV.ADIC | D44: SERVIÇOS ADICIONAIS | K44: =Serv.Adicionais!L14 -> 0
D46: TOTAL MENSAL - ITENS COMPLEMENTARES À FOLHA | K46: =SUM(K36:K45) -> 62802.25
B50: RESUMO - TOTAIS MENSAIS - ITENS SOB DEMANDA
C53: ITEM | D53: DESCRIÇÃO | I53: PREÇO TOTAL (MENSAL)
C54: TRANSP. | D54: PREVISÃO DE MOVIMENTAÇÕES EM TRANSPORTE POR CHAMADO | I54: ='Demanda - Transp. p. chamado'!J16 -> 0
C55: DEMANDA - MATERIAIS | D55: EPIs, MATERIAIS E UNIFORMES - SOB DEMANDA | I55: 0
C56: DEMANDA - SERVIÇOS | D56: SERVIÇOS - SOB DEMANDA | I56: ='Demanda - Serviços'!J31 -> 0
D58: TOTAL MENSAL - ITENS SOB DEMANDA | I58: =SUM(I54:I57) -> 0
D60: TOTAL MENSAL
D61: DESCRIÇÃO | H61: VALOR
D62: FATURA MENSAL ORDINÁRIA | H62: =K28 -> 2011240.7
D63: ESTIMATIVA MENSAL - ITENS COMPLEMENTARES À FOLHA | H63: =$K$46 -> 62802.25
D64: ESTIMATIVA MENSAL - ITENS SOB DEMANDA | H64: =I58 -> 0
G66: TOTAL MENSAL DA CONTRATAÇÃO | H66: =TRUNC(SUM(H62:H65),2) -> 2074042.95 | L66: =Extenso_Valor(H66) -> dois milhões, setenta e quatro mil e quarenta e dois reais e noventa e cinco centavos
D68: TOTAL GLOBAL DA CONTRATAÇÃO - 12 MESES
G70: 12 x TOTAL MENSAL | H70: =TRUNC(H66*12,2) -> 24888515.4 | L70: =Extenso_Valor(H70) -> vinte e quatro milhões, oitocentos e oitenta e oito mil, quinhentos e quinze reais e quarenta centavos
D72: TOTAL MENSAL - ITENS SOB DEMANDA
D73: DESCRIÇÃO | H73: VALOR
D74: Materiais não relacionados diretamente a um posto de trabalho - AQUISIÇÃO SOB DEMANDA | H74: =#REF! -> 
D75: Equipamentos não relacionados diretamente a um posto de trabalho - AQUISIÇÃO SOB DEMANDA | H75: =#REF! -> 
G77: TOTAL MENSAL DA CONTRATAÇÃO | H77: =SUM(H74:H76) -> 
D79: TOTAL ANUAL - ITENS SOB DEMANDA
G81: 12 x TOTAL MENSAL | H81: =H77*12 -> 
D83: TOTAL ANUAL GLOBAL DA CONTRATAÇÃO
H85: =H81+H70 -> 
D88: TOTAL GLOBAL DA CONTRATAÇÃO - 30 MESES
G90: 30 x TOTAL MENSAL | H90: =TRUNC(H66*30,2) -> 62221288.5 | L90: =Extenso_Valor(H90) -> sessenta e dois milhões, duzentos e vinte e um mil, duzentos e oitenta e oito reais e cinquenta centavos
D92: TOTAL MENSAL - ITENS SOB DEMANDA
D93: DESCRIÇÃO | H93: VALOR
D94: Materiais não relacionados diretamente a um posto de trabalho - AQUISIÇÃO SOB DEMANDA | H94: =#REF! -> 
D95: Equipamentos não relacionados diretamente a um posto de trabalho - AQUISIÇÃO SOB DEMANDA | H95: =#REF! -> 
G97: TOTAL MENSAL DA CONTRATAÇÃO | H97: =SUM(H94:H96) -> 
D99: TOTAL ANUAL - ITENS SOB DEMANDA
G101: 12 x TOTAL MENSAL | H101: =H97*12 -> 
D103: TOTAL ANUAL GLOBAL DA CONTRATAÇÃO
H105: =H101+H90 -> 

Sheet 1
B2: PLANILHA DE ESTIMATIVA DE CUSTOS
B3: Padrão IN 05/2017 e IN 07/2018 - MPDG - Medição por posto presente
B5: 1 | D5: =HLOOKUP($B$5,'Dados Gerais'!$D$6:$BI$22,6) -> ENCARREGADO GERAL | E5: QUANTIDADE | F5: =HLOOKUP($B$5,'Dados Gerais'!$D$6:$BI$22,10) -> 1
B6: CCT | D6: =HLOOKUP($B$5,'Dados Gerais'!$D$6:$BI$22,16) -> SEAC/DF x SINDISERVIÇOS/DF CCT 2025/2026 N.º DF000042/2025 | E6: DATA-BASE | F6: =HLOOKUP($B$5,'Dados Gerais'!$D$6:$BI$22,17) -> 2025-01-01
B8: MÓDULO 1 - COMPOSIÇÃO DA REMUNERAÇÃO | F8: Valor
C9: A | D9: Salário-Base | F9: =HLOOKUP($B$5,'Dados Gerais'!$D$6:$BI$22,8) -> 9452.69
C10: B | D10: Adicional de Periculosidade | F10: =HLOOKUP($B$5,'Dados Gerais'!$D$6:$BI$41,26) -> 0
C11: C | D11: Adicional de Insalubridade | F11: =HLOOKUP($B$5,'Dados Gerais'!$D$6:$BI$41,32) -> 0
C12: D | D12: Adicional Noturno | F12: =HLOOKUP($B$5,'Dados Gerais'!$D$6:$BI$54,49) -> 0 | H12: * Nota 1 - O Módulo 1 refere-se ao valor mensal devido ao empregado pela prestação do serviço no período de 12 meses.
C13: E | D13: Adicional de Hora Extra | F13: =HLOOKUP($B$5,'Dados Gerais'!$D$6:$BI$71,66) -> 0 | H13: * Nota 2 - O adicional de hora extra no feriado trabalhado foi suprimido pela Lei 13.467/17
C14: F | D14: Gratificação | F14: =HLOOKUP($B$5,'Dados Gerais'!$D$6:$BI$71,34) -> 0 | H14: * Nota 3 - ART. 7º, § 2º, DA LEI Nº 605/49.Sendo mensalista o obreiro, o adicional noturno pago de forma fixa já é considerado integrado para os efeitos do pagamento do repouso semanal remunerado, nos termos do art. 7º, § 2º, da Lei nº 605/49.
C15: G | D15: Sobraviso | F15: =HLOOKUP($B$5,'Dados Gerais'!$D$6:$BI$71,36) -> 0
D17: TOTAL DA REMUNERAÇÃO | F17: =TRUNC(SUM(F9:F15),2) -> 9452.69
B19: MÓDULO 2 - ENCARGOS E BENEFÍCIOS ANUAIS, MENSAIS E DIÁRIOS | E19: Percentuais | F19: Valor
B20: Submódulo 2.1 - 13º Salário e Adicional de Férias
C21: A | D21: 13º Salário | E21: ='Encargos Sociais'!$E$32 -> 0.0909 | F21: =ROUND(E21*F$17,2) -> 859.25 | H21: * Nota 1 - O 13º salário foi calculado dividindo-se por 11, para comportar os 11 meses presentes e ainda o ausente do posto
C22: B | D22: Adicional de Férias | E22: ='Encargos Sociais'!E31 -> 0.0303 | F22: =TRUNC(E22*(F$17),2) -> 286.41 | H22: * Nota 2 - O adicional de férias foi calculado dividindo-se por 11, para comportar os 11 meses presentes e ainda o ausente do posto
B24: Submódulo 2.2 - Encargos Previdenciários (GPS), Fundo de Garantia por Tempo de Serviço (FGTS) e Outras Contribuições
C25: A | D25: ='Encargos Sociais'!D14 -> INSS (art. 22, inciso I, Lei nº 8.212/91) | E25: ='Encargos Sociais'!E14 -> 0.2 | F25: =TRUNC(E25*($F$17+$F$21+$F$22+$F$80-$F$69),2) -> 2327.62 | H25: * Nota 1 - Os percentuais dos encargos previdenciários, do FGTS e demais contribuições são estabelecidos por legislação vigente.
C26: B | D26: ='Encargos Sociais'!D15 -> Salário Educação (art. 3º, inciso I, Decreto nº 87.043/82) | E26: ='Encargos Sociais'!E15 -> 0.025 | F26: =TRUNC(E26*($F$17+$F$21+$F$22+$F$80),2) -> 291.16 | H26: * Nota 2 - O SAT, a depender do grau de risco do serviço, irá variar entre 1%, para risco leve, de 2%, para risco médio, e de 3% para risco grave.
C27: C | D27: ='Encargos Sociais'!D16 -> SAT/RAT (art. 22, II, Lei 8.212/91 e Anexo V, Decreto 6.042/07) - Enquadramento 8121-4/00 | E27: ='Encargos Sociais'!E16 -> 0.03 | F27: =TRUNC(E27*($F$17+$F$21+$F$22+$F$80),2) -> 349.39 | H27: * Nota 3 - Base de cálculo - remuneração + ausências + 13º salário + terço constitucional (férias) - exceto INSS sobre ausência por acidente de trabalho
C28: D | D28: ='Encargos Sociais'!D17 -> SESC ou SESI (art. 30, Lei nº 8.036/90 e art. 1º, Lei 8.154/90) | E28: ='Encargos Sociais'!E17 -> 0.015 | F28: 174.69
C29: E | D29: ='Encargos Sociais'!D18 -> SENAI ou SENAC (Decreto nº 2.318/86) | E29: ='Encargos Sociais'!E18 -> 0.01 | F29: 116.46
C30: F | D30: ='Encargos Sociais'!D19 -> SEBRAE (§ 3º, art. 8º, Lei 8.029/90, alterada pela Lei nº 8.154/90) | E30: ='Encargos Sociais'!E19 -> 0.006 | F30: 69.87
C31: G | D31: ='Encargos Sociais'!D20 -> INCRA (art. 1º, I, Decreto Lei 1.146/70 e Lei 7.787, de 30/06/89) | E31: ='Encargos Sociais'!E20 -> 0.002 | F31: 23.29
C32: H | D32: ='Encargos Sociais'!D21 -> FGTS (Lei Complementar nº 110/01 e art. 30, Lei nº 8.036/90) | E32: ='Encargos Sociais'!E21 -> 0.08 | F32: 931.72
C33: I | D33: ='Encargos Sociais'!D22 -> SECONCI (Convenções Coletivas de Trabalho da construção) | E33: ='Encargos Sociais'!E22 -> 0 | F33: 0
B35: Submódulo 2.3 - Benefícios Mensais e Diários
C36: A | D36: Auxílio Transporte | F36: =HLOOKUP($B$5,'Dados Gerais'!$D$6:$BI$140,85) -> 0 | H36: * Nota 1 - O valor informado deverá ser o custo real do benefício (descontado o valor eventualmente pago pelo empregado).
C37: B | D37: Auxílio Alimentação | F37: =HLOOKUP($B$5,'Dados Gerais'!$D$6:$BI$140,92) -> 1048.3 | H37: * Nota 2 - Observar a previsão dos benefícios contidos em Acordos, Convenções e Dissídios Coletivos de Trabalho e o disposto no art. 6º da IN 5/2017
C38: C | D38: Assistência Médica e Familiar | F38: =HLOOKUP($B$5,'Dados Gerais'!$D$6:$BI$140,100) -> 0
C39: D | D39: Seguro de vida / auxílio funeral | F39: =HLOOKUP($B$5,'Dados Gerais'!$D$6:$BI$140,109) -> 3.61
C40: E | D40: Assistência odontológica | F40: =HLOOKUP($B$5,'Dados Gerais'!$D$6:$BI$140,115) -> 0
C41: F | D41: Auxílio creche | F41: =HLOOKUP($B$5,'Dados Gerais'!$D$6:$BI$140,121) -> 0
C42: G | D42: Auxílio vestuário especial | F42: =HLOOKUP($B$5,'Dados Gerais'!$D$6:$BI$140,127) -> 0
C43: H | D43: Benefício social familiar | F43: =HLOOKUP($B$5,'Dados Gerais'!$D$6:$BI$140,133) -> 0
C44: I | D44: Outros (especificar)
C45: J | D45: Outros (especificar)
D47: QUADRO-RESUMO DO MÓDULO 2
D48: 2.1 - 13º salário e Adicional de Férias | E48: =SUM(E21:E22) -> 0.1212 | F48: =F21+F22 -> 1145.66
D49: 2.2 - Encargos Previdenciários (GPS), Fundo de Garantia por Tempo de Serviço (FGTS) e Contribuições | E49: =SUM(E25:E33) -> 0.368 | F49: =SUM(F25:F33) -> 4284.2
D50: 2.3 - Benefícios Mensais e Diários | F50: =SUM(F36:F45) -> 1051.91
D52: TOTAL DOS ENCARGOS E BENEFÍCIOS | F52: =TRUNC(SUM(F48:F50),2) -> 6481.77
B54: MÓDULO 3 - PROVISÃO PARA RESCISÃO | E54: Percentuais | F54: Valor
C55: A | D55: ='Encargos Sociais'!D36 -> Aviso Prévio Indenizado (Art. 7º, inciso XXI, da CF/1988 e arts. 477, 487, §1º, e 491 da CLT) | E55: ='Encargos Sociais'!E36 -> 0.0042 | F55: =TRUNC(E55*($F$17+$F$48+$F$80),2) -> 48.91 | H55: * Nota 1 - Base de cálculo - remuneração + ausências + 1/3 férias + 13º
C56: B | D56: ='Encargos Sociais'!D37 -> Incidência do FGTS sobre o Aviso Prévio Indenizado (Súmula 305 TST) | E56: ='Encargos Sociais'!E37 -> 0.0003 | F56: =TRUNC(E56*($F$17+$F$48+$F$80),2) -> 3.49
C57: C | D57: ='Encargos Sociais'!D38 -> Multa do FGTS sobre o Aviso Prévio Indenizado (Art. 18, §1º, da Lei 8.036/1990) | E57: ='Encargos Sociais'!E38 -> 0 | F57: =TRUNC(E57*($F$17+$F$48+$F$80),2) -> 0 | H57: * Nota 2 - zerado pois foi considerada toda a incidência da multa do FGTS na letra F
C58: D | D58: ='Encargos Sociais'!D39 -> Aviso Prévio Trabalhado (Art. 488, parágrafo único, CLT) | E58: ='Encargos Sociais'!E39 -> 0.0078 | F58: =TRUNC(E58*($F$17),2) -> 73.73
C59: E | D59: ='Encargos Sociais'!D40 -> Incidência de GPS, FGTS e outras contribuições sobre o Aviso Prévio Trabalhado | E59: ='Encargos Sociais'!E40 -> 0.0029 | F59: =TRUNC(E59*($F$17),2) -> 27.41
C60: F | D60: ='Encargos Sociais'!D41 -> Multa do FGTS | E60: ='Encargos Sociais'!E41 -> 0.032 | F60: =TRUNC(E60*($F$17+$F$48+$F$80),2) -> 372.69
D62: TOTAL DE PROVISÃO PARA RESCISÃO | F62: =TRUNC(SUM(F55:F60),2) -> 526.23
B64: MÓDULO 4 - CUSTO DO PROFISSIONAL AUSENTE | E64: Percentuais | F64: Valor
B65: Submódulo 4.1 - Ausências Legais
C66: A | D66: ='Encargos Sociais'!D25 -> Férias (Arts. 129 e 130, inc. I, da CLT) | E66: ='Encargos Sociais'!E25 -> 0.0909 | F66: =TRUNC(E66*$F$17,2) -> 859.24 | H66: * Nota 1 - O Módulo 4 refere-se às previsões para custear ausências do próprio profissional (titular do cargo)
C67: B | D67: ='Encargos Sociais'!D26 -> Ausências Legais (Arts. 131 e 473 da CLT) | E67: ='Encargos Sociais'!E26 -> 0.0079 | F67: 74.67 | H67: * Nota 2 - As férias foram calculadas dividindo-se por 11, para comportar os 11 meses presentes e ainda o ausente do posto
C68: C | D68: ='Encargos Sociais'!D27 -> Licença-Paternidade (Art. 7º, XIX, e art. 10, §1º, do ADCT, CF/1988 e Art. 1º, II, da Lei 11.770/2008) | E68: ='Encargos Sociais'!E27 -> 0.0008 | F68: 7.56
C69: D | D69: ='Encargos Sociais'!D28 -> Ausência por Acidente de Trabalho (Art. 131, III, da CLT) | E69: ='Encargos Sociais'!E28 -> 0.0009 | F69: 8.5
C70: E | D70: ='Encargos Sociais'!D29 -> Afastamento Maternidade (Art. 71 da Lei nº 8.213/1991) | E70: ='Encargos Sociais'!E29 -> 0.0033 | F70: 31.19
C71: F | D71: ='Encargos Sociais'!D30 -> Auxílio Enfermidade - Doença (Art. 59 da Lei nº 8.213/1991) | E71: ='Encargos Sociais'!E30 -> 0.0071 | F71: 67.11
B73: Submódulo 4.2 - Intrajornada
C74: A | D74: Intervalo para repouso ou alimentação | E74: ='Encargos Sociais'!E33 -> 0 | F74: =ROUND(E74*$F$17,2) -> 0
D76: QUADRO-RESUMO DO MÓDULO 4 | F76: Valor
D77: 4.1 - Ausências Legais | E77: =SUM(E66:E71) -> 0.1109 | F77: =SUM(F66:F71) -> 1048.27
D78: 4.2 - Intrajornada | E78: =E74 -> 0 | F78: =ROUND(E78*$F$17,2) -> 0
D80: TOTAL DE CUSTO DO PROFISSIONAL AUSENTE E INTERVALO INTRAJORNADA | F80: =TRUNC(SUM(F77:F78),2) -> 1048.27
B82: MÓDULO 5 - INSUMOS DIVERSOS | F82: Valor
C83: A | D83: Uniformes - aquisição | F83: =TRUNC(HLOOKUP($B$5,Uniformes!$K$3:$DZ$5,3,0)/12,2) -> 157.83
C84: B | D84: Materiais de consumo relacionados ao posto - aquisição | F84: 0
C85: C | D85: Ferramentas relacionadas ao posto - remuneração da sua depreciação / manutenção | F85: 0
C86: D | D86: Equipamentos relacionados ao posto - remuneração da sua depreciação / manutenção | F86: 0
C87: E | D87: Equipamentos de Proteção Individual - EPI - aquisição | F87: =TRUNC(HLOOKUP($B$5,EPI!$J$3:$DY$5,3,0)/12,2) -> 29.03
D89: TOTAL DE INSUMOS DIVERSOS | F89: =SUM(F83:F88) -> 186.86 | H89: * Nota - Valores mensais por empregado
B91: MÓDULO 6 - CUSTOS INDIRETOS, TRIBUTOS E LUCRO - BDI | E91: Percentuais | F91: Valor
C92: A | D92: Custos Indiretos | E92: ='BDI - Geral'!E7 -> 0.0227
C93: A.1 | D93: Administração Central | E93: ='BDI - Geral'!E8 -> 0.0173
C94: A.2 | D94: Seguros, Garantias e Riscos | E94: ='BDI - Geral'!E9 -> 0.0054
C95: B | D95: Lucro | E95: ='BDI - Geral'!E11 -> 0.0267
C96: C | D96: Tributos | E96: =SUM(E97:E98) -> 0.124
C97: C.1 | D97: Tributos Federais (COFINS, PIS e CPRB) | E97: ='BDI - Geral'!E19 -> 0.074
C98: C.2 | D98: Tributos Distritais (ISS) | E98: ='BDI - Geral'!E24 -> 0.05
C99: D | D99: Despesas Financeiras | E99: ='BDI - Geral'!E14 -> 0.0061
D101: TOTAL DE BDI | E101: ='BDI - Geral'!E27 -> 0.2059 | F101: =TRUNC(E101*E109,2) -> 3643.56
D103: QUADRO-RESUMO DO CUSTO MENSAL POR EMPREGADO | E103: Valor
D104: Módulo 1 - Composição da Remuneração | E104: =F17 -> 9452.69
D105: Módulo 2 - Encargos e Benefícios Anuais, Mensais e Diários | E105: =F52 -> 6481.77
D106: Módulo 3 - Provisão para Rescisão | E106: =F62 -> 526.23
D107: Módulo 4 - Custo do Profissional Ausente | E107: =F80 -> 1048.27
D108: Módulo 5 - Insumos Diversos | E108: =F89 -> 186.86
D109: SUBTOTAL (A+B+C+D+E) | E109: =SUM(E104:E108) -> 17695.82
D110: Módulo 6 - Custos Indiretos, Tributos e Lucro | E110: =F101 -> 3643.56
D112: TOTAL DO POSTO | E112: =SUM(E109:E110) -> 21339.38

Sheet 2
B2: PLANILHA DE ESTIMATIVA DE CUSTOS
B3: Padrão IN 05/2017 e IN 07/2018 - MPDG - Medição por posto presente
B5: 2 | D5: =HLOOKUP($B$5,'Dados Gerais'!$D$6:$BI$22,6) -> ENCARREGADA DE SETOR | E5: QUANTIDADE | F5: =HLOOKUP($B$5,'Dados Gerais'!$D$6:$BI$22,10) -> 5
B6: CCT | D6: =HLOOKUP($B$5,'Dados Gerais'!$D$6:$BI$22,16) -> SEAC/DF x SINDISERVIÇOS/DF CCT 2025/2026 N.º DF000042/2025 | E6: DATA-BASE | F6: =HLOOKUP($B$5,'Dados Gerais'!$D$6:$BI$22,17) -> 2025-01-01
B8: MÓDULO 1 - COMPOSIÇÃO DA REMUNERAÇÃO | F8: Valor
C9: A | D9: Salário-Base | F9: =HLOOKUP($B$5,'Dados Gerais'!$D$6:$BI$22,8) -> 4764.77
C10: B | D10: Adicional de Periculosidade | F10: =HLOOKUP($B$5,'Dados Gerais'!$D$6:$BI$41,26) -> 0
C11: C | D11: Adicional de Insalubridade | F11: =HLOOKUP($B$5,'Dados Gerais'!$D$6:$BI$41,32) -> 0
C12: D | D12: Adicional Noturno | F12: =HLOOKUP($B$5,'Dados Gerais'!$D$6:$BI$54,49) -> 0 | H12: * Nota 1 - O Módulo 1 refere-se ao valor mensal devido ao empregado pela prestação do serviço no período de 12 meses.
C13: E | D13: Adicional de Hora Extra | F13: =HLOOKUP($B$5,'Dados Gerais'!$D$6:$BI$71,66) -> 0 | H13: * Nota 2 - O adicional de hora extra no feriado trabalhado foi suprimido pela Lei 13.467/17
C14: F | D14: Gratificação | F14: =HLOOKUP($B$5,'Dados Gerais'!$D$6:$BI$71,34) -> 0 | H14: * Nota 3 - ART. 7º, § 2º, DA LEI Nº 605/49.Sendo mensalista o obreiro, o adicional noturno pago de forma fixa já é considerado integrado para os efeitos do pagamento do repouso semanal remunerado, nos termos do art. 7º, § 2º, da Lei nº 605/49.
C15: G | D15: Sobraviso | F15: =HLOOKUP($B$5,'Dados Gerais'!$D$6:$BI$71,36) -> 0
D17: TOTAL DA REMUNERAÇÃO | F17: =TRUNC(SUM(F9:F15),2) -> 4764.77
B19: MÓDULO 2 - ENCARGOS E BENEFÍCIOS ANUAIS, MENSAIS E DIÁRIOS | E19: Percentuais | F19: Valor
B20: Submódulo 2.1 - 13º Salário e Adicional de Férias
C21: A | D21: 13º Salário | E21: ='Encargos Sociais'!$E$32 -> 0.0909 | F21: =ROUND(E21*F$17,2) -> 433.12 | H21: * Nota 1 - O 13º salário foi calculado dividindo-se por 11, para comportar os 11 meses presentes e ainda o ausente do posto
C22: B | D22: Adicional de Férias | E22: ='Encargos Sociais'!E31 -> 0.0303 | F22: =TRUNC(E22*(F$17),2) -> 144.37 | H22: * Nota 2 - O adicional de férias foi calculado dividindo-se por 11, para comportar os 11 meses presentes e ainda o ausente do posto
B24: Submódulo 2.2 - Encargos Previdenciários (GPS), Fundo de Garantia por Tempo de Serviço (FGTS) e Outras Contribuições
C25: A | D25: ='Encargos Sociais'!D14 -> INSS (art. 22, inciso I, Lei nº 8.212/91) | E25: ='Encargos Sociais'!E14 -> 0.2 | F25: =TRUNC(E25*($F$17+$F$21+$F$22+$F$80-$F$69),2) -> 1173.27 | H25: * Nota 1 - Os percentuais dos encargos previdenciários, do FGTS e demais contribuições são estabelecidos por legislação vigente.
C26: B | D26: ='Encargos Sociais'!D15 -> Salário Educação (art. 3º, inciso I, Decreto nº 87.043/82) | E26: ='Encargos Sociais'!E15 -> 0.025 | F26: =TRUNC(E26*($F$17+$F$21+$F$22+$F$80),2) -> 146.76 | H26: * Nota 2 - O SAT, a depender do grau de risco do serviço, irá variar entre 1%, para risco leve, de 2%, para risco médio, e de 3% para risco grave.
C27: C | D27: ='Encargos Sociais'!D16 -> SAT/RAT (art. 22, II, Lei 8.212/91 e Anexo V, Decreto 6.042/07) - Enquadramento 8121-4/00 | E27: ='Encargos Sociais'!E16 -> 0.03 | F27: =TRUNC(E27*($F$17+$F$21+$F$22+$F$80),2) -> 176.11 | H27: * Nota 3 - Base de cálculo - remuneração + ausências + 13º salário + terço constitucional (férias) - exceto INSS sobre ausência por acidente de trabalho
C28: D | D28: ='Encargos Sociais'!D17 -> SESC ou SESI (art. 30, Lei nº 8.036/90 e art. 1º, Lei 8.154/90) | E28: ='Encargos Sociais'!E17 -> 0.015 | F28: 88.05
C29: E | D29: ='Encargos Sociais'!D18 -> SENAI ou SENAC (Decreto nº 2.318/86) | E29: ='Encargos Sociais'!E18 -> 0.01 | F29: 58.7
C30: F | D30: ='Encargos Sociais'!D19 -> SEBRAE (§ 3º, art. 8º, Lei 8.029/90, alterada pela Lei nº 8.154/90) | E30: ='Encargos Sociais'!E19 -> 0.006 | F30: 35.22
C31: G | D31: ='Encargos Sociais'!D20 -> INCRA (art. 1º, I, Decreto Lei 1.146/70 e Lei 7.787, de 30/06/89) | E31: ='Encargos Sociais'!E20 -> 0.002 | F31: 11.74
C32: H | D32: ='Encargos Sociais'!D21 -> FGTS (Lei Complementar nº 110/01 e art. 30, Lei nº 8.036/90) | E32: ='Encargos Sociais'!E21 -> 0.08 | F32: 469.65
C33: I | D33: ='Encargos Sociais'!D22 -> SECONCI (Convenções Coletivas de Trabalho da construção) | E33: ='Encargos Sociais'!E22 -> 0 | F33: 0
B35: Submódulo 2.3 - Benefícios Mensais e Diários
C36: A | D36: Auxílio Transporte | F36: =HLOOKUP($B$5,'Dados Gerais'!$D$6:$BI$140,85) -> 19.03 | H36: * Nota 1 - O valor informado deverá ser o custo real do benefício (descontado o valor eventualmente pago pelo empregado).
C37: B | D37: Auxílio Alimentação | F37: =HLOOKUP($B$5,'Dados Gerais'!$D$6:$BI$140,92) -> 1048.3 | H37: * Nota 2 - Observar a previsão dos benefícios contidos em Acordos, Convenções e Dissídios Coletivos de Trabalho e o disposto no art. 6º da IN 5/2017
C38: C | D38: Assistência Médica e Familiar | F38: =HLOOKUP($B$5,'Dados Gerais'!$D$6:$BI$140,100) -> 0
C39: D | D39: Seguro de vida / auxílio funeral | F39: =HLOOKUP($B$5,'Dados Gerais'!$D$6:$BI$140,109) -> 3.61
C40: E | D40: Assistência odontológica | F40: =HLOOKUP($B$5,'Dados Gerais'!$D$6:$BI$140,115) -> 0
C41: F | D41: Auxílio creche | F41: =HLOOKUP($B$5,'Dados Gerais'!$D$6:$BI$140,121) -> 0
C42: G | D42: Auxílio vestuário especial | F42: =HLOOKUP($B$5,'Dados Gerais'!$D$6:$BI$140,127) -> 0
C43: H | D43: Benefício social familiar | F43: =HLOOKUP($B$5,'Dados Gerais'!$D$6:$BI$140,133) -> 0
C44: I | D44: Outros (especificar)
C45: J | D45: Outros (especificar)
D47: QUADRO-RESUMO DO MÓDULO 2
D48: 2.1 - 13º salário e Adicional de Férias | E48: =SUM(E21:E22) -> 0.1212 | F48: =F21+F22 -> 577.49
D49: 2.2 - Encargos Previdenciários (GPS), Fundo de Garantia por Tempo de Serviço (FGTS) e Contribuições | E49: =SUM(E25:E33) -> 0.368 | F49: =SUM(F25:F33) -> 2159.5
D50: 2.3 - Benefícios Mensais e Diários | F50: =SUM(F36:F45) -> 1070.94
D52: TOTAL DOS ENCARGOS E BENEFÍCIOS | F52: =TRUNC(SUM(F48:F50),2) -> 3807.93
B54: MÓDULO 3 - PROVISÃO PARA RESCISÃO | E54: Percentuais | F54: Valor
C55: A | D55: ='Encargos Sociais'!D36 -> Aviso Prévio Indenizado (Art. 7º, inciso XXI, da CF/1988 e arts. 477, 487, §1º, e 491 da CLT) | E55: ='Encargos Sociais'!E36 -> 0.0042 | F55: =TRUNC(E55*($F$17+$F$48+$F$80),2) -> 24.65 | H55: * Nota 1 - Base de cálculo - remuneração + ausências + 1/3 férias + 13º
C56: B | D56: ='Encargos Sociais'!D37 -> Incidência do FGTS sobre o Aviso Prévio Indenizado (Súmula 305 TST) | E56: ='Encargos Sociais'!E37 -> 0.0003 | F56: =TRUNC(E56*($F$17+$F$48+$F$80),2) -> 1.76
C57: C | D57: ='Encargos Sociais'!D38 -> Multa do FGTS sobre o Aviso Prévio Indenizado (Art. 18, §1º, da Lei 8.036/1990) | E57: ='Encargos Sociais'!E38 -> 0 | F57: =TRUNC(E57*($F$17+$F$48+$F$80),2) -> 0 | H57: * Nota 2 - zerado pois foi considerada toda a incidência da multa do FGTS na letra F
C58: D | D58: ='Encargos Sociais'!D39 -> Aviso Prévio Trabalhado (Art. 488, parágrafo único, CLT) | E58: ='Encargos Sociais'!E39 -> 0.0078 | F58: =TRUNC(E58*($F$17),2) -> 37.16
C59: E | D59: ='Encargos Sociais'!D40 -> Incidência de GPS, FGTS e outras contribuições sobre o Aviso Prévio Trabalhado | E59: ='Encargos Sociais'!E40 -> 0.0029 | F59: =TRUNC(E59*($F$17),2) -> 13.81
C60: F | D60: ='Encargos Sociais'!D41 -> Multa do FGTS | E60: ='Encargos Sociais'!E41 -> 0.032 | F60: =TRUNC(E60*($F$17+$F$48+$F$80),2) -> 187.86
D62: TOTAL DE PROVISÃO PARA RESCISÃO | F62: =TRUNC(SUM(F55:F60),2) -> 265.24
B64: MÓDULO 4 - CUSTO DO PROFISSIONAL AUSENTE | E64: Percentuais | F64: Valor
B65: Submódulo 4.1 - Ausências Legais
C66: A | D66: ='Encargos Sociais'!D25 -> Férias (Arts. 129 e 130, inc. I, da CLT) | E66: ='Encargos Sociais'!E25 -> 0.0909 | F66: =TRUNC(E66*$F$17,2) -> 433.11 | H66: * Nota 1 - O Módulo 4 refere-se às previsões para custear ausências do próprio profissional (titular do cargo)
C67: B | D67: ='Encargos Sociais'!D26 -> Ausências Legais (Arts. 131 e 473 da CLT) | E67: ='Encargos Sociais'!E26 -> 0.0079 | F67: 37.64 | H67: * Nota 2 - As férias foram calculadas dividindo-se por 11, para comportar os 11 meses presentes e ainda o ausente do posto
C68: C | D68: ='Encargos Sociais'!D27 -> Licença-Paternidade (Art. 7º, XIX, e art. 10, §1º, do ADCT, CF/1988 e Art. 1º, II, da Lei 11.770/2008) | E68: ='Encargos Sociais'!E27 -> 0.0008 | F68: 3.81
C69: D | D69: ='Encargos Sociais'!D28 -> Ausência por Acidente de Trabalho (Art. 131, III, da CLT) | E69: ='Encargos Sociais'!E28 -> 0.0009 | F69: 4.28
C70: E | D70: ='Encargos Sociais'!D29 -> Afastamento Maternidade (Art. 71 da Lei nº 8.213/1991) | E70: ='Encargos Sociais'!E29 -> 0.0033 | F70: 15.72
C71: F | D71: ='Encargos Sociais'!D30 -> Auxílio Enfermidade - Doença (Art. 59 da Lei nº 8.213/1991) | E71: ='Encargos Sociais'!E30 -> 0.0071 | F71: 33.82
B73: Submódulo 4.2 - Intrajornada
C74: A | D74: Intervalo para repouso ou alimentação | E74: ='Encargos Sociais'!E33 -> 0 | F74: =ROUND(E74*$F$17,2) -> 0
D76: QUADRO-RESUMO DO MÓDULO 4 | F76: Valor
D77: 4.1 - Ausências Legais | E77: =SUM(E66:E71) -> 0.1109 | F77: =SUM(F66:F71) -> 528.38
D78: 4.2 - Intrajornada | E78: =E74 -> 0 | F78: =ROUND(E78*$F$17,2) -> 0
D80: TOTAL DE CUSTO DO PROFISSIONAL AUSENTE E INTERVALO INTRAJORNADA | F80: =TRUNC(SUM(F77:F78),2) -> 528.38
B82: MÓDULO 5 - INSUMOS DIVERSOS | F82: Valor
C83: A | D83: Uniformes - aquisição | F83: =TRUNC(HLOOKUP($B$5,Uniformes!$K$3:$DZ$5,3,0)/12,2) -> 150.75
C84: B | D84: Materiais de consumo relacionados ao posto - aquisição | F84: 0
C85: C | D85: Ferramentas relacionadas ao posto - remuneração da sua depreciação / manutenção | F85: 0
C86: D | D86: Equipamentos relacionados ao posto - remuneração da sua depreciação / manutenção | F86: 0
C87: E | D87: Equipamentos de Proteção Individual - EPI - aquisição | F87: =TRUNC(HLOOKUP($B$5,EPI!$J$3:$DY$5,3,0)/12,2) -> 30.4
D89: TOTAL DE INSUMOS DIVERSOS | F89: =SUM(F83:F88) -> 181.15 | H89: * Nota - Valores mensais por empregado
B91: MÓDULO 6 - CUSTOS INDIRETOS, TRIBUTOS E LUCRO - BDI | E91: Percentuais | F91: Valor
C92: A | D92: Custos Indiretos | E92: ='BDI - Geral'!E7 -> 0.0227
C93: A.1 | D93: Administração Central | E93: ='BDI - Geral'!E8 -> 0.0173
C94: A.2 | D94: Seguros, Garantias e Riscos | E94: ='BDI - Geral'!E9 -> 0.0054
C95: B | D95: Lucro | E95: ='BDI - Geral'!E11 -> 0.0267
C96: C | D96: Tributos | E96: =SUM(E97:E98) -> 0.124
C97: C.1 | D97: Tributos Federais (COFINS, PIS e CPRB) | E97: ='BDI - Geral'!E19 -> 0.074
C98: C.2 | D98: Tributos Distritais (ISS) | E98: ='BDI - Geral'!E24 -> 0.05
C99: D | D99: Despesas Financeiras | E99: ='BDI - Geral'!E14 -> 0.0061
D101: TOTAL DE BDI | E101: ='BDI - Geral'!E27 -> 0.2059 | F101: =TRUNC(E101*E109,2) -> 1965.82
D103: QUADRO-RESUMO DO CUSTO MENSAL POR EMPREGADO | E103: Valor
D104: Módulo 1 - Composição da Remuneração | E104: =F17 -> 4764.77
D105: Módulo 2 - Encargos e Benefícios Anuais, Mensais e Diários | E105: =F52 -> 3807.93
D106: Módulo 3 - Provisão para Rescisão | E106: =F62 -> 265.24
D107: Módulo 4 - Custo do Profissional Ausente | E107: =F80 -> 528.38
D108: Módulo 5 - Insumos Diversos | E108: =F89 -> 181.15
D109: SUBTOTAL (A+B+C+D+E) | E109: =SUM(E104:E108) -> 9547.47
D110: Módulo 6 - Custos Indiretos, Tributos e Lucro | E110: =F101 -> 1965.82
D112: TOTAL DO POSTO | E112: =SUM(E109:E110) -> 11513.29

Sheet 3
B2: PLANILHA DE ESTIMATIVA DE CUSTOS
B3: Padrão IN 05/2017 e IN 07/2018 - MPDG - Medição por posto presente
B5: 3 | D5: =HLOOKUP($B$5,'Dados Gerais'!$D$6:$BI$22,6) -> COPEIRA | E5: QUANTIDADE | F5: =HLOOKUP($B$5,'Dados Gerais'!$D$6:$BI$22,10) -> 201
B6: CCT | D6: =HLOOKUP($B$5,'Dados Gerais'!$D$6:$BI$22,16) -> SEAC/DF x SINDISERVIÇOS/DF CCT 2025/2026 N.º DF000042/2025 | E6: DATA-BASE | F6: =HLOOKUP($B$5,'Dados Gerais'!$D$6:$BI$22,17) -> 2025-01-01
B8: MÓDULO 1 - COMPOSIÇÃO DA REMUNERAÇÃO | F8: Valor
C9: A | D9: Salário-Base | F9: =HLOOKUP($B$5,'Dados Gerais'!$D$6:$BI$22,8) -> 2176.92
C10: B | D10: Adicional de Periculosidade | F10: =HLOOKUP($B$5,'Dados Gerais'!$D$6:$BI$41,26) -> 0
C11: C | D11: Adicional de Insalubridade | F11: =HLOOKUP($B$5,'Dados Gerais'!$D$6:$BI$41,32) -> 0
C12: D | D12: Adicional Noturno | F12: =HLOOKUP($B$5,'Dados Gerais'!$D$6:$BI$54,49) -> 0 | H12: * Nota 1 - O Módulo 1 refere-se ao valor mensal devido ao empregado pela prestação do serviço no período de 12 meses.
C13: E | D13: Adicional de Hora Extra | F13: =HLOOKUP($B$5,'Dados Gerais'!$D$6:$BI$71,66) -> 0 | H13: * Nota 2 - O adicional de hora extra no feriado trabalhado foi suprimido pela Lei 13.467/17
C14: F | D14: Gratificação | F14: =HLOOKUP($B$5,'Dados Gerais'!$D$6:$BI$71,34) -> 0 | H14: * Nota 3 - ART. 7º, § 2º, DA LEI Nº 605/49.Sendo mensalista o obreiro, o adicional noturno pago de forma fixa já é considerado integrado para os efeitos do pagamento do repouso semanal remunerado, nos termos do art. 7º, § 2º, da Lei nº 605/49.
C15: G | D15: Sobraviso | F15: =HLOOKUP($B$5,'Dados Gerais'!$D$6:$BI$71,36) -> 0
D17: TOTAL DA REMUNERAÇÃO | F17: =TRUNC(SUM(F9:F15),2) -> 2176.92
B19: MÓDULO 2 - ENCARGOS E BENEFÍCIOS ANUAIS, MENSAIS E DIÁRIOS | E19: Percentuais | F19: Valor
B20: Submódulo 2.1 - 13º Salário e Adicional de Férias
C21: A | D21: 13º Salário | E21: ='Encargos Sociais'!$E$32 -> 0.0909 | F21: =ROUND(E21*F$17,2) -> 197.88 | H21: * Nota 1 - O 13º salário foi calculado dividindo-se por 11, para comportar os 11 meses presentes e ainda o ausente do posto
C22: B | D22: Adicional de Férias | E22: ='Encargos Sociais'!E31 -> 0.0303 | F22: =TRUNC(E22*(F$17),2) -> 65.96 | H22: * Nota 2 - O adicional de férias foi calculado dividindo-se por 11, para comportar os 11 meses presentes e ainda o ausente do posto
B24: Submódulo 2.2 - Encargos Previdenciários (GPS), Fundo de Garantia por Tempo de Serviço (FGTS) e Outras Contribuições
C25: A | D25: ='Encargos Sociais'!D14 -> INSS (art. 22, inciso I, Lei nº 8.212/91) | E25: ='Encargos Sociais'!E14 -> 0.2 | F25: =TRUNC(E25*($F$17+$F$21+$F$22+$F$80-$F$69),2) -> 536.04 | H25: * Nota 1 - Os percentuais dos encargos previdenciários, do FGTS e demais contribuições são estabelecidos por legislação vigente.
C26: B | D26: ='Encargos Sociais'!D15 -> Salário Educação (art. 3º, inciso I, Decreto nº 87.043/82) | E26: ='Encargos Sociais'!E15 -> 0.025 | F26: =TRUNC(E26*($F$17+$F$21+$F$22+$F$80),2) -> 67.05 | H26: * Nota 2 - O SAT, a depender do grau de risco do serviço, irá variar entre 1%, para risco leve, de 2%, para risco médio, e de 3% para risco grave.
C27: C | D27: ='Encargos Sociais'!D16 -> SAT/RAT (art. 22, II, Lei 8.212/91 e Anexo V, Decreto 6.042/07) - Enquadramento 8121-4/00 | E27: ='Encargos Sociais'!E16 -> 0.03 | F27: =TRUNC(E27*($F$17+$F$21+$F$22+$F$80),2) -> 80.46 | H27: * Nota 3 - Base de cálculo - remuneração + ausências + 13º salário + terço constitucional (férias) - exceto INSS sobre ausência por acidente de trabalho
C28: D | D28: ='Encargos Sociais'!D17 -> SESC ou SESI (art. 30, Lei nº 8.036/90 e art. 1º, Lei 8.154/90) | E28: ='Encargos Sociais'!E17 -> 0.015 | F28: 40.23
C29: E | D29: ='Encargos Sociais'!D18 -> SENAI ou SENAC (Decreto nº 2.318/86) | E29: ='Encargos Sociais'!E18 -> 0.01 | F29: 26.82
C30: F | D30: ='Encargos Sociais'!D19 -> SEBRAE (§ 3º, art. 8º, Lei 8.029/90, alterada pela Lei nº 8.154/90) | E30: ='Encargos Sociais'!E19 -> 0.006 | F30: 16.09
C31: G | D31: ='Encargos Sociais'!D20 -> INCRA (art. 1º, I, Decreto Lei 1.146/70 e Lei 7.787, de 30/06/89) | E31: ='Encargos Sociais'!E20 -> 0.002 | F31: 5.36
C32: H | D32: ='Encargos Sociais'!D21 -> FGTS (Lei Complementar nº 110/01 e art. 30, Lei nº 8.036/90) | E32: ='Encargos Sociais'!E21 -> 0.08 | F32: 214.57
C33: I | D33: ='Encargos Sociais'!D22 -> SECONCI (Convenções Coletivas de Trabalho da construção) | E33: ='Encargos Sociais'!E22 -> 0 | F33: 0
B35: Submódulo 2.3 - Benefícios Mensais e Diários
C36: A | D36: Auxílio Transporte | F36: =HLOOKUP($B$5,'Dados Gerais'!$D$6:$BI$140,85) -> 174.3 | H36: * Nota 1 - O valor informado deverá ser o custo real do benefício (descontado o valor eventualmente pago pelo empregado).
C37: B | D37: Auxílio Alimentação | F37: =HLOOKUP($B$5,'Dados Gerais'!$D$6:$BI$140,92) -> 1048.3 | H37: * Nota 2 - Observar a previsão dos benefícios contidos em Acordos, Convenções e Dissídios Coletivos de Trabalho e o disposto no art. 6º da IN 5/2017
C38: C | D38: Assistência Médica e Familiar | F38: =HLOOKUP($B$5,'Dados Gerais'!$D$6:$BI$140,100) -> 0
C39: D | D39: Seguro de vida / auxílio funeral | F39: =HLOOKUP($B$5,'Dados Gerais'!$D$6:$BI$140,109) -> 3.61
C40: E | D40: Assistência odontológica | F40: =HLOOKUP($B$5,'Dados Gerais'!$D$6:$BI$140,115) -> 0
C41: F | D41: Auxílio creche | F41: =HLOOKUP($B$5,'Dados Gerais'!$D$6:$BI$140,121) -> 0
C42: G | D42: Auxílio vestuário especial | F42: =HLOOKUP($B$5,'Dados Gerais'!$D$6:$BI$140,127) -> 0
C43: H | D43: Benefício social familiar | F43: =HLOOKUP($B$5,'Dados Gerais'!$D$6:$BI$140,133) -> 0
C44: I | D44: Outros (especificar)
C45: J | D45: Outros (especificar)
D47: QUADRO-RESUMO DO MÓDULO 2
D48: 2.1 - 13º salário e Adicional de Férias | E48: =SUM(E21:E22) -> 0.1212 | F48: =F21+F22 -> 263.84
D49: 2.2 - Encargos Previdenciários (GPS), Fundo de Garantia por Tempo de Serviço (FGTS) e Contribuições | E49: =SUM(E25:E33) -> 0.368 | F49: =SUM(F25:F33) -> 986.62
D50: 2.3 - Benefícios Mensais e Diários | F50: =SUM(F36:F45) -> 1226.21
D52: TOTAL DOS ENCARGOS E BENEFÍCIOS | F52: =TRUNC(SUM(F48:F50),2) -> 2476.67
B54: MÓDULO 3 - PROVISÃO PARA RESCISÃO | E54: Percentuais | F54: Valor
C55: A | D55: ='Encargos Sociais'!D36 -> Aviso Prévio Indenizado (Art. 7º, inciso XXI, da CF/1988 e arts. 477, 487, §1º, e 491 da CLT) | E55: ='Encargos Sociais'!E36 -> 0.0042 | F55: =TRUNC(E55*($F$17+$F$48+$F$80),2) -> 11.26 | H55: * Nota 1 - Base de cálculo - remuneração + ausências + 1/3 férias + 13º
C56: B | D56: ='Encargos Sociais'!D37 -> Incidência do FGTS sobre o Aviso Prévio Indenizado (Súmula 305 TST) | E56: ='Encargos Sociais'!E37 -> 0.0003 | F56: =TRUNC(E56*($F$17+$F$48+$F$80),2) -> 0.8
C57: C | D57: ='Encargos Sociais'!D38 -> Multa do FGTS sobre o Aviso Prévio Indenizado (Art. 18, §1º, da Lei 8.036/1990) | E57: ='Encargos Sociais'!E38 -> 0 | F57: =TRUNC(E57*($F$17+$F$48+$F$80),2) -> 0 | H57: * Nota 2 - zerado pois foi considerada toda a incidência da multa do FGTS na letra F
C58: D | D58: ='Encargos Sociais'!D39 -> Aviso Prévio Trabalhado (Art. 488, parágrafo único, CLT) | E58: ='Encargos Sociais'!E39 -> 0.0078 | F58: =TRUNC(E58*($F$17),2) -> 16.97
C59: E | D59: ='Encargos Sociais'!D40 -> Incidência de GPS, FGTS e outras contribuições sobre o Aviso Prévio Trabalhado | E59: ='Encargos Sociais'!E40 -> 0.0029 | F59: =TRUNC(E59*($F$17),2) -> 6.31
C60: F | D60: ='Encargos Sociais'!D41 -> Multa do FGTS | E60: ='Encargos Sociais'!E41 -> 0.032 | F60: =TRUNC(E60*($F$17+$F$48+$F$80),2) -> 85.82
D62: TOTAL DE PROVISÃO PARA RESCISÃO | F62: =TRUNC(SUM(F55:F60),2) -> 121.16
B64: MÓDULO 4 - CUSTO DO PROFISSIONAL AUSENTE | E64: Percentuais | F64: Valor
B65: Submódulo 4.1 - Ausências Legais
C66: A | D66: ='Encargos Sociais'!D25 -> Férias (Arts. 129 e 130, inc. I, da CLT) | E66: ='Encargos Sociais'!E25 -> 0.0909 | F66: =TRUNC(E66*$F$17,2) -> 197.88 | H66: * Nota 1 - O Módulo 4 refere-se às previsões para custear ausências do próprio profissional (titular do cargo)
C67: B | D67: ='Encargos Sociais'!D26 -> Ausências Legais (Arts. 131 e 473 da CLT) | E67: ='Encargos Sociais'!E26 -> 0.0079 | F67: 17.19 | H67: * Nota 2 - As férias foram calculadas dividindo-se por 11, para comportar os 11 meses presentes e ainda o ausente do posto
C68: C | D68: ='Encargos Sociais'!D27 -> Licença-Paternidade (Art. 7º, XIX, e art. 10, §1º, do ADCT, CF/1988 e Art. 1º, II, da Lei 11.770/2008) | E68: ='Encargos Sociais'!E27 -> 0.0008 | F68: 1.74
C69: D | D69: ='Encargos Sociais'!D28 -> Ausência por Acidente de Trabalho (Art. 131, III, da CLT) | E69: ='Encargos Sociais'!E28 -> 0.0009 | F69: 1.95
C70: E | D70: ='Encargos Sociais'!D29 -> Afastamento Maternidade (Art. 71 da Lei nº 8.213/1991) | E70: ='Encargos Sociais'!E29 -> 0.0033 | F70: 7.18
C71: F | D71: ='Encargos Sociais'!D30 -> Auxílio Enfermidade - Doença (Art. 59 da Lei nº 8.213/1991) | E71: ='Encargos Sociais'!E30 -> 0.0071 | F71: 15.45
B73: Submódulo 4.2 - Intrajornada
C74: A | D74: Intervalo para repouso ou alimentação | E74: ='Encargos Sociais'!E33 -> 0 | F74: =ROUND(E74*$F$17,2) -> 0
D76: QUADRO-RESUMO DO MÓDULO 4 | F76: Valor
D77: 4.1 - Ausências Legais | E77: =SUM(E66:E71) -> 0.1109 | F77: =SUM(F66:F71) -> 241.39
D78: 4.2 - Intrajornada | E78: =E74 -> 0 | F78: =ROUND(E78*$F$17,2) -> 0
D80: TOTAL DE CUSTO DO PROFISSIONAL AUSENTE E INTERVALO INTRAJORNADA | F80: =TRUNC(SUM(F77:F78),2) -> 241.39
B82: MÓDULO 5 - INSUMOS DIVERSOS | F82: Valor
C83: A | D83: Uniformes - aquisição | F83: =TRUNC(HLOOKUP($B$5,Uniformes!$K$3:$DZ$5,3,0)/12,2) -> 73.77
C84: B | D84: Materiais de consumo relacionados ao posto - aquisição | F84: 0
C85: C | D85: Ferramentas relacionadas ao posto - remuneração da sua depreciação / manutenção | F85: 0
C86: D | D86: Equipamentos relacionados ao posto - remuneração da sua depreciação / manutenção | F86: 0
C87: E | D87: Equipamentos de Proteção Individual - EPI - aquisição | F87: =TRUNC(HLOOKUP($B$5,EPI!$J$3:$DY$5,3,0)/12,2) -> 15.92
D89: TOTAL DE INSUMOS DIVERSOS | F89: =SUM(F83:F88) -> 89.69 | H89: * Nota - Valores mensais por empregado
B91: MÓDULO 6 - CUSTOS INDIRETOS, TRIBUTOS E LUCRO - BDI | E91: Percentuais | F91: Valor
C92: A | D92: Custos Indiretos | E92: ='BDI - Geral'!E7 -> 0.0227
C93: A.1 | D93: Administração Central | E93: ='BDI - Geral'!E8 -> 0.0173
C94: A.2 | D94: Seguros, Garantias e Riscos | E94: ='BDI - Geral'!E9 -> 0.0054
C95: B | D95: Lucro | E95: ='BDI - Geral'!E11 -> 0.0267
C96: C | D96: Tributos | E96: =SUM(E97:E98) -> 0.124
C97: C.1 | D97: Tributos Federais (COFINS, PIS e CPRB) | E97: ='BDI - Geral'!E19 -> 0.074
C98: C.2 | D98: Tributos Distritais (ISS) | E98: ='BDI - Geral'!E24 -> 0.05
C99: D | D99: Despesas Financeiras | E99: ='BDI - Geral'!E14 -> 0.0061
D101: TOTAL DE BDI | E101: ='BDI - Geral'!E27 -> 0.2059 | F101: =TRUNC(E101*E109,2) -> 1051.29
D103: QUADRO-RESUMO DO CUSTO MENSAL POR EMPREGADO | E103: Valor
D104: Módulo 1 - Composição da Remuneração | E104: =F17 -> 2176.92
D105: Módulo 2 - Encargos e Benefícios Anuais, Mensais e Diários | E105: =F52 -> 2476.67
D106: Módulo 3 - Provisão para Rescisão | E106: =F62 -> 121.16
D107: Módulo 4 - Custo do Profissional Ausente | E107: =F80 -> 241.39
D108: Módulo 5 - Insumos Diversos | E108: =F89 -> 89.69
D109: SUBTOTAL (A+B+C+D+E) | E109: =SUM(E104:E108) -> 5105.83
D110: Módulo 6 - Custos Indiretos, Tributos e Lucro | E110: =F101 -> 1051.29
D112: TOTAL DO POSTO | E112: =SUM(E109:E110) -> 6157.12

Sheet 4
B2: PLANILHA DE ESTIMATIVA DE CUSTOS
B3: Padrão IN 05/2017 e IN 07/2018 - MPDG - Medição por posto presente
B5: 4 | D5: =HLOOKUP($B$5,'Dados Gerais'!$D$6:$BI$22,6) -> COPEIRO | E5: QUANTIDADE | F5: =HLOOKUP($B$5,'Dados Gerais'!$D$6:$BI$22,10) -> 18
B6: CCT | D6: =HLOOKUP($B$5,'Dados Gerais'!$D$6:$BI$22,16) -> SEAC/DF x SINDISERVIÇOS/DF CCT 2025/2026 N.º DF000042/2025 | E6: DATA-BASE | F6: =HLOOKUP($B$5,'Dados Gerais'!$D$6:$BI$22,17) -> 2025-01-01
B8: MÓDULO 1 - COMPOSIÇÃO DA REMUNERAÇÃO | F8: Valor
C9: A | D9: Salário-Base | F9: =HLOOKUP($B$5,'Dados Gerais'!$D$6:$BI$22,8) -> 2176.92
C10: B | D10: Adicional de Periculosidade | F10: =HLOOKUP($B$5,'Dados Gerais'!$D$6:$BI$41,26) -> 0
C11: C | D11: Adicional de Insalubridade | F11: =HLOOKUP($B$5,'Dados Gerais'!$D$6:$BI$41,32) -> 0
C12: D | D12: Adicional Noturno | F12: =HLOOKUP($B$5,'Dados Gerais'!$D$6:$BI$54,49) -> 0 | H12: * Nota 1 - O Módulo 1 refere-se ao valor mensal devido ao empregado pela prestação do serviço no período de 12 meses.
C13: E | D13: Adicional de Hora Extra | F13: =HLOOKUP($B$5,'Dados Gerais'!$D$6:$BI$71,66) -> 0 | H13: * Nota 2 - O adicional de hora extra no feriado trabalhado foi suprimido pela Lei 13.467/17
C14: F | D14: Gratificação | F14: =HLOOKUP($B$5,'Dados Gerais'!$D$6:$BI$71,34) -> 0 | H14: * Nota 3 - ART. 7º, § 2º, DA LEI Nº 605/49.Sendo mensalista o obreiro, o adicional noturno pago de forma fixa já é considerado integrado para os efeitos do pagamento do repouso semanal remunerado, nos termos do art. 7º, § 2º, da Lei nº 605/49.
C15: G | D15: Sobraviso | F15: =HLOOKUP($B$5,'Dados Gerais'!$D$6:$BI$71,36) -> 0
D17: TOTAL DA REMUNERAÇÃO | F17: =TRUNC(SUM(F9:F15),2) -> 2176.92
B19: MÓDULO 2 - ENCARGOS E BENEFÍCIOS ANUAIS, MENSAIS E DIÁRIOS | E19: Percentuais | F19: Valor
B20: Submódulo 2.1 - 13º Salário e Adicional de Férias
C21: A | D21: 13º Salário | E21: ='Encargos Sociais'!$E$32 -> 0.0909 | F21: =ROUND(E21*F$17,2) -> 197.88 | H21: * Nota 1 - O 13º salário foi calculado dividindo-se por 11, para comportar os 11 meses presentes e ainda o ausente do posto
C22: B | D22: Adicional de Férias | E22: ='Encargos Sociais'!E31 -> 0.0303 | F22: =TRUNC(E22*(F$17),2) -> 65.96 | H22: * Nota 2 - O adicional de férias foi calculado dividindo-se por 11, para comportar os 11 meses presentes e ainda o ausente do posto
B24: Submódulo 2.2 - Encargos Previdenciários (GPS), Fundo de Garantia por Tempo de Serviço (FGTS) e Outras Contribuições
C25: A | D25: ='Encargos Sociais'!D14 -> INSS (art. 22, inciso I, Lei nº 8.212/91) | E25: ='Encargos Sociais'!E14 -> 0.2 | F25: =TRUNC(E25*($F$17+$F$21+$F$22+$F$80-$F$69),2) -> 536.04 | H25: * Nota 1 - Os percentuais dos encargos previdenciários, do FGTS e demais contribuições são estabelecidos por legislação vigente.
C26: B | D26: ='Encargos Sociais'!D15 -> Salário Educação (art. 3º, inciso I, Decreto nº 87.043/82) | E26: ='Encargos Sociais'!E15 -> 0.025 | F26: =TRUNC(E26*($F$17+$F$21+$F$22+$F$80),2) -> 67.05 | H26: * Nota 2 - O SAT, a depender do grau de risco do serviço, irá variar entre 1%, para risco leve, de 2%, para risco médio, e de 3% para risco grave.
C27: C | D27: ='Encargos Sociais'!D16 -> SAT/RAT (art. 22, II, Lei 8.212/91 e Anexo V, Decreto 6.042/07) - Enquadramento 8121-4/00 | E27: ='Encargos Sociais'!E16 -> 0.03 | F27: =TRUNC(E27*($F$17+$F$21+$F$22+$F$80),2) -> 80.46 | H27: * Nota 3 - Base de cálculo - remuneração + ausências + 13º salário + terço constitucional (férias) - exceto INSS sobre ausência por acidente de trabalho
C28: D | D28: ='Encargos Sociais'!D17 -> SESC ou SESI (art. 30, Lei nº 8.036/90 e art. 1º, Lei 8.154/90) | E28: ='Encargos Sociais'!E17 -> 0.015 | F28: 40.23
C29: E | D29: ='Encargos Sociais'!D18 -> SENAI ou SENAC (Decreto nº 2.318/86) | E29: ='Encargos Sociais'!E18 -> 0.01 | F29: 26.82
C30: F | D30: ='Encargos Sociais'!D19 -> SEBRAE (§ 3º, art. 8º, Lei 8.029/90, alterada pela Lei nº 8.154/90) | E30: ='Encargos Sociais'!E19 -> 0.006 | F30: 16.09
C31: G | D31: ='Encargos Sociais'!D20 -> INCRA (art. 1º, I, Decreto Lei 1.146/70 e Lei 7.787, de 30/06/89) | E31: ='Encargos Sociais'!E20 -> 0.002 | F31: 5.36
C32: H | D32: ='Encargos Sociais'!D21 -> FGTS (Lei Complementar nº 110/01 e art. 30, Lei nº 8.036/90) | E32: ='Encargos Sociais'!E21 -> 0.08 | F32: 214.57
C33: I | D33: ='Encargos Sociais'!D22 -> SECONCI (Convenções Coletivas de Trabalho da construção) | E33: ='Encargos Sociais'!E22 -> 0 | F33: 0
B35: Submódulo 2.3 - Benefícios Mensais e Diários
C36: A | D36: Auxílio Transporte | F36: =HLOOKUP($B$5,'Dados Gerais'!$D$6:$BI$140,85) -> 174.3 | H36: * Nota 1 - O valor informado deverá ser o custo real do benefício (descontado o valor eventualmente pago pelo empregado).
C37: B | D37: Auxílio Alimentação | F37: =HLOOKUP($B$5,'Dados Gerais'!$D$6:$BI$140,92) -> 1048.3 | H37: * Nota 2 - Observar a previsão dos benefícios contidos em Acordos, Convenções e Dissídios Coletivos de Trabalho e o disposto no art. 6º da IN 5/2017
C38: C | D38: Assistência Médica e Familiar | F38: =HLOOKUP($B$5,'Dados Gerais'!$D$6:$BI$140,100) -> 0
C39: D | D39: Seguro de vida / auxílio funeral | F39: =HLOOKUP($B$5,'Dados Gerais'!$D$6:$BI$140,109) -> 3.61
C40: E | D40: Assistência odontológica | F40: =HLOOKUP($B$5,'Dados Gerais'!$D$6:$BI$140,115) -> 0
C41: F | D41: Auxílio creche | F41: =HLOOKUP($B$5,'Dados Gerais'!$D$6:$BI$140,121) -> 0
C42: G | D42: Auxílio vestuário especial | F42: =HLOOKUP($B$5,'Dados Gerais'!$D$6:$BI$140,127) -> 0
C43: H | D43: Benefício social familiar | F43: =HLOOKUP($B$5,'Dados Gerais'!$D$6:$BI$140,133) -> 0
C44: I | D44: Outros (especificar)
C45: J | D45: Outros (especificar)
D47: QUADRO-RESUMO DO MÓDULO 2
D48: 2.1 - 13º salário e Adicional de Férias | E48: =SUM(E21:E22) -> 0.1212 | F48: =F21+F22 -> 263.84
D49: 2.2 - Encargos Previdenciários (GPS), Fundo de Garantia por Tempo de Serviço (FGTS) e Contribuições | E49: =SUM(E25:E33) -> 0.368 | F49: =SUM(F25:F33) -> 986.62
D50: 2.3 - Benefícios Mensais e Diários | F50: =SUM(F36:F45) -> 1226.21
D52: TOTAL DOS ENCARGOS E BENEFÍCIOS | F52: =TRUNC(SUM(F48:F50),2) -> 2476.67
B54: MÓDULO 3 - PROVISÃO PARA RESCISÃO | E54: Percentuais | F54: Valor
C55: A | D55: ='Encargos Sociais'!D36 -> Aviso Prévio Indenizado (Art. 7º, inciso XXI, da CF/1988 e arts. 477, 487, §1º, e 491 da CLT) | E55: ='Encargos Sociais'!E36 -> 0.0042 | F55: =TRUNC(E55*($F$17+$F$48+$F$80),2) -> 11.26 | H55: * Nota 1 - Base de cálculo - remuneração + ausências + 1/3 férias + 13º
C56: B | D56: ='Encargos Sociais'!D37 -> Incidência do FGTS sobre o Aviso Prévio Indenizado (Súmula 305 TST) | E56: ='Encargos Sociais'!E37 -> 0.0003 | F56: =TRUNC(E56*($F$17+$F$48+$F$80),2) -> 0.8
C57: C | D57: ='Encargos Sociais'!D38 -> Multa do FGTS sobre o Aviso Prévio Indenizado (Art. 18, §1º, da Lei 8.036/1990) | E57: ='Encargos Sociais'!E38 -> 0 | F57: =TRUNC(E57*($F$17+$F$48+$F$80),2) -> 0 | H57: * Nota 2 - zerado pois foi considerada toda a incidência da multa do FGTS na letra F
C58: D | D58: ='Encargos Sociais'!D39 -> Aviso Prévio Trabalhado (Art. 488, parágrafo único, CLT) | E58: ='Encargos Sociais'!E39 -> 0.0078 | F58: =TRUNC(E58*($F$17),2) -> 16.97
C59: E | D59: ='Encargos Sociais'!D40 -> Incidência de GPS, FGTS e outras contribuições sobre o Aviso Prévio Trabalhado | E59: ='Encargos Sociais'!E40 -> 0.0029 | F59: =TRUNC(E59*($F$17),2) -> 6.31
C60: F | D60: ='Encargos Sociais'!D41 -> Multa do FGTS | E60: ='Encargos Sociais'!E41 -> 0.032 | F60: =TRUNC(E60*($F$17+$F$48+$F$80),2) -> 85.82
D62: TOTAL DE PROVISÃO PARA RESCISÃO | F62: =TRUNC(SUM(F55:F60),2) -> 121.16
B64: MÓDULO 4 - CUSTO DO PROFISSIONAL AUSENTE | E64: Percentuais | F64: Valor
B65: Submódulo 4.1 - Ausências Legais
C66: A | D66: ='Encargos Sociais'!D25 -> Férias (Arts. 129 e 130, inc. I, da CLT) | E66: ='Encargos Sociais'!E25 -> 0.0909 | F66: =TRUNC(E66*$F$17,2) -> 197.88 | H66: * Nota 1 - O Módulo 4 refere-se às previsões para custear ausências do próprio profissional (titular do cargo)
C67: B | D67: ='Encargos Sociais'!D26 -> Ausências Legais (Arts. 131 e 473 da CLT) | E67: ='Encargos Sociais'!E26 -> 0.0079 | F67: 17.19 | H67: * Nota 2 - As férias foram calculadas dividindo-se por 11, para comportar os 11 meses presentes e ainda o ausente do posto
C68: C | D68: ='Encargos Sociais'!D27 -> Licença-Paternidade (Art. 7º, XIX, e art. 10, §1º, do ADCT, CF/1988 e Art. 1º, II, da Lei 11.770/2008) | E68: ='Encargos Sociais'!E27 -> 0.0008 | F68: 1.74
C69: D | D69: ='Encargos Sociais'!D28 -> Ausência por Acidente de Trabalho (Art. 131, III, da CLT) | E69: ='Encargos Sociais'!E28 -> 0.0009 | F69: 1.95
C70: E | D70: ='Encargos Sociais'!D29 -> Afastamento Maternidade (Art. 71 da Lei nº 8.213/1991) | E70: ='Encargos Sociais'!E29 -> 0.0033 | F70: 7.18
C71: F | D71: ='Encargos Sociais'!D30 -> Auxílio Enfermidade - Doença (Art. 59 da Lei nº 8.213/1991) | E71: ='Encargos Sociais'!E30 -> 0.0071 | F71: 15.45
B73: Submódulo 4.2 - Intrajornada
C74: A | D74: Intervalo para repouso ou alimentação | E74: ='Encargos Sociais'!E33 -> 0 | F74: =ROUND(E74*$F$17,2) -> 0
D76: QUADRO-RESUMO DO MÓDULO 4 | F76: Valor
D77: 4.1 - Ausências Legais | E77: =SUM(E66:E71) -> 0.1109 | F77: =SUM(F66:F71) -> 241.39
D78: 4.2 - Intrajornada | E78: =E74 -> 0 | F78: =ROUND(E78*$F$17,2) -> 0
D80: TOTAL DE CUSTO DO PROFISSIONAL AUSENTE E INTERVALO INTRAJORNADA | F80: =TRUNC(SUM(F77:F78),2) -> 241.39
B82: MÓDULO 5 - INSUMOS DIVERSOS | F82: Valor
C83: A | D83: Uniformes - aquisição | F83: =TRUNC(HLOOKUP($B$5,Uniformes!$K$3:$DZ$5,3,0)/12,2) -> 123.83
C84: B | D84: Materiais de consumo relacionados ao posto - aquisição | F84: 0
C85: C | D85: Ferramentas relacionadas ao posto - remuneração da sua depreciação / manutenção | F85: 0
C86: D | D86: Equipamentos relacionados ao posto - remuneração da sua depreciação / manutenção | F86: 0
C87: E | D87: Equipamentos de Proteção Individual - EPI - aquisição | F87: =TRUNC(HLOOKUP($B$5,EPI!$J$3:$DY$5,3,0)/12,2) -> 15.92
D89: TOTAL DE INSUMOS DIVERSOS | F89: =SUM(F83:F88) -> 139.75 | H89: * Nota - Valores mensais por empregado
B91: MÓDULO 6 - CUSTOS INDIRETOS, TRIBUTOS E LUCRO - BDI | E91: Percentuais | F91: Valor
C92: A | D92: Custos Indiretos | E92: ='BDI - Geral'!E7 -> 0.0227
C93: A.1 | D93: Administração Central | E93: ='BDI - Geral'!E8 -> 0.0173
C94: A.2 | D94: Seguros, Garantias e Riscos | E94: ='BDI - Geral'!E9 -> 0.0054
C95: B | D95: Lucro | E95: ='BDI - Geral'!E11 -> 0.0267
C96: C | D96: Tributos | E96: =SUM(E97:E98) -> 0.124
C97: C.1 | D97: Tributos Federais (COFINS, PIS e CPRB) | E97: ='BDI - Geral'!E19 -> 0.074
C98: C.2 | D98: Tributos Distritais (ISS) | E98: ='BDI - Geral'!E24 -> 0.05
C99: D | D99: Despesas Financeiras | E99: ='BDI - Geral'!E14 -> 0.0061
D101: TOTAL DE BDI | E101: ='BDI - Geral'!E27 -> 0.2059 | F101: =TRUNC(E101*E109,2) -> 1061.59
D103: QUADRO-RESUMO DO CUSTO MENSAL POR EMPREGADO | E103: Valor
D104: Módulo 1 - Composição da Remuneração | E104: =F17 -> 2176.92
D105: Módulo 2 - Encargos e Benefícios Anuais, Mensais e Diários | E105: =F52 -> 2476.67
D106: Módulo 3 - Provisão para Rescisão | E106: =F62 -> 121.16
D107: Módulo 4 - Custo do Profissional Ausente | E107: =F80 -> 241.39
D108: Módulo 5 - Insumos Diversos | E108: =F89 -> 139.75
D109: SUBTOTAL (A+B+C+D+E) | E109: =SUM(E104:E108) -> 5155.89
D110: Módulo 6 - Custos Indiretos, Tributos e Lucro | E110: =F101 -> 1061.59
D112: TOTAL DO POSTO | E112: =SUM(E109:E110) -> 6217.48

Sheet 5
B2: PLANILHA DE ESTIMATIVA DE CUSTOS
B3: Padrão IN 05/2017 e IN 07/2018 - MPDG - Medição por posto presente
B5: 5 | D5: =HLOOKUP($B$5,'Dados Gerais'!$D$6:$BI$22,6) -> GARÇONETE | E5: QUANTIDADE | F5: =HLOOKUP($B$5,'Dados Gerais'!$D$6:$BI$22,10) -> 10
B6: CCT | D6: =HLOOKUP($B$5,'Dados Gerais'!$D$6:$BI$22,16) -> SEAC/DF x SINDISERVIÇOS/DF CCT 2025/2026 N.º DF000042/2025 | E6: DATA-BASE | F6: =HLOOKUP($B$5,'Dados Gerais'!$D$6:$BI$22,17) -> 2025-01-01
B8: MÓDULO 1 - COMPOSIÇÃO DA REMUNERAÇÃO | F8: Valor
C9: A | D9: Salário-Base | F9: =HLOOKUP($B$5,'Dados Gerais'!$D$6:$BI$22,8) -> 3027.53
C10: B | D10: Adicional de Periculosidade | F10: =HLOOKUP($B$5,'Dados Gerais'!$D$6:$BI$41,26) -> 0
C11: C | D11: Adicional de Insalubridade | F11: =HLOOKUP($B$5,'Dados Gerais'!$D$6:$BI$41,32) -> 0
C12: D | D12: Adicional Noturno | F12: =HLOOKUP($B$5,'Dados Gerais'!$D$6:$BI$54,49) -> 0 | H12: * Nota 1 - O Módulo 1 refere-se ao valor mensal devido ao empregado pela prestação do serviço no período de 12 meses.
C13: E | D13: Adicional de Hora Extra | F13: =HLOOKUP($B$5,'Dados Gerais'!$D$6:$BI$71,66) -> 0 | H13: * Nota 2 - O adicional de hora extra no feriado trabalhado foi suprimido pela Lei 13.467/17
C14: F | D14: Gratificação | F14: =HLOOKUP($B$5,'Dados Gerais'!$D$6:$BI$71,34) -> 0 | H14: * Nota 3 - ART. 7º, § 2º, DA LEI Nº 605/49.Sendo mensalista o obreiro, o adicional noturno pago de forma fixa já é considerado integrado para os efeitos do pagamento do repouso semanal remunerado, nos termos do art. 7º, § 2º, da Lei nº 605/49.
C15: G | D15: Sobraviso | F15: =HLOOKUP($B$5,'Dados Gerais'!$D$6:$BI$71,36) -> 0
D17: TOTAL DA REMUNERAÇÃO | F17: =TRUNC(SUM(F9:F15),2) -> 3027.53
B19: MÓDULO 2 - ENCARGOS E BENEFÍCIOS ANUAIS, MENSAIS E DIÁRIOS | E19: Percentuais | F19: Valor
B20: Submódulo 2.1 - 13º Salário e Adicional de Férias
C21: A | D21: 13º Salário | E21: ='Encargos Sociais'!$E$32 -> 0.0909 | F21: =ROUND(E21*F$17,2) -> 275.2 | H21: * Nota 1 - O 13º salário foi calculado dividindo-se por 11, para comportar os 11 meses presentes e ainda o ausente do posto
C22: B | D22: Adicional de Férias | E22: ='Encargos Sociais'!E31 -> 0.0303 | F22: =TRUNC(E22*(F$17),2) -> 91.73 | H22: * Nota 2 - O adicional de férias foi calculado dividindo-se por 11, para comportar os 11 meses presentes e ainda o ausente do posto
B24: Submódulo 2.2 - Encargos Previdenciários (GPS), Fundo de Garantia por Tempo de Serviço (FGTS) e Outras Contribuições
C25: A | D25: ='Encargos Sociais'!D14 -> INSS (art. 22, inciso I, Lei nº 8.212/91) | E25: ='Encargos Sociais'!E14 -> 0.2 | F25: =TRUNC(E25*($F$17+$F$21+$F$22+$F$80-$F$69),2) -> 745.49 | H25: * Nota 1 - Os percentuais dos encargos previdenciários, do FGTS e demais contribuições são estabelecidos por legislação vigente.
C26: B | D26: ='Encargos Sociais'!D15 -> Salário Educação (art. 3º, inciso I, Decreto nº 87.043/82) | E26: ='Encargos Sociais'!E15 -> 0.025 | F26: =TRUNC(E26*($F$17+$F$21+$F$22+$F$80),2) -> 93.25 | H26: * Nota 2 - O SAT, a depender do grau de risco do serviço, irá variar entre 1%, para risco leve, de 2%, para risco médio, e de 3% para risco grave.
C27: C | D27: ='Encargos Sociais'!D16 -> SAT/RAT (art. 22, II, Lei 8.212/91 e Anexo V, Decreto 6.042/07) - Enquadramento 8121-4/00 | E27: ='Encargos Sociais'!E16 -> 0.03 | F27: =TRUNC(E27*($F$17+$F$21+$F$22+$F$80),2) -> 111.9 | H27: * Nota 3 - Base de cálculo - remuneração + ausências + 13º salário + terço constitucional (férias) - exceto INSS sobre ausência por acidente de trabalho
C28: D | D28: ='Encargos Sociais'!D17 -> SESC ou SESI (art. 30, Lei nº 8.036/90 e art. 1º, Lei 8.154/90) | E28: ='Encargos Sociais'!E17 -> 0.015 | F28: 55.95
C29: E | D29: ='Encargos Sociais'!D18 -> SENAI ou SENAC (Decreto nº 2.318/86) | E29: ='Encargos Sociais'!E18 -> 0.01 | F29: 37.3
C30: F | D30: ='Encargos Sociais'!D19 -> SEBRAE (§ 3º, art. 8º, Lei 8.029/90, alterada pela Lei nº 8.154/90) | E30: ='Encargos Sociais'!E19 -> 0.006 | F30: 22.38
C31: G | D31: ='Encargos Sociais'!D20 -> INCRA (art. 1º, I, Decreto Lei 1.146/70 e Lei 7.787, de 30/06/89) | E31: ='Encargos Sociais'!E20 -> 0.002 | F31: 7.46
C32: H | D32: ='Encargos Sociais'!D21 -> FGTS (Lei Complementar nº 110/01 e art. 30, Lei nº 8.036/90) | E32: ='Encargos Sociais'!E21 -> 0.08 | F32: 298.41
C33: I | D33: ='Encargos Sociais'!D22 -> SECONCI (Convenções Coletivas de Trabalho da construção) | E33: ='Encargos Sociais'!E22 -> 0 | F33: 0
B35: Submódulo 2.3 - Benefícios Mensais e Diários
C36: A | D36: Auxílio Transporte | F36: =HLOOKUP($B$5,'Dados Gerais'!$D$6:$BI$140,85) -> 123.27 | H36: * Nota 1 - O valor informado deverá ser o custo real do benefício (descontado o valor eventualmente pago pelo empregado).
C37: B | D37: Auxílio Alimentação | F37: =HLOOKUP($B$5,'Dados Gerais'!$D$6:$BI$140,92) -> 1048.3 | H37: * Nota 2 - Observar a previsão dos benefícios contidos em Acordos, Convenções e Dissídios Coletivos de Trabalho e o disposto no art. 6º da IN 5/2017
C38: C | D38: Assistência Médica e Familiar | F38: =HLOOKUP($B$5,'Dados Gerais'!$D$6:$BI$140,100) -> 0
C39: D | D39: Seguro de vida / auxílio funeral | F39: =HLOOKUP($B$5,'Dados Gerais'!$D$6:$BI$140,109) -> 3.61
C40: E | D40: Assistência odontológica | F40: =HLOOKUP($B$5,'Dados Gerais'!$D$6:$BI$140,115) -> 0
C41: F | D41: Auxílio creche | F41: =HLOOKUP($B$5,'Dados Gerais'!$D$6:$BI$140,121) -> 0
C42: G | D42: Auxílio vestuário especial | F42: =HLOOKUP($B$5,'Dados Gerais'!$D$6:$BI$140,127) -> 0
C43: H | D43: Benefício social familiar | F43: =HLOOKUP($B$5,'Dados Gerais'!$D$6:$BI$140,133) -> 0
C44: I | D44: Outros (especificar)
C45: J | D45: Outros (especificar)
D47: QUADRO-RESUMO DO MÓDULO 2
D48: 2.1 - 13º salário e Adicional de Férias | E48: =SUM(E21:E22) -> 0.1212 | F48: =F21+F22 -> 366.93
D49: 2.2 - Encargos Previdenciários (GPS), Fundo de Garantia por Tempo de Serviço (FGTS) e Contribuições | E49: =SUM(E25:E33) -> 0.368 | F49: =SUM(F25:F33) -> 1372.14
D50: 2.3 - Benefícios Mensais e Diários | F50: =SUM(F36:F45) -> 1175.18
D52: TOTAL DOS ENCARGOS E BENEFÍCIOS | F52: =TRUNC(SUM(F48:F50),2) -> 2914.25
B54: MÓDULO 3 - PROVISÃO PARA RESCISÃO | E54: Percentuais | F54: Valor
C55: A | D55: ='Encargos Sociais'!D36 -> Aviso Prévio Indenizado (Art. 7º, inciso XXI, da CF/1988 e arts. 477, 487, §1º, e 491 da CLT) | E55: ='Encargos Sociais'!E36 -> 0.0042 | F55: =TRUNC(E55*($F$17+$F$48+$F$80),2) -> 15.66 | H55: * Nota 1 - Base de cálculo - remuneração + ausências + 1/3 férias + 13º
C56: B | D56: ='Encargos Sociais'!D37 -> Incidência do FGTS sobre o Aviso Prévio Indenizado (Súmula 305 TST) | E56: ='Encargos Sociais'!E37 -> 0.0003 | F56: =TRUNC(E56*($F$17+$F$48+$F$80),2) -> 1.11
C57: C | D57: ='Encargos Sociais'!D38 -> Multa do FGTS sobre o Aviso Prévio Indenizado (Art. 18, §1º, da Lei 8.036/1990) | E57: ='Encargos Sociais'!E38 -> 0 | F57: =TRUNC(E57*($F$17+$F$48+$F$80),2) -> 0 | H57: * Nota 2 - zerado pois foi considerada toda a incidência da multa do FGTS na letra F
C58: D | D58: ='Encargos Sociais'!D39 -> Aviso Prévio Trabalhado (Art. 488, parágrafo único, CLT) | E58: ='Encargos Sociais'!E39 -> 0.0078 | F58: =TRUNC(E58*($F$17),2) -> 23.61
C59: E | D59: ='Encargos Sociais'!D40 -> Incidência de GPS, FGTS e outras contribuições sobre o Aviso Prévio Trabalhado | E59: ='Encargos Sociais'!E40 -> 0.0029 | F59: =TRUNC(E59*($F$17),2) -> 8.77
C60: F | D60: ='Encargos Sociais'!D41 -> Multa do FGTS | E60: ='Encargos Sociais'!E41 -> 0.032 | F60: =TRUNC(E60*($F$17+$F$48+$F$80),2) -> 119.36
D62: TOTAL DE PROVISÃO PARA RESCISÃO | F62: =TRUNC(SUM(F55:F60),2) -> 168.51
B64: MÓDULO 4 - CUSTO DO PROFISSIONAL AUSENTE | E64: Percentuais | F64: Valor
B65: Submódulo 4.1 - Ausências Legais
C66: A | D66: ='Encargos Sociais'!D25 -> Férias (Arts. 129 e 130, inc. I, da CLT) | E66: ='Encargos Sociais'!E25 -> 0.0909 | F66: =TRUNC(E66*$F$17,2) -> 275.2 | H66: * Nota 1 - O Módulo 4 refere-se às previsões para custear ausências do próprio profissional (titular do cargo)
C67: B | D67: ='Encargos Sociais'!D26 -> Ausências Legais (Arts. 131 e 473 da CLT) | E67: ='Encargos Sociais'!E26 -> 0.0079 | F67: 23.91 | H67: * Nota 2 - As férias foram calculadas dividindo-se por 11, para comportar os 11 meses presentes e ainda o ausente do posto
C68: C | D68: ='Encargos Sociais'!D27 -> Licença-Paternidade (Art. 7º, XIX, e art. 10, §1º, do ADCT, CF/1988 e Art. 1º, II, da Lei 11.770/2008) | E68: ='Encargos Sociais'!E27 -> 0.0008 | F68: 2.42
C69: D | D69: ='Encargos Sociais'!D28 -> Ausência por Acidente de Trabalho (Art. 131, III, da CLT) | E69: ='Encargos Sociais'!E28 -> 0.0009 | F69: 2.72
C70: E | D70: ='Encargos Sociais'!D29 -> Afastamento Maternidade (Art. 71 da Lei nº 8.213/1991) | E70: ='Encargos Sociais'!E29 -> 0.0033 | F70: 9.99
C71: F | D71: ='Encargos Sociais'!D30 -> Auxílio Enfermidade - Doença (Art. 59 da Lei nº 8.213/1991) | E71: ='Encargos Sociais'!E30 -> 0.0071 | F71: 21.49
B73: Submódulo 4.2 - Intrajornada
C74: A | D74: Intervalo para repouso ou alimentação | E74: ='Encargos Sociais'!E33 -> 0 | F74: =ROUND(E74*$F$17,2) -> 0
D76: QUADRO-RESUMO DO MÓDULO 4 | F76: Valor
D77: 4.1 - Ausências Legais | E77: =SUM(E66:E71) -> 0.1109 | F77: =SUM(F66:F71) -> 335.73
D78: 4.2 - Intrajornada | E78: =E74 -> 0 | F78: =ROUND(E78*$F$17,2) -> 0
D80: TOTAL DE CUSTO DO PROFISSIONAL AUSENTE E INTERVALO INTRAJORNADA | F80: =TRUNC(SUM(F77:F78),2) -> 335.73
B82: MÓDULO 5 - INSUMOS DIVERSOS | F82: Valor
C83: A | D83: Uniformes - aquisição | F83: =TRUNC(HLOOKUP($B$5,Uniformes!$K$3:$DZ$5,3,0)/12,2) -> 129.43
C84: B | D84: Materiais de consumo relacionados ao posto - aquisição | F84: 0
C85: C | D85: Ferramentas relacionadas ao posto - remuneração da sua depreciação / manutenção | F85: 0
C86: D | D86: Equipamentos relacionados ao posto - remuneração da sua depreciação / manutenção | F86: 0
C87: E | D87: Equipamentos de Proteção Individual - EPI - aquisição | F87: =TRUNC(HLOOKUP($B$5,EPI!$J$3:$DY$5,3,0)/12,2) -> 20.26
D89: TOTAL DE INSUMOS DIVERSOS | F89: =SUM(F83:F88) -> 149.69 | H89: * Nota - Valores mensais por empregado
B91: MÓDULO 6 - CUSTOS INDIRETOS, TRIBUTOS E LUCRO - BDI | E91: Percentuais | F91: Valor
C92: A | D92: Custos Indiretos | E92: ='BDI - Geral'!E7 -> 0.0227
C93: A.1 | D93: Administração Central | E93: ='BDI - Geral'!E8 -> 0.0173
C94: A.2 | D94: Seguros, Garantias e Riscos | E94: ='BDI - Geral'!E9 -> 0.0054
C95: B | D95: Lucro | E95: ='BDI - Geral'!E11 -> 0.0267
C96: C | D96: Tributos | E96: =SUM(E97:E98) -> 0.124
C97: C.1 | D97: Tributos Federais (COFINS, PIS e CPRB) | E97: ='BDI - Geral'!E19 -> 0.074
C98: C.2 | D98: Tributos Distritais (ISS) | E98: ='BDI - Geral'!E24 -> 0.05
C99: D | D99: Despesas Financeiras | E99: ='BDI - Geral'!E14 -> 0.0061
D101: TOTAL DE BDI | E101: ='BDI - Geral'!E27 -> 0.2059 | F101: =TRUNC(E101*E109,2) -> 1358.05
D103: QUADRO-RESUMO DO CUSTO MENSAL POR EMPREGADO | E103: Valor
D104: Módulo 1 - Composição da Remuneração | E104: =F17 -> 3027.53
D105: Módulo 2 - Encargos e Benefícios Anuais, Mensais e Diários | E105: =F52 -> 2914.25
D106: Módulo 3 - Provisão para Rescisão | E106: =F62 -> 168.51
D107: Módulo 4 - Custo do Profissional Ausente | E107: =F80 -> 335.73
D108: Módulo 5 - Insumos Diversos | E108: =F89 -> 149.69
D109: SUBTOTAL (A+B+C+D+E) | E109: =SUM(E104:E108) -> 6595.71
D110: Módulo 6 - Custos Indiretos, Tributos e Lucro | E110: =F101 -> 1358.05
D112: TOTAL DO POSTO | E112: =SUM(E109:E110) -> 7953.76

Sheet 6
B2: PLANILHA DE ESTIMATIVA DE CUSTOS
B3: Padrão IN 05/2017 e IN 07/2018 - MPDG - Medição por posto presente
B5: 6 | D5: =HLOOKUP($B$5,'Dados Gerais'!$D$6:$BI$22,6) -> GARÇOM | E5: QUANTIDADE | F5: =HLOOKUP($B$5,'Dados Gerais'!$D$6:$BI$22,10) -> 30
B6: CCT | D6: =HLOOKUP($B$5,'Dados Gerais'!$D$6:$BI$22,16) -> SEAC/DF x SINDISERVIÇOS/DF CCT 2025/2026 N.º DF000042/2025 | E6: DATA-BASE | F6: =HLOOKUP($B$5,'Dados Gerais'!$D$6:$BI$22,17) -> 2025-01-01
B8: MÓDULO 1 - COMPOSIÇÃO DA REMUNERAÇÃO | F8: Valor
C9: A | D9: Salário-Base | F9: =HLOOKUP($B$5,'Dados Gerais'!$D$6:$BI$22,8) -> 3027.53
C10: B | D10: Adicional de Periculosidade | F10: =HLOOKUP($B$5,'Dados Gerais'!$D$6:$BI$41,26) -> 0
C11: C | D11: Adicional de Insalubridade | F11: =HLOOKUP($B$5,'Dados Gerais'!$D$6:$BI$41,32) -> 0
C12: D | D12: Adicional Noturno | F12: =HLOOKUP($B$5,'Dados Gerais'!$D$6:$BI$54,49) -> 0 | H12: * Nota 1 - O Módulo 1 refere-se ao valor mensal devido ao empregado pela prestação do serviço no período de 12 meses.
C13: E | D13: Adicional de Hora Extra | F13: =HLOOKUP($B$5,'Dados Gerais'!$D$6:$BI$71,66) -> 0 | H13: * Nota 2 - O adicional de hora extra no feriado trabalhado foi suprimido pela Lei 13.467/17
C14: F | D14: Gratificação | F14: =HLOOKUP($B$5,'Dados Gerais'!$D$6:$BI$71,34) -> 0 | H14: * Nota 3 - ART. 7º, § 2º, DA LEI Nº 605/49.Sendo mensalista o obreiro, o adicional noturno pago de forma fixa já é considerado integrado para os efeitos do pagamento do repouso semanal remunerado, nos termos do art. 7º, § 2º, da Lei nº 605/49.
C15: G | D15: Sobraviso | F15: =HLOOKUP($B$5,'Dados Gerais'!$D$6:$BI$71,36) -> 0
D17: TOTAL DA REMUNERAÇÃO | F17: =TRUNC(SUM(F9:F15),2) -> 3027.53
B19: MÓDULO 2 - ENCARGOS E BENEFÍCIOS ANUAIS, MENSAIS E DIÁRIOS | E19: Percentuais | F19: Valor
B20: Submódulo 2.1 - 13º Salário e Adicional de Férias
C21: A | D21: 13º Salário | E21: ='Encargos Sociais'!$E$32 -> 0.0909 | F21: =ROUND(E21*F$17,2) -> 275.2 | H21: * Nota 1 - O 13º salário foi calculado dividindo-se por 11, para comportar os 11 meses presentes e ainda o ausente do posto
C22: B | D22: Adicional de Férias | E22: ='Encargos Sociais'!E31 -> 0.0303 | F22: =TRUNC(E22*(F$17),2) -> 91.73 | H22: * Nota 2 - O adicional de férias foi calculado dividindo-se por 11, para comportar os 11 meses presentes e ainda o ausente do posto
B24: Submódulo 2.2 - Encargos Previdenciários (GPS), Fundo de Garantia por Tempo de Serviço (FGTS) e Outras Contribuições
C25: A | D25: ='Encargos Sociais'!D14 -> INSS (art. 22, inciso I, Lei nº 8.212/91) | E25: ='Encargos Sociais'!E14 -> 0.2 | F25: =TRUNC(E25*($F$17+$F$21+$F$22+$F$80-$F$69),2) -> 745.49 | H25: * Nota 1 - Os percentuais dos encargos previdenciários, do FGTS e demais contribuições são estabelecidos por legislação vigente.
C26: B | D26: ='Encargos Sociais'!D15 -> Salário Educação (art. 3º, inciso I, Decreto nº 87.043/82) | E26: ='Encargos Sociais'!E15 -> 0.025 | F26: =TRUNC(E26*($F$17+$F$21+$F$22+$F$80),2) -> 93.25 | H26: * Nota 2 - O SAT, a depender do grau de risco do serviço, irá variar entre 1%, para risco leve, de 2%, para risco médio, e de 3% para risco grave.
C27: C | D27: ='Encargos Sociais'!D16 -> SAT/RAT (art. 22, II, Lei 8.212/91 e Anexo V, Decreto 6.042/07) - Enquadramento 8121-4/00 | E27: ='Encargos Sociais'!E16 -> 0.03 | F27: =TRUNC(E27*($F$17+$F$21+$F$22+$F$80),2) -> 111.9 | H27: * Nota 3 - Base de cálculo - remuneração + ausências + 13º salário + terço constitucional (férias) - exceto INSS sobre ausência por acidente de trabalho
C28: D | D28: ='Encargos Sociais'!D17 -> SESC ou SESI (art. 30, Lei nº 8.036/90 e art. 1º, Lei 8.154/90) | E28: ='Encargos Sociais'!E17 -> 0.015 | F28: 55.95
C29: E | D29: ='Encargos Sociais'!D18 -> SENAI ou SENAC (Decreto nº 2.318/86) | E29: ='Encargos Sociais'!E18 -> 0.01 | F29: 37.3
C30: F | D30: ='Encargos Sociais'!D19 -> SEBRAE (§ 3º, art. 8º, Lei 8.029/90, alterada pela Lei nº 8.154/90) | E30: ='Encargos Sociais'!E19 -> 0.006 | F30: 22.38
C31: G | D31: ='Encargos Sociais'!D20 -> INCRA (art. 1º, I, Decreto Lei 1.146/70 e Lei 7.787, de 30/06/89) | E31: ='Encargos Sociais'!E20 -> 0.002 | F31: 7.46
C32: H | D32: ='Encargos Sociais'!D21 -> FGTS (Lei Complementar nº 110/01 e art. 30, Lei nº 8.036/90) | E32: ='Encargos Sociais'!E21 -> 0.08 | F32: 298.41
C33: I | D33: ='Encargos Sociais'!D22 -> SECONCI (Convenções Coletivas de Trabalho da construção) | E33: ='Encargos Sociais'!E22 -> 0 | F33: 0
B35: Submódulo 2.3 - Benefícios Mensais e Diários
C36: A | D36: Auxílio Transporte | F36: =HLOOKUP($B$5,'Dados Gerais'!$D$6:$BI$140,85) -> 123.27 | H36: * Nota 1 - O valor informado deverá ser o custo real do benefício (descontado o valor eventualmente pago pelo empregado).
C37: B | D37: Auxílio Alimentação | F37: =HLOOKUP($B$5,'Dados Gerais'!$D$6:$BI$140,92) -> 1048.3 | H37: * Nota 2 - Observar a previsão dos benefícios contidos em Acordos, Convenções e Dissídios Coletivos de Trabalho e o disposto no art. 6º da IN 5/2017
C38: C | D38: Assistência Médica e Familiar | F38: =HLOOKUP($B$5,'Dados Gerais'!$D$6:$BI$140,100) -> 0
C39: D | D39: Seguro de vida / auxílio funeral | F39: =HLOOKUP($B$5,'Dados Gerais'!$D$6:$BI$140,109) -> 3.61
C40: E | D40: Assistência odontológica | F40: =HLOOKUP($B$5,'Dados Gerais'!$D$6:$BI$140,115) -> 0
C41: F | D41: Auxílio creche | F41: =HLOOKUP($B$5,'Dados Gerais'!$D$6:$BI$140,121) -> 0
C42: G | D42: Auxílio vestuário especial | F42: =HLOOKUP($B$5,'Dados Gerais'!$D$6:$BI$140,127) -> 0
C43: H | D43: Benefício social familiar | F43: =HLOOKUP($B$5,'Dados Gerais'!$D$6:$BI$140,133) -> 0
C44: I | D44: Outros (especificar)
C45: J | D45: Outros (especificar)
D47: QUADRO-RESUMO DO MÓDULO 2
D48: 2.1 - 13º salário e Adicional de Férias | E48: =SUM(E21:E22) -> 0.1212 | F48: =F21+F22 -> 366.93
D49: 2.2 - Encargos Previdenciários (GPS), Fundo de Garantia por Tempo de Serviço (FGTS) e Contribuições | E49: =SUM(E25:E33) -> 0.368 | F49: =SUM(F25:F33) -> 1372.14
D50: 2.3 - Benefícios Mensais e Diários | F50: =SUM(F36:F45) -> 1175.18
D52: TOTAL DOS ENCARGOS E BENEFÍCIOS | F52: =TRUNC(SUM(F48:F50),2) -> 2914.25
B54: MÓDULO 3 - PROVISÃO PARA RESCISÃO | E54: Percentuais | F54: Valor
C55: A | D55: ='Encargos Sociais'!D36 -> Aviso Prévio Indenizado (Art. 7º, inciso XXI, da CF/1988 e arts. 477, 487, §1º, e 491 da CLT) | E55: ='Encargos Sociais'!E36 -> 0.0042 | F55: =TRUNC(E55*($F$17+$F$48+$F$80),2) -> 15.66 | H55: * Nota 1 - Base de cálculo - remuneração + ausências + 1/3 férias + 13º
C56: B | D56: ='Encargos Sociais'!D37 -> Incidência do FGTS sobre o Aviso Prévio Indenizado (Súmula 305 TST) | E56: ='Encargos Sociais'!E37 -> 0.0003 | F56: =TRUNC(E56*($F$17+$F$48+$F$80),2) -> 1.11
C57: C | D57: ='Encargos Sociais'!D38 -> Multa do FGTS sobre o Aviso Prévio Indenizado (Art. 18, §1º, da Lei 8.036/1990) | E57: ='Encargos Sociais'!E38 -> 0 | F57: =TRUNC(E57*($F$17+$F$48+$F$80),2) -> 0 | H57: * Nota 2 - zerado pois foi considerada toda a incidência da multa do FGTS na letra F
C58: D | D58: ='Encargos Sociais'!D39 -> Aviso Prévio Trabalhado (Art. 488, parágrafo único, CLT) | E58: ='Encargos Sociais'!E39 -> 0.0078 | F58: =TRUNC(E58*($F$17),2) -> 23.61
C59: E | D59: ='Encargos Sociais'!D40 -> Incidência de GPS, FGTS e outras contribuições sobre o Aviso Prévio Trabalhado | E59: ='Encargos Sociais'!E40 -> 0.0029 | F59: =TRUNC(E59*($F$17),2) -> 8.77
C60: F | D60: ='Encargos Sociais'!D41 -> Multa do FGTS | E60: ='Encargos Sociais'!E41 -> 0.032 | F60: =TRUNC(E60*($F$17+$F$48+$F$80),2) -> 119.36
D62: TOTAL DE PROVISÃO PARA RESCISÃO | F62: =TRUNC(SUM(F55:F60),2) -> 168.51
B64: MÓDULO 4 - CUSTO DO PROFISSIONAL AUSENTE | E64: Percentuais | F64: Valor
B65: Submódulo 4.1 - Ausências Legais
C66: A | D66: ='Encargos Sociais'!D25 -> Férias (Arts. 129 e 130, inc. I, da CLT) | E66: ='Encargos Sociais'!E25 -> 0.0909 | F66: =TRUNC(E66*$F$17,2) -> 275.2 | H66: * Nota 1 - O Módulo 4 refere-se às previsões para custear ausências do próprio profissional (titular do cargo)
C67: B | D67: ='Encargos Sociais'!D26 -> Ausências Legais (Arts. 131 e 473 da CLT) | E67: ='Encargos Sociais'!E26 -> 0.0079 | F67: 23.91 | H67: * Nota 2 - As férias foram calculadas dividindo-se por 11, para comportar os 11 meses presentes e ainda o ausente do posto
C68: C | D68: ='Encargos Sociais'!D27 -> Licença-Paternidade (Art. 7º, XIX, e art. 10, §1º, do ADCT, CF/1988 e Art. 1º, II, da Lei 11.770/2008) | E68: ='Encargos Sociais'!E27 -> 0.0008 | F68: 2.42
C69: D | D69: ='Encargos Sociais'!D28 -> Ausência por Acidente de Trabalho (Art. 131, III, da CLT) | E69: ='Encargos Sociais'!E28 -> 0.0009 | F69: 2.72
C70: E | D70: ='Encargos Sociais'!D29 -> Afastamento Maternidade (Art. 71 da Lei nº 8.213/1991) | E70: ='Encargos Sociais'!E29 -> 0.0033 | F70: 9.99
C71: F | D71: ='Encargos Sociais'!D30 -> Auxílio Enfermidade - Doença (Art. 59 da Lei nº 8.213/1991) | E71: ='Encargos Sociais'!E30 -> 0.0071 | F71: 21.49
B73: Submódulo 4.2 - Intrajornada
C74: A | D74: Intervalo para repouso ou alimentação | E74: ='Encargos Sociais'!E33 -> 0 | F74: =ROUND(E74*$F$17,2) -> 0
D76: QUADRO-RESUMO DO MÓDULO 4 | F76: Valor
D77: 4.1 - Ausências Legais | E77: =SUM(E66:E71) -> 0.1109 | F77: =SUM(F66:F71) -> 335.73
D78: 4.2 - Intrajornada | E78: =E74 -> 0 | F78: =ROUND(E78*$F$17,2) -> 0
D80: TOTAL DE CUSTO DO PROFISSIONAL AUSENTE E INTERVALO INTRAJORNADA | F80: =TRUNC(SUM(F77:F78),2) -> 335.73
B82: MÓDULO 5 - INSUMOS DIVERSOS | F82: Valor
C83: A | D83: Uniformes - aquisição | F83: =TRUNC(HLOOKUP($B$5,Uniformes!$K$3:$DZ$5,3,0)/12,2) -> 140.75
C84: B | D84: Materiais de consumo relacionados ao posto - aquisição | F84: 0
C85: C | D85: Ferramentas relacionadas ao posto - remuneração da sua depreciação / manutenção | F85: 0
C86: D | D86: Equipamentos relacionados ao posto - remuneração da sua depreciação / manutenção | F86: 0
C87: E | D87: Equipamentos de Proteção Individual - EPI - aquisição | F87: =TRUNC(HLOOKUP($B$5,EPI!$J$3:$DY$5,3,0)/12,2) -> 29.03
D89: TOTAL DE INSUMOS DIVERSOS | F89: =SUM(F83:F88) -> 169.78 | H89: * Nota - Valores mensais por empregado
B91: MÓDULO 6 - CUSTOS INDIRETOS, TRIBUTOS E LUCRO - BDI | E91: Percentuais | F91: Valor
C92: A | D92: Custos Indiretos | E92: ='BDI - Geral'!E7 -> 0.0227
C93: A.1 | D93: Administração Central | E93: ='BDI - Geral'!E8 -> 0.0173
C94: A.2 | D94: Seguros, Garantias e Riscos | E94: ='BDI - Geral'!E9 -> 0.0054
C95: B | D95: Lucro | E95: ='BDI - Geral'!E11 -> 0.0267
C96: C | D96: Tributos | E96: =SUM(E97:E98) -> 0.124
C97: C.1 | D97: Tributos Federais (COFINS, PIS e CPRB) | E97: ='BDI - Geral'!E19 -> 0.074
C98: C.2 | D98: Tributos Distritais (ISS) | E98: ='BDI - Geral'!E24 -> 0.05
C99: D | D99: Despesas Financeiras | E99: ='BDI - Geral'!E14 -> 0.0061
D101: TOTAL DE BDI | E101: ='BDI - Geral'!E27 -> 0.2059 | F101: =TRUNC(E101*E109,2) -> 1362.19
D103: QUADRO-RESUMO DO CUSTO MENSAL POR EMPREGADO | E103: Valor
D104: Módulo 1 - Composição da Remuneração | E104: =F17 -> 3027.53
D105: Módulo 2 - Encargos e Benefícios Anuais, Mensais e Diários | E105: =F52 -> 2914.25
D106: Módulo 3 - Provisão para Rescisão | E106: =F62 -> 168.51
D107: Módulo 4 - Custo do Profissional Ausente | E107: =F80 -> 335.73
D108: Módulo 5 - Insumos Diversos | E108: =F89 -> 169.78
D109: SUBTOTAL (A+B+C+D+E) | E109: =SUM(E104:E108) -> 6615.8
D110: Módulo 6 - Custos Indiretos, Tributos e Lucro | E110: =F101 -> 1362.19
D112: TOTAL DO POSTO | E112: =SUM(E109:E110) -> 7977.99

Sheet 7
B2: PLANILHA DE ESTIMATIVA DE CUSTOS
B3: Padrão IN 05/2017 e IN 07/2018 - MPDG - Medição por posto presente
B5: 7 | D5: =HLOOKUP($B$5,'Dados Gerais'!$D$6:$BI$22,6) -> AUXILIAR DE ENCARREGADO (FEMININO) | E5: QUANTIDADE | F5: =HLOOKUP($B$5,'Dados Gerais'!$D$6:$BI$22,10) -> 1
B6: CCT | D6: =HLOOKUP($B$5,'Dados Gerais'!$D$6:$BI$22,16) -> SEAC/DF x SINDISERVIÇOS/DF CCT 2025/2026 N.º DF000042/2025 | E6: DATA-BASE | F6: =HLOOKUP($B$5,'Dados Gerais'!$D$6:$BI$22,17) -> 2025-01-01
B8: MÓDULO 1 - COMPOSIÇÃO DA REMUNERAÇÃO | F8: Valor
C9: A | D9: Salário-Base | F9: =HLOOKUP($B$5,'Dados Gerais'!$D$6:$BI$22,8) -> 3108.64
C10: B | D10: Adicional de Periculosidade | F10: =HLOOKUP($B$5,'Dados Gerais'!$D$6:$BI$41,26) -> 0
C11: C | D11: Adicional de Insalubridade | F11: =HLOOKUP($B$5,'Dados Gerais'!$D$6:$BI$41,32) -> 0
C12: D | D12: Adicional Noturno | F12: =HLOOKUP($B$5,'Dados Gerais'!$D$6:$BI$54,49) -> 0 | H12: * Nota 1 - O Módulo 1 refere-se ao valor mensal devido ao empregado pela prestação do serviço no período de 12 meses.
C13: E | D13: Adicional de Hora Extra | F13: =HLOOKUP($B$5,'Dados Gerais'!$D$6:$BI$71,66) -> 0 | H13: * Nota 2 - O adicional de hora extra no feriado trabalhado foi suprimido pela Lei 13.467/17
C14: F | D14: Gratificação | F14: =HLOOKUP($B$5,'Dados Gerais'!$D$6:$BI$71,34) -> 0 | H14: * Nota 3 - ART. 7º, § 2º, DA LEI Nº 605/49.Sendo mensalista o obreiro, o adicional noturno pago de forma fixa já é considerado integrado para os efeitos do pagamento do repouso semanal remunerado, nos termos do art. 7º, § 2º, da Lei nº 605/49.
C15: G | D15: Sobraviso | F15: =HLOOKUP($B$5,'Dados Gerais'!$D$6:$BI$71,36) -> 0
D17: TOTAL DA REMUNERAÇÃO | F17: =TRUNC(SUM(F9:F15),2) -> 3108.64
B19: MÓDULO 2 - ENCARGOS E BENEFÍCIOS ANUAIS, MENSAIS E DIÁRIOS | E19: Percentuais | F19: Valor
B20: Submódulo 2.1 - 13º Salário e Adicional de Férias
C21: A | D21: 13º Salário | E21: ='Encargos Sociais'!$E$32 -> 0.0909 | F21: =ROUND(E21*F$17,2) -> 282.58 | H21: * Nota 1 - O 13º salário foi calculado dividindo-se por 11, para comportar os 11 meses presentes e ainda o ausente do posto
C22: B | D22: Adicional de Férias | E22: ='Encargos Sociais'!E31 -> 0.0303 | F22: =TRUNC(E22*(F$17),2) -> 94.19 | H22: * Nota 2 - O adicional de férias foi calculado dividindo-se por 11, para comportar os 11 meses presentes e ainda o ausente do posto
B24: Submódulo 2.2 - Encargos Previdenciários (GPS), Fundo de Garantia por Tempo de Serviço (FGTS) e Outras Contribuições
C25: A | D25: ='Encargos Sociais'!D14 -> INSS (art. 22, inciso I, Lei nº 8.212/91) | E25: ='Encargos Sociais'!E14 -> 0.2 | F25: =TRUNC(E25*($F$17+$F$21+$F$22+$F$80-$F$69),2) -> 765.46 | H25: * Nota 1 - Os percentuais dos encargos previdenciários, do FGTS e demais contribuições são estabelecidos por legislação vigente.
C26: B | D26: ='Encargos Sociais'!D15 -> Salário Educação (art. 3º, inciso I, Decreto nº 87.043/82) | E26: ='Encargos Sociais'!E15 -> 0.025 | F26: =TRUNC(E26*($F$17+$F$21+$F$22+$F$80),2) -> 95.75 | H26: * Nota 2 - O SAT, a depender do grau de risco do serviço, irá variar entre 1%, para risco leve, de 2%, para risco médio, e de 3% para risco grave.
C27: C | D27: ='Encargos Sociais'!D16 -> SAT/RAT (art. 22, II, Lei 8.212/91 e Anexo V, Decreto 6.042/07) - Enquadramento 8121-4/00 | E27: ='Encargos Sociais'!E16 -> 0.03 | F27: =TRUNC(E27*($F$17+$F$21+$F$22+$F$80),2) -> 114.9 | H27: * Nota 3 - Base de cálculo - remuneração + ausências + 13º salário + terço constitucional (férias) - exceto INSS sobre ausência por acidente de trabalho
C28: D | D28: ='Encargos Sociais'!D17 -> SESC ou SESI (art. 30, Lei nº 8.036/90 e art. 1º, Lei 8.154/90) | E28: ='Encargos Sociais'!E17 -> 0.015 | F28: 57.45
C29: E | D29: ='Encargos Sociais'!D18 -> SENAI ou SENAC (Decreto nº 2.318/86) | E29: ='Encargos Sociais'!E18 -> 0.01 | F29: 38.3
C30: F | D30: ='Encargos Sociais'!D19 -> SEBRAE (§ 3º, art. 8º, Lei 8.029/90, alterada pela Lei nº 8.154/90) | E30: ='Encargos Sociais'!E19 -> 0.006 | F30: 22.98
C31: G | D31: ='Encargos Sociais'!D20 -> INCRA (art. 1º, I, Decreto Lei 1.146/70 e Lei 7.787, de 30/06/89) | E31: ='Encargos Sociais'!E20 -> 0.002 | F31: 7.66
C32: H | D32: ='Encargos Sociais'!D21 -> FGTS (Lei Complementar nº 110/01 e art. 30, Lei nº 8.036/90) | E32: ='Encargos Sociais'!E21 -> 0.08 | F32: 306.4
C33: I | D33: ='Encargos Sociais'!D22 -> SECONCI (Convenções Coletivas de Trabalho da construção) | E33: ='Encargos Sociais'!E22 -> 0 | F33: 0
B35: Submódulo 2.3 - Benefícios Mensais e Diários
C36: A | D36: Auxílio Transporte | F36: =HLOOKUP($B$5,'Dados Gerais'!$D$6:$BI$140,85) -> 118.4 | H36: * Nota 1 - O valor informado deverá ser o custo real do benefício (descontado o valor eventualmente pago pelo empregado).
C37: B | D37: Auxílio Alimentação | F37: =HLOOKUP($B$5,'Dados Gerais'!$D$6:$BI$140,92) -> 1048.3 | H37: * Nota 2 - Observar a previsão dos benefícios contidos em Acordos, Convenções e Dissídios Coletivos de Trabalho e o disposto no art. 6º da IN 5/2017
C38: C | D38: Assistência Médica e Familiar | F38: =HLOOKUP($B$5,'Dados Gerais'!$D$6:$BI$140,100) -> 0
C39: D | D39: Seguro de vida / auxílio funeral | F39: =HLOOKUP($B$5,'Dados Gerais'!$D$6:$BI$140,109) -> 3.61
C40: E | D40: Assistência odontológica | F40: =HLOOKUP($B$5,'Dados Gerais'!$D$6:$BI$140,115) -> 0
C41: F | D41: Auxílio creche | F41: =HLOOKUP($B$5,'Dados Gerais'!$D$6:$BI$140,121) -> 0
C42: G | D42: Auxílio vestuário especial | F42: =HLOOKUP($B$5,'Dados Gerais'!$D$6:$BI$140,127) -> 0
C43: H | D43: Benefício social familiar | F43: =HLOOKUP($B$5,'Dados Gerais'!$D$6:$BI$140,133) -> 0
C44: I | D44: Outros (especificar)
C45: J | D45: Outros (especificar)
D47: QUADRO-RESUMO DO MÓDULO 2
D48: 2.1 - 13º salário e Adicional de Férias | E48: =SUM(E21:E22) -> 0.1212 | F48: =F21+F22 -> 376.77
D49: 2.2 - Encargos Previdenciários (GPS), Fundo de Garantia por Tempo de Serviço (FGTS) e Contribuições | E49: =SUM(E25:E33) -> 0.368 | F49: =SUM(F25:F33) -> 1408.9
D50: 2.3 - Benefícios Mensais e Diários | F50: =SUM(F36:F45) -> 1170.31
D52: TOTAL DOS ENCARGOS E BENEFÍCIOS | F52: =TRUNC(SUM(F48:F50),2) -> 2955.98
B54: MÓDULO 3 - PROVISÃO PARA RESCISÃO | E54: Percentuais | F54: Valor
C55: A | D55: ='Encargos Sociais'!D36 -> Aviso Prévio Indenizado (Art. 7º, inciso XXI, da CF/1988 e arts. 477, 487, §1º, e 491 da CLT) | E55: ='Encargos Sociais'!E36 -> 0.0042 | F55: =TRUNC(E55*($F$17+$F$48+$F$80),2) -> 16.08 | H55: * Nota 1 - Base de cálculo - remuneração + ausências + 1/3 férias + 13º
C56: B | D56: ='Encargos Sociais'!D37 -> Incidência do FGTS sobre o Aviso Prévio Indenizado (Súmula 305 TST) | E56: ='Encargos Sociais'!E37 -> 0.0003 | F56: =TRUNC(E56*($F$17+$F$48+$F$80),2) -> 1.14
C57: C | D57: ='Encargos Sociais'!D38 -> Multa do FGTS sobre o Aviso Prévio Indenizado (Art. 18, §1º, da Lei 8.036/1990) | E57: ='Encargos Sociais'!E38 -> 0 | F57: =TRUNC(E57*($F$17+$F$48+$F$80),2) -> 0 | H57: * Nota 2 - zerado pois foi considerada toda a incidência da multa do FGTS na letra F
C58: D | D58: ='Encargos Sociais'!D39 -> Aviso Prévio Trabalhado (Art. 488, parágrafo único, CLT) | E58: ='Encargos Sociais'!E39 -> 0.0078 | F58: =TRUNC(E58*($F$17),2) -> 24.24
C59: E | D59: ='Encargos Sociais'!D40 -> Incidência de GPS, FGTS e outras contribuições sobre o Aviso Prévio Trabalhado | E59: ='Encargos Sociais'!E40 -> 0.0029 | F59: =TRUNC(E59*($F$17),2) -> 9.01
C60: F | D60: ='Encargos Sociais'!D41 -> Multa do FGTS | E60: ='Encargos Sociais'!E41 -> 0.032 | F60: =TRUNC(E60*($F$17+$F$48+$F$80),2) -> 122.56
D62: TOTAL DE PROVISÃO PARA RESCISÃO | F62: =TRUNC(SUM(F55:F60),2) -> 173.03
B64: MÓDULO 4 - CUSTO DO PROFISSIONAL AUSENTE | E64: Percentuais | F64: Valor
B65: Submódulo 4.1 - Ausências Legais
C66: A | D66: ='Encargos Sociais'!D25 -> Férias (Arts. 129 e 130, inc. I, da CLT) | E66: ='Encargos Sociais'!E25 -> 0.0909 | F66: =TRUNC(E66*$F$17,2) -> 282.57 | H66: * Nota 1 - O Módulo 4 refere-se às previsões para custear ausências do próprio profissional (titular do cargo)
C67: B | D67: ='Encargos Sociais'!D26 -> Ausências Legais (Arts. 131 e 473 da CLT) | E67: ='Encargos Sociais'!E26 -> 0.0079 | F67: 24.55 | H67: * Nota 2 - As férias foram calculadas dividindo-se por 11, para comportar os 11 meses presentes e ainda o ausente do posto
C68: C | D68: ='Encargos Sociais'!D27 -> Licença-Paternidade (Art. 7º, XIX, e art. 10, §1º, do ADCT, CF/1988 e Art. 1º, II, da Lei 11.770/2008) | E68: ='Encargos Sociais'!E27 -> 0.0008 | F68: 2.48
C69: D | D69: ='Encargos Sociais'!D28 -> Ausência por Acidente de Trabalho (Art. 131, III, da CLT) | E69: ='Encargos Sociais'!E28 -> 0.0009 | F69: 2.79
C70: E | D70: ='Encargos Sociais'!D29 -> Afastamento Maternidade (Art. 71 da Lei nº 8.213/1991) | E70: ='Encargos Sociais'!E29 -> 0.0033 | F70: 10.25
C71: F | D71: ='Encargos Sociais'!D30 -> Auxílio Enfermidade - Doença (Art. 59 da Lei nº 8.213/1991) | E71: ='Encargos Sociais'!E30 -> 0.0071 | F71: 22.07
B73: Submódulo 4.2 - Intrajornada
C74: A | D74: Intervalo para repouso ou alimentação | E74: ='Encargos Sociais'!E33 -> 0 | F74: =ROUND(E74*$F$17,2) -> 0
D76: QUADRO-RESUMO DO MÓDULO 4 | F76: Valor
D77: 4.1 - Ausências Legais | E77: =SUM(E66:E71) -> 0.1109 | F77: =SUM(F66:F71) -> 344.71
D78: 4.2 - Intrajornada | E78: =E74 -> 0 | F78: =ROUND(E78*$F$17,2) -> 0
D80: TOTAL DE CUSTO DO PROFISSIONAL AUSENTE E INTERVALO INTRAJORNADA | F80: =TRUNC(SUM(F77:F78),2) -> 344.71
B82: MÓDULO 5 - INSUMOS DIVERSOS | F82: Valor
C83: A | D83: Uniformes - aquisição | F83: =TRUNC(HLOOKUP($B$5,Uniformes!$K$3:$DZ$5,3,0)/12,2) -> 150.75
C84: B | D84: Materiais de consumo relacionados ao posto - aquisição | F84: 0
C85: C | D85: Ferramentas relacionadas ao posto - remuneração da sua depreciação / manutenção | F85: 0
C86: D | D86: Equipamentos relacionados ao posto - remuneração da sua depreciação / manutenção | F86: 0
C87: E | D87: Equipamentos de Proteção Individual - EPI - aquisição | F87: =TRUNC(HLOOKUP($B$5,EPI!$J$3:$DY$5,3,0)/12,2) -> 30.4
D89: TOTAL DE INSUMOS DIVERSOS | F89: =SUM(F83:F88) -> 181.15 | H89: * Nota - Valores mensais por empregado
B91: MÓDULO 6 - CUSTOS INDIRETOS, TRIBUTOS E LUCRO - BDI | E91: Percentuais | F91: Valor
C92: A | D92: Custos Indiretos | E92: ='BDI - Geral'!E7 -> 0.0227
C93: A.1 | D93: Administração Central | E93: ='BDI - Geral'!E8 -> 0.0173
C94: A.2 | D94: Seguros, Garantias e Riscos | E94: ='BDI - Geral'!E9 -> 0.0054
C95: B | D95: Lucro | E95: ='BDI - Geral'!E11 -> 0.0267
C96: C | D96: Tributos | E96: =SUM(E97:E98) -> 0.124
C97: C.1 | D97: Tributos Federais (COFINS, PIS e CPRB) | E97: ='BDI - Geral'!E19 -> 0.074
C98: C.2 | D98: Tributos Distritais (ISS) | E98: ='BDI - Geral'!E24 -> 0.05
C99: D | D99: Despesas Financeiras | E99: ='BDI - Geral'!E14 -> 0.0061
D101: TOTAL DE BDI | E101: ='BDI - Geral'!E27 -> 0.2059 | F101: =TRUNC(E101*E109,2) -> 1392.6
D103: QUADRO-RESUMO DO CUSTO MENSAL POR EMPREGADO | E103: Valor
D104: Módulo 1 - Composição da Remuneração | E104: =F17 -> 3108.64
D105: Módulo 2 - Encargos e Benefícios Anuais, Mensais e Diários | E105: =F52 -> 2955.98
D106: Módulo 3 - Provisão para Rescisão | E106: =F62 -> 173.03
D107: Módulo 4 - Custo do Profissional Ausente | E107: =F80 -> 344.71
D108: Módulo 5 - Insumos Diversos | E108: =F89 -> 181.15
D109: SUBTOTAL (A+B+C+D+E) | E109: =SUM(E104:E108) -> 6763.51
D110: Módulo 6 - Custos Indiretos, Tributos e Lucro | E110: =F101 -> 1392.6
D112: TOTAL DO POSTO | E112: =SUM(E109:E110) -> 8156.11

Sheet 8
B2: PLANILHA DE ESTIMATIVA DE CUSTOS
B3: Padrão IN 05/2017 e IN 07/2018 - MPDG - Medição por posto presente
B5: 8 | D5: =HLOOKUP($B$5,'Dados Gerais'!$D$6:$BI$22,6) -> GARÇONETE DO GABINETE DA PRESIDÊNCIA | E5: QUANTIDADE | F5: =HLOOKUP($B$5,'Dados Gerais'!$D$6:$BI$22,10) -> 1
B6: CCT | D6: =HLOOKUP($B$5,'Dados Gerais'!$D$6:$BI$22,16) -> SEAC/DF x SINDISERVIÇOS/DF CCT 2025/2026 N.º DF000042/2025 | E6: DATA-BASE | F6: =HLOOKUP($B$5,'Dados Gerais'!$D$6:$BI$22,17) -> 2025-01-01
B8: MÓDULO 1 - COMPOSIÇÃO DA REMUNERAÇÃO | F8: Valor
C9: A | D9: Salário-Base | F9: =HLOOKUP($B$5,'Dados Gerais'!$D$6:$BI$22,8) -> 4225.4
C10: B | D10: Adicional de Periculosidade | F10: =HLOOKUP($B$5,'Dados Gerais'!$D$6:$BI$41,26) -> 0
C11: C | D11: Adicional de Insalubridade | F11: =HLOOKUP($B$5,'Dados Gerais'!$D$6:$BI$41,32) -> 0
C12: D | D12: Adicional Noturno | F12: =HLOOKUP($B$5,'Dados Gerais'!$D$6:$BI$54,49) -> 0 | H12: * Nota 1 - O Módulo 1 refere-se ao valor mensal devido ao empregado pela prestação do serviço no período de 12 meses.
C13: E | D13: Adicional de Hora Extra | F13: =HLOOKUP($B$5,'Dados Gerais'!$D$6:$BI$71,66) -> 0 | H13: * Nota 2 - O adicional de hora extra no feriado trabalhado foi suprimido pela Lei 13.467/17
C14: F | D14: Gratificação | F14: =HLOOKUP($B$5,'Dados Gerais'!$D$6:$BI$71,34) -> 0 | H14: * Nota 3 - ART. 7º, § 2º, DA LEI Nº 605/49.Sendo mensalista o obreiro, o adicional noturno pago de forma fixa já é considerado integrado para os efeitos do pagamento do repouso semanal remunerado, nos termos do art. 7º, § 2º, da Lei nº 605/49.
C15: G | D15: Sobraviso | F15: =HLOOKUP($B$5,'Dados Gerais'!$D$6:$BI$71,36) -> 0
D17: TOTAL DA REMUNERAÇÃO | F17: =TRUNC(SUM(F9:F15),2) -> 4225.4
B19: MÓDULO 2 - ENCARGOS E BENEFÍCIOS ANUAIS, MENSAIS E DIÁRIOS | E19: Percentuais | F19: Valor
B20: Submódulo 2.1 - 13º Salário e Adicional de Férias
C21: A | D21: 13º Salário | E21: ='Encargos Sociais'!$E$32 -> 0.0909 | F21: =ROUND(E21*F$17,2) -> 384.09 | H21: * Nota 1 - O 13º salário foi calculado dividindo-se por 11, para comportar os 11 meses presentes e ainda o ausente do posto
C22: B | D22: Adicional de Férias | E22: ='Encargos Sociais'!E31 -> 0.0303 | F22: =TRUNC(E22*(F$17),2) -> 128.02 | H22: * Nota 2 - O adicional de férias foi calculado dividindo-se por 11, para comportar os 11 meses presentes e ainda o ausente do posto
B24: Submódulo 2.2 - Encargos Previdenciários (GPS), Fundo de Garantia por Tempo de Serviço (FGTS) e Outras Contribuições
C25: A | D25: ='Encargos Sociais'!D14 -> INSS (art. 22, inciso I, Lei nº 8.212/91) | E25: ='Encargos Sociais'!E14 -> 0.2 | F25: =TRUNC(E25*($F$17+$F$21+$F$22+$F$80-$F$69),2) -> 1040.45 | H25: * Nota 1 - Os percentuais dos encargos previdenciários, do FGTS e demais contribuições são estabelecidos por legislação vigente.
C26: B | D26: ='Encargos Sociais'!D15 -> Salário Educação (art. 3º, inciso I, Decreto nº 87.043/82) | E26: ='Encargos Sociais'!E15 -> 0.025 | F26: =TRUNC(E26*($F$17+$F$21+$F$22+$F$80),2) -> 130.15 | H26: * Nota 2 - O SAT, a depender do grau de risco do serviço, irá variar entre 1%, para risco leve, de 2%, para risco médio, e de 3% para risco grave.
C27: C | D27: ='Encargos Sociais'!D16 -> SAT/RAT (art. 22, II, Lei 8.212/91 e Anexo V, Decreto 6.042/07) - Enquadramento 8121-4/00 | E27: ='Encargos Sociais'!E16 -> 0.03 | F27: =TRUNC(E27*($F$17+$F$21+$F$22+$F$80),2) -> 156.18 | H27: * Nota 3 - Base de cálculo - remuneração + ausências + 13º salário + terço constitucional (férias) - exceto INSS sobre ausência por acidente de trabalho
C28: D | D28: ='Encargos Sociais'!D17 -> SESC ou SESI (art. 30, Lei nº 8.036/90 e art. 1º, Lei 8.154/90) | E28: ='Encargos Sociais'!E17 -> 0.015 | F28: 78.09
C29: E | D29: ='Encargos Sociais'!D18 -> SENAI ou SENAC (Decreto nº 2.318/86) | E29: ='Encargos Sociais'!E18 -> 0.01 | F29: 52.06
C30: F | D30: ='Encargos Sociais'!D19 -> SEBRAE (§ 3º, art. 8º, Lei 8.029/90, alterada pela Lei nº 8.154/90) | E30: ='Encargos Sociais'!E19 -> 0.006 | F30: 31.23
C31: G | D31: ='Encargos Sociais'!D20 -> INCRA (art. 1º, I, Decreto Lei 1.146/70 e Lei 7.787, de 30/06/89) | E31: ='Encargos Sociais'!E20 -> 0.002 | F31: 10.41
C32: H | D32: ='Encargos Sociais'!D21 -> FGTS (Lei Complementar nº 110/01 e art. 30, Lei nº 8.036/90) | E32: ='Encargos Sociais'!E21 -> 0.08 | F32: 416.48
C33: I | D33: ='Encargos Sociais'!D22 -> SECONCI (Convenções Coletivas de Trabalho da construção) | E33: ='Encargos Sociais'!E22 -> 0 | F33: 0
B35: Submódulo 2.3 - Benefícios Mensais e Diários
C36: A | D36: Auxílio Transporte | F36: =HLOOKUP($B$5,'Dados Gerais'!$D$6:$BI$140,85) -> 51.4 | H36: * Nota 1 - O valor informado deverá ser o custo real do benefício (descontado o valor eventualmente pago pelo empregado).
C37: B | D37: Auxílio Alimentação | F37: =HLOOKUP($B$5,'Dados Gerais'!$D$6:$BI$140,92) -> 1048.3 | H37: * Nota 2 - Observar a previsão dos benefícios contidos em Acordos, Convenções e Dissídios Coletivos de Trabalho e o disposto no art. 6º da IN 5/2017
C38: C | D38: Assistência Médica e Familiar | F38: =HLOOKUP($B$5,'Dados Gerais'!$D$6:$BI$140,100) -> 0
C39: D | D39: Seguro de vida / auxílio funeral | F39: =HLOOKUP($B$5,'Dados Gerais'!$D$6:$BI$140,109) -> 3.61
C40: E | D40: Assistência odontológica | F40: =HLOOKUP($B$5,'Dados Gerais'!$D$6:$BI$140,115) -> 0
C41: F | D41: Auxílio creche | F41: =HLOOKUP($B$5,'Dados Gerais'!$D$6:$BI$140,121) -> 0
C42: G | D42: Auxílio vestuário especial | F42: =HLOOKUP($B$5,'Dados Gerais'!$D$6:$BI$140,127) -> 0
C43: H | D43: Benefício social familiar | F43: =HLOOKUP($B$5,'Dados Gerais'!$D$6:$BI$140,133) -> 0
C44: I | D44: Outros (especificar)
C45: J | D45: Outros (especificar)
D47: QUADRO-RESUMO DO MÓDULO 2
D48: 2.1 - 13º salário e Adicional de Férias | E48: =SUM(E21:E22) -> 0.1212 | F48: =F21+F22 -> 512.11
D49: 2.2 - Encargos Previdenciários (GPS), Fundo de Garantia por Tempo de Serviço (FGTS) e Contribuições | E49: =SUM(E25:E33) -> 0.368 | F49: =SUM(F25:F33) -> 1915.05
D50: 2.3 - Benefícios Mensais e Diários | F50: =SUM(F36:F45) -> 1103.31
D52: TOTAL DOS ENCARGOS E BENEFÍCIOS | F52: =TRUNC(SUM(F48:F50),2) -> 3530.47
B54: MÓDULO 3 - PROVISÃO PARA RESCISÃO | E54: Percentuais | F54: Valor
C55: A | D55: ='Encargos Sociais'!D36 -> Aviso Prévio Indenizado (Art. 7º, inciso XXI, da CF/1988 e arts. 477, 487, §1º, e 491 da CLT) | E55: ='Encargos Sociais'!E36 -> 0.0042 | F55: =TRUNC(E55*($F$17+$F$48+$F$80),2) -> 21.86 | H55: * Nota 1 - Base de cálculo - remuneração + ausências + 1/3 férias + 13º
C56: B | D56: ='Encargos Sociais'!D37 -> Incidência do FGTS sobre o Aviso Prévio Indenizado (Súmula 305 TST) | E56: ='Encargos Sociais'!E37 -> 0.0003 | F56: =TRUNC(E56*($F$17+$F$48+$F$80),2) -> 1.56
C57: C | D57: ='Encargos Sociais'!D38 -> Multa do FGTS sobre o Aviso Prévio Indenizado (Art. 18, §1º, da Lei 8.036/1990) | E57: ='Encargos Sociais'!E38 -> 0 | F57: =TRUNC(E57*($F$17+$F$48+$F$80),2) -> 0 | H57: * Nota 2 - zerado pois foi considerada toda a incidência da multa do FGTS na letra F
C58: D | D58: ='Encargos Sociais'!D39 -> Aviso Prévio Trabalhado (Art. 488, parágrafo único, CLT) | E58: ='Encargos Sociais'!E39 -> 0.0078 | F58: =TRUNC(E58*($F$17),2) -> 32.95
C59: E | D59: ='Encargos Sociais'!D40 -> Incidência de GPS, FGTS e outras contribuições sobre o Aviso Prévio Trabalhado | E59: ='Encargos Sociais'!E40 -> 0.0029 | F59: =TRUNC(E59*($F$17),2) -> 12.25
C60: F | D60: ='Encargos Sociais'!D41 -> Multa do FGTS | E60: ='Encargos Sociais'!E41 -> 0.032 | F60: =TRUNC(E60*($F$17+$F$48+$F$80),2) -> 166.59
D62: TOTAL DE PROVISÃO PARA RESCISÃO | F62: =TRUNC(SUM(F55:F60),2) -> 235.21
B64: MÓDULO 4 - CUSTO DO PROFISSIONAL AUSENTE | E64: Percentuais | F64: Valor
B65: Submódulo 4.1 - Ausências Legais
C66: A | D66: ='Encargos Sociais'!D25 -> Férias (Arts. 129 e 130, inc. I, da CLT) | E66: ='Encargos Sociais'!E25 -> 0.0909 | F66: =TRUNC(E66*$F$17,2) -> 384.08 | H66: * Nota 1 - O Módulo 4 refere-se às previsões para custear ausências do próprio profissional (titular do cargo)
C67: B | D67: ='Encargos Sociais'!D26 -> Ausências Legais (Arts. 131 e 473 da CLT) | E67: ='Encargos Sociais'!E26 -> 0.0079 | F67: 33.38 | H67: * Nota 2 - As férias foram calculadas dividindo-se por 11, para comportar os 11 meses presentes e ainda o ausente do posto
C68: C | D68: ='Encargos Sociais'!D27 -> Licença-Paternidade (Art. 7º, XIX, e art. 10, §1º, do ADCT, CF/1988 e Art. 1º, II, da Lei 11.770/2008) | E68: ='Encargos Sociais'!E27 -> 0.0008 | F68: 3.38
C69: D | D69: ='Encargos Sociais'!D28 -> Ausência por Acidente de Trabalho (Art. 131, III, da CLT) | E69: ='Encargos Sociais'!E28 -> 0.0009 | F69: 3.8
C70: E | D70: ='Encargos Sociais'!D29 -> Afastamento Maternidade (Art. 71 da Lei nº 8.213/1991) | E70: ='Encargos Sociais'!E29 -> 0.0033 | F70: 13.94
C71: F | D71: ='Encargos Sociais'!D30 -> Auxílio Enfermidade - Doença (Art. 59 da Lei nº 8.213/1991) | E71: ='Encargos Sociais'!E30 -> 0.0071 | F71: 30
B73: Submódulo 4.2 - Intrajornada
C74: A | D74: Intervalo para repouso ou alimentação | E74: ='Encargos Sociais'!E33 -> 0 | F74: =ROUND(E74*$F$17,2) -> 0
D76: QUADRO-RESUMO DO MÓDULO 4 | F76: Valor
D77: 4.1 - Ausências Legais | E77: =SUM(E66:E71) -> 0.1109 | F77: =SUM(F66:F71) -> 468.58
D78: 4.2 - Intrajornada | E78: =E74 -> 0 | F78: =ROUND(E78*$F$17,2) -> 0
D80: TOTAL DE CUSTO DO PROFISSIONAL AUSENTE E INTERVALO INTRAJORNADA | F80: =TRUNC(SUM(F77:F78),2) -> 468.58
B82: MÓDULO 5 - INSUMOS DIVERSOS | F82: Valor
C83: A | D83: Uniformes - aquisição | F83: =TRUNC(HLOOKUP($B$5,Uniformes!$K$3:$DZ$5,3,0)/12,2) -> 129.43
C84: B | D84: Materiais de consumo relacionados ao posto - aquisição | F84: 0
C85: C | D85: Ferramentas relacionadas ao posto - remuneração da sua depreciação / manutenção | F85: 0
C86: D | D86: Equipamentos relacionados ao posto - remuneração da sua depreciação / manutenção | F86: 0
C87: E | D87: Equipamentos de Proteção Individual - EPI - aquisição | F87: =TRUNC(HLOOKUP($B$5,EPI!$J$3:$DY$5,3,0)/12,2) -> 20.26
D89: TOTAL DE INSUMOS DIVERSOS | F89: =SUM(F83:F88) -> 149.69 | H89: * Nota - Valores mensais por empregado
B91: MÓDULO 6 - CUSTOS INDIRETOS, TRIBUTOS E LUCRO - BDI | E91: Percentuais | F91: Valor
C92: A | D92: Custos Indiretos | E92: ='BDI - Geral'!E7 -> 0.0227
C93: A.1 | D93: Administração Central | E93: ='BDI - Geral'!E8 -> 0.0173
C94: A.2 | D94: Seguros, Garantias e Riscos | E94: ='BDI - Geral'!E9 -> 0.0054
C95: B | D95: Lucro | E95: ='BDI - Geral'!E11 -> 0.0267
C96: C | D96: Tributos | E96: =SUM(E97:E98) -> 0.124
C97: C.1 | D97: Tributos Federais (COFINS, PIS e CPRB) | E97: ='BDI - Geral'!E19 -> 0.074
C98: C.2 | D98: Tributos Distritais (ISS) | E98: ='BDI - Geral'!E24 -> 0.05
C99: D | D99: Despesas Financeiras | E99: ='BDI - Geral'!E14 -> 0.0061
D101: TOTAL DE BDI | E101: ='BDI - Geral'!E27 -> 0.2059 | F101: =TRUNC(E101*E109,2) -> 1772.66
D103: QUADRO-RESUMO DO CUSTO MENSAL POR EMPREGADO | E103: Valor
D104: Módulo 1 - Composição da Remuneração | E104: =F17 -> 4225.4
D105: Módulo 2 - Encargos e Benefícios Anuais, Mensais e Diários | E105: =F52 -> 3530.47
D106: Módulo 3 - Provisão para Rescisão | E106: =F62 -> 235.21
D107: Módulo 4 - Custo do Profissional Ausente | E107: =F80 -> 468.58
D108: Módulo 5 - Insumos Diversos | E108: =F89 -> 149.69
D109: SUBTOTAL (A+B+C+D+E) | E109: =SUM(E104:E108) -> 8609.35
D110: Módulo 6 - Custos Indiretos, Tributos e Lucro | E110: =F101 -> 1772.66
D112: TOTAL DO POSTO | E112: =SUM(E109:E110) -> 10382.01

Sheet 9
B2: PLANILHA DE ESTIMATIVA DE CUSTOS
B3: Padrão IN 05/2017 e IN 07/2018 - MPDG - Medição por posto presente
B5: 9 | D5: =HLOOKUP($B$5,'Dados Gerais'!$D$6:$BI$22,6) -> GARÇOM DO GABINETE DA PRESIDÊNCIA | E5: QUANTIDADE | F5: =HLOOKUP($B$5,'Dados Gerais'!$D$6:$BI$22,10) -> 2
B6: CCT | D6: =HLOOKUP($B$5,'Dados Gerais'!$D$6:$BI$22,16) -> SEAC/DF x SINDISERVIÇOS/DF CCT 2025/2026 N.º DF000042/2025 | E6: DATA-BASE | F6: =HLOOKUP($B$5,'Dados Gerais'!$D$6:$BI$22,17) -> 2025-01-01
B8: MÓDULO 1 - COMPOSIÇÃO DA REMUNERAÇÃO | F8: Valor
C9: A | D9: Salário-Base | F9: =HLOOKUP($B$5,'Dados Gerais'!$D$6:$BI$22,8) -> 4225.4
C10: B | D10: Adicional de Periculosidade | F10: =HLOOKUP($B$5,'Dados Gerais'!$D$6:$BI$41,26) -> 0
C11: C | D11: Adicional de Insalubridade | F11: =HLOOKUP($B$5,'Dados Gerais'!$D$6:$BI$41,32) -> 0
C12: D | D12: Adicional Noturno | F12: =HLOOKUP($B$5,'Dados Gerais'!$D$6:$BI$54,49) -> 0 | H12: * Nota 1 - O Módulo 1 refere-se ao valor mensal devido ao empregado pela prestação do serviço no período de 12 meses.
C13: E | D13: Adicional de Hora Extra | F13: =HLOOKUP($B$5,'Dados Gerais'!$D$6:$BI$71,66) -> 0 | H13: * Nota 2 - O adicional de hora extra no feriado trabalhado foi suprimido pela Lei 13.467/17
C14: F | D14: Gratificação | F14: =HLOOKUP($B$5,'Dados Gerais'!$D$6:$BI$71,34) -> 0 | H14: * Nota 3 - ART. 7º, § 2º, DA LEI Nº 605/49.Sendo mensalista o obreiro, o adicional noturno pago de forma fixa já é considerado integrado para os efeitos do pagamento do repouso semanal remunerado, nos termos do art. 7º, § 2º, da Lei nº 605/49.
C15: G | D15: Sobraviso | F15: =HLOOKUP($B$5,'Dados Gerais'!$D$6:$BI$71,36) -> 0
D17: TOTAL DA REMUNERAÇÃO | F17: =TRUNC(SUM(F9:F15),2) -> 4225.4
B19: MÓDULO 2 - ENCARGOS E BENEFÍCIOS ANUAIS, MENSAIS E DIÁRIOS | E19: Percentuais | F19: Valor
B20: Submódulo 2.1 - 13º Salário e Adicional de Férias
C21: A | D21: 13º Salário | E21: ='Encargos Sociais'!$E$32 -> 0.0909 | F21: =ROUND(E21*F$17,2) -> 384.09 | H21: * Nota 1 - O 13º salário foi calculado dividindo-se por 11, para comportar os 11 meses presentes e ainda o ausente do posto
C22: B | D22: Adicional de Férias | E22: ='Encargos Sociais'!E31 -> 0.0303 | F22: =TRUNC(E22*(F$17),2) -> 128.02 | H22: * Nota 2 - O adicional de férias foi calculado dividindo-se por 11, para comportar os 11 meses presentes e ainda o ausente do posto
B24: Submódulo 2.2 - Encargos Previdenciários (GPS), Fundo de Garantia por Tempo de Serviço (FGTS) e Outras Contribuições
C25: A | D25: ='Encargos Sociais'!D14 -> INSS (art. 22, inciso I, Lei nº 8.212/91) | E25: ='Encargos Sociais'!E14 -> 0.2 | F25: =TRUNC(E25*($F$17+$F$21+$F$22+$F$80-$F$69),2) -> 1040.45 | H25: * Nota 1 - Os percentuais dos encargos previdenciários, do FGTS e demais contribuições são estabelecidos por legislação vigente.
C26: B | D26: ='Encargos Sociais'!D15 -> Salário Educação (art. 3º, inciso I, Decreto nº 87.043/82) | E26: ='Encargos Sociais'!E15 -> 0.025 | F26: =TRUNC(E26*($F$17+$F$21+$F$22+$F$80),2) -> 130.15 | H26: * Nota 2 - O SAT, a depender do grau de risco do serviço, irá variar entre 1%, para risco leve, de 2%, para risco médio, e de 3% para risco grave.
C27: C | D27: ='Encargos Sociais'!D16 -> SAT/RAT (art. 22, II, Lei 8.212/91 e Anexo V, Decreto 6.042/07) - Enquadramento 8121-4/00 | E27: ='Encargos Sociais'!E16 -> 0.03 | F27: =TRUNC(E27*($F$17+$F$21+$F$22+$F$80),2) -> 156.18 | H27: * Nota 3 - Base de cálculo - remuneração + ausências + 13º salário + terço constitucional (férias) - exceto INSS sobre ausência por acidente de trabalho
C28: D | D28: ='Encargos Sociais'!D17 -> SESC ou SESI (art. 30, Lei nº 8.036/90 e art. 1º, Lei 8.154/90) | E28: ='Encargos Sociais'!E17 -> 0.015 | F28: 78.09
C29: E | D29: ='Encargos Sociais'!D18 -> SENAI ou SENAC (Decreto nº 2.318/86) | E29: ='Encargos Sociais'!E18 -> 0.01 | F29: 52.06
C30: F | D30: ='Encargos Sociais'!D19 -> SEBRAE (§ 3º, art. 8º, Lei 8.029/90, alterada pela Lei nº 8.154/90) | E30: ='Encargos Sociais'!E19 -> 0.006 | F30: 31.23
C31: G | D31: ='Encargos Sociais'!D20 -> INCRA (art. 1º, I, Decreto Lei 1.146/70 e Lei 7.787, de 30/06/89) | E31: ='Encargos Sociais'!E20 -> 0.002 | F31: 10.41
C32: H | D32: ='Encargos Sociais'!D21 -> FGTS (Lei Complementar nº 110/01 e art. 30, Lei nº 8.036/90) | E32: ='Encargos Sociais'!E21 -> 0.08 | F32: 416.48
C33: I | D33: ='Encargos Sociais'!D22 -> SECONCI (Convenções Coletivas de Trabalho da construção) | E33: ='Encargos Sociais'!E22 -> 0 | F33: 0
B35: Submódulo 2.3 - Benefícios Mensais e Diários
C36: A | D36: Auxílio Transporte | F36: =HLOOKUP($B$5,'Dados Gerais'!$D$6:$BI$140,85) -> 51.4 | H36: * Nota 1 - O valor informado deverá ser o custo real do benefício (descontado o valor eventualmente pago pelo empregado).
C37: B | D37: Auxílio Alimentação | F37: =HLOOKUP($B$5,'Dados Gerais'!$D$6:$BI$140,92) -> 1048.3 | H37: * Nota 2 - Observar a previsão dos benefícios contidos em Acordos, Convenções e Dissídios Coletivos de Trabalho e o disposto no art. 6º da IN 5/2017
C38: C | D38: Assistência Médica e Familiar | F38: =HLOOKUP($B$5,'Dados Gerais'!$D$6:$BI$140,100) -> 0
C39: D | D39: Seguro de vida / auxílio funeral | F39: =HLOOKUP($B$5,'Dados Gerais'!$D$6:$BI$140,109) -> 3.61
C40: E | D40: Assistência odontológica | F40: =HLOOKUP($B$5,'Dados Gerais'!$D$6:$BI$140,115) -> 0
C41: F | D41: Auxílio creche | F41: =HLOOKUP($B$5,'Dados Gerais'!$D$6:$BI$140,121) -> 0
C42: G | D42: Auxílio vestuário especial | F42: =HLOOKUP($B$5,'Dados Gerais'!$D$6:$BI$140,127) -> 0
C43: H | D43: Benefício social familiar | F43: =HLOOKUP($B$5,'Dados Gerais'!$D$6:$BI$140,133) -> 0
C44: I | D44: Outros (especificar)
C45: J | D45: Outros (especificar)
D47: QUADRO-RESUMO DO MÓDULO 2
D48: 2.1 - 13º salário e Adicional de Férias | E48: =SUM(E21:E22) -> 0.1212 | F48: =F21+F22 -> 512.11
D49: 2.2 - Encargos Previdenciários (GPS), Fundo de Garantia por Tempo de Serviço (FGTS) e Contribuições | E49: =SUM(E25:E33) -> 0.368 | F49: =SUM(F25:F33) -> 1915.05
D50: 2.3 - Benefícios Mensais e Diários | F50: =SUM(F36:F45) -> 1103.31
D52: TOTAL DOS ENCARGOS E BENEFÍCIOS | F52: =TRUNC(SUM(F48:F50),2) -> 3530.47
B54: MÓDULO 3 - PROVISÃO PARA RESCISÃO | E54: Percentuais | F54: Valor
C55: A | D55: ='Encargos Sociais'!D36 -> Aviso Prévio Indenizado (Art. 7º, inciso XXI, da CF/1988 e arts. 477, 487, §1º, e 491 da CLT) | E55: ='Encargos Sociais'!E36 -> 0.0042 | F55: =TRUNC(E55*($F$17+$F$48+$F$80),2) -> 21.86 | H55: * Nota 1 - Base de cálculo - remuneração + ausências + 1/3 férias + 13º
C56: B | D56: ='Encargos Sociais'!D37 -> Incidência do FGTS sobre o Aviso Prévio Indenizado (Súmula 305 TST) | E56: ='Encargos Sociais'!E37 -> 0.0003 | F56: =TRUNC(E56*($F$17+$F$48+$F$80),2) -> 1.56
C57: C | D57: ='Encargos Sociais'!D38 -> Multa do FGTS sobre o Aviso Prévio Indenizado (Art. 18, §1º, da Lei 8.036/1990) | E57: ='Encargos Sociais'!E38 -> 0 | F57: =TRUNC(E57*($F$17+$F$48+$F$80),2) -> 0 | H57: * Nota 2 - zerado pois foi considerada toda a incidência da multa do FGTS na letra F
C58: D | D58: ='Encargos Sociais'!D39 -> Aviso Prévio Trabalhado (Art. 488, parágrafo único, CLT) | E58: ='Encargos Sociais'!E39 -> 0.0078 | F58: =TRUNC(E58*($F$17),2) -> 32.95
C59: E | D59: ='Encargos Sociais'!D40 -> Incidência de GPS, FGTS e outras contribuições sobre o Aviso Prévio Trabalhado | E59: ='Encargos Sociais'!E40 -> 0.0029 | F59: =TRUNC(E59*($F$17),2) -> 12.25
C60: F | D60: ='Encargos Sociais'!D41 -> Multa do FGTS | E60: ='Encargos Sociais'!E41 -> 0.032 | F60: =TRUNC(E60*($F$17+$F$48+$F$80),2) -> 166.59
D62: TOTAL DE PROVISÃO PARA RESCISÃO | F62: =TRUNC(SUM(F55:F60),2) -> 235.21
B64: MÓDULO 4 - CUSTO DO PROFISSIONAL AUSENTE | E64: Percentuais | F64: Valor
B65: Submódulo 4.1 - Ausências Legais
C66: A | D66: ='Encargos Sociais'!D25 -> Férias (Arts. 129 e 130, inc. I, da CLT) | E66: ='Encargos Sociais'!E25 -> 0.0909 | F66: =TRUNC(E66*$F$17,2) -> 384.08 | H66: * Nota 1 - O Módulo 4 refere-se às previsões para custear ausências do próprio profissional (titular do cargo)
C67: B | D67: ='Encargos Sociais'!D26 -> Ausências Legais (Arts. 131 e 473 da CLT) | E67: ='Encargos Sociais'!E26 -> 0.0079 | F67: 33.38 | H67: * Nota 2 - As férias foram calculadas dividindo-se por 11, para comportar os 11 meses presentes e ainda o ausente do posto
C68: C | D68: ='Encargos Sociais'!D27 -> Licença-Paternidade (Art. 7º, XIX, e art. 10, §1º, do ADCT, CF/1988 e Art. 1º, II, da Lei 11.770/2008) | E68: ='Encargos Sociais'!E27 -> 0.0008 | F68: 3.38
C69: D | D69: ='Encargos Sociais'!D28 -> Ausência por Acidente de Trabalho (Art. 131, III, da CLT) | E69: ='Encargos Sociais'!E28 -> 0.0009 | F69: 3.8
C70: E | D70: ='Encargos Sociais'!D29 -> Afastamento Maternidade (Art. 71 da Lei nº 8.213/1991) | E70: ='Encargos Sociais'!E29 -> 0.0033 | F70: 13.94
C71: F | D71: ='Encargos Sociais'!D30 -> Auxílio Enfermidade - Doença (Art. 59 da Lei nº 8.213/1991) | E71: ='Encargos Sociais'!E30 -> 0.0071 | F71: 30
B73: Submódulo 4.2 - Intrajornada
C74: A | D74: Intervalo para repouso ou alimentação | E74: ='Encargos Sociais'!E33 -> 0 | F74: =ROUND(E74*$F$17,2) -> 0
D76: QUADRO-RESUMO DO MÓDULO 4 | F76: Valor
D77: 4.1 - Ausências Legais | E77: =SUM(E66:E71) -> 0.1109 | F77: =SUM(F66:F71) -> 468.58
D78: 4.2 - Intrajornada | E78: =E74 -> 0 | F78: =ROUND(E78*$F$17,2) -> 0
D80: TOTAL DE CUSTO DO PROFISSIONAL AUSENTE E INTERVALO INTRAJORNADA | F80: =TRUNC(SUM(F77:F78),2) -> 468.58
B82: MÓDULO 5 - INSUMOS DIVERSOS | F82: Valor
C83: A | D83: Uniformes - aquisição | F83: =TRUNC(HLOOKUP($B$5,Uniformes!$K$3:$DZ$5,3,0)/12,2) -> 140.75
C84: B | D84: Materiais de consumo relacionados ao posto - aquisição | F84: 0
C85: C | D85: Ferramentas relacionadas ao posto - remuneração da sua depreciação / manutenção | F85: 0
C86: D | D86: Equipamentos relacionados ao posto - remuneração da sua depreciação / manutenção | F86: 0
C87: E | D87: Equipamentos de Proteção Individual - EPI - aquisição | F87: =TRUNC(HLOOKUP($B$5,EPI!$J$3:$DY$5,3,0)/12,2) -> 29.03
D89: TOTAL DE INSUMOS DIVERSOS | F89: =SUM(F83:F88) -> 169.78 | H89: * Nota - Valores mensais por empregado
B91: MÓDULO 6 - CUSTOS INDIRETOS, TRIBUTOS E LUCRO - BDI | E91: Percentuais | F91: Valor
C92: A | D92: Custos Indiretos | E92: ='BDI - Geral'!E7 -> 0.0227
C93: A.1 | D93: Administração Central | E93: ='BDI - Geral'!E8 -> 0.0173
C94: A.2 | D94: Seguros, Garantias e Riscos | E94: ='BDI - Geral'!E9 -> 0.0054
C95: B | D95: Lucro | E95: ='BDI - Geral'!E11 -> 0.0267
C96: C | D96: Tributos | E96: =SUM(E97:E98) -> 0.124
C97: C.1 | D97: Tributos Federais (COFINS, PIS e CPRB) | E97: ='BDI - Geral'!E19 -> 0.074
C98: C.2 | D98: Tributos Distritais (ISS) | E98: ='BDI - Geral'!E24 -> 0.05
C99: D | D99: Despesas Financeiras | E99: ='BDI - Geral'!E14 -> 0.0061
D101: TOTAL DE BDI | E101: ='BDI - Geral'!E27 -> 0.2059 | F101: =TRUNC(E101*E109,2) -> 1776.8
D103: QUADRO-RESUMO DO CUSTO MENSAL POR EMPREGADO | E103: Valor
D104: Módulo 1 - Composição da Remuneração | E104: =F17 -> 4225.4
D105: Módulo 2 - Encargos e Benefícios Anuais, Mensais e Diários | E105: =F52 -> 3530.47
D106: Módulo 3 - Provisão para Rescisão | E106: =F62 -> 235.21
D107: Módulo 4 - Custo do Profissional Ausente | E107: =F80 -> 468.58
D108: Módulo 5 - Insumos Diversos | E108: =F89 -> 169.78
D109: SUBTOTAL (A+B+C+D+E) | E109: =SUM(E104:E108) -> 8629.44
D110: Módulo 6 - Custos Indiretos, Tributos e Lucro | E110: =F101 -> 1776.8
D112: TOTAL DO POSTO | E112: =SUM(E109:E110) -> 10406.24

Sheet 10
B2: PLANILHA DE ESTIMATIVA DE CUSTOS
B3: Padrão IN 05/2017 e IN 07/2018 - MPDG - Medição por posto presente
B5: 10 | D5: =HLOOKUP($B$5,'Dados Gerais'!$D$6:$BI$22,6) -> ARRUMADEIRA | E5: QUANTIDADE | F5: =HLOOKUP($B$5,'Dados Gerais'!$D$6:$BI$22,10) -> 4
B6: CCT | D6: =HLOOKUP($B$5,'Dados Gerais'!$D$6:$BI$22,16) -> SEAC/DF x SINDISERVIÇOS/DF CCT 2025/2026 N.º DF000042/2025 | E6: DATA-BASE | F6: =HLOOKUP($B$5,'Dados Gerais'!$D$6:$BI$22,17) -> 2025-01-01
B8: MÓDULO 1 - COMPOSIÇÃO DA REMUNERAÇÃO | F8: Valor
C9: A | D9: Salário-Base | F9: =HLOOKUP($B$5,'Dados Gerais'!$D$6:$BI$22,8) -> 3196.66
C10: B | D10: Adicional de Periculosidade | F10: =HLOOKUP($B$5,'Dados Gerais'!$D$6:$BI$41,26) -> 0
C11: C | D11: Adicional de Insalubridade | F11: =HLOOKUP($B$5,'Dados Gerais'!$D$6:$BI$41,32) -> 0
C12: D | D12: Adicional Noturno | F12: =HLOOKUP($B$5,'Dados Gerais'!$D$6:$BI$54,49) -> 0 | H12: * Nota 1 - O Módulo 1 refere-se ao valor mensal devido ao empregado pela prestação do serviço no período de 12 meses.
C13: E | D13: Adicional de Hora Extra | F13: =HLOOKUP($B$5,'Dados Gerais'!$D$6:$BI$71,66) -> 0 | H13: * Nota 2 - O adicional de hora extra no feriado trabalhado foi suprimido pela Lei 13.467/17
C14: F | D14: Gratificação | F14: =HLOOKUP($B$5,'Dados Gerais'!$D$6:$BI$71,34) -> 0 | H14: * Nota 3 - ART. 7º, § 2º, DA LEI Nº 605/49.Sendo mensalista o obreiro, o adicional noturno pago de forma fixa já é considerado integrado para os efeitos do pagamento do repouso semanal remunerado, nos termos do art. 7º, § 2º, da Lei nº 605/49.
C15: G | D15: Sobraviso | F15: =HLOOKUP($B$5,'Dados Gerais'!$D$6:$BI$71,36) -> 0
D17: TOTAL DA REMUNERAÇÃO | F17: =TRUNC(SUM(F9:F15),2) -> 3196.66
B19: MÓDULO 2 - ENCARGOS E BENEFÍCIOS ANUAIS, MENSAIS E DIÁRIOS | E19: Percentuais | F19: Valor
B20: Submódulo 2.1 - 13º Salário e Adicional de Férias
C21: A | D21: 13º Salário | E21: ='Encargos Sociais'!$E$32 -> 0.0909 | F21: =ROUND(E21*F$17,2) -> 290.58 | H21: * Nota 1 - O 13º salário foi calculado dividindo-se por 11, para comportar os 11 meses presentes e ainda o ausente do posto
C22: B | D22: Adicional de Férias | E22: ='Encargos Sociais'!E31 -> 0.0303 | F22: =TRUNC(E22*(F$17),2) -> 96.85 | H22: * Nota 2 - O adicional de férias foi calculado dividindo-se por 11, para comportar os 11 meses presentes e ainda o ausente do posto
B24: Submódulo 2.2 - Encargos Previdenciários (GPS), Fundo de Garantia por Tempo de Serviço (FGTS) e Outras Contribuições
C25: A | D25: ='Encargos Sociais'!D14 -> INSS (art. 22, inciso I, Lei nº 8.212/91) | E25: ='Encargos Sociais'!E14 -> 0.2 | F25: =TRUNC(E25*($F$17+$F$21+$F$22+$F$80-$F$69),2) -> 787.13 | H25: * Nota 1 - Os percentuais dos encargos previdenciários, do FGTS e demais contribuições são estabelecidos por legislação vigente.
C26: B | D26: ='Encargos Sociais'!D15 -> Salário Educação (art. 3º, inciso I, Decreto nº 87.043/82) | E26: ='Encargos Sociais'!E15 -> 0.025 | F26: =TRUNC(E26*($F$17+$F$21+$F$22+$F$80),2) -> 98.46 | H26: * Nota 2 - O SAT, a depender do grau de risco do serviço, irá variar entre 1%, para risco leve, de 2%, para risco médio, e de 3% para risco grave.
C27: C | D27: ='Encargos Sociais'!D16 -> SAT/RAT (art. 22, II, Lei 8.212/91 e Anexo V, Decreto 6.042/07) - Enquadramento 8121-4/00 | E27: ='Encargos Sociais'!E16 -> 0.03 | F27: =TRUNC(E27*($F$17+$F$21+$F$22+$F$80),2) -> 118.15 | H27: * Nota 3 - Base de cálculo - remuneração + ausências + 13º salário + terço constitucional (férias) - exceto INSS sobre ausência por acidente de trabalho
C28: D | D28: ='Encargos Sociais'!D17 -> SESC ou SESI (art. 30, Lei nº 8.036/90 e art. 1º, Lei 8.154/90) | E28: ='Encargos Sociais'!E17 -> 0.015 | F28: 59.07
C29: E | D29: ='Encargos Sociais'!D18 -> SENAI ou SENAC (Decreto nº 2.318/86) | E29: ='Encargos Sociais'!E18 -> 0.01 | F29: 39.38
C30: F | D30: ='Encargos Sociais'!D19 -> SEBRAE (§ 3º, art. 8º, Lei 8.029/90, alterada pela Lei nº 8.154/90) | E30: ='Encargos Sociais'!E19 -> 0.006 | F30: 23.63
C31: G | D31: ='Encargos Sociais'!D20 -> INCRA (art. 1º, I, Decreto Lei 1.146/70 e Lei 7.787, de 30/06/89) | E31: ='Encargos Sociais'!E20 -> 0.002 | F31: 7.87
C32: H | D32: ='Encargos Sociais'!D21 -> FGTS (Lei Complementar nº 110/01 e art. 30, Lei nº 8.036/90) | E32: ='Encargos Sociais'!E21 -> 0.08 | F32: 315.08
C33: I | D33: ='Encargos Sociais'!D22 -> SECONCI (Convenções Coletivas de Trabalho da construção) | E33: ='Encargos Sociais'!E22 -> 0 | F33: 0
B35: Submódulo 2.3 - Benefícios Mensais e Diários
C36: A | D36: Auxílio Transporte | F36: =HLOOKUP($B$5,'Dados Gerais'!$D$6:$BI$140,85) -> 168.56 | H36: * Nota 1 - O valor informado deverá ser o custo real do benefício (descontado o valor eventualmente pago pelo empregado).
C37: B | D37: Auxílio Alimentação | F37: =HLOOKUP($B$5,'Dados Gerais'!$D$6:$BI$140,92) -> 1238.9 | H37: * Nota 2 - Observar a previsão dos benefícios contidos em Acordos, Convenções e Dissídios Coletivos de Trabalho e o disposto no art. 6º da IN 5/2017
C38: C | D38: Assistência Médica e Familiar | F38: =HLOOKUP($B$5,'Dados Gerais'!$D$6:$BI$140,100) -> 0
C39: D | D39: Seguro de vida / auxílio funeral | F39: =HLOOKUP($B$5,'Dados Gerais'!$D$6:$BI$140,109) -> 3.61
C40: E | D40: Assistência odontológica | F40: =HLOOKUP($B$5,'Dados Gerais'!$D$6:$BI$140,115) -> 0
C41: F | D41: Auxílio creche | F41: =HLOOKUP($B$5,'Dados Gerais'!$D$6:$BI$140,121) -> 0
C42: G | D42: Auxílio vestuário especial | F42: =HLOOKUP($B$5,'Dados Gerais'!$D$6:$BI$140,127) -> 0
C43: H | D43: Benefício social familiar | F43: =HLOOKUP($B$5,'Dados Gerais'!$D$6:$BI$140,133) -> 0
C44: I | D44: Outros (especificar)
C45: J | D45: Outros (especificar)
D47: QUADRO-RESUMO DO MÓDULO 2
D48: 2.1 - 13º salário e Adicional de Férias | E48: =SUM(E21:E22) -> 0.1212 | F48: =F21+F22 -> 387.43
D49: 2.2 - Encargos Previdenciários (GPS), Fundo de Garantia por Tempo de Serviço (FGTS) e Contribuições | E49: =SUM(E25:E33) -> 0.368 | F49: =SUM(F25:F33) -> 1448.77
D50: 2.3 - Benefícios Mensais e Diários | F50: =SUM(F36:F45) -> 1411.07
D52: TOTAL DOS ENCARGOS E BENEFÍCIOS | F52: =TRUNC(SUM(F48:F50),2) -> 3247.27
B54: MÓDULO 3 - PROVISÃO PARA RESCISÃO | E54: Percentuais | F54: Valor
C55: A | D55: ='Encargos Sociais'!D36 -> Aviso Prévio Indenizado (Art. 7º, inciso XXI, da CF/1988 e arts. 477, 487, §1º, e 491 da CLT) | E55: ='Encargos Sociais'!E36 -> 0.0042 | F55: =TRUNC(E55*($F$17+$F$48+$F$80),2) -> 16.54 | H55: * Nota 1 - Base de cálculo - remuneração + ausências + 1/3 férias + 13º
C56: B | D56: ='Encargos Sociais'!D37 -> Incidência do FGTS sobre o Aviso Prévio Indenizado (Súmula 305 TST) | E56: ='Encargos Sociais'!E37 -> 0.0003 | F56: =TRUNC(E56*($F$17+$F$48+$F$80),2) -> 1.18
C57: C | D57: ='Encargos Sociais'!D38 -> Multa do FGTS sobre o Aviso Prévio Indenizado (Art. 18, §1º, da Lei 8.036/1990) | E57: ='Encargos Sociais'!E38 -> 0 | F57: =TRUNC(E57*($F$17+$F$48+$F$80),2) -> 0 | H57: * Nota 2 - zerado pois foi considerada toda a incidência da multa do FGTS na letra F
C58: D | D58: ='Encargos Sociais'!D39 -> Aviso Prévio Trabalhado (Art. 488, parágrafo único, CLT) | E58: ='Encargos Sociais'!E39 -> 0.0078 | F58: =TRUNC(E58*($F$17),2) -> 24.93
C59: E | D59: ='Encargos Sociais'!D40 -> Incidência de GPS, FGTS e outras contribuições sobre o Aviso Prévio Trabalhado | E59: ='Encargos Sociais'!E40 -> 0.0029 | F59: =TRUNC(E59*($F$17),2) -> 9.27
C60: F | D60: ='Encargos Sociais'!D41 -> Multa do FGTS | E60: ='Encargos Sociais'!E41 -> 0.032 | F60: =TRUNC(E60*($F$17+$F$48+$F$80),2) -> 126.03
D62: TOTAL DE PROVISÃO PARA RESCISÃO | F62: =TRUNC(SUM(F55:F60),2) -> 177.95
B64: MÓDULO 4 - CUSTO DO PROFISSIONAL AUSENTE | E64: Percentuais | F64: Valor
B65: Submódulo 4.1 - Ausências Legais
C66: A | D66: ='Encargos Sociais'!D25 -> Férias (Arts. 129 e 130, inc. I, da CLT) | E66: ='Encargos Sociais'!E25 -> 0.0909 | F66: =TRUNC(E66*$F$17,2) -> 290.57 | H66: * Nota 1 - O Módulo 4 refere-se às previsões para custear ausências do próprio profissional (titular do cargo)
C67: B | D67: ='Encargos Sociais'!D26 -> Ausências Legais (Arts. 131 e 473 da CLT) | E67: ='Encargos Sociais'!E26 -> 0.0079 | F67: 25.25 | H67: * Nota 2 - As férias foram calculadas dividindo-se por 11, para comportar os 11 meses presentes e ainda o ausente do posto
C68: C | D68: ='Encargos Sociais'!D27 -> Licença-Paternidade (Art. 7º, XIX, e art. 10, §1º, do ADCT, CF/1988 e Art. 1º, II, da Lei 11.770/2008) | E68: ='Encargos Sociais'!E27 -> 0.0008 | F68: 2.55
C69: D | D69: ='Encargos Sociais'!D28 -> Ausência por Acidente de Trabalho (Art. 131, III, da CLT) | E69: ='Encargos Sociais'!E28 -> 0.0009 | F69: 2.87
C70: E | D70: ='Encargos Sociais'!D29 -> Afastamento Maternidade (Art. 71 da Lei nº 8.213/1991) | E70: ='Encargos Sociais'!E29 -> 0.0033 | F70: 10.54
C71: F | D71: ='Encargos Sociais'!D30 -> Auxílio Enfermidade - Doença (Art. 59 da Lei nº 8.213/1991) | E71: ='Encargos Sociais'!E30 -> 0.0071 | F71: 22.69
B73: Submódulo 4.2 - Intrajornada
C74: A | D74: Intervalo para repouso ou alimentação | E74: ='Encargos Sociais'!E33 -> 0 | F74: =ROUND(E74*$F$17,2) -> 0
D76: QUADRO-RESUMO DO MÓDULO 4 | F76: Valor
D77: 4.1 - Ausências Legais | E77: =SUM(E66:E71) -> 0.1109 | F77: =SUM(F66:F71) -> 354.47
D78: 4.2 - Intrajornada | E78: =E74 -> 0 | F78: =ROUND(E78*$F$17,2) -> 0
D80: TOTAL DE CUSTO DO PROFISSIONAL AUSENTE E INTERVALO INTRAJORNADA | F80: =TRUNC(SUM(F77:F78),2) -> 354.47
B82: MÓDULO 5 - INSUMOS DIVERSOS | F82: Valor
C83: A | D83: Uniformes - aquisição | F83: =TRUNC(HLOOKUP($B$5,Uniformes!$K$3:$DZ$5,3,0)/12,2) -> 121.26
C84: B | D84: Materiais de consumo relacionados ao posto - aquisição | F84: 0
C85: C | D85: Ferramentas relacionadas ao posto - remuneração da sua depreciação / manutenção | F85: 0
C86: D | D86: Equipamentos relacionados ao posto - remuneração da sua depreciação / manutenção | F86: 0
C87: E | D87: Equipamentos de Proteção Individual - EPI - aquisição | F87: =TRUNC(HLOOKUP($B$5,EPI!$J$3:$DY$5,3,0)/12,2) -> 46.81
D89: TOTAL DE INSUMOS DIVERSOS | F89: =SUM(F83:F88) -> 168.07 | H89: * Nota - Valores mensais por empregado
B91: MÓDULO 6 - CUSTOS INDIRETOS, TRIBUTOS E LUCRO - BDI | E91: Percentuais | F91: Valor
C92: A | D92: Custos Indiretos | E92: ='BDI - Geral'!E7 -> 0.0227
C93: A.1 | D93: Administração Central | E93: ='BDI - Geral'!E8 -> 0.0173
C94: A.2 | D94: Seguros, Garantias e Riscos | E94: ='BDI - Geral'!E9 -> 0.0054
C95: B | D95: Lucro | E95: ='BDI - Geral'!E11 -> 0.0267
C96: C | D96: Tributos | E96: =SUM(E97:E98) -> 0.124
C97: C.1 | D97: Tributos Federais (COFINS, PIS e CPRB) | E97: ='BDI - Geral'!E19 -> 0.074
C98: C.2 | D98: Tributos Distritais (ISS) | E98: ='BDI - Geral'!E24 -> 0.05
C99: D | D99: Despesas Financeiras | E99: ='BDI - Geral'!E14 -> 0.0061
D101: TOTAL DE BDI | E101: ='BDI - Geral'!E27 -> 0.2059 | F101: =TRUNC(E101*E109,2) -> 1471.03
D103: QUADRO-RESUMO DO CUSTO MENSAL POR EMPREGADO | E103: Valor
D104: Módulo 1 - Composição da Remuneração | E104: =F17 -> 3196.66
D105: Módulo 2 - Encargos e Benefícios Anuais, Mensais e Diários | E105: =F52 -> 3247.27
D106: Módulo 3 - Provisão para Rescisão | E106: =F62 -> 177.95
D107: Módulo 4 - Custo do Profissional Ausente | E107: =F80 -> 354.47
D108: Módulo 5 - Insumos Diversos | E108: =F89 -> 168.07
D109: SUBTOTAL (A+B+C+D+E) | E109: =SUM(E104:E108) -> 7144.42
D110: Módulo 6 - Custos Indiretos, Tributos e Lucro | E110: =F101 -> 1471.03
D112: TOTAL DO POSTO | E112: =SUM(E109:E110) -> 8615.45

Sheet 11
B2: PLANILHA DE ESTIMATIVA DE CUSTOS
B3: Padrão IN 05/2017 e IN 07/2018 - MPDG - Medição por posto presente
B5: 11 | D5: =HLOOKUP($B$5,'Dados Gerais'!$D$6:$BI$22,6) -> AUXILIAR DE COZINHA (FEMININO) | E5: QUANTIDADE | F5: =HLOOKUP($B$5,'Dados Gerais'!$D$6:$BI$22,10) -> 2
B6: CCT | D6: =HLOOKUP($B$5,'Dados Gerais'!$D$6:$BI$22,16) -> SEAC/DF x SINDISERVIÇOS/DF CCT 2025/2026 N.º DF000042/2025 | E6: DATA-BASE | F6: =HLOOKUP($B$5,'Dados Gerais'!$D$6:$BI$22,17) -> 2025-01-01
B8: MÓDULO 1 - COMPOSIÇÃO DA REMUNERAÇÃO | F8: Valor
C9: A | D9: Salário-Base | F9: =HLOOKUP($B$5,'Dados Gerais'!$D$6:$BI$22,8) -> 2878.22
C10: B | D10: Adicional de Periculosidade | F10: =HLOOKUP($B$5,'Dados Gerais'!$D$6:$BI$41,26) -> 0
C11: C | D11: Adicional de Insalubridade | F11: =HLOOKUP($B$5,'Dados Gerais'!$D$6:$BI$41,32) -> 0
C12: D | D12: Adicional Noturno | F12: =HLOOKUP($B$5,'Dados Gerais'!$D$6:$BI$54,49) -> 0 | H12: * Nota 1 - O Módulo 1 refere-se ao valor mensal devido ao empregado pela prestação do serviço no período de 12 meses.
C13: E | D13: Adicional de Hora Extra | F13: =HLOOKUP($B$5,'Dados Gerais'!$D$6:$BI$71,66) -> 0 | H13: * Nota 2 - O adicional de hora extra no feriado trabalhado foi suprimido pela Lei 13.467/17
C14: F | D14: Gratificação | F14: =HLOOKUP($B$5,'Dados Gerais'!$D$6:$BI$71,34) -> 0 | H14: * Nota 3 - ART. 7º, § 2º, DA LEI Nº 605/49.Sendo mensalista o obreiro, o adicional noturno pago de forma fixa já é considerado integrado para os efeitos do pagamento do repouso semanal remunerado, nos termos do art. 7º, § 2º, da Lei nº 605/49.
C15: G | D15: Sobraviso | F15: =HLOOKUP($B$5,'Dados Gerais'!$D$6:$BI$71,36) -> 0
D17: TOTAL DA REMUNERAÇÃO | F17: =TRUNC(SUM(F9:F15),2) -> 2878.22
B19: MÓDULO 2 - ENCARGOS E BENEFÍCIOS ANUAIS, MENSAIS E DIÁRIOS | E19: Percentuais | F19: Valor
B20: Submódulo 2.1 - 13º Salário e Adicional de Férias
C21: A | D21: 13º Salário | E21: ='Encargos Sociais'!$E$32 -> 0.0909 | F21: =ROUND(E21*F$17,2) -> 261.63 | H21: * Nota 1 - O 13º salário foi calculado dividindo-se por 11, para comportar os 11 meses presentes e ainda o ausente do posto
C22: B | D22: Adicional de Férias | E22: ='Encargos Sociais'!E31 -> 0.0303 | F22: =TRUNC(E22*(F$17),2) -> 87.21 | H22: * Nota 2 - O adicional de férias foi calculado dividindo-se por 11, para comportar os 11 meses presentes e ainda o ausente do posto
B24: Submódulo 2.2 - Encargos Previdenciários (GPS), Fundo de Garantia por Tempo de Serviço (FGTS) e Outras Contribuições
C25: A | D25: ='Encargos Sociais'!D14 -> INSS (art. 22, inciso I, Lei nº 8.212/91) | E25: ='Encargos Sociais'!E14 -> 0.2 | F25: =TRUNC(E25*($F$17+$F$21+$F$22+$F$80-$F$69),2) -> 708.72 | H25: * Nota 1 - Os percentuais dos encargos previdenciários, do FGTS e demais contribuições são estabelecidos por legislação vigente.
C26: B | D26: ='Encargos Sociais'!D15 -> Salário Educação (art. 3º, inciso I, Decreto nº 87.043/82) | E26: ='Encargos Sociais'!E15 -> 0.025 | F26: =TRUNC(E26*($F$17+$F$21+$F$22+$F$80),2) -> 88.65 | H26: * Nota 2 - O SAT, a depender do grau de risco do serviço, irá variar entre 1%, para risco leve, de 2%, para risco médio, e de 3% para risco grave.
C27: C | D27: ='Encargos Sociais'!D16 -> SAT/RAT (art. 22, II, Lei 8.212/91 e Anexo V, Decreto 6.042/07) - Enquadramento 8121-4/00 | E27: ='Encargos Sociais'!E16 -> 0.03 | F27: =TRUNC(E27*($F$17+$F$21+$F$22+$F$80),2) -> 106.38 | H27: * Nota 3 - Base de cálculo - remuneração + ausências + 13º salário + terço constitucional (férias) - exceto INSS sobre ausência por acidente de trabalho
C28: D | D28: ='Encargos Sociais'!D17 -> SESC ou SESI (art. 30, Lei nº 8.036/90 e art. 1º, Lei 8.154/90) | E28: ='Encargos Sociais'!E17 -> 0.015 | F28: 53.19
C29: E | D29: ='Encargos Sociais'!D18 -> SENAI ou SENAC (Decreto nº 2.318/86) | E29: ='Encargos Sociais'!E18 -> 0.01 | F29: 35.46
C30: F | D30: ='Encargos Sociais'!D19 -> SEBRAE (§ 3º, art. 8º, Lei 8.029/90, alterada pela Lei nº 8.154/90) | E30: ='Encargos Sociais'!E19 -> 0.006 | F30: 21.27
C31: G | D31: ='Encargos Sociais'!D20 -> INCRA (art. 1º, I, Decreto Lei 1.146/70 e Lei 7.787, de 30/06/89) | E31: ='Encargos Sociais'!E20 -> 0.002 | F31: 7.09
C32: H | D32: ='Encargos Sociais'!D21 -> FGTS (Lei Complementar nº 110/01 e art. 30, Lei nº 8.036/90) | E32: ='Encargos Sociais'!E21 -> 0.08 | F32: 283.69
C33: I | D33: ='Encargos Sociais'!D22 -> SECONCI (Convenções Coletivas de Trabalho da construção) | E33: ='Encargos Sociais'!E22 -> 0 | F33: 0
B35: Submódulo 2.3 - Benefícios Mensais e Diários
C36: A | D36: Auxílio Transporte | F36: =HLOOKUP($B$5,'Dados Gerais'!$D$6:$BI$140,85) -> 187.67 | H36: * Nota 1 - O valor informado deverá ser o custo real do benefício (descontado o valor eventualmente pago pelo empregado).
C37: B | D37: Auxílio Alimentação | F37: =HLOOKUP($B$5,'Dados Gerais'!$D$6:$BI$140,92) -> 1238.9 | H37: * Nota 2 - Observar a previsão dos benefícios contidos em Acordos, Convenções e Dissídios Coletivos de Trabalho e o disposto no art. 6º da IN 5/2017
C38: C | D38: Assistência Médica e Familiar | F38: =HLOOKUP($B$5,'Dados Gerais'!$D$6:$BI$140,100) -> 0
C39: D | D39: Seguro de vida / auxílio funeral | F39: =HLOOKUP($B$5,'Dados Gerais'!$D$6:$BI$140,109) -> 3.61
C40: E | D40: Assistência odontológica | F40: =HLOOKUP($B$5,'Dados Gerais'!$D$6:$BI$140,115) -> 0
C41: F | D41: Auxílio creche | F41: =HLOOKUP($B$5,'Dados Gerais'!$D$6:$BI$140,121) -> 0
C42: G | D42: Auxílio vestuário especial | F42: =HLOOKUP($B$5,'Dados Gerais'!$D$6:$BI$140,127) -> 0
C43: H | D43: Benefício social familiar | F43: =HLOOKUP($B$5,'Dados Gerais'!$D$6:$BI$140,133) -> 0
C44: I | D44: Outros (especificar)
C45: J | D45: Outros (especificar)
D47: QUADRO-RESUMO DO MÓDULO 2
D48: 2.1 - 13º salário e Adicional de Férias | E48: =SUM(E21:E22) -> 0.1212 | F48: =F21+F22 -> 348.84
D49: 2.2 - Encargos Previdenciários (GPS), Fundo de Garantia por Tempo de Serviço (FGTS) e Contribuições | E49: =SUM(E25:E33) -> 0.368 | F49: =SUM(F25:F33) -> 1304.45
D50: 2.3 - Benefícios Mensais e Diários | F50: =SUM(F36:F45) -> 1430.18
D52: TOTAL DOS ENCARGOS E BENEFÍCIOS | F52: =TRUNC(SUM(F48:F50),2) -> 3083.47
B54: MÓDULO 3 - PROVISÃO PARA RESCISÃO | E54: Percentuais | F54: Valor
C55: A | D55: ='Encargos Sociais'!D36 -> Aviso Prévio Indenizado (Art. 7º, inciso XXI, da CF/1988 e arts. 477, 487, §1º, e 491 da CLT) | E55: ='Encargos Sociais'!E36 -> 0.0042 | F55: =TRUNC(E55*($F$17+$F$48+$F$80),2) -> 14.89 | H55: * Nota 1 - Base de cálculo - remuneração + ausências + 1/3 férias + 13º
C56: B | D56: ='Encargos Sociais'!D37 -> Incidência do FGTS sobre o Aviso Prévio Indenizado (Súmula 305 TST) | E56: ='Encargos Sociais'!E37 -> 0.0003 | F56: =TRUNC(E56*($F$17+$F$48+$F$80),2) -> 1.06
C57: C | D57: ='Encargos Sociais'!D38 -> Multa do FGTS sobre o Aviso Prévio Indenizado (Art. 18, §1º, da Lei 8.036/1990) | E57: ='Encargos Sociais'!E38 -> 0 | F57: =TRUNC(E57*($F$17+$F$48+$F$80),2) -> 0 | H57: * Nota 2 - zerado pois foi considerada toda a incidência da multa do FGTS na letra F
C58: D | D58: ='Encargos Sociais'!D39 -> Aviso Prévio Trabalhado (Art. 488, parágrafo único, CLT) | E58: ='Encargos Sociais'!E39 -> 0.0078 | F58: =TRUNC(E58*($F$17),2) -> 22.45
C59: E | D59: ='Encargos Sociais'!D40 -> Incidência de GPS, FGTS e outras contribuições sobre o Aviso Prévio Trabalhado | E59: ='Encargos Sociais'!E40 -> 0.0029 | F59: =TRUNC(E59*($F$17),2) -> 8.34
C60: F | D60: ='Encargos Sociais'!D41 -> Multa do FGTS | E60: ='Encargos Sociais'!E41 -> 0.032 | F60: =TRUNC(E60*($F$17+$F$48+$F$80),2) -> 113.47
D62: TOTAL DE PROVISÃO PARA RESCISÃO | F62: =TRUNC(SUM(F55:F60),2) -> 160.21
B64: MÓDULO 4 - CUSTO DO PROFISSIONAL AUSENTE | E64: Percentuais | F64: Valor
B65: Submódulo 4.1 - Ausências Legais
C66: A | D66: ='Encargos Sociais'!D25 -> Férias (Arts. 129 e 130, inc. I, da CLT) | E66: ='Encargos Sociais'!E25 -> 0.0909 | F66: =TRUNC(E66*$F$17,2) -> 261.63 | H66: * Nota 1 - O Módulo 4 refere-se às previsões para custear ausências do próprio profissional (titular do cargo)
C67: B | D67: ='Encargos Sociais'!D26 -> Ausências Legais (Arts. 131 e 473 da CLT) | E67: ='Encargos Sociais'!E26 -> 0.0079 | F67: 22.73 | H67: * Nota 2 - As férias foram calculadas dividindo-se por 11, para comportar os 11 meses presentes e ainda o ausente do posto
C68: C | D68: ='Encargos Sociais'!D27 -> Licença-Paternidade (Art. 7º, XIX, e art. 10, §1º, do ADCT, CF/1988 e Art. 1º, II, da Lei 11.770/2008) | E68: ='Encargos Sociais'!E27 -> 0.0008 | F68: 2.3
C69: D | D69: ='Encargos Sociais'!D28 -> Ausência por Acidente de Trabalho (Art. 131, III, da CLT) | E69: ='Encargos Sociais'!E28 -> 0.0009 | F69: 2.59
C70: E | D70: ='Encargos Sociais'!D29 -> Afastamento Maternidade (Art. 71 da Lei nº 8.213/1991) | E70: ='Encargos Sociais'!E29 -> 0.0033 | F70: 9.49
C71: F | D71: ='Encargos Sociais'!D30 -> Auxílio Enfermidade - Doença (Art. 59 da Lei nº 8.213/1991) | E71: ='Encargos Sociais'!E30 -> 0.0071 | F71: 20.43
B73: Submódulo 4.2 - Intrajornada
C74: A | D74: Intervalo para repouso ou alimentação | E74: ='Encargos Sociais'!E33 -> 0 | F74: =ROUND(E74*$F$17,2) -> 0
D76: QUADRO-RESUMO DO MÓDULO 4 | F76: Valor
D77: 4.1 - Ausências Legais | E77: =SUM(E66:E71) -> 0.1109 | F77: =SUM(F66:F71) -> 319.17
D78: 4.2 - Intrajornada | E78: =E74 -> 0 | F78: =ROUND(E78*$F$17,2) -> 0
D80: TOTAL DE CUSTO DO PROFISSIONAL AUSENTE E INTERVALO INTRAJORNADA | F80: =TRUNC(SUM(F77:F78),2) -> 319.17
B82: MÓDULO 5 - INSUMOS DIVERSOS | F82: Valor
C83: A | D83: Uniformes - aquisição | F83: =TRUNC(HLOOKUP($B$5,Uniformes!$K$3:$DZ$5,3,0)/12,2) -> 159.63
C84: B | D84: Materiais de consumo relacionados ao posto - aquisição | F84: 0
C85: C | D85: Ferramentas relacionadas ao posto - remuneração da sua depreciação / manutenção | F85: 0
C86: D | D86: Equipamentos relacionados ao posto - remuneração da sua depreciação / manutenção | F86: 0
C87: E | D87: Equipamentos de Proteção Individual - EPI - aquisição | F87: =TRUNC(HLOOKUP($B$5,EPI!$J$3:$DY$5,3,0)/12,2) -> 125
D89: TOTAL DE INSUMOS DIVERSOS | F89: =SUM(F83:F88) -> 284.63 | H89: * Nota - Valores mensais por empregado
B91: MÓDULO 6 - CUSTOS INDIRETOS, TRIBUTOS E LUCRO - BDI | E91: Percentuais | F91: Valor
C92: A | D92: Custos Indiretos | E92: ='BDI - Geral'!E7 -> 0.0227
C93: A.1 | D93: Administração Central | E93: ='BDI - Geral'!E8 -> 0.0173
C94: A.2 | D94: Seguros, Garantias e Riscos | E94: ='BDI - Geral'!E9 -> 0.0054
C95: B | D95: Lucro | E95: ='BDI - Geral'!E11 -> 0.0267
C96: C | D96: Tributos | E96: =SUM(E97:E98) -> 0.124
C97: C.1 | D97: Tributos Federais (COFINS, PIS e CPRB) | E97: ='BDI - Geral'!E19 -> 0.074
C98: C.2 | D98: Tributos Distritais (ISS) | E98: ='BDI - Geral'!E24 -> 0.05
C99: D | D99: Despesas Financeiras | E99: ='BDI - Geral'!E14 -> 0.0061
D101: TOTAL DE BDI | E101: ='BDI - Geral'!E27 -> 0.2059 | F101: =TRUNC(E101*E109,2) -> 1384.82
D103: QUADRO-RESUMO DO CUSTO MENSAL POR EMPREGADO | E103: Valor
D104: Módulo 1 - Composição da Remuneração | E104: =F17 -> 2878.22
D105: Módulo 2 - Encargos e Benefícios Anuais, Mensais e Diários | E105: =F52 -> 3083.47
D106: Módulo 3 - Provisão para Rescisão | E106: =F62 -> 160.21
D107: Módulo 4 - Custo do Profissional Ausente | E107: =F80 -> 319.17
D108: Módulo 5 - Insumos Diversos | E108: =F89 -> 284.63
D109: SUBTOTAL (A+B+C+D+E) | E109: =SUM(E104:E108) -> 6725.7
D110: Módulo 6 - Custos Indiretos, Tributos e Lucro | E110: =F101 -> 1384.82
D112: TOTAL DO POSTO | E112: =SUM(E109:E110) -> 8110.52

Sheet 12
B2: PLANILHA DE ESTIMATIVA DE CUSTOS
B3: Padrão IN 05/2017 e IN 07/2018 - MPDG - Medição por posto presente
B5: 12 | D5: =HLOOKUP($B$5,'Dados Gerais'!$D$6:$BI$22,6) -> AUXILIAR DE COZINHA (MASCULINO) | E5: QUANTIDADE | F5: =HLOOKUP($B$5,'Dados Gerais'!$D$6:$BI$22,10) -> 1
B6: CCT | D6: =HLOOKUP($B$5,'Dados Gerais'!$D$6:$BI$22,16) -> SEAC/DF x SINDISERVIÇOS/DF CCT 2025/2026 N.º DF000042/2025 | E6: DATA-BASE | F6: =HLOOKUP($B$5,'Dados Gerais'!$D$6:$BI$22,17) -> 2025-01-01
B8: MÓDULO 1 - COMPOSIÇÃO DA REMUNERAÇÃO | F8: Valor
C9: A | D9: Salário-Base | F9: =HLOOKUP($B$5,'Dados Gerais'!$D$6:$BI$22,8) -> 2878.22
C10: B | D10: Adicional de Periculosidade | F10: =HLOOKUP($B$5,'Dados Gerais'!$D$6:$BI$41,26) -> 0
C11: C | D11: Adicional de Insalubridade | F11: =HLOOKUP($B$5,'Dados Gerais'!$D$6:$BI$41,32) -> 0
C12: D | D12: Adicional Noturno | F12: =HLOOKUP($B$5,'Dados Gerais'!$D$6:$BI$54,49) -> 0 | H12: * Nota 1 - O Módulo 1 refere-se ao valor mensal devido ao empregado pela prestação do serviço no período de 12 meses.
C13: E | D13: Adicional de Hora Extra | F13: =HLOOKUP($B$5,'Dados Gerais'!$D$6:$BI$71,66) -> 0 | H13: * Nota 2 - O adicional de hora extra no feriado trabalhado foi suprimido pela Lei 13.467/17
C14: F | D14: Gratificação | F14: =HLOOKUP($B$5,'Dados Gerais'!$D$6:$BI$71,34) -> 0 | H14: * Nota 3 - ART. 7º, § 2º, DA LEI Nº 605/49.Sendo mensalista o obreiro, o adicional noturno pago de forma fixa já é considerado integrado para os efeitos do pagamento do repouso semanal remunerado, nos termos do art. 7º, § 2º, da Lei nº 605/49.
C15: G | D15: Sobraviso | F15: =HLOOKUP($B$5,'Dados Gerais'!$D$6:$BI$71,36) -> 0
D17: TOTAL DA REMUNERAÇÃO | F17: =TRUNC(SUM(F9:F15),2) -> 2878.22
B19: MÓDULO 2 - ENCARGOS E BENEFÍCIOS ANUAIS, MENSAIS E DIÁRIOS | E19: Percentuais | F19: Valor
B20: Submódulo 2.1 - 13º Salário e Adicional de Férias
C21: A | D21: 13º Salário | E21: ='Encargos Sociais'!$E$32 -> 0.0909 | F21: =ROUND(E21*F$17,2) -> 261.63 | H21: * Nota 1 - O 13º salário foi calculado dividindo-se por 11, para comportar os 11 meses presentes e ainda o ausente do posto
C22: B | D22: Adicional de Férias | E22: ='Encargos Sociais'!E31 -> 0.0303 | F22: =TRUNC(E22*(F$17),2) -> 87.21 | H22: * Nota 2 - O adicional de férias foi calculado dividindo-se por 11, para comportar os 11 meses presentes e ainda o ausente do posto
B24: Submódulo 2.2 - Encargos Previdenciários (GPS), Fundo de Garantia por Tempo de Serviço (FGTS) e Outras Contribuições
C25: A | D25: ='Encargos Sociais'!D14 -> INSS (art. 22, inciso I, Lei nº 8.212/91) | E25: ='Encargos Sociais'!E14 -> 0.2 | F25: =TRUNC(E25*($F$17+$F$21+$F$22+$F$80-$F$69),2) -> 708.72 | H25: * Nota 1 - Os percentuais dos encargos previdenciários, do FGTS e demais contribuições são estabelecidos por legislação vigente.
C26: B | D26: ='Encargos Sociais'!D15 -> Salário Educação (art. 3º, inciso I, Decreto nº 87.043/82) | E26: ='Encargos Sociais'!E15 -> 0.025 | F26: =TRUNC(E26*($F$17+$F$21+$F$22+$F$80),2) -> 88.65 | H26: * Nota 2 - O SAT, a depender do grau de risco do serviço, irá variar entre 1%, para risco leve, de 2%, para risco médio, e de 3% para risco grave.
C27: C | D27: ='Encargos Sociais'!D16 -> SAT/RAT (art. 22, II, Lei 8.212/91 e Anexo V, Decreto 6.042/07) - Enquadramento 8121-4/00 | E27: ='Encargos Sociais'!E16 -> 0.03 | F27: =TRUNC(E27*($F$17+$F$21+$F$22+$F$80),2) -> 106.38 | H27: * Nota 3 - Base de cálculo - remuneração + ausências + 13º salário + terço constitucional (férias) - exceto INSS sobre ausência por acidente de trabalho
C28: D | D28: ='Encargos Sociais'!D17 -> SESC ou SESI (art. 30, Lei nº 8.036/90 e art. 1º, Lei 8.154/90) | E28: ='Encargos Sociais'!E17 -> 0.015 | F28: 53.19
C29: E | D29: ='Encargos Sociais'!D18 -> SENAI ou SENAC (Decreto nº 2.318/86) | E29: ='Encargos Sociais'!E18 -> 0.01 | F29: 35.46
C30: F | D30: ='Encargos Sociais'!D19 -> SEBRAE (§ 3º, art. 8º, Lei 8.029/90, alterada pela Lei nº 8.154/90) | E30: ='Encargos Sociais'!E19 -> 0.006 | F30: 21.27
C31: G | D31: ='Encargos Sociais'!D20 -> INCRA (art. 1º, I, Decreto Lei 1.146/70 e Lei 7.787, de 30/06/89) | E31: ='Encargos Sociais'!E20 -> 0.002 | F31: 7.09
C32: H | D32: ='Encargos Sociais'!D21 -> FGTS (Lei Complementar nº 110/01 e art. 30, Lei nº 8.036/90) | E32: ='Encargos Sociais'!E21 -> 0.08 | F32: 283.69
C33: I | D33: ='Encargos Sociais'!D22 -> SECONCI (Convenções Coletivas de Trabalho da construção) | E33: ='Encargos Sociais'!E22 -> 0 | F33: 0
B35: Submódulo 2.3 - Benefícios Mensais e Diários
C36: A | D36: Auxílio Transporte | F36: =HLOOKUP($B$5,'Dados Gerais'!$D$6:$BI$140,85) -> 187.67 | H36: * Nota 1 - O valor informado deverá ser o custo real do benefício (descontado o valor eventualmente pago pelo empregado).
C37: B | D37: Auxílio Alimentação | F37: =HLOOKUP($B$5,'Dados Gerais'!$D$6:$BI$140,92) -> 1238.9 | H37: * Nota 2 - Observar a previsão dos benefícios contidos em Acordos, Convenções e Dissídios Coletivos de Trabalho e o disposto no art. 6º da IN 5/2017
C38: C | D38: Assistência Médica e Familiar | F38: =HLOOKUP($B$5,'Dados Gerais'!$D$6:$BI$140,100) -> 0
C39: D | D39: Seguro de vida / auxílio funeral | F39: =HLOOKUP($B$5,'Dados Gerais'!$D$6:$BI$140,109) -> 3.61
C40: E | D40: Assistência odontológica | F40: =HLOOKUP($B$5,'Dados Gerais'!$D$6:$BI$140,115) -> 0
C41: F | D41: Auxílio creche | F41: =HLOOKUP($B$5,'Dados Gerais'!$D$6:$BI$140,121) -> 0
C42: G | D42: Auxílio vestuário especial | F42: =HLOOKUP($B$5,'Dados Gerais'!$D$6:$BI$140,127) -> 0
C43: H | D43: Benefício social familiar | F43: =HLOOKUP($B$5,'Dados Gerais'!$D$6:$BI$140,133) -> 0
C44: I | D44: Outros (especificar)
C45: J | D45: Outros (especificar)
D47: QUADRO-RESUMO DO MÓDULO 2
D48: 2.1 - 13º salário e Adicional de Férias | E48: =SUM(E21:E22) -> 0.1212 | F48: =F21+F22 -> 348.84
D49: 2.2 - Encargos Previdenciários (GPS), Fundo de Garantia por Tempo de Serviço (FGTS) e Contribuições | E49: =SUM(E25:E33) -> 0.368 | F49: =SUM(F25:F33) -> 1304.45
D50: 2.3 - Benefícios Mensais e Diários | F50: =SUM(F36:F45) -> 1430.18
D52: TOTAL DOS ENCARGOS E BENEFÍCIOS | F52: =TRUNC(SUM(F48:F50),2) -> 3083.47
B54: MÓDULO 3 - PROVISÃO PARA RESCISÃO | E54: Percentuais | F54: Valor
C55: A | D55: ='Encargos Sociais'!D36 -> Aviso Prévio Indenizado (Art. 7º, inciso XXI, da CF/1988 e arts. 477, 487, §1º, e 491 da CLT) | E55: ='Encargos Sociais'!E36 -> 0.0042 | F55: =TRUNC(E55*($F$17+$F$48+$F$80),2) -> 14.89 | H55: * Nota 1 - Base de cálculo - remuneração + ausências + 1/3 férias + 13º
C56: B | D56: ='Encargos Sociais'!D37 -> Incidência do FGTS sobre o Aviso Prévio Indenizado (Súmula 305 TST) | E56: ='Encargos Sociais'!E37 -> 0.0003 | F56: =TRUNC(E56*($F$17+$F$48+$F$80),2) -> 1.06
C57: C | D57: ='Encargos Sociais'!D38 -> Multa do FGTS sobre o Aviso Prévio Indenizado (Art. 18, §1º, da Lei 8.036/1990) | E57: ='Encargos Sociais'!E38 -> 0 | F57: =TRUNC(E57*($F$17+$F$48+$F$80),2) -> 0 | H57: * Nota 2 - zerado pois foi considerada toda a incidência da multa do FGTS na letra F
C58: D | D58: ='Encargos Sociais'!D39 -> Aviso Prévio Trabalhado (Art. 488, parágrafo único, CLT) | E58: ='Encargos Sociais'!E39 -> 0.0078 | F58: =TRUNC(E58*($F$17),2) -> 22.45
C59: E | D59: ='Encargos Sociais'!D40 -> Incidência de GPS, FGTS e outras contribuições sobre o Aviso Prévio Trabalhado | E59: ='Encargos Sociais'!E40 -> 0.0029 | F59: =TRUNC(E59*($F$17),2) -> 8.34
C60: F | D60: ='Encargos Sociais'!D41 -> Multa do FGTS | E60: ='Encargos Sociais'!E41 -> 0.032 | F60: =TRUNC(E60*($F$17+$F$48+$F$80),2) -> 113.47
D62: TOTAL DE PROVISÃO PARA RESCISÃO | F62: =TRUNC(SUM(F55:F60),2) -> 160.21
B64: MÓDULO 4 - CUSTO DO PROFISSIONAL AUSENTE | E64: Percentuais | F64: Valor
B65: Submódulo 4.1 - Ausências Legais
C66: A | D66: ='Encargos Sociais'!D25 -> Férias (Arts. 129 e 130, inc. I, da CLT) | E66: ='Encargos Sociais'!E25 -> 0.0909 | F66: =TRUNC(E66*$F$17,2) -> 261.63 | H66: * Nota 1 - O Módulo 4 refere-se às previsões para custear ausências do próprio profissional (titular do cargo)
C67: B | D67: ='Encargos Sociais'!D26 -> Ausências Legais (Arts. 131 e 473 da CLT) | E67: ='Encargos Sociais'!E26 -> 0.0079 | F67: 22.73 | H67: * Nota 2 - As férias foram calculadas dividindo-se por 11, para comportar os 11 meses presentes e ainda o ausente do posto
C68: C | D68: ='Encargos Sociais'!D27 -> Licença-Paternidade (Art. 7º, XIX, e art. 10, §1º, do ADCT, CF/1988 e Art. 1º, II, da Lei 11.770/2008) | E68: ='Encargos Sociais'!E27 -> 0.0008 | F68: 2.3
C69: D | D69: ='Encargos Sociais'!D28 -> Ausência por Acidente de Trabalho (Art. 131, III, da CLT) | E69: ='Encargos Sociais'!E28 -> 0.0009 | F69: 2.59
C70: E | D70: ='Encargos Sociais'!D29 -> Afastamento Maternidade (Art. 71 da Lei nº 8.213/1991) | E70: ='Encargos Sociais'!E29 -> 0.0033 | F70: 9.49
C71: F | D71: ='Encargos Sociais'!D30 -> Auxílio Enfermidade - Doença (Art. 59 da Lei nº 8.213/1991) | E71: ='Encargos Sociais'!E30 -> 0.0071 | F71: 20.43
B73: Submódulo 4.2 - Intrajornada
C74: A | D74: Intervalo para repouso ou alimentação | E74: ='Encargos Sociais'!E33 -> 0 | F74: =ROUND(E74*$F$17,2) -> 0
D76: QUADRO-RESUMO DO MÓDULO 4 | F76: Valor
D77: 4.1 - Ausências Legais | E77: =SUM(E66:E71) -> 0.1109 | F77: =SUM(F66:F71) -> 319.17
D78: 4.2 - Intrajornada | E78: =E74 -> 0 | F78: =ROUND(E78*$F$17,2) -> 0
D80: TOTAL DE CUSTO DO PROFISSIONAL AUSENTE E INTERVALO INTRAJORNADA | F80: =TRUNC(SUM(F77:F78),2) -> 319.17
B82: MÓDULO 5 - INSUMOS DIVERSOS | F82: Valor
C83: A | D83: Uniformes - aquisição | F83: =TRUNC(HLOOKUP($B$5,Uniformes!$K$3:$DZ$5,3,0)/12,2) -> 159.63
C84: B | D84: Materiais de consumo relacionados ao posto - aquisição | F84: 0
C85: C | D85: Ferramentas relacionadas ao posto - remuneração da sua depreciação / manutenção | F85: 0
C86: D | D86: Equipamentos relacionados ao posto - remuneração da sua depreciação / manutenção | F86: 0
C87: E | D87: Equipamentos de Proteção Individual - EPI - aquisição | F87: =TRUNC(HLOOKUP($B$5,EPI!$J$3:$DY$5,3,0)/12,2) -> 125
D89: TOTAL DE INSUMOS DIVERSOS | F89: =SUM(F83:F88) -> 284.63 | H89: * Nota - Valores mensais por empregado
B91: MÓDULO 6 - CUSTOS INDIRETOS, TRIBUTOS E LUCRO - BDI | E91: Percentuais | F91: Valor
C92: A | D92: Custos Indiretos | E92: ='BDI - Geral'!E7 -> 0.0227
C93: A.1 | D93: Administração Central | E93: ='BDI - Geral'!E8 -> 0.0173
C94: A.2 | D94: Seguros, Garantias e Riscos | E94: ='BDI - Geral'!E9 -> 0.0054
C95: B | D95: Lucro | E95: ='BDI - Geral'!E11 -> 0.0267
C96: C | D96: Tributos | E96: =SUM(E97:E98) -> 0.124
C97: C.1 | D97: Tributos Federais (COFINS, PIS e CPRB) | E97: ='BDI - Geral'!E19 -> 0.074
C98: C.2 | D98: Tributos Distritais (ISS) | E98: ='BDI - Geral'!E24 -> 0.05
C99: D | D99: Despesas Financeiras | E99: ='BDI - Geral'!E14 -> 0.0061
D101: TOTAL DE BDI | E101: ='BDI - Geral'!E27 -> 0.2059 | F101: =TRUNC(E101*E109,2) -> 1384.82
D103: QUADRO-RESUMO DO CUSTO MENSAL POR EMPREGADO | E103: Valor
D104: Módulo 1 - Composição da Remuneração | E104: =F17 -> 2878.22
D105: Módulo 2 - Encargos e Benefícios Anuais, Mensais e Diários | E105: =F52 -> 3083.47
D106: Módulo 3 - Provisão para Rescisão | E106: =F62 -> 160.21
D107: Módulo 4 - Custo do Profissional Ausente | E107: =F80 -> 319.17
D108: Módulo 5 - Insumos Diversos | E108: =F89 -> 284.63
D109: SUBTOTAL (A+B+C+D+E) | E109: =SUM(E104:E108) -> 6725.7
D110: Módulo 6 - Custos Indiretos, Tributos e Lucro | E110: =F101 -> 1384.82
D112: TOTAL DO POSTO | E112: =SUM(E109:E110) -> 8110.52

Sheet 13
B2: PLANILHA DE ESTIMATIVA DE CUSTOS
B3: Padrão IN 05/2017 e IN 07/2018 - MPDG - Medição por posto presente
B5: 13 | D5: =HLOOKUP($B$5,'Dados Gerais'!$D$6:$BI$22,6) -> COZINHEIRA | E5: QUANTIDADE | F5: =HLOOKUP($B$5,'Dados Gerais'!$D$6:$BI$22,10) -> 2
B6: CCT | D6: =HLOOKUP($B$5,'Dados Gerais'!$D$6:$BI$22,16) -> SEAC/DF x SINDISERVIÇOS/DF CCT 2025/2026 N.º DF000042/2025 | E6: DATA-BASE | F6: =HLOOKUP($B$5,'Dados Gerais'!$D$6:$BI$22,17) -> 2025-01-01
B8: MÓDULO 1 - COMPOSIÇÃO DA REMUNERAÇÃO | F8: Valor
C9: A | D9: Salário-Base | F9: =HLOOKUP($B$5,'Dados Gerais'!$D$6:$BI$22,8) -> 3713.5
C10: B | D10: Adicional de Periculosidade | F10: =HLOOKUP($B$5,'Dados Gerais'!$D$6:$BI$41,26) -> 0
C11: C | D11: Adicional de Insalubridade | F11: =HLOOKUP($B$5,'Dados Gerais'!$D$6:$BI$41,32) -> 291.78
C12: D | D12: Adicional Noturno | F12: =HLOOKUP($B$5,'Dados Gerais'!$D$6:$BI$54,49) -> 0 | H12: * Nota 1 - O Módulo 1 refere-se ao valor mensal devido ao empregado pela prestação do serviço no período de 12 meses.
C13: E | D13: Adicional de Hora Extra | F13: =HLOOKUP($B$5,'Dados Gerais'!$D$6:$BI$71,66) -> 0 | H13: * Nota 2 - O adicional de hora extra no feriado trabalhado foi suprimido pela Lei 13.467/17
C14: F | D14: Gratificação | F14: =HLOOKUP($B$5,'Dados Gerais'!$D$6:$BI$71,34) -> 0 | H14: * Nota 3 - ART. 7º, § 2º, DA LEI Nº 605/49.Sendo mensalista o obreiro, o adicional noturno pago de forma fixa já é considerado integrado para os efeitos do pagamento do repouso semanal remunerado, nos termos do art. 7º, § 2º, da Lei nº 605/49.
C15: G | D15: Sobraviso | F15: =HLOOKUP($B$5,'Dados Gerais'!$D$6:$BI$71,36) -> 0
D17: TOTAL DA REMUNERAÇÃO | F17: =TRUNC(SUM(F9:F15),2) -> 4005.28
B19: MÓDULO 2 - ENCARGOS E BENEFÍCIOS ANUAIS, MENSAIS E DIÁRIOS | E19: Percentuais | F19: Valor
B20: Submódulo 2.1 - 13º Salário e Adicional de Férias
C21: A | D21: 13º Salário | E21: ='Encargos Sociais'!$E$32 -> 0.0909 | F21: =ROUND(E21*F$17,2) -> 364.08 | H21: * Nota 1 - O 13º salário foi calculado dividindo-se por 11, para comportar os 11 meses presentes e ainda o ausente do posto
C22: B | D22: Adicional de Férias | E22: ='Encargos Sociais'!E31 -> 0.0303 | F22: =TRUNC(E22*(F$17),2) -> 121.35 | H22: * Nota 2 - O adicional de férias foi calculado dividindo-se por 11, para comportar os 11 meses presentes e ainda o ausente do posto
B24: Submódulo 2.2 - Encargos Previdenciários (GPS), Fundo de Garantia por Tempo de Serviço (FGTS) e Outras Contribuições
C25: A | D25: ='Encargos Sociais'!D14 -> INSS (art. 22, inciso I, Lei nº 8.212/91) | E25: ='Encargos Sociais'!E14 -> 0.2 | F25: =TRUNC(E25*($F$17+$F$21+$F$22+$F$80-$F$69),2) -> 986.25 | H25: * Nota 1 - Os percentuais dos encargos previdenciários, do FGTS e demais contribuições são estabelecidos por legislação vigente.
C26: B | D26: ='Encargos Sociais'!D15 -> Salário Educação (art. 3º, inciso I, Decreto nº 87.043/82) | E26: ='Encargos Sociais'!E15 -> 0.025 | F26: =TRUNC(E26*($F$17+$F$21+$F$22+$F$80),2) -> 123.37 | H26: * Nota 2 - O SAT, a depender do grau de risco do serviço, irá variar entre 1%, para risco leve, de 2%, para risco médio, e de 3% para risco grave.
C27: C | D27: ='Encargos Sociais'!D16 -> SAT/RAT (art. 22, II, Lei 8.212/91 e Anexo V, Decreto 6.042/07) - Enquadramento 8121-4/00 | E27: ='Encargos Sociais'!E16 -> 0.03 | F27: =TRUNC(E27*($F$17+$F$21+$F$22+$F$80),2) -> 148.04 | H27: * Nota 3 - Base de cálculo - remuneração + ausências + 13º salário + terço constitucional (férias) - exceto INSS sobre ausência por acidente de trabalho
C28: D | D28: ='Encargos Sociais'!D17 -> SESC ou SESI (art. 30, Lei nº 8.036/90 e art. 1º, Lei 8.154/90) | E28: ='Encargos Sociais'!E17 -> 0.015 | F28: 74.02
C29: E | D29: ='Encargos Sociais'!D18 -> SENAI ou SENAC (Decreto nº 2.318/86) | E29: ='Encargos Sociais'!E18 -> 0.01 | F29: 49.34
C30: F | D30: ='Encargos Sociais'!D19 -> SEBRAE (§ 3º, art. 8º, Lei 8.029/90, alterada pela Lei nº 8.154/90) | E30: ='Encargos Sociais'!E19 -> 0.006 | F30: 29.6
C31: G | D31: ='Encargos Sociais'!D20 -> INCRA (art. 1º, I, Decreto Lei 1.146/70 e Lei 7.787, de 30/06/89) | E31: ='Encargos Sociais'!E20 -> 0.002 | F31: 9.86
C32: H | D32: ='Encargos Sociais'!D21 -> FGTS (Lei Complementar nº 110/01 e art. 30, Lei nº 8.036/90) | E32: ='Encargos Sociais'!E21 -> 0.08 | F32: 394.78
C33: I | D33: ='Encargos Sociais'!D22 -> SECONCI (Convenções Coletivas de Trabalho da construção) | E33: ='Encargos Sociais'!E22 -> 0 | F33: 0
B35: Submódulo 2.3 - Benefícios Mensais e Diários
C36: A | D36: Auxílio Transporte | F36: =HLOOKUP($B$5,'Dados Gerais'!$D$6:$BI$140,85) -> 137.55 | H36: * Nota 1 - O valor informado deverá ser o custo real do benefício (descontado o valor eventualmente pago pelo empregado).
C37: B | D37: Auxílio Alimentação | F37: =HLOOKUP($B$5,'Dados Gerais'!$D$6:$BI$140,92) -> 1238.9 | H37: * Nota 2 - Observar a previsão dos benefícios contidos em Acordos, Convenções e Dissídios Coletivos de Trabalho e o disposto no art. 6º da IN 5/2017
C38: C | D38: Assistência Médica e Familiar | F38: =HLOOKUP($B$5,'Dados Gerais'!$D$6:$BI$140,100) -> 0
C39: D | D39: Seguro de vida / auxílio funeral | F39: =HLOOKUP($B$5,'Dados Gerais'!$D$6:$BI$140,109) -> 3.61
C40: E | D40: Assistência odontológica | F40: =HLOOKUP($B$5,'Dados Gerais'!$D$6:$BI$140,115) -> 0
C41: F | D41: Auxílio creche | F41: =HLOOKUP($B$5,'Dados Gerais'!$D$6:$BI$140,121) -> 0
C42: G | D42: Auxílio vestuário especial | F42: =HLOOKUP($B$5,'Dados Gerais'!$D$6:$BI$140,127) -> 0
C43: H | D43: Benefício social familiar | F43: =HLOOKUP($B$5,'Dados Gerais'!$D$6:$BI$140,133) -> 0
C44: I | D44: Outros (especificar)
C45: J | D45: Outros (especificar)
D47: QUADRO-RESUMO DO MÓDULO 2
D48: 2.1 - 13º salário e Adicional de Férias | E48: =SUM(E21:E22) -> 0.1212 | F48: =F21+F22 -> 485.43
D49: 2.2 - Encargos Previdenciários (GPS), Fundo de Garantia por Tempo de Serviço (FGTS) e Contribuições | E49: =SUM(E25:E33) -> 0.368 | F49: =SUM(F25:F33) -> 1815.26
D50: 2.3 - Benefícios Mensais e Diários | F50: =SUM(F36:F45) -> 1380.06
D52: TOTAL DOS ENCARGOS E BENEFÍCIOS | F52: =TRUNC(SUM(F48:F50),2) -> 3680.75
B54: MÓDULO 3 - PROVISÃO PARA RESCISÃO | E54: Percentuais | F54: Valor
C55: A | D55: ='Encargos Sociais'!D36 -> Aviso Prévio Indenizado (Art. 7º, inciso XXI, da CF/1988 e arts. 477, 487, §1º, e 491 da CLT) | E55: ='Encargos Sociais'!E36 -> 0.0042 | F55: =TRUNC(E55*($F$17+$F$48+$F$80),2) -> 20.72 | H55: * Nota 1 - Base de cálculo - remuneração + ausências + 1/3 férias + 13º
C56: B | D56: ='Encargos Sociais'!D37 -> Incidência do FGTS sobre o Aviso Prévio Indenizado (Súmula 305 TST) | E56: ='Encargos Sociais'!E37 -> 0.0003 | F56: =TRUNC(E56*($F$17+$F$48+$F$80),2) -> 1.48
C57: C | D57: ='Encargos Sociais'!D38 -> Multa do FGTS sobre o Aviso Prévio Indenizado (Art. 18, §1º, da Lei 8.036/1990) | E57: ='Encargos Sociais'!E38 -> 0 | F57: =TRUNC(E57*($F$17+$F$48+$F$80),2) -> 0 | H57: * Nota 2 - zerado pois foi considerada toda a incidência da multa do FGTS na letra F
C58: D | D58: ='Encargos Sociais'!D39 -> Aviso Prévio Trabalhado (Art. 488, parágrafo único, CLT) | E58: ='Encargos Sociais'!E39 -> 0.0078 | F58: =TRUNC(E58*($F$17),2) -> 31.24
C59: E | D59: ='Encargos Sociais'!D40 -> Incidência de GPS, FGTS e outras contribuições sobre o Aviso Prévio Trabalhado | E59: ='Encargos Sociais'!E40 -> 0.0029 | F59: =TRUNC(E59*($F$17),2) -> 11.61
C60: F | D60: ='Encargos Sociais'!D41 -> Multa do FGTS | E60: ='Encargos Sociais'!E41 -> 0.032 | F60: =TRUNC(E60*($F$17+$F$48+$F$80),2) -> 157.91
D62: TOTAL DE PROVISÃO PARA RESCISÃO | F62: =TRUNC(SUM(F55:F60),2) -> 222.96
B64: MÓDULO 4 - CUSTO DO PROFISSIONAL AUSENTE | E64: Percentuais | F64: Valor
B65: Submódulo 4.1 - Ausências Legais
C66: A | D66: ='Encargos Sociais'!D25 -> Férias (Arts. 129 e 130, inc. I, da CLT) | E66: ='Encargos Sociais'!E25 -> 0.0909 | F66: =TRUNC(E66*$F$17,2) -> 364.07 | H66: * Nota 1 - O Módulo 4 refere-se às previsões para custear ausências do próprio profissional (titular do cargo)
C67: B | D67: ='Encargos Sociais'!D26 -> Ausências Legais (Arts. 131 e 473 da CLT) | E67: ='Encargos Sociais'!E26 -> 0.0079 | F67: 31.64 | H67: * Nota 2 - As férias foram calculadas dividindo-se por 11, para comportar os 11 meses presentes e ainda o ausente do posto
C68: C | D68: ='Encargos Sociais'!D27 -> Licença-Paternidade (Art. 7º, XIX, e art. 10, §1º, do ADCT, CF/1988 e Art. 1º, II, da Lei 11.770/2008) | E68: ='Encargos Sociais'!E27 -> 0.0008 | F68: 3.2
C69: D | D69: ='Encargos Sociais'!D28 -> Ausência por Acidente de Trabalho (Art. 131, III, da CLT) | E69: ='Encargos Sociais'!E28 -> 0.0009 | F69: 3.6
C70: E | D70: ='Encargos Sociais'!D29 -> Afastamento Maternidade (Art. 71 da Lei nº 8.213/1991) | E70: ='Encargos Sociais'!E29 -> 0.0033 | F70: 13.21
C71: F | D71: ='Encargos Sociais'!D30 -> Auxílio Enfermidade - Doença (Art. 59 da Lei nº 8.213/1991) | E71: ='Encargos Sociais'!E30 -> 0.0071 | F71: 28.43
B73: Submódulo 4.2 - Intrajornada
C74: A | D74: Intervalo para repouso ou alimentação | E74: ='Encargos Sociais'!E33 -> 0 | F74: =ROUND(E74*$F$17,2) -> 0
D76: QUADRO-RESUMO DO MÓDULO 4 | F76: Valor
D77: 4.1 - Ausências Legais | E77: =SUM(E66:E71) -> 0.1109 | F77: =SUM(F66:F71) -> 444.15
D78: 4.2 - Intrajornada | E78: =E74 -> 0 | F78: =ROUND(E78*$F$17,2) -> 0
D80: TOTAL DE CUSTO DO PROFISSIONAL AUSENTE E INTERVALO INTRAJORNADA | F80: =TRUNC(SUM(F77:F78),2) -> 444.15
B82: MÓDULO 5 - INSUMOS DIVERSOS | F82: Valor
C83: A | D83: Uniformes - aquisição | F83: =TRUNC(HLOOKUP($B$5,Uniformes!$K$3:$DZ$5,3,0)/12,2) -> 159.63
C84: B | D84: Materiais de consumo relacionados ao posto - aquisição | F84: 0
C85: C | D85: Ferramentas relacionadas ao posto - remuneração da sua depreciação / manutenção | F85: 0
C86: D | D86: Equipamentos relacionados ao posto - remuneração da sua depreciação / manutenção | F86: 0
C87: E | D87: Equipamentos de Proteção Individual - EPI - aquisição | F87: =TRUNC(HLOOKUP($B$5,EPI!$J$3:$DY$5,3,0)/12,2) -> 49.48
D89: TOTAL DE INSUMOS DIVERSOS | F89: =SUM(F83:F88) -> 209.11 | H89: * Nota - Valores mensais por empregado
B91: MÓDULO 6 - CUSTOS INDIRETOS, TRIBUTOS E LUCRO - BDI | E91: Percentuais | F91: Valor
C92: A | D92: Custos Indiretos | E92: ='BDI - Geral'!E7 -> 0.0227
C93: A.1 | D93: Administração Central | E93: ='BDI - Geral'!E8 -> 0.0173
C94: A.2 | D94: Seguros, Garantias e Riscos | E94: ='BDI - Geral'!E9 -> 0.0054
C95: B | D95: Lucro | E95: ='BDI - Geral'!E11 -> 0.0267
C96: C | D96: Tributos | E96: =SUM(E97:E98) -> 0.124
C97: C.1 | D97: Tributos Federais (COFINS, PIS e CPRB) | E97: ='BDI - Geral'!E19 -> 0.074
C98: C.2 | D98: Tributos Distritais (ISS) | E98: ='BDI - Geral'!E24 -> 0.05
C99: D | D99: Despesas Financeiras | E99: ='BDI - Geral'!E14 -> 0.0061
D101: TOTAL DE BDI | E101: ='BDI - Geral'!E27 -> 0.2059 | F101: =TRUNC(E101*E109,2) -> 1762.96
D103: QUADRO-RESUMO DO CUSTO MENSAL POR EMPREGADO | E103: Valor
D104: Módulo 1 - Composição da Remuneração | E104: =F17 -> 4005.28
D105: Módulo 2 - Encargos e Benefícios Anuais, Mensais e Diários | E105: =F52 -> 3680.75
D106: Módulo 3 - Provisão para Rescisão | E106: =F62 -> 222.96
D107: Módulo 4 - Custo do Profissional Ausente | E107: =F80 -> 444.15
D108: Módulo 5 - Insumos Diversos | E108: =F89 -> 209.11
D109: SUBTOTAL (A+B+C+D+E) | E109: =SUM(E104:E108) -> 8562.25
D110: Módulo 6 - Custos Indiretos, Tributos e Lucro | E110: =F101 -> 1762.96
D112: TOTAL DO POSTO | E112: =SUM(E109:E110) -> 10325.21

Sheet 14
B2: PLANILHA DE ESTIMATIVA DE CUSTOS
B3: Padrão IN 05/2017 e IN 07/2018 - MPDG - Medição por posto presente
B5: 14 | D5: =HLOOKUP($B$5,'Dados Gerais'!$D$6:$BI$22,6) -> COZINHEIRO | E5: QUANTIDADE | F5: =HLOOKUP($B$5,'Dados Gerais'!$D$6:$BI$22,10) -> 1
B6: CCT | D6: =HLOOKUP($B$5,'Dados Gerais'!$D$6:$BI$22,16) -> SEAC/DF x SINDISERVIÇOS/DF CCT 2025/2026 N.º DF000042/2025 | E6: DATA-BASE | F6: =HLOOKUP($B$5,'Dados Gerais'!$D$6:$BI$22,17) -> 2025-01-01
B8: MÓDULO 1 - COMPOSIÇÃO DA REMUNERAÇÃO | F8: Valor
C9: A | D9: Salário-Base | F9: =HLOOKUP($B$5,'Dados Gerais'!$D$6:$BI$22,8) -> 3713.5
C10: B | D10: Adicional de Periculosidade | F10: =HLOOKUP($B$5,'Dados Gerais'!$D$6:$BI$41,26) -> 0
C11: C | D11: Adicional de Insalubridade | F11: =HLOOKUP($B$5,'Dados Gerais'!$D$6:$BI$41,32) -> 291.78
C12: D | D12: Adicional Noturno | F12: =HLOOKUP($B$5,'Dados Gerais'!$D$6:$BI$54,49) -> 0 | H12: * Nota 1 - O Módulo 1 refere-se ao valor mensal devido ao empregado pela prestação do serviço no período de 12 meses.
C13: E | D13: Adicional de Hora Extra | F13: =HLOOKUP($B$5,'Dados Gerais'!$D$6:$BI$71,66) -> 0 | H13: * Nota 2 - O adicional de hora extra no feriado trabalhado foi suprimido pela Lei 13.467/17
C14: F | D14: Gratificação | F14: =HLOOKUP($B$5,'Dados Gerais'!$D$6:$BI$71,34) -> 0 | H14: * Nota 3 - ART. 7º, § 2º, DA LEI Nº 605/49.Sendo mensalista o obreiro, o adicional noturno pago de forma fixa já é considerado integrado para os efeitos do pagamento do repouso semanal remunerado, nos termos do art. 7º, § 2º, da Lei nº 605/49.
C15: G | D15: Sobraviso | F15: =HLOOKUP($B$5,'Dados Gerais'!$D$6:$BI$71,36) -> 0
D17: TOTAL DA REMUNERAÇÃO | F17: =TRUNC(SUM(F9:F15),2) -> 4005.28
B19: MÓDULO 2 - ENCARGOS E BENEFÍCIOS ANUAIS, MENSAIS E DIÁRIOS | E19: Percentuais | F19: Valor
B20: Submódulo 2.1 - 13º Salário e Adicional de Férias
C21: A | D21: 13º Salário | E21: ='Encargos Sociais'!$E$32 -> 0.0909 | F21: =ROUND(E21*F$17,2) -> 364.08 | H21: * Nota 1 - O 13º salário foi calculado dividindo-se por 11, para comportar os 11 meses presentes e ainda o ausente do posto
C22: B | D22: Adicional de Férias | E22: ='Encargos Sociais'!E31 -> 0.0303 | F22: =TRUNC(E22*(F$17),2) -> 121.35 | H22: * Nota 2 - O adicional de férias foi calculado dividindo-se por 11, para comportar os 11 meses presentes e ainda o ausente do posto
B24: Submódulo 2.2 - Encargos Previdenciários (GPS), Fundo de Garantia por Tempo de Serviço (FGTS) e Outras Contribuições
C25: A | D25: ='Encargos Sociais'!D14 -> INSS (art. 22, inciso I, Lei nº 8.212/91) | E25: ='Encargos Sociais'!E14 -> 0.2 | F25: =TRUNC(E25*($F$17+$F$21+$F$22+$F$80-$F$69),2) -> 986.25 | H25: * Nota 1 - Os percentuais dos encargos previdenciários, do FGTS e demais contribuições são estabelecidos por legislação vigente.
C26: B | D26: ='Encargos Sociais'!D15 -> Salário Educação (art. 3º, inciso I, Decreto nº 87.043/82) | E26: ='Encargos Sociais'!E15 -> 0.025 | F26: =TRUNC(E26*($F$17+$F$21+$F$22+$F$80),2) -> 123.37 | H26: * Nota 2 - O SAT, a depender do grau de risco do serviço, irá variar entre 1%, para risco leve, de 2%, para risco médio, e de 3% para risco grave.
C27: C | D27: ='Encargos Sociais'!D16 -> SAT/RAT (art. 22, II, Lei 8.212/91 e Anexo V, Decreto 6.042/07) - Enquadramento 8121-4/00 | E27: ='Encargos Sociais'!E16 -> 0.03 | F27: =TRUNC(E27*($F$17+$F$21+$F$22+$F$80),2) -> 148.04 | H27: * Nota 3 - Base de cálculo - remuneração + ausências + 13º salário + terço constitucional (férias) - exceto INSS sobre ausência por acidente de trabalho
C28: D | D28: ='Encargos Sociais'!D17 -> SESC ou SESI (art. 30, Lei nº 8.036/90 e art. 1º, Lei 8.154/90) | E28: ='Encargos Sociais'!E17 -> 0.015 | F28: 74.02
C29: E | D29: ='Encargos Sociais'!D18 -> SENAI ou SENAC (Decreto nº 2.318/86) | E29: ='Encargos Sociais'!E18 -> 0.01 | F29: 49.34
C30: F | D30: ='Encargos Sociais'!D19 -> SEBRAE (§ 3º, art. 8º, Lei 8.029/90, alterada pela Lei nº 8.154/90) | E30: ='Encargos Sociais'!E19 -> 0.006 | F30: 29.6
C31: G | D31: ='Encargos Sociais'!D20 -> INCRA (art. 1º, I, Decreto Lei 1.146/70 e Lei 7.787, de 30/06/89) | E31: ='Encargos Sociais'!E20 -> 0.002 | F31: 9.86
C32: H | D32: ='Encargos Sociais'!D21 -> FGTS (Lei Complementar nº 110/01 e art. 30, Lei nº 8.036/90) | E32: ='Encargos Sociais'!E21 -> 0.08 | F32: 394.78
C33: I | D33: ='Encargos Sociais'!D22 -> SECONCI (Convenções Coletivas de Trabalho da construção) | E33: ='Encargos Sociais'!E22 -> 0 | F33: 0
B35: Submódulo 2.3 - Benefícios Mensais e Diários
C36: A | D36: Auxílio Transporte | F36: =HLOOKUP($B$5,'Dados Gerais'!$D$6:$BI$140,85) -> 137.55 | H36: * Nota 1 - O valor informado deverá ser o custo real do benefício (descontado o valor eventualmente pago pelo empregado).
C37: B | D37: Auxílio Alimentação | F37: =HLOOKUP($B$5,'Dados Gerais'!$D$6:$BI$140,92) -> 1238.9 | H37: * Nota 2 - Observar a previsão dos benefícios contidos em Acordos, Convenções e Dissídios Coletivos de Trabalho e o disposto no art. 6º da IN 5/2017
C38: C | D38: Assistência Médica e Familiar | F38: =HLOOKUP($B$5,'Dados Gerais'!$D$6:$BI$140,100) -> 0
C39: D | D39: Seguro de vida / auxílio funeral | F39: =HLOOKUP($B$5,'Dados Gerais'!$D$6:$BI$140,109) -> 3.61
C40: E | D40: Assistência odontológica | F40: =HLOOKUP($B$5,'Dados Gerais'!$D$6:$BI$140,115) -> 0
C41: F | D41: Auxílio creche | F41: =HLOOKUP($B$5,'Dados Gerais'!$D$6:$BI$140,121) -> 0
C42: G | D42: Auxílio vestuário especial | F42: =HLOOKUP($B$5,'Dados Gerais'!$D$6:$BI$140,127) -> 0
C43: H | D43: Benefício social familiar | F43: =HLOOKUP($B$5,'Dados Gerais'!$D$6:$BI$140,133) -> 0
C44: I | D44: Outros (especificar)
C45: J | D45: Outros (especificar)
D47: QUADRO-RESUMO DO MÓDULO 2
D48: 2.1 - 13º salário e Adicional de Férias | E48: =SUM(E21:E22) -> 0.1212 | F48: =F21+F22 -> 485.43
D49: 2.2 - Encargos Previdenciários (GPS), Fundo de Garantia por Tempo de Serviço (FGTS) e Contribuições | E49: =SUM(E25:E33) -> 0.368 | F49: =SUM(F25:F33) -> 1815.26
D50: 2.3 - Benefícios Mensais e Diários | F50: =SUM(F36:F45) -> 1380.06
D52: TOTAL DOS ENCARGOS E BENEFÍCIOS | F52: =TRUNC(SUM(F48:F50),2) -> 3680.75
B54: MÓDULO 3 - PROVISÃO PARA RESCISÃO | E54: Percentuais | F54: Valor
C55: A | D55: ='Encargos Sociais'!D36 -> Aviso Prévio Indenizado (Art. 7º, inciso XXI, da CF/1988 e arts. 477, 487, §1º, e 491 da CLT) | E55: ='Encargos Sociais'!E36 -> 0.0042 | F55: =TRUNC(E55*($F$17+$F$48+$F$80),2) -> 20.72 | H55: * Nota 1 - Base de cálculo - remuneração + ausências + 1/3 férias + 13º
C56: B | D56: ='Encargos Sociais'!D37 -> Incidência do FGTS sobre o Aviso Prévio Indenizado (Súmula 305 TST) | E56: ='Encargos Sociais'!E37 -> 0.0003 | F56: =TRUNC(E56*($F$17+$F$48+$F$80),2) -> 1.48
C57: C | D57: ='Encargos Sociais'!D38 -> Multa do FGTS sobre o Aviso Prévio Indenizado (Art. 18, §1º, da Lei 8.036/1990) | E57: ='Encargos Sociais'!E38 -> 0 | F57: =TRUNC(E57*($F$17+$F$48+$F$80),2) -> 0 | H57: * Nota 2 - zerado pois foi considerada toda a incidência da multa do FGTS na letra F
C58: D | D58: ='Encargos Sociais'!D39 -> Aviso Prévio Trabalhado (Art. 488, parágrafo único, CLT) | E58: ='Encargos Sociais'!E39 -> 0.0078 | F58: =TRUNC(E58*($F$17),2) -> 31.24
C59: E | D59: ='Encargos Sociais'!D40 -> Incidência de GPS, FGTS e outras contribuições sobre o Aviso Prévio Trabalhado | E59: ='Encargos Sociais'!E40 -> 0.0029 | F59: =TRUNC(E59*($F$17),2) -> 11.61
C60: F | D60: ='Encargos Sociais'!D41 -> Multa do FGTS | E60: ='Encargos Sociais'!E41 -> 0.032 | F60: =TRUNC(E60*($F$17+$F$48+$F$80),2) -> 157.91
D62: TOTAL DE PROVISÃO PARA RESCISÃO | F62: =TRUNC(SUM(F55:F60),2) -> 222.96
B64: MÓDULO 4 - CUSTO DO PROFISSIONAL AUSENTE | E64: Percentuais | F64: Valor
B65: Submódulo 4.1 - Ausências Legais
C66: A | D66: ='Encargos Sociais'!D25 -> Férias (Arts. 129 e 130, inc. I, da CLT) | E66: ='Encargos Sociais'!E25 -> 0.0909 | F66: =TRUNC(E66*$F$17,2) -> 364.07 | H66: * Nota 1 - O Módulo 4 refere-se às previsões para custear ausências do próprio profissional (titular do cargo)
C67: B | D67: ='Encargos Sociais'!D26 -> Ausências Legais (Arts. 131 e 473 da CLT) | E67: ='Encargos Sociais'!E26 -> 0.0079 | F67: 31.64 | H67: * Nota 2 - As férias foram calculadas dividindo-se por 11, para comportar os 11 meses presentes e ainda o ausente do posto
C68: C | D68: ='Encargos Sociais'!D27 -> Licença-Paternidade (Art. 7º, XIX, e art. 10, §1º, do ADCT, CF/1988 e Art. 1º, II, da Lei 11.770/2008) | E68: ='Encargos Sociais'!E27 -> 0.0008 | F68: 3.2
C69: D | D69: ='Encargos Sociais'!D28 -> Ausência por Acidente de Trabalho (Art. 131, III, da CLT) | E69: ='Encargos Sociais'!E28 -> 0.0009 | F69: 3.6
C70: E | D70: ='Encargos Sociais'!D29 -> Afastamento Maternidade (Art. 71 da Lei nº 8.213/1991) | E70: ='Encargos Sociais'!E29 -> 0.0033 | F70: 13.21
C71: F | D71: ='Encargos Sociais'!D30 -> Auxílio Enfermidade - Doença (Art. 59 da Lei nº 8.213/1991) | E71: ='Encargos Sociais'!E30 -> 0.0071 | F71: 28.43
B73: Submódulo 4.2 - Intrajornada
C74: A | D74: Intervalo para repouso ou alimentação | E74: ='Encargos Sociais'!E33 -> 0 | F74: =ROUND(E74*$F$17,2) -> 0
D76: QUADRO-RESUMO DO MÓDULO 4 | F76: Valor
D77: 4.1 - Ausências Legais | E77: =SUM(E66:E71) -> 0.1109 | F77: =SUM(F66:F71) -> 444.15
D78: 4.2 - Intrajornada | E78: =E74 -> 0 | F78: =ROUND(E78*$F$17,2) -> 0
D80: TOTAL DE CUSTO DO PROFISSIONAL AUSENTE E INTERVALO INTRAJORNADA | F80: =TRUNC(SUM(F77:F78),2) -> 444.15
B82: MÓDULO 5 - INSUMOS DIVERSOS | F82: Valor
C83: A | D83: Uniformes - aquisição | F83: =TRUNC(HLOOKUP($B$5,Uniformes!$K$3:$DZ$5,3,0)/12,2) -> 159.63
C84: B | D84: Materiais de consumo relacionados ao posto - aquisição | F84: 0
C85: C | D85: Ferramentas relacionadas ao posto - remuneração da sua depreciação / manutenção | F85: 0
C86: D | D86: Equipamentos relacionados ao posto - remuneração da sua depreciação / manutenção | F86: 0
C87: E | D87: Equipamentos de Proteção Individual - EPI - aquisição | F87: =TRUNC(HLOOKUP($B$5,EPI!$J$3:$DY$5,3,0)/12,2) -> 49.48
D89: TOTAL DE INSUMOS DIVERSOS | F89: =SUM(F83:F88) -> 209.11 | H89: * Nota - Valores mensais por empregado
B91: MÓDULO 6 - CUSTOS INDIRETOS, TRIBUTOS E LUCRO - BDI | E91: Percentuais | F91: Valor
C92: A | D92: Custos Indiretos | E92: ='BDI - Geral'!E7 -> 0.0227
C93: A.1 | D93: Administração Central | E93: ='BDI - Geral'!E8 -> 0.0173
C94: A.2 | D94: Seguros, Garantias e Riscos | E94: ='BDI - Geral'!E9 -> 0.0054
C95: B | D95: Lucro | E95: ='BDI - Geral'!E11 -> 0.0267
C96: C | D96: Tributos | E96: =SUM(E97:E98) -> 0.124
C97: C.1 | D97: Tributos Federais (COFINS, PIS e CPRB) | E97: ='BDI - Geral'!E19 -> 0.074
C98: C.2 | D98: Tributos Distritais (ISS) | E98: ='BDI - Geral'!E24 -> 0.05
C99: D | D99: Despesas Financeiras | E99: ='BDI - Geral'!E14 -> 0.0061
D101: TOTAL DE BDI | E101: ='BDI - Geral'!E27 -> 0.2059 | F101: =TRUNC(E101*E109,2) -> 1762.96
D103: QUADRO-RESUMO DO CUSTO MENSAL POR EMPREGADO | E103: Valor
D104: Módulo 1 - Composição da Remuneração | E104: =F17 -> 4005.28
D105: Módulo 2 - Encargos e Benefícios Anuais, Mensais e Diários | E105: =F52 -> 3680.75
D106: Módulo 3 - Provisão para Rescisão | E106: =F62 -> 222.96
D107: Módulo 4 - Custo do Profissional Ausente | E107: =F80 -> 444.15
D108: Módulo 5 - Insumos Diversos | E108: =F89 -> 209.11
D109: SUBTOTAL (A+B+C+D+E) | E109: =SUM(E104:E108) -> 8562.25
D110: Módulo 6 - Custos Indiretos, Tributos e Lucro | E110: =F101 -> 1762.96
D112: TOTAL DO POSTO | E112: =SUM(E109:E110) -> 10325.21

Sheet 15
B2: PLANILHA DE ESTIMATIVA DE CUSTOS
B3: Padrão IN 05/2017 e IN 07/2018 - MPDG - Medição por posto presente
B5: 15 | D5: =HLOOKUP($B$5,'Dados Gerais'!$D$6:$BI$22,6) -> CHEFE DE COZINHA (FEMININO) | E5: QUANTIDADE | F5: =HLOOKUP($B$5,'Dados Gerais'!$D$6:$BI$22,10) -> 1
B6: CCT | D6: =HLOOKUP($B$5,'Dados Gerais'!$D$6:$BI$22,16) -> SEAC/DF x SINDISERVIÇOS/DF CCT 2025/2026 N.º DF000042/2025 | E6: DATA-BASE | F6: =HLOOKUP($B$5,'Dados Gerais'!$D$6:$BI$22,17) -> 2025-01-01
B8: MÓDULO 1 - COMPOSIÇÃO DA REMUNERAÇÃO | F8: Valor
C9: A | D9: Salário-Base | F9: =HLOOKUP($B$5,'Dados Gerais'!$D$6:$BI$22,8) -> 7350.75
C10: B | D10: Adicional de Periculosidade | F10: =HLOOKUP($B$5,'Dados Gerais'!$D$6:$BI$41,26) -> 0
C11: C | D11: Adicional de Insalubridade | F11: =HLOOKUP($B$5,'Dados Gerais'!$D$6:$BI$41,32) -> 0
C12: D | D12: Adicional Noturno | F12: =HLOOKUP($B$5,'Dados Gerais'!$D$6:$BI$54,49) -> 0 | H12: * Nota 1 - O Módulo 1 refere-se ao valor mensal devido ao empregado pela prestação do serviço no período de 12 meses.
C13: E | D13: Adicional de Hora Extra | F13: =HLOOKUP($B$5,'Dados Gerais'!$D$6:$BI$71,66) -> 0 | H13: * Nota 2 - O adicional de hora extra no feriado trabalhado foi suprimido pela Lei 13.467/17
C14: F | D14: Gratificação | F14: =HLOOKUP($B$5,'Dados Gerais'!$D$6:$BI$71,34) -> 0 | H14: * Nota 3 - ART. 7º, § 2º, DA LEI Nº 605/49.Sendo mensalista o obreiro, o adicional noturno pago de forma fixa já é considerado integrado para os efeitos do pagamento do repouso semanal remunerado, nos termos do art. 7º, § 2º, da Lei nº 605/49.
C15: G | D15: Sobraviso | F15: =HLOOKUP($B$5,'Dados Gerais'!$D$6:$BI$71,36) -> 0
D17: TOTAL DA REMUNERAÇÃO | F17: =TRUNC(SUM(F9:F15),2) -> 7350.75
B19: MÓDULO 2 - ENCARGOS E BENEFÍCIOS ANUAIS, MENSAIS E DIÁRIOS | E19: Percentuais | F19: Valor
B20: Submódulo 2.1 - 13º Salário e Adicional de Férias
C21: A | D21: 13º Salário | E21: ='Encargos Sociais'!$E$32 -> 0.0909 | F21: =ROUND(E21*F$17,2) -> 668.18 | H21: * Nota 1 - O 13º salário foi calculado dividindo-se por 11, para comportar os 11 meses presentes e ainda o ausente do posto
C22: B | D22: Adicional de Férias | E22: ='Encargos Sociais'!E31 -> 0.0303 | F22: =TRUNC(E22*(F$17),2) -> 222.72 | H22: * Nota 2 - O adicional de férias foi calculado dividindo-se por 11, para comportar os 11 meses presentes e ainda o ausente do posto
B24: Submódulo 2.2 - Encargos Previdenciários (GPS), Fundo de Garantia por Tempo de Serviço (FGTS) e Outras Contribuições
C25: A | D25: ='Encargos Sociais'!D14 -> INSS (art. 22, inciso I, Lei nº 8.212/91) | E25: ='Encargos Sociais'!E14 -> 0.2 | F25: =TRUNC(E25*($F$17+$F$21+$F$22+$F$80-$F$69),2) -> 1810.04 | H25: * Nota 1 - Os percentuais dos encargos previdenciários, do FGTS e demais contribuições são estabelecidos por legislação vigente.
C26: B | D26: ='Encargos Sociais'!D15 -> Salário Educação (art. 3º, inciso I, Decreto nº 87.043/82) | E26: ='Encargos Sociais'!E15 -> 0.025 | F26: =TRUNC(E26*($F$17+$F$21+$F$22+$F$80),2) -> 226.42 | H26: * Nota 2 - O SAT, a depender do grau de risco do serviço, irá variar entre 1%, para risco leve, de 2%, para risco médio, e de 3% para risco grave.
C27: C | D27: ='Encargos Sociais'!D16 -> SAT/RAT (art. 22, II, Lei 8.212/91 e Anexo V, Decreto 6.042/07) - Enquadramento 8121-4/00 | E27: ='Encargos Sociais'!E16 -> 0.03 | F27: =TRUNC(E27*($F$17+$F$21+$F$22+$F$80),2) -> 271.7 | H27: * Nota 3 - Base de cálculo - remuneração + ausências + 13º salário + terço constitucional (férias) - exceto INSS sobre ausência por acidente de trabalho
C28: D | D28: ='Encargos Sociais'!D17 -> SESC ou SESI (art. 30, Lei nº 8.036/90 e art. 1º, Lei 8.154/90) | E28: ='Encargos Sociais'!E17 -> 0.015 | F28: 135.85
C29: E | D29: ='Encargos Sociais'!D18 -> SENAI ou SENAC (Decreto nº 2.318/86) | E29: ='Encargos Sociais'!E18 -> 0.01 | F29: 90.56
C30: F | D30: ='Encargos Sociais'!D19 -> SEBRAE (§ 3º, art. 8º, Lei 8.029/90, alterada pela Lei nº 8.154/90) | E30: ='Encargos Sociais'!E19 -> 0.006 | F30: 54.34
C31: G | D31: ='Encargos Sociais'!D20 -> INCRA (art. 1º, I, Decreto Lei 1.146/70 e Lei 7.787, de 30/06/89) | E31: ='Encargos Sociais'!E20 -> 0.002 | F31: 18.11
C32: H | D32: ='Encargos Sociais'!D21 -> FGTS (Lei Complementar nº 110/01 e art. 30, Lei nº 8.036/90) | E32: ='Encargos Sociais'!E21 -> 0.08 | F32: 724.54
C33: I | D33: ='Encargos Sociais'!D22 -> SECONCI (Convenções Coletivas de Trabalho da construção) | E33: ='Encargos Sociais'!E22 -> 0 | F33: 0
B35: Submódulo 2.3 - Benefícios Mensais e Diários
C36: A | D36: Auxílio Transporte | F36: =HLOOKUP($B$5,'Dados Gerais'!$D$6:$BI$140,85) -> 0 | H36: * Nota 1 - O valor informado deverá ser o custo real do benefício (descontado o valor eventualmente pago pelo empregado).
C37: B | D37: Auxílio Alimentação | F37: =HLOOKUP($B$5,'Dados Gerais'!$D$6:$BI$140,92) -> 1238.9 | H37: * Nota 2 - Observar a previsão dos benefícios contidos em Acordos, Convenções e Dissídios Coletivos de Trabalho e o disposto no art. 6º da IN 5/2017
C38: C | D38: Assistência Médica e Familiar | F38: =HLOOKUP($B$5,'Dados Gerais'!$D$6:$BI$140,100) -> 0
C39: D | D39: Seguro de vida / auxílio funeral | F39: =HLOOKUP($B$5,'Dados Gerais'!$D$6:$BI$140,109) -> 3.61
C40: E | D40: Assistência odontológica | F40: =HLOOKUP($B$5,'Dados Gerais'!$D$6:$BI$140,115) -> 0
C41: F | D41: Auxílio creche | F41: =HLOOKUP($B$5,'Dados Gerais'!$D$6:$BI$140,121) -> 0
C42: G | D42: Auxílio vestuário especial | F42: =HLOOKUP($B$5,'Dados Gerais'!$D$6:$BI$140,127) -> 0
C43: H | D43: Benefício social familiar | F43: =HLOOKUP($B$5,'Dados Gerais'!$D$6:$BI$140,133) -> 0
C44: I | D44: Outros (especificar)
C45: J | D45: Outros (especificar)
D47: QUADRO-RESUMO DO MÓDULO 2
D48: 2.1 - 13º salário e Adicional de Férias | E48: =SUM(E21:E22) -> 0.1212 | F48: =F21+F22 -> 890.9
D49: 2.2 - Encargos Previdenciários (GPS), Fundo de Garantia por Tempo de Serviço (FGTS) e Contribuições | E49: =SUM(E25:E33) -> 0.368 | F49: =SUM(F25:F33) -> 3331.56
D50: 2.3 - Benefícios Mensais e Diários | F50: =SUM(F36:F45) -> 1242.51
D52: TOTAL DOS ENCARGOS E BENEFÍCIOS | F52: =TRUNC(SUM(F48:F50),2) -> 5464.97
B54: MÓDULO 3 - PROVISÃO PARA RESCISÃO | E54: Percentuais | F54: Valor
C55: A | D55: ='Encargos Sociais'!D36 -> Aviso Prévio Indenizado (Art. 7º, inciso XXI, da CF/1988 e arts. 477, 487, §1º, e 491 da CLT) | E55: ='Encargos Sociais'!E36 -> 0.0042 | F55: =TRUNC(E55*($F$17+$F$48+$F$80),2) -> 38.03 | H55: * Nota 1 - Base de cálculo - remuneração + ausências + 1/3 férias + 13º
C56: B | D56: ='Encargos Sociais'!D37 -> Incidência do FGTS sobre o Aviso Prévio Indenizado (Súmula 305 TST) | E56: ='Encargos Sociais'!E37 -> 0.0003 | F56: =TRUNC(E56*($F$17+$F$48+$F$80),2) -> 2.71
C57: C | D57: ='Encargos Sociais'!D38 -> Multa do FGTS sobre o Aviso Prévio Indenizado (Art. 18, §1º, da Lei 8.036/1990) | E57: ='Encargos Sociais'!E38 -> 0 | F57: =TRUNC(E57*($F$17+$F$48+$F$80),2) -> 0 | H57: * Nota 2 - zerado pois foi considerada toda a incidência da multa do FGTS na letra F
C58: D | D58: ='Encargos Sociais'!D39 -> Aviso Prévio Trabalhado (Art. 488, parágrafo único, CLT) | E58: ='Encargos Sociais'!E39 -> 0.0078 | F58: =TRUNC(E58*($F$17),2) -> 57.33
C59: E | D59: ='Encargos Sociais'!D40 -> Incidência de GPS, FGTS e outras contribuições sobre o Aviso Prévio Trabalhado | E59: ='Encargos Sociais'!E40 -> 0.0029 | F59: =TRUNC(E59*($F$17),2) -> 21.31
C60: F | D60: ='Encargos Sociais'!D41 -> Multa do FGTS | E60: ='Encargos Sociais'!E41 -> 0.032 | F60: =TRUNC(E60*($F$17+$F$48+$F$80),2) -> 289.81
D62: TOTAL DE PROVISÃO PARA RESCISÃO | F62: =TRUNC(SUM(F55:F60),2) -> 409.19
B64: MÓDULO 4 - CUSTO DO PROFISSIONAL AUSENTE | E64: Percentuais | F64: Valor
B65: Submódulo 4.1 - Ausências Legais
C66: A | D66: ='Encargos Sociais'!D25 -> Férias (Arts. 129 e 130, inc. I, da CLT) | E66: ='Encargos Sociais'!E25 -> 0.0909 | F66: =TRUNC(E66*$F$17,2) -> 668.18 | H66: * Nota 1 - O Módulo 4 refere-se às previsões para custear ausências do próprio profissional (titular do cargo)
C67: B | D67: ='Encargos Sociais'!D26 -> Ausências Legais (Arts. 131 e 473 da CLT) | E67: ='Encargos Sociais'!E26 -> 0.0079 | F67: 58.07 | H67: * Nota 2 - As férias foram calculadas dividindo-se por 11, para comportar os 11 meses presentes e ainda o ausente do posto
C68: C | D68: ='Encargos Sociais'!D27 -> Licença-Paternidade (Art. 7º, XIX, e art. 10, §1º, do ADCT, CF/1988 e Art. 1º, II, da Lei 11.770/2008) | E68: ='Encargos Sociais'!E27 -> 0.0008 | F68: 5.88
C69: D | D69: ='Encargos Sociais'!D28 -> Ausência por Acidente de Trabalho (Art. 131, III, da CLT) | E69: ='Encargos Sociais'!E28 -> 0.0009 | F69: 6.61
C70: E | D70: ='Encargos Sociais'!D29 -> Afastamento Maternidade (Art. 71 da Lei nº 8.213/1991) | E70: ='Encargos Sociais'!E29 -> 0.0033 | F70: 24.25
C71: F | D71: ='Encargos Sociais'!D30 -> Auxílio Enfermidade - Doença (Art. 59 da Lei nº 8.213/1991) | E71: ='Encargos Sociais'!E30 -> 0.0071 | F71: 52.19
B73: Submódulo 4.2 - Intrajornada
C74: A | D74: Intervalo para repouso ou alimentação | E74: ='Encargos Sociais'!E33 -> 0 | F74: =ROUND(E74*$F$17,2) -> 0
D76: QUADRO-RESUMO DO MÓDULO 4 | F76: Valor
D77: 4.1 - Ausências Legais | E77: =SUM(E66:E71) -> 0.1109 | F77: =SUM(F66:F71) -> 815.18
D78: 4.2 - Intrajornada | E78: =E74 -> 0 | F78: =ROUND(E78*$F$17,2) -> 0
D80: TOTAL DE CUSTO DO PROFISSIONAL AUSENTE E INTERVALO INTRAJORNADA | F80: =TRUNC(SUM(F77:F78),2) -> 815.18
B82: MÓDULO 5 - INSUMOS DIVERSOS | F82: Valor
C83: A | D83: Uniformes - aquisição | F83: =TRUNC(HLOOKUP($B$5,Uniformes!$K$3:$DZ$5,3,0)/12,2) -> 159.63
C84: B | D84: Materiais de consumo relacionados ao posto - aquisição | F84: 0
C85: C | D85: Ferramentas relacionadas ao posto - remuneração da sua depreciação / manutenção | F85: 0
C86: D | D86: Equipamentos relacionados ao posto - remuneração da sua depreciação / manutenção | F86: 0
C87: E | D87: Equipamentos de Proteção Individual - EPI - aquisição | F87: =TRUNC(HLOOKUP($B$5,EPI!$J$3:$DY$5,3,0)/12,2) -> 44.6
D89: TOTAL DE INSUMOS DIVERSOS | F89: =SUM(F83:F88) -> 204.23 | H89: * Nota - Valores mensais por empregado
B91: MÓDULO 6 - CUSTOS INDIRETOS, TRIBUTOS E LUCRO - BDI | E91: Percentuais | F91: Valor
C92: A | D92: Custos Indiretos | E92: ='BDI - Geral'!E7 -> 0.0227
C93: A.1 | D93: Administração Central | E93: ='BDI - Geral'!E8 -> 0.0173
C94: A.2 | D94: Seguros, Garantias e Riscos | E94: ='BDI - Geral'!E9 -> 0.0054
C95: B | D95: Lucro | E95: ='BDI - Geral'!E11 -> 0.0267
C96: C | D96: Tributos | E96: =SUM(E97:E98) -> 0.124
C97: C.1 | D97: Tributos Federais (COFINS, PIS e CPRB) | E97: ='BDI - Geral'!E19 -> 0.074
C98: C.2 | D98: Tributos Distritais (ISS) | E98: ='BDI - Geral'!E24 -> 0.05
C99: D | D99: Despesas Financeiras | E99: ='BDI - Geral'!E14 -> 0.0061
D101: TOTAL DE BDI | E101: ='BDI - Geral'!E27 -> 0.2059 | F101: =TRUNC(E101*E109,2) -> 2932.9
D103: QUADRO-RESUMO DO CUSTO MENSAL POR EMPREGADO | E103: Valor
D104: Módulo 1 - Composição da Remuneração | E104: =F17 -> 7350.75
D105: Módulo 2 - Encargos e Benefícios Anuais, Mensais e Diários | E105: =F52 -> 5464.97
D106: Módulo 3 - Provisão para Rescisão | E106: =F62 -> 409.19
D107: Módulo 4 - Custo do Profissional Ausente | E107: =F80 -> 815.18
D108: Módulo 5 - Insumos Diversos | E108: =F89 -> 204.23
D109: SUBTOTAL (A+B+C+D+E) | E109: =SUM(E104:E108) -> 14244.32
D110: Módulo 6 - Custos Indiretos, Tributos e Lucro | E110: =F101 -> 2932.9
D112: TOTAL DO POSTO | E112: =SUM(E109:E110) -> 17177.22

Sheet 16
B2: PLANILHA DE ESTIMATIVA DE CUSTOS
B3: Padrão IN 05/2017 e IN 07/2018 - MPDG - Medição por posto presente
B5: 16 | D5: =HLOOKUP($B$5,'Dados Gerais'!$D$6:$BI$22,6) -> CHEFE DE COZINHA (MASCULINO) | E5: QUANTIDADE | F5: =HLOOKUP($B$5,'Dados Gerais'!$D$6:$BI$22,10) -> 2
B6: CCT | D6: =HLOOKUP($B$5,'Dados Gerais'!$D$6:$BI$22,16) -> SEAC/DF x SINDISERVIÇOS/DF CCT 2025/2026 N.º DF000042/2025 | E6: DATA-BASE | F6: =HLOOKUP($B$5,'Dados Gerais'!$D$6:$BI$22,17) -> 2025-01-01
B8: MÓDULO 1 - COMPOSIÇÃO DA REMUNERAÇÃO | F8: Valor
C9: A | D9: Salário-Base | F9: =HLOOKUP($B$5,'Dados Gerais'!$D$6:$BI$22,8) -> 7350.75
C10: B | D10: Adicional de Periculosidade | F10: =HLOOKUP($B$5,'Dados Gerais'!$D$6:$BI$41,26) -> 0
C11: C | D11: Adicional de Insalubridade | F11: =HLOOKUP($B$5,'Dados Gerais'!$D$6:$BI$41,32) -> 0
C12: D | D12: Adicional Noturno | F12: =HLOOKUP($B$5,'Dados Gerais'!$D$6:$BI$54,49) -> 0 | H12: * Nota 1 - O Módulo 1 refere-se ao valor mensal devido ao empregado pela prestação do serviço no período de 12 meses.
C13: E | D13: Adicional de Hora Extra | F13: =HLOOKUP($B$5,'Dados Gerais'!$D$6:$BI$71,66) -> 0 | H13: * Nota 2 - O adicional de hora extra no feriado trabalhado foi suprimido pela Lei 13.467/17
C14: F | D14: Gratificação | F14: =HLOOKUP($B$5,'Dados Gerais'!$D$6:$BI$71,34) -> 0 | H14: * Nota 3 - ART. 7º, § 2º, DA LEI Nº 605/49.Sendo mensalista o obreiro, o adicional noturno pago de forma fixa já é considerado integrado para os efeitos do pagamento do repouso semanal remunerado, nos termos do art. 7º, § 2º, da Lei nº 605/49.
C15: G | D15: Sobraviso | F15: =HLOOKUP($B$5,'Dados Gerais'!$D$6:$BI$71,36) -> 0
D17: TOTAL DA REMUNERAÇÃO | F17: =TRUNC(SUM(F9:F15),2) -> 7350.75
B19: MÓDULO 2 - ENCARGOS E BENEFÍCIOS ANUAIS, MENSAIS E DIÁRIOS | E19: Percentuais | F19: Valor
B20: Submódulo 2.1 - 13º Salário e Adicional de Férias
C21: A | D21: 13º Salário | E21: ='Encargos Sociais'!$E$32 -> 0.0909 | F21: =ROUND(E21*F$17,2) -> 668.18 | H21: * Nota 1 - O 13º salário foi calculado dividindo-se por 11, para comportar os 11 meses presentes e ainda o ausente do posto
C22: B | D22: Adicional de Férias | E22: ='Encargos Sociais'!E31 -> 0.0303 | F22: =TRUNC(E22*(F$17),2) -> 222.72 | H22: * Nota 2 - O adicional de férias foi calculado dividindo-se por 11, para comportar os 11 meses presentes e ainda o ausente do posto
B24: Submódulo 2.2 - Encargos Previdenciários (GPS), Fundo de Garantia por Tempo de Serviço (FGTS) e Outras Contribuições
C25: A | D25: ='Encargos Sociais'!D14 -> INSS (art. 22, inciso I, Lei nº 8.212/91) | E25: ='Encargos Sociais'!E14 -> 0.2 | F25: =TRUNC(E25*($F$17+$F$21+$F$22+$F$80-$F$69),2) -> 1810.04 | H25: * Nota 1 - Os percentuais dos encargos previdenciários, do FGTS e demais contribuições são estabelecidos por legislação vigente.
C26: B | D26: ='Encargos Sociais'!D15 -> Salário Educação (art. 3º, inciso I, Decreto nº 87.043/82) | E26: ='Encargos Sociais'!E15 -> 0.025 | F26: =TRUNC(E26*($F$17+$F$21+$F$22+$F$80),2) -> 226.42 | H26: * Nota 2 - O SAT, a depender do grau de risco do serviço, irá variar entre 1%, para risco leve, de 2%, para risco médio, e de 3% para risco grave.
C27: C | D27: ='Encargos Sociais'!D16 -> SAT/RAT (art. 22, II, Lei 8.212/91 e Anexo V, Decreto 6.042/07) - Enquadramento 8121-4/00 | E27: ='Encargos Sociais'!E16 -> 0.03 | F27: =TRUNC(E27*($F$17+$F$21+$F$22+$F$80),2) -> 271.7 | H27: * Nota 3 - Base de cálculo - remuneração + ausências + 13º salário + terço constitucional (férias) - exceto INSS sobre ausência por acidente de trabalho
C28: D | D28: ='Encargos Sociais'!D17 -> SESC ou SESI (art. 30, Lei nº 8.036/90 e art. 1º, Lei 8.154/90) | E28: ='Encargos Sociais'!E17 -> 0.015 | F28: 135.85
C29: E | D29: ='Encargos Sociais'!D18 -> SENAI ou SENAC (Decreto nº 2.318/86) | E29: ='Encargos Sociais'!E18 -> 0.01 | F29: 90.56
C30: F | D30: ='Encargos Sociais'!D19 -> SEBRAE (§ 3º, art. 8º, Lei 8.029/90, alterada pela Lei nº 8.154/90) | E30: ='Encargos Sociais'!E19 -> 0.006 | F30: 54.34
C31: G | D31: ='Encargos Sociais'!D20 -> INCRA (art. 1º, I, Decreto Lei 1.146/70 e Lei 7.787, de 30/06/89) | E31: ='Encargos Sociais'!E20 -> 0.002 | F31: 18.11
C32: H | D32: ='Encargos Sociais'!D21 -> FGTS (Lei Complementar nº 110/01 e art. 30, Lei nº 8.036/90) | E32: ='Encargos Sociais'!E21 -> 0.08 | F32: 724.54
C33: I | D33: ='Encargos Sociais'!D22 -> SECONCI (Convenções Coletivas de Trabalho da construção) | E33: ='Encargos Sociais'!E22 -> 0 | F33: 0
B35: Submódulo 2.3 - Benefícios Mensais e Diários
C36: A | D36: Auxílio Transporte | F36: =HLOOKUP($B$5,'Dados Gerais'!$D$6:$BI$140,85) -> 0 | H36: * Nota 1 - O valor informado deverá ser o custo real do benefício (descontado o valor eventualmente pago pelo empregado).
C37: B | D37: Auxílio Alimentação | F37: =HLOOKUP($B$5,'Dados Gerais'!$D$6:$BI$140,92) -> 1238.9 | H37: * Nota 2 - Observar a previsão dos benefícios contidos em Acordos, Convenções e Dissídios Coletivos de Trabalho e o disposto no art. 6º da IN 5/2017
C38: C | D38: Assistência Médica e Familiar | F38: =HLOOKUP($B$5,'Dados Gerais'!$D$6:$BI$140,100) -> 0
C39: D | D39: Seguro de vida / auxílio funeral | F39: =HLOOKUP($B$5,'Dados Gerais'!$D$6:$BI$140,109) -> 3.61
C40: E | D40: Assistência odontológica | F40: =HLOOKUP($B$5,'Dados Gerais'!$D$6:$BI$140,115) -> 0
C41: F | D41: Auxílio creche | F41: =HLOOKUP($B$5,'Dados Gerais'!$D$6:$BI$140,121) -> 0
C42: G | D42: Auxílio vestuário especial | F42: =HLOOKUP($B$5,'Dados Gerais'!$D$6:$BI$140,127) -> 0
C43: H | D43: Benefício social familiar | F43: =HLOOKUP($B$5,'Dados Gerais'!$D$6:$BI$140,133) -> 0
C44: I | D44: Outros (especificar)
C45: J | D45: Outros (especificar)
D47: QUADRO-RESUMO DO MÓDULO 2
D48: 2.1 - 13º salário e Adicional de Férias | E48: =SUM(E21:E22) -> 0.1212 | F48: =F21+F22 -> 890.9
D49: 2.2 - Encargos Previdenciários (GPS), Fundo de Garantia por Tempo de Serviço (FGTS) e Contribuições | E49: =SUM(E25:E33) -> 0.368 | F49: =SUM(F25:F33) -> 3331.56
D50: 2.3 - Benefícios Mensais e Diários | F50: =SUM(F36:F45) -> 1242.51
D52: TOTAL DOS ENCARGOS E BENEFÍCIOS | F52: =TRUNC(SUM(F48:F50),2) -> 5464.97
B54: MÓDULO 3 - PROVISÃO PARA RESCISÃO | E54: Percentuais | F54: Valor
C55: A | D55: ='Encargos Sociais'!D36 -> Aviso Prévio Indenizado (Art. 7º, inciso XXI, da CF/1988 e arts. 477, 487, §1º, e 491 da CLT) | E55: ='Encargos Sociais'!E36 -> 0.0042 | F55: =TRUNC(E55*($F$17+$F$48+$F$80),2) -> 38.03 | H55: * Nota 1 - Base de cálculo - remuneração + ausências + 1/3 férias + 13º
C56: B | D56: ='Encargos Sociais'!D37 -> Incidência do FGTS sobre o Aviso Prévio Indenizado (Súmula 305 TST) | E56: ='Encargos Sociais'!E37 -> 0.0003 | F56: =TRUNC(E56*($F$17+$F$48+$F$80),2) -> 2.71
C57: C | D57: ='Encargos Sociais'!D38 -> Multa do FGTS sobre o Aviso Prévio Indenizado (Art. 18, §1º, da Lei 8.036/1990) | E57: ='Encargos Sociais'!E38 -> 0 | F57: =TRUNC(E57*($F$17+$F$48+$F$80),2) -> 0 | H57: * Nota 2 - zerado pois foi considerada toda a incidência da multa do FGTS na letra F
C58: D | D58: ='Encargos Sociais'!D39 -> Aviso Prévio Trabalhado (Art. 488, parágrafo único, CLT) | E58: ='Encargos Sociais'!E39 -> 0.0078 | F58: =TRUNC(E58*($F$17),2) -> 57.33
C59: E | D59: ='Encargos Sociais'!D40 -> Incidência de GPS, FGTS e outras contribuições sobre o Aviso Prévio Trabalhado | E59: ='Encargos Sociais'!E40 -> 0.0029 | F59: =TRUNC(E59*($F$17),2) -> 21.31
C60: F | D60: ='Encargos Sociais'!D41 -> Multa do FGTS | E60: ='Encargos Sociais'!E41 -> 0.032 | F60: =TRUNC(E60*($F$17+$F$48+$F$80),2) -> 289.81
D62: TOTAL DE PROVISÃO PARA RESCISÃO | F62: =TRUNC(SUM(F55:F60),2) -> 409.19
B64: MÓDULO 4 - CUSTO DO PROFISSIONAL AUSENTE | E64: Percentuais | F64: Valor
B65: Submódulo 4.1 - Ausências Legais
C66: A | D66: ='Encargos Sociais'!D25 -> Férias (Arts. 129 e 130, inc. I, da CLT) | E66: ='Encargos Sociais'!E25 -> 0.0909 | F66: =TRUNC(E66*$F$17,2) -> 668.18 | H66: * Nota 1 - O Módulo 4 refere-se às previsões para custear ausências do próprio profissional (titular do cargo)
C67: B | D67: ='Encargos Sociais'!D26 -> Ausências Legais (Arts. 131 e 473 da CLT) | E67: ='Encargos Sociais'!E26 -> 0.0079 | F67: 58.07 | H67: * Nota 2 - As férias foram calculadas dividindo-se por 11, para comportar os 11 meses presentes e ainda o ausente do posto
C68: C | D68: ='Encargos Sociais'!D27 -> Licença-Paternidade (Art. 7º, XIX, e art. 10, §1º, do ADCT, CF/1988 e Art. 1º, II, da Lei 11.770/2008) | E68: ='Encargos Sociais'!E27 -> 0.0008 | F68: 5.88
C69: D | D69: ='Encargos Sociais'!D28 -> Ausência por Acidente de Trabalho (Art. 131, III, da CLT) | E69: ='Encargos Sociais'!E28 -> 0.0009 | F69: 6.61
C70: E | D70: ='Encargos Sociais'!D29 -> Afastamento Maternidade (Art. 71 da Lei nº 8.213/1991) | E70: ='Encargos Sociais'!E29 -> 0.0033 | F70: 24.25
C71: F | D71: ='Encargos Sociais'!D30 -> Auxílio Enfermidade - Doença (Art. 59 da Lei nº 8.213/1991) | E71: ='Encargos Sociais'!E30 -> 0.0071 | F71: 52.19
B73: Submódulo 4.2 - Intrajornada
C74: A | D74: Intervalo para repouso ou alimentação | E74: ='Encargos Sociais'!E33 -> 0 | F74: =ROUND(E74*$F$17,2) -> 0
D76: QUADRO-RESUMO DO MÓDULO 4 | F76: Valor
D77: 4.1 - Ausências Legais | E77: =SUM(E66:E71) -> 0.1109 | F77: =SUM(F66:F71) -> 815.18
D78: 4.2 - Intrajornada | E78: =E74 -> 0 | F78: =ROUND(E78*$F$17,2) -> 0
D80: TOTAL DE CUSTO DO PROFISSIONAL AUSENTE E INTERVALO INTRAJORNADA | F80: =TRUNC(SUM(F77:F78),2) -> 815.18
B82: MÓDULO 5 - INSUMOS DIVERSOS | F82: Valor
C83: A | D83: Uniformes - aquisição | F83: =TRUNC(HLOOKUP($B$5,Uniformes!$K$3:$DZ$5,3,0)/12,2) -> 159.63
C84: B | D84: Materiais de consumo relacionados ao posto - aquisição | F84: 0
C85: C | D85: Ferramentas relacionadas ao posto - remuneração da sua depreciação / manutenção | F85: 0
C86: D | D86: Equipamentos relacionados ao posto - remuneração da sua depreciação / manutenção | F86: 0
C87: E | D87: Equipamentos de Proteção Individual - EPI - aquisição | F87: =TRUNC(HLOOKUP($B$5,EPI!$J$3:$DY$5,3,0)/12,2) -> 44.6
D89: TOTAL DE INSUMOS DIVERSOS | F89: =SUM(F83:F88) -> 204.23 | H89: * Nota - Valores mensais por empregado
B91: MÓDULO 6 - CUSTOS INDIRETOS, TRIBUTOS E LUCRO - BDI | E91: Percentuais | F91: Valor
C92: A | D92: Custos Indiretos | E92: ='BDI - Geral'!E7 -> 0.0227
C93: A.1 | D93: Administração Central | E93: ='BDI - Geral'!E8 -> 0.0173
C94: A.2 | D94: Seguros, Garantias e Riscos | E94: ='BDI - Geral'!E9 -> 0.0054
C95: B | D95: Lucro | E95: ='BDI - Geral'!E11 -> 0.0267
C96: C | D96: Tributos | E96: =SUM(E97:E98) -> 0.124
C97: C.1 | D97: Tributos Federais (COFINS, PIS e CPRB) | E97: ='BDI - Geral'!E19 -> 0.074
C98: C.2 | D98: Tributos Distritais (ISS) | E98: ='BDI - Geral'!E24 -> 0.05
C99: D | D99: Despesas Financeiras | E99: ='BDI - Geral'!E14 -> 0.0061
D101: TOTAL DE BDI | E101: ='BDI - Geral'!E27 -> 0.2059 | F101: =TRUNC(E101*E109,2) -> 2932.9
D103: QUADRO-RESUMO DO CUSTO MENSAL POR EMPREGADO | E103: Valor
D104: Módulo 1 - Composição da Remuneração | E104: =F17 -> 7350.75
D105: Módulo 2 - Encargos e Benefícios Anuais, Mensais e Diários | E105: =F52 -> 5464.97
D106: Módulo 3 - Provisão para Rescisão | E106: =F62 -> 409.19
D107: Módulo 4 - Custo do Profissional Ausente | E107: =F80 -> 815.18
D108: Módulo 5 - Insumos Diversos | E108: =F89 -> 204.23
D109: SUBTOTAL (A+B+C+D+E) | E109: =SUM(E104:E108) -> 14244.32
D110: Módulo 6 - Custos Indiretos, Tributos e Lucro | E110: =F101 -> 2932.9
D112: TOTAL DO POSTO | E112: =SUM(E109:E110) -> 17177.22

Sheet 17
B2: PLANILHA DE ESTIMATIVA DE CUSTOS
B3: Padrão IN 05/2017 e IN 07/2018 - MPDG - Medição por posto presente
B5: 17 | D5: =HLOOKUP($B$5,'Dados Gerais'!$D$6:$BI$22,6) -> GARÇOM DA RESIDÊNCIA OFICIAL DO PRESIDENTE | E5: QUANTIDADE | F5: =HLOOKUP($B$5,'Dados Gerais'!$D$6:$BI$22,10) -> 3
B6: CCT | D6: =HLOOKUP($B$5,'Dados Gerais'!$D$6:$BI$22,16) -> SEAC/DF x SINDISERVIÇOS/DF CCT 2025/2026 N.º DF000042/2025 | E6: DATA-BASE | F6: =HLOOKUP($B$5,'Dados Gerais'!$D$6:$BI$22,17) -> 2025-01-01
B8: MÓDULO 1 - COMPOSIÇÃO DA REMUNERAÇÃO | F8: Valor
C9: A | D9: Salário-Base | F9: =HLOOKUP($B$5,'Dados Gerais'!$D$6:$BI$22,8) -> 5343.2
C10: B | D10: Adicional de Periculosidade | F10: =HLOOKUP($B$5,'Dados Gerais'!$D$6:$BI$41,26) -> 0
C11: C | D11: Adicional de Insalubridade | F11: =HLOOKUP($B$5,'Dados Gerais'!$D$6:$BI$41,32) -> 0
C12: D | D12: Adicional Noturno | F12: =HLOOKUP($B$5,'Dados Gerais'!$D$6:$BI$54,49) -> 0 | H12: * Nota 1 - O Módulo 1 refere-se ao valor mensal devido ao empregado pela prestação do serviço no período de 12 meses.
C13: E | D13: Adicional de Hora Extra | F13: =HLOOKUP($B$5,'Dados Gerais'!$D$6:$BI$71,66) -> 0 | H13: * Nota 2 - O adicional de hora extra no feriado trabalhado foi suprimido pela Lei 13.467/17
C14: F | D14: Gratificação | F14: =HLOOKUP($B$5,'Dados Gerais'!$D$6:$BI$71,34) -> 0 | H14: * Nota 3 - ART. 7º, § 2º, DA LEI Nº 605/49.Sendo mensalista o obreiro, o adicional noturno pago de forma fixa já é considerado integrado para os efeitos do pagamento do repouso semanal remunerado, nos termos do art. 7º, § 2º, da Lei nº 605/49.
C15: G | D15: Sobraviso | F15: =HLOOKUP($B$5,'Dados Gerais'!$D$6:$BI$71,36) -> 0
D17: TOTAL DA REMUNERAÇÃO | F17: =TRUNC(SUM(F9:F15),2) -> 5343.2
B19: MÓDULO 2 - ENCARGOS E BENEFÍCIOS ANUAIS, MENSAIS E DIÁRIOS | E19: Percentuais | F19: Valor
B20: Submódulo 2.1 - 13º Salário e Adicional de Férias
C21: A | D21: 13º Salário | E21: ='Encargos Sociais'!$E$32 -> 0.0909 | F21: =ROUND(E21*F$17,2) -> 485.7 | H21: * Nota 1 - O 13º salário foi calculado dividindo-se por 11, para comportar os 11 meses presentes e ainda o ausente do posto
C22: B | D22: Adicional de Férias | E22: ='Encargos Sociais'!E31 -> 0.0303 | F22: =TRUNC(E22*(F$17),2) -> 161.89 | H22: * Nota 2 - O adicional de férias foi calculado dividindo-se por 11, para comportar os 11 meses presentes e ainda o ausente do posto
B24: Submódulo 2.2 - Encargos Previdenciários (GPS), Fundo de Garantia por Tempo de Serviço (FGTS) e Outras Contribuições
C25: A | D25: ='Encargos Sociais'!D14 -> INSS (art. 22, inciso I, Lei nº 8.212/91) | E25: ='Encargos Sociais'!E14 -> 0.2 | F25: =TRUNC(E25*($F$17+$F$21+$F$22+$F$80-$F$69),2) -> 1315.7 | H25: * Nota 1 - Os percentuais dos encargos previdenciários, do FGTS e demais contribuições são estabelecidos por legislação vigente.
C26: B | D26: ='Encargos Sociais'!D15 -> Salário Educação (art. 3º, inciso I, Decreto nº 87.043/82) | E26: ='Encargos Sociais'!E15 -> 0.025 | F26: =TRUNC(E26*($F$17+$F$21+$F$22+$F$80),2) -> 164.58 | H26: * Nota 2 - O SAT, a depender do grau de risco do serviço, irá variar entre 1%, para risco leve, de 2%, para risco médio, e de 3% para risco grave.
C27: C | D27: ='Encargos Sociais'!D16 -> SAT/RAT (art. 22, II, Lei 8.212/91 e Anexo V, Decreto 6.042/07) - Enquadramento 8121-4/00 | E27: ='Encargos Sociais'!E16 -> 0.03 | F27: =TRUNC(E27*($F$17+$F$21+$F$22+$F$80),2) -> 197.49 | H27: * Nota 3 - Base de cálculo - remuneração + ausências + 13º salário + terço constitucional (férias) - exceto INSS sobre ausência por acidente de trabalho
C28: D | D28: ='Encargos Sociais'!D17 -> SESC ou SESI (art. 30, Lei nº 8.036/90 e art. 1º, Lei 8.154/90) | E28: ='Encargos Sociais'!E17 -> 0.015 | F28: 98.74
C29: E | D29: ='Encargos Sociais'!D18 -> SENAI ou SENAC (Decreto nº 2.318/86) | E29: ='Encargos Sociais'!E18 -> 0.01 | F29: 65.83
C30: F | D30: ='Encargos Sociais'!D19 -> SEBRAE (§ 3º, art. 8º, Lei 8.029/90, alterada pela Lei nº 8.154/90) | E30: ='Encargos Sociais'!E19 -> 0.006 | F30: 39.49
C31: G | D31: ='Encargos Sociais'!D20 -> INCRA (art. 1º, I, Decreto Lei 1.146/70 e Lei 7.787, de 30/06/89) | E31: ='Encargos Sociais'!E20 -> 0.002 | F31: 13.16
C32: H | D32: ='Encargos Sociais'!D21 -> FGTS (Lei Complementar nº 110/01 e art. 30, Lei nº 8.036/90) | E32: ='Encargos Sociais'!E21 -> 0.08 | F32: 526.66
C33: I | D33: ='Encargos Sociais'!D22 -> SECONCI (Convenções Coletivas de Trabalho da construção) | E33: ='Encargos Sociais'!E22 -> 0 | F33: 0
B35: Submódulo 2.3 - Benefícios Mensais e Diários
C36: A | D36: Auxílio Transporte | F36: =HLOOKUP($B$5,'Dados Gerais'!$D$6:$BI$140,85) -> 39.77 | H36: * Nota 1 - O valor informado deverá ser o custo real do benefício (descontado o valor eventualmente pago pelo empregado).
C37: B | D37: Auxílio Alimentação | F37: =HLOOKUP($B$5,'Dados Gerais'!$D$6:$BI$140,92) -> 1238.9 | H37: * Nota 2 - Observar a previsão dos benefícios contidos em Acordos, Convenções e Dissídios Coletivos de Trabalho e o disposto no art. 6º da IN 5/2017
C38: C | D38: Assistência Médica e Familiar | F38: =HLOOKUP($B$5,'Dados Gerais'!$D$6:$BI$140,100) -> 0
C39: D | D39: Seguro de vida / auxílio funeral | F39: =HLOOKUP($B$5,'Dados Gerais'!$D$6:$BI$140,109) -> 3.61
C40: E | D40: Assistência odontológica | F40: =HLOOKUP($B$5,'Dados Gerais'!$D$6:$BI$140,115) -> 0
C41: F | D41: Auxílio creche | F41: =HLOOKUP($B$5,'Dados Gerais'!$D$6:$BI$140,121) -> 0
C42: G | D42: Auxílio vestuário especial | F42: =HLOOKUP($B$5,'Dados Gerais'!$D$6:$BI$140,127) -> 0
C43: H | D43: Benefício social familiar | F43: =HLOOKUP($B$5,'Dados Gerais'!$D$6:$BI$140,133) -> 0
C44: I | D44: Outros (especificar)
C45: J | D45: Outros (especificar)
D47: QUADRO-RESUMO DO MÓDULO 2
D48: 2.1 - 13º salário e Adicional de Férias | E48: =SUM(E21:E22) -> 0.1212 | F48: =F21+F22 -> 647.59
D49: 2.2 - Encargos Previdenciários (GPS), Fundo de Garantia por Tempo de Serviço (FGTS) e Contribuições | E49: =SUM(E25:E33) -> 0.368 | F49: =SUM(F25:F33) -> 2421.65
D50: 2.3 - Benefícios Mensais e Diários | F50: =SUM(F36:F45) -> 1282.28
D52: TOTAL DOS ENCARGOS E BENEFÍCIOS | F52: =TRUNC(SUM(F48:F50),2) -> 4351.52
B54: MÓDULO 3 - PROVISÃO PARA RESCISÃO | E54: Percentuais | F54: Valor
C55: A | D55: ='Encargos Sociais'!D36 -> Aviso Prévio Indenizado (Art. 7º, inciso XXI, da CF/1988 e arts. 477, 487, §1º, e 491 da CLT) | E55: ='Encargos Sociais'!E36 -> 0.0042 | F55: =TRUNC(E55*($F$17+$F$48+$F$80),2) -> 27.64 | H55: * Nota 1 - Base de cálculo - remuneração + ausências + 1/3 férias + 13º
C56: B | D56: ='Encargos Sociais'!D37 -> Incidência do FGTS sobre o Aviso Prévio Indenizado (Súmula 305 TST) | E56: ='Encargos Sociais'!E37 -> 0.0003 | F56: =TRUNC(E56*($F$17+$F$48+$F$80),2) -> 1.97
C57: C | D57: ='Encargos Sociais'!D38 -> Multa do FGTS sobre o Aviso Prévio Indenizado (Art. 18, §1º, da Lei 8.036/1990) | E57: ='Encargos Sociais'!E38 -> 0 | F57: =TRUNC(E57*($F$17+$F$48+$F$80),2) -> 0 | H57: * Nota 2 - zerado pois foi considerada toda a incidência da multa do FGTS na letra F
C58: D | D58: ='Encargos Sociais'!D39 -> Aviso Prévio Trabalhado (Art. 488, parágrafo único, CLT) | E58: ='Encargos Sociais'!E39 -> 0.0078 | F58: =TRUNC(E58*($F$17),2) -> 41.67
C59: E | D59: ='Encargos Sociais'!D40 -> Incidência de GPS, FGTS e outras contribuições sobre o Aviso Prévio Trabalhado | E59: ='Encargos Sociais'!E40 -> 0.0029 | F59: =TRUNC(E59*($F$17),2) -> 15.49
C60: F | D60: ='Encargos Sociais'!D41 -> Multa do FGTS | E60: ='Encargos Sociais'!E41 -> 0.032 | F60: =TRUNC(E60*($F$17+$F$48+$F$80),2) -> 210.66
D62: TOTAL DE PROVISÃO PARA RESCISÃO | F62: =TRUNC(SUM(F55:F60),2) -> 297.43
B64: MÓDULO 4 - CUSTO DO PROFISSIONAL AUSENTE | E64: Percentuais | F64: Valor
B65: Submódulo 4.1 - Ausências Legais
C66: A | D66: ='Encargos Sociais'!D25 -> Férias (Arts. 129 e 130, inc. I, da CLT) | E66: ='Encargos Sociais'!E25 -> 0.0909 | F66: =TRUNC(E66*$F$17,2) -> 485.69 | H66: * Nota 1 - O Módulo 4 refere-se às previsões para custear ausências do próprio profissional (titular do cargo)
C67: B | D67: ='Encargos Sociais'!D26 -> Ausências Legais (Arts. 131 e 473 da CLT) | E67: ='Encargos Sociais'!E26 -> 0.0079 | F67: 42.21 | H67: * Nota 2 - As férias foram calculadas dividindo-se por 11, para comportar os 11 meses presentes e ainda o ausente do posto
C68: C | D68: ='Encargos Sociais'!D27 -> Licença-Paternidade (Art. 7º, XIX, e art. 10, §1º, do ADCT, CF/1988 e Art. 1º, II, da Lei 11.770/2008) | E68: ='Encargos Sociais'!E27 -> 0.0008 | F68: 4.27
C69: D | D69: ='Encargos Sociais'!D28 -> Ausência por Acidente de Trabalho (Art. 131, III, da CLT) | E69: ='Encargos Sociais'!E28 -> 0.0009 | F69: 4.8
C70: E | D70: ='Encargos Sociais'!D29 -> Afastamento Maternidade (Art. 71 da Lei nº 8.213/1991) | E70: ='Encargos Sociais'!E29 -> 0.0033 | F70: 17.63
C71: F | D71: ='Encargos Sociais'!D30 -> Auxílio Enfermidade - Doença (Art. 59 da Lei nº 8.213/1991) | E71: ='Encargos Sociais'!E30 -> 0.0071 | F71: 37.93
B73: Submódulo 4.2 - Intrajornada
C74: A | D74: Intervalo para repouso ou alimentação | E74: ='Encargos Sociais'!E33 -> 0 | F74: =ROUND(E74*$F$17,2) -> 0
D76: QUADRO-RESUMO DO MÓDULO 4 | F76: Valor
D77: 4.1 - Ausências Legais | E77: =SUM(E66:E71) -> 0.1109 | F77: =SUM(F66:F71) -> 592.53
D78: 4.2 - Intrajornada | E78: =E74 -> 0 | F78: =ROUND(E78*$F$17,2) -> 0
D80: TOTAL DE CUSTO DO PROFISSIONAL AUSENTE E INTERVALO INTRAJORNADA | F80: =TRUNC(SUM(F77:F78),2) -> 592.53
B82: MÓDULO 5 - INSUMOS DIVERSOS | F82: Valor
C83: A | D83: Uniformes - aquisição | F83: =TRUNC(HLOOKUP($B$5,Uniformes!$K$3:$DZ$5,3,0)/12,2) -> 354.42
C84: B | D84: Materiais de consumo relacionados ao posto - aquisição | F84: 0
C85: C | D85: Ferramentas relacionadas ao posto - remuneração da sua depreciação / manutenção | F85: 0
C86: D | D86: Equipamentos relacionados ao posto - remuneração da sua depreciação / manutenção | F86: 0
C87: E | D87: Equipamentos de Proteção Individual - EPI - aquisição | F87: =TRUNC(HLOOKUP($B$5,EPI!$J$3:$DY$5,3,0)/12,2) -> 29.03
D89: TOTAL DE INSUMOS DIVERSOS | F89: =SUM(F83:F88) -> 383.45 | H89: * Nota - Valores mensais por empregado
B91: MÓDULO 6 - CUSTOS INDIRETOS, TRIBUTOS E LUCRO - BDI | E91: Percentuais | F91: Valor
C92: A | D92: Custos Indiretos | E92: ='BDI - Geral'!E7 -> 0.0227
C93: A.1 | D93: Administração Central | E93: ='BDI - Geral'!E8 -> 0.0173
C94: A.2 | D94: Seguros, Garantias e Riscos | E94: ='BDI - Geral'!E9 -> 0.0054
C95: B | D95: Lucro | E95: ='BDI - Geral'!E11 -> 0.0267
C96: C | D96: Tributos | E96: =SUM(E97:E98) -> 0.124
C97: C.1 | D97: Tributos Federais (COFINS, PIS e CPRB) | E97: ='BDI - Geral'!E19 -> 0.074
C98: C.2 | D98: Tributos Distritais (ISS) | E98: ='BDI - Geral'!E24 -> 0.05
C99: D | D99: Despesas Financeiras | E99: ='BDI - Geral'!E14 -> 0.0061
D101: TOTAL DE BDI | E101: ='BDI - Geral'!E27 -> 0.2059 | F101: =TRUNC(E101*E109,2) -> 2258.33
D103: QUADRO-RESUMO DO CUSTO MENSAL POR EMPREGADO | E103: Valor
D104: Módulo 1 - Composição da Remuneração | E104: =F17 -> 5343.2
D105: Módulo 2 - Encargos e Benefícios Anuais, Mensais e Diários | E105: =F52 -> 4351.52
D106: Módulo 3 - Provisão para Rescisão | E106: =F62 -> 297.43
D107: Módulo 4 - Custo do Profissional Ausente | E107: =F80 -> 592.53
D108: Módulo 5 - Insumos Diversos | E108: =F89 -> 383.45
D109: SUBTOTAL (A+B+C+D+E) | E109: =SUM(E104:E108) -> 10968.13
D110: Módulo 6 - Custos Indiretos, Tributos e Lucro | E110: =F101 -> 2258.33
D112: TOTAL DO POSTO | E112: =SUM(E109:E110) -> 13226.46

Sheet 18
B2: PLANILHA DE ESTIMATIVA DE CUSTOS
B3: Padrão IN 05/2017 e IN 07/2018 - MPDG - Medição por posto presente
B5: 18 | D5: =HLOOKUP($B$5,'Dados Gerais'!$D$6:$BI$22,6) -> GARÇOM DA RESIDÊNCIA OFICIAL DO PRESIDENTE (COM ADICIONAL NOTURNO) | E5: QUANTIDADE | F5: =HLOOKUP($B$5,'Dados Gerais'!$D$6:$BI$22,10) -> 2
B6: CCT | D6: =HLOOKUP($B$5,'Dados Gerais'!$D$6:$BI$22,16) -> SEAC/DF x SINDISERVIÇOS/DF CCT 2025/2026 N.º DF000042/2025 | E6: DATA-BASE | F6: =HLOOKUP($B$5,'Dados Gerais'!$D$6:$BI$22,17) -> 2025-01-01
B8: MÓDULO 1 - COMPOSIÇÃO DA REMUNERAÇÃO | F8: Valor
C9: A | D9: Salário-Base | F9: =HLOOKUP($B$5,'Dados Gerais'!$D$6:$BI$22,8) -> 5343.2
C10: B | D10: Adicional de Periculosidade | F10: =HLOOKUP($B$5,'Dados Gerais'!$D$6:$BI$41,26) -> 0
C11: C | D11: Adicional de Insalubridade | F11: =HLOOKUP($B$5,'Dados Gerais'!$D$6:$BI$41,32) -> 0
C12: D | D12: Adicional Noturno | F12: =HLOOKUP($B$5,'Dados Gerais'!$D$6:$BI$54,49) -> 491.82 | H12: * Nota 1 - O Módulo 1 refere-se ao valor mensal devido ao empregado pela prestação do serviço no período de 12 meses.
C13: E | D13: Adicional de Hora Extra | F13: =HLOOKUP($B$5,'Dados Gerais'!$D$6:$BI$71,66) -> 0 | H13: * Nota 2 - O adicional de hora extra no feriado trabalhado foi suprimido pela Lei 13.467/17
C14: F | D14: Gratificação | F14: =HLOOKUP($B$5,'Dados Gerais'!$D$6:$BI$71,34) -> 0 | H14: * Nota 3 - ART. 7º, § 2º, DA LEI Nº 605/49.Sendo mensalista o obreiro, o adicional noturno pago de forma fixa já é considerado integrado para os efeitos do pagamento do repouso semanal remunerado, nos termos do art. 7º, § 2º, da Lei nº 605/49.
C15: G | D15: Sobraviso | F15: =HLOOKUP($B$5,'Dados Gerais'!$D$6:$BI$71,36) -> 0
D17: TOTAL DA REMUNERAÇÃO | F17: =TRUNC(SUM(F9:F15),2) -> 5835.02
B19: MÓDULO 2 - ENCARGOS E BENEFÍCIOS ANUAIS, MENSAIS E DIÁRIOS | E19: Percentuais | F19: Valor
B20: Submódulo 2.1 - 13º Salário e Adicional de Férias
C21: A | D21: 13º Salário | E21: ='Encargos Sociais'!$E$32 -> 0.0909 | F21: =ROUND(E21*F$17,2) -> 530.4 | H21: * Nota 1 - O 13º salário foi calculado dividindo-se por 11, para comportar os 11 meses presentes e ainda o ausente do posto
C22: B | D22: Adicional de Férias | E22: ='Encargos Sociais'!E31 -> 0.0303 | F22: =TRUNC(E22*(F$17),2) -> 176.8 | H22: * Nota 2 - O adicional de férias foi calculado dividindo-se por 11, para comportar os 11 meses presentes e ainda o ausente do posto
B24: Submódulo 2.2 - Encargos Previdenciários (GPS), Fundo de Garantia por Tempo de Serviço (FGTS) e Outras Contribuições
C25: A | D25: ='Encargos Sociais'!D14 -> INSS (art. 22, inciso I, Lei nº 8.212/91) | E25: ='Encargos Sociais'!E14 -> 0.2 | F25: =TRUNC(E25*($F$17+$F$21+$F$22+$F$80-$F$69),2) -> 1436.8 | H25: * Nota 1 - Os percentuais dos encargos previdenciários, do FGTS e demais contribuições são estabelecidos por legislação vigente.
C26: B | D26: ='Encargos Sociais'!D15 -> Salário Educação (art. 3º, inciso I, Decreto nº 87.043/82) | E26: ='Encargos Sociais'!E15 -> 0.025 | F26: =TRUNC(E26*($F$17+$F$21+$F$22+$F$80),2) -> 179.73 | H26: * Nota 2 - O SAT, a depender do grau de risco do serviço, irá variar entre 1%, para risco leve, de 2%, para risco médio, e de 3% para risco grave.
C27: C | D27: ='Encargos Sociais'!D16 -> SAT/RAT (art. 22, II, Lei 8.212/91 e Anexo V, Decreto 6.042/07) - Enquadramento 8121-4/00 | E27: ='Encargos Sociais'!E16 -> 0.03 | F27: =TRUNC(E27*($F$17+$F$21+$F$22+$F$80),2) -> 215.67 | H27: * Nota 3 - Base de cálculo - remuneração + ausências + 13º salário + terço constitucional (férias) - exceto INSS sobre ausência por acidente de trabalho
C28: D | D28: ='Encargos Sociais'!D17 -> SESC ou SESI (art. 30, Lei nº 8.036/90 e art. 1º, Lei 8.154/90) | E28: ='Encargos Sociais'!E17 -> 0.015 | F28: 107.83
C29: E | D29: ='Encargos Sociais'!D18 -> SENAI ou SENAC (Decreto nº 2.318/86) | E29: ='Encargos Sociais'!E18 -> 0.01 | F29: 71.89
C30: F | D30: ='Encargos Sociais'!D19 -> SEBRAE (§ 3º, art. 8º, Lei 8.029/90, alterada pela Lei nº 8.154/90) | E30: ='Encargos Sociais'!E19 -> 0.006 | F30: 43.13
C31: G | D31: ='Encargos Sociais'!D20 -> INCRA (art. 1º, I, Decreto Lei 1.146/70 e Lei 7.787, de 30/06/89) | E31: ='Encargos Sociais'!E20 -> 0.002 | F31: 14.37
C32: H | D32: ='Encargos Sociais'!D21 -> FGTS (Lei Complementar nº 110/01 e art. 30, Lei nº 8.036/90) | E32: ='Encargos Sociais'!E21 -> 0.08 | F32: 575.14
C33: I | D33: ='Encargos Sociais'!D22 -> SECONCI (Convenções Coletivas de Trabalho da construção) | E33: ='Encargos Sociais'!E22 -> 0 | F33: 0
B35: Submódulo 2.3 - Benefícios Mensais e Diários
C36: A | D36: Auxílio Transporte | F36: =HLOOKUP($B$5,'Dados Gerais'!$D$6:$BI$140,85) -> 0 | H36: * Nota 1 - O valor informado deverá ser o custo real do benefício (descontado o valor eventualmente pago pelo empregado).
C37: B | D37: Auxílio Alimentação | F37: =HLOOKUP($B$5,'Dados Gerais'!$D$6:$BI$140,92) -> 714.75 | H37: * Nota 2 - Observar a previsão dos benefícios contidos em Acordos, Convenções e Dissídios Coletivos de Trabalho e o disposto no art. 6º da IN 5/2017
C38: C | D38: Assistência Médica e Familiar | F38: =HLOOKUP($B$5,'Dados Gerais'!$D$6:$BI$140,100) -> 0
C39: D | D39: Seguro de vida / auxílio funeral | F39: =HLOOKUP($B$5,'Dados Gerais'!$D$6:$BI$140,109) -> 3.61
C40: E | D40: Assistência odontológica | F40: =HLOOKUP($B$5,'Dados Gerais'!$D$6:$BI$140,115) -> 0
C41: F | D41: Auxílio creche | F41: =HLOOKUP($B$5,'Dados Gerais'!$D$6:$BI$140,121) -> 0
C42: G | D42: Auxílio vestuário especial | F42: =HLOOKUP($B$5,'Dados Gerais'!$D$6:$BI$140,127) -> 0
C43: H | D43: Benefício social familiar | F43: =HLOOKUP($B$5,'Dados Gerais'!$D$6:$BI$140,133) -> 0
C44: I | D44: Outros (especificar)
C45: J | D45: Outros (especificar)
D47: QUADRO-RESUMO DO MÓDULO 2
D48: 2.1 - 13º salário e Adicional de Férias | E48: =SUM(E21:E22) -> 0.1212 | F48: =F21+F22 -> 707.2
D49: 2.2 - Encargos Previdenciários (GPS), Fundo de Garantia por Tempo de Serviço (FGTS) e Contribuições | E49: =SUM(E25:E33) -> 0.368 | F49: =SUM(F25:F33) -> 2644.56
D50: 2.3 - Benefícios Mensais e Diários | F50: =SUM(F36:F45) -> 718.36
D52: TOTAL DOS ENCARGOS E BENEFÍCIOS | F52: =TRUNC(SUM(F48:F50),2) -> 4070.12
B54: MÓDULO 3 - PROVISÃO PARA RESCISÃO | E54: Percentuais | F54: Valor
C55: A | D55: ='Encargos Sociais'!D36 -> Aviso Prévio Indenizado (Art. 7º, inciso XXI, da CF/1988 e arts. 477, 487, §1º, e 491 da CLT) | E55: ='Encargos Sociais'!E36 -> 0.0042 | F55: =TRUNC(E55*($F$17+$F$48+$F$80),2) -> 30.19 | H55: * Nota 1 - Base de cálculo - remuneração + ausências + 1/3 férias + 13º
C56: B | D56: ='Encargos Sociais'!D37 -> Incidência do FGTS sobre o Aviso Prévio Indenizado (Súmula 305 TST) | E56: ='Encargos Sociais'!E37 -> 0.0003 | F56: =TRUNC(E56*($F$17+$F$48+$F$80),2) -> 2.15
C57: C | D57: ='Encargos Sociais'!D38 -> Multa do FGTS sobre o Aviso Prévio Indenizado (Art. 18, §1º, da Lei 8.036/1990) | E57: ='Encargos Sociais'!E38 -> 0 | F57: =TRUNC(E57*($F$17+$F$48+$F$80),2) -> 0 | H57: * Nota 2 - zerado pois foi considerada toda a incidência da multa do FGTS na letra F
C58: D | D58: ='Encargos Sociais'!D39 -> Aviso Prévio Trabalhado (Art. 488, parágrafo único, CLT) | E58: ='Encargos Sociais'!E39 -> 0.0078 | F58: =TRUNC(E58*($F$17),2) -> 45.51
C59: E | D59: ='Encargos Sociais'!D40 -> Incidência de GPS, FGTS e outras contribuições sobre o Aviso Prévio Trabalhado | E59: ='Encargos Sociais'!E40 -> 0.0029 | F59: =TRUNC(E59*($F$17),2) -> 16.92
C60: F | D60: ='Encargos Sociais'!D41 -> Multa do FGTS | E60: ='Encargos Sociais'!E41 -> 0.032 | F60: =TRUNC(E60*($F$17+$F$48+$F$80),2) -> 230.05
D62: TOTAL DE PROVISÃO PARA RESCISÃO | F62: =TRUNC(SUM(F55:F60),2) -> 324.82
B64: MÓDULO 4 - CUSTO DO PROFISSIONAL AUSENTE | E64: Percentuais | F64: Valor
B65: Submódulo 4.1 - Ausências Legais
C66: A | D66: ='Encargos Sociais'!D25 -> Férias (Arts. 129 e 130, inc. I, da CLT) | E66: ='Encargos Sociais'!E25 -> 0.0909 | F66: =TRUNC(E66*$F$17,2) -> 530.4 | H66: * Nota 1 - O Módulo 4 refere-se às previsões para custear ausências do próprio profissional (titular do cargo)
C67: B | D67: ='Encargos Sociais'!D26 -> Ausências Legais (Arts. 131 e 473 da CLT) | E67: ='Encargos Sociais'!E26 -> 0.0079 | F67: 46.09 | H67: * Nota 2 - As férias foram calculadas dividindo-se por 11, para comportar os 11 meses presentes e ainda o ausente do posto
C68: C | D68: ='Encargos Sociais'!D27 -> Licença-Paternidade (Art. 7º, XIX, e art. 10, §1º, do ADCT, CF/1988 e Art. 1º, II, da Lei 11.770/2008) | E68: ='Encargos Sociais'!E27 -> 0.0008 | F68: 4.66
C69: D | D69: ='Encargos Sociais'!D28 -> Ausência por Acidente de Trabalho (Art. 131, III, da CLT) | E69: ='Encargos Sociais'!E28 -> 0.0009 | F69: 5.25
C70: E | D70: ='Encargos Sociais'!D29 -> Afastamento Maternidade (Art. 71 da Lei nº 8.213/1991) | E70: ='Encargos Sociais'!E29 -> 0.0033 | F70: 19.25
C71: F | D71: ='Encargos Sociais'!D30 -> Auxílio Enfermidade - Doença (Art. 59 da Lei nº 8.213/1991) | E71: ='Encargos Sociais'!E30 -> 0.0071 | F71: 41.42
B73: Submódulo 4.2 - Intrajornada
C74: A | D74: Intervalo para repouso ou alimentação | E74: ='Encargos Sociais'!E33 -> 0 | F74: =ROUND(E74*$F$17,2) -> 0
D76: QUADRO-RESUMO DO MÓDULO 4 | F76: Valor
D77: 4.1 - Ausências Legais | E77: =SUM(E66:E71) -> 0.1109 | F77: =SUM(F66:F71) -> 647.07
D78: 4.2 - Intrajornada | E78: =E74 -> 0 | F78: =ROUND(E78*$F$17,2) -> 0
D80: TOTAL DE CUSTO DO PROFISSIONAL AUSENTE E INTERVALO INTRAJORNADA | F80: =TRUNC(SUM(F77:F78),2) -> 647.07
B82: MÓDULO 5 - INSUMOS DIVERSOS | F82: Valor
C83: A | D83: Uniformes - aquisição | F83: =TRUNC(HLOOKUP($B$5,Uniformes!$K$3:$DZ$5,3,0)/12,2) -> 354.42
C84: B | D84: Materiais de consumo relacionados ao posto - aquisição | F84: 0
C85: C | D85: Ferramentas relacionadas ao posto - remuneração da sua depreciação / manutenção | F85: 0
C86: D | D86: Equipamentos relacionados ao posto - remuneração da sua depreciação / manutenção | F86: 0
C87: E | D87: Equipamentos de Proteção Individual - EPI - aquisição | F87: =TRUNC(HLOOKUP($B$5,EPI!$J$3:$DY$5,3,0)/12,2) -> 29.03
D89: TOTAL DE INSUMOS DIVERSOS | F89: =SUM(F83:F88) -> 383.45 | H89: * Nota - Valores mensais por empregado
B91: MÓDULO 6 - CUSTOS INDIRETOS, TRIBUTOS E LUCRO - BDI | E91: Percentuais | F91: Valor
C92: A | D92: Custos Indiretos | E92: ='BDI - Geral'!E7 -> 0.0227
C93: A.1 | D93: Administração Central | E93: ='BDI - Geral'!E8 -> 0.0173
C94: A.2 | D94: Seguros, Garantias e Riscos | E94: ='BDI - Geral'!E9 -> 0.0054
C95: B | D95: Lucro | E95: ='BDI - Geral'!E11 -> 0.0267
C96: C | D96: Tributos | E96: =SUM(E97:E98) -> 0.124
C97: C.1 | D97: Tributos Federais (COFINS, PIS e CPRB) | E97: ='BDI - Geral'!E19 -> 0.074
C98: C.2 | D98: Tributos Distritais (ISS) | E98: ='BDI - Geral'!E24 -> 0.05
C99: D | D99: Despesas Financeiras | E99: ='BDI - Geral'!E14 -> 0.0061
D101: TOTAL DE BDI | E101: ='BDI - Geral'!E27 -> 0.2059 | F101: =TRUNC(E101*E109,2) -> 2318.53
D103: QUADRO-RESUMO DO CUSTO MENSAL POR EMPREGADO | E103: Valor
D104: Módulo 1 - Composição da Remuneração | E104: =F17 -> 5835.02
D105: Módulo 2 - Encargos e Benefícios Anuais, Mensais e Diários | E105: =F52 -> 4070.12
D106: Módulo 3 - Provisão para Rescisão | E106: =F62 -> 324.82
D107: Módulo 4 - Custo do Profissional Ausente | E107: =F80 -> 647.07
D108: Módulo 5 - Insumos Diversos | E108: =F89 -> 383.45
D109: SUBTOTAL (A+B+C+D+E) | E109: =SUM(E104:E108) -> 11260.48
D110: Módulo 6 - Custos Indiretos, Tributos e Lucro | E110: =F101 -> 2318.53
D112: TOTAL DO POSTO | E112: =SUM(E109:E110) -> 13579.01

Sheet 19
B2: PLANILHA DE ESTIMATIVA DE CUSTOS
B3: Padrão IN 05/2017 e IN 07/2018 - MPDG - Medição por posto presente
B5: 19 | D5: =HLOOKUP($B$5,'Dados Gerais'!$D$6:$BI$22,6) -> AUXILIAR DE SERVIÇOS GERAIS | E5: QUANTIDADE | F5: =HLOOKUP($B$5,'Dados Gerais'!$D$6:$BI$22,10) -> 2
B6: CCT | D6: =HLOOKUP($B$5,'Dados Gerais'!$D$6:$BI$22,16) -> SEAC/DF x SINDISERVIÇOS/DF CCT 2025/2026 N.º DF000042/2025 | E6: DATA-BASE | F6: =HLOOKUP($B$5,'Dados Gerais'!$D$6:$BI$22,17) -> 2025-01-01
B8: MÓDULO 1 - COMPOSIÇÃO DA REMUNERAÇÃO | F8: Valor
C9: A | D9: Salário-Base | F9: =HLOOKUP($B$5,'Dados Gerais'!$D$6:$BI$22,8) -> 2995.52
C10: B | D10: Adicional de Periculosidade | F10: =HLOOKUP($B$5,'Dados Gerais'!$D$6:$BI$41,26) -> 0
C11: C | D11: Adicional de Insalubridade | F11: =HLOOKUP($B$5,'Dados Gerais'!$D$6:$BI$41,32) -> 0
C12: D | D12: Adicional Noturno | F12: =HLOOKUP($B$5,'Dados Gerais'!$D$6:$BI$54,49) -> 0 | H12: * Nota 1 - O Módulo 1 refere-se ao valor mensal devido ao empregado pela prestação do serviço no período de 12 meses.
C13: E | D13: Adicional de Hora Extra | F13: =HLOOKUP($B$5,'Dados Gerais'!$D$6:$BI$71,66) -> 0 | H13: * Nota 2 - O adicional de hora extra no feriado trabalhado foi suprimido pela Lei 13.467/17
C14: F | D14: Gratificação | F14: =HLOOKUP($B$5,'Dados Gerais'!$D$6:$BI$71,34) -> 0 | H14: * Nota 3 - ART. 7º, § 2º, DA LEI Nº 605/49.Sendo mensalista o obreiro, o adicional noturno pago de forma fixa já é considerado integrado para os efeitos do pagamento do repouso semanal remunerado, nos termos do art. 7º, § 2º, da Lei nº 605/49.
C15: G | D15: Sobraviso | F15: =HLOOKUP($B$5,'Dados Gerais'!$D$6:$BI$71,36) -> 0
D17: TOTAL DA REMUNERAÇÃO | F17: =TRUNC(SUM(F9:F15),2) -> 2995.52
B19: MÓDULO 2 - ENCARGOS E BENEFÍCIOS ANUAIS, MENSAIS E DIÁRIOS | E19: Percentuais | F19: Valor
B20: Submódulo 2.1 - 13º Salário e Adicional de Férias
C21: A | D21: 13º Salário | E21: ='Encargos Sociais'!$E$32 -> 0.0909 | F21: =ROUND(E21*F$17,2) -> 272.29 | H21: * Nota 1 - O 13º salário foi calculado dividindo-se por 11, para comportar os 11 meses presentes e ainda o ausente do posto
C22: B | D22: Adicional de Férias | E22: ='Encargos Sociais'!E31 -> 0.0303 | F22: =TRUNC(E22*(F$17),2) -> 90.76 | H22: * Nota 2 - O adicional de férias foi calculado dividindo-se por 11, para comportar os 11 meses presentes e ainda o ausente do posto
B24: Submódulo 2.2 - Encargos Previdenciários (GPS), Fundo de Garantia por Tempo de Serviço (FGTS) e Outras Contribuições
C25: A | D25: ='Encargos Sociais'!D14 -> INSS (art. 22, inciso I, Lei nº 8.212/91) | E25: ='Encargos Sociais'!E14 -> 0.2 | F25: =TRUNC(E25*($F$17+$F$21+$F$22+$F$80-$F$69),2) -> 737.61 | H25: * Nota 1 - Os percentuais dos encargos previdenciários, do FGTS e demais contribuições são estabelecidos por legislação vigente.
C26: B | D26: ='Encargos Sociais'!D15 -> Salário Educação (art. 3º, inciso I, Decreto nº 87.043/82) | E26: ='Encargos Sociais'!E15 -> 0.025 | F26: =TRUNC(E26*($F$17+$F$21+$F$22+$F$80),2) -> 92.26 | H26: * Nota 2 - O SAT, a depender do grau de risco do serviço, irá variar entre 1%, para risco leve, de 2%, para risco médio, e de 3% para risco grave.
C27: C | D27: ='Encargos Sociais'!D16 -> SAT/RAT (art. 22, II, Lei 8.212/91 e Anexo V, Decreto 6.042/07) - Enquadramento 8121-4/00 | E27: ='Encargos Sociais'!E16 -> 0.03 | F27: =TRUNC(E27*($F$17+$F$21+$F$22+$F$80),2) -> 110.72 | H27: * Nota 3 - Base de cálculo - remuneração + ausências + 13º salário + terço constitucional (férias) - exceto INSS sobre ausência por acidente de trabalho
C28: D | D28: ='Encargos Sociais'!D17 -> SESC ou SESI (art. 30, Lei nº 8.036/90 e art. 1º, Lei 8.154/90) | E28: ='Encargos Sociais'!E17 -> 0.015 | F28: 55.36
C29: E | D29: ='Encargos Sociais'!D18 -> SENAI ou SENAC (Decreto nº 2.318/86) | E29: ='Encargos Sociais'!E18 -> 0.01 | F29: 36.9
C30: F | D30: ='Encargos Sociais'!D19 -> SEBRAE (§ 3º, art. 8º, Lei 8.029/90, alterada pela Lei nº 8.154/90) | E30: ='Encargos Sociais'!E19 -> 0.006 | F30: 22.14
C31: G | D31: ='Encargos Sociais'!D20 -> INCRA (art. 1º, I, Decreto Lei 1.146/70 e Lei 7.787, de 30/06/89) | E31: ='Encargos Sociais'!E20 -> 0.002 | F31: 7.38
C32: H | D32: ='Encargos Sociais'!D21 -> FGTS (Lei Complementar nº 110/01 e art. 30, Lei nº 8.036/90) | E32: ='Encargos Sociais'!E21 -> 0.08 | F32: 295.25
C33: I | D33: ='Encargos Sociais'!D22 -> SECONCI (Convenções Coletivas de Trabalho da construção) | E33: ='Encargos Sociais'!E22 -> 0 | F33: 0
B35: Submódulo 2.3 - Benefícios Mensais e Diários
C36: A | D36: Auxílio Transporte | F36: =HLOOKUP($B$5,'Dados Gerais'!$D$6:$BI$140,85) -> 180.63 | H36: * Nota 1 - O valor informado deverá ser o custo real do benefício (descontado o valor eventualmente pago pelo empregado).
C37: B | D37: Auxílio Alimentação | F37: =HLOOKUP($B$5,'Dados Gerais'!$D$6:$BI$140,92) -> 1238.9 | H37: * Nota 2 - Observar a previsão dos benefícios contidos em Acordos, Convenções e Dissídios Coletivos de Trabalho e o disposto no art. 6º da IN 5/2017
C38: C | D38: Assistência Médica e Familiar | F38: =HLOOKUP($B$5,'Dados Gerais'!$D$6:$BI$140,100) -> 0
C39: D | D39: Seguro de vida / auxílio funeral | F39: =HLOOKUP($B$5,'Dados Gerais'!$D$6:$BI$140,109) -> 3.61
C40: E | D40: Assistência odontológica | F40: =HLOOKUP($B$5,'Dados Gerais'!$D$6:$BI$140,115) -> 0
C41: F | D41: Auxílio creche | F41: =HLOOKUP($B$5,'Dados Gerais'!$D$6:$BI$140,121) -> 0
C42: G | D42: Auxílio vestuário especial | F42: =HLOOKUP($B$5,'Dados Gerais'!$D$6:$BI$140,127) -> 0
C43: H | D43: Benefício social familiar | F43: =HLOOKUP($B$5,'Dados Gerais'!$D$6:$BI$140,133) -> 0
C44: I | D44: Outros (especificar)
C45: J | D45: Outros (especificar)
D47: QUADRO-RESUMO DO MÓDULO 2
D48: 2.1 - 13º salário e Adicional de Férias | E48: =SUM(E21:E22) -> 0.1212 | F48: =F21+F22 -> 363.05
D49: 2.2 - Encargos Previdenciários (GPS), Fundo de Garantia por Tempo de Serviço (FGTS) e Contribuições | E49: =SUM(E25:E33) -> 0.368 | F49: =SUM(F25:F33) -> 1357.62
D50: 2.3 - Benefícios Mensais e Diários | F50: =SUM(F36:F45) -> 1423.14
D52: TOTAL DOS ENCARGOS E BENEFÍCIOS | F52: =TRUNC(SUM(F48:F50),2) -> 3143.81
B54: MÓDULO 3 - PROVISÃO PARA RESCISÃO | E54: Percentuais | F54: Valor
C55: A | D55: ='Encargos Sociais'!D36 -> Aviso Prévio Indenizado (Art. 7º, inciso XXI, da CF/1988 e arts. 477, 487, §1º, e 491 da CLT) | E55: ='Encargos Sociais'!E36 -> 0.0042 | F55: =TRUNC(E55*($F$17+$F$48+$F$80),2) -> 15.5 | H55: * Nota 1 - Base de cálculo - remuneração + ausências + 1/3 férias + 13º
C56: B | D56: ='Encargos Sociais'!D37 -> Incidência do FGTS sobre o Aviso Prévio Indenizado (Súmula 305 TST) | E56: ='Encargos Sociais'!E37 -> 0.0003 | F56: =TRUNC(E56*($F$17+$F$48+$F$80),2) -> 1.1
C57: C | D57: ='Encargos Sociais'!D38 -> Multa do FGTS sobre o Aviso Prévio Indenizado (Art. 18, §1º, da Lei 8.036/1990) | E57: ='Encargos Sociais'!E38 -> 0 | F57: =TRUNC(E57*($F$17+$F$48+$F$80),2) -> 0 | H57: * Nota 2 - zerado pois foi considerada toda a incidência da multa do FGTS na letra F
C58: D | D58: ='Encargos Sociais'!D39 -> Aviso Prévio Trabalhado (Art. 488, parágrafo único, CLT) | E58: ='Encargos Sociais'!E39 -> 0.0078 | F58: =TRUNC(E58*($F$17),2) -> 23.36
C59: E | D59: ='Encargos Sociais'!D40 -> Incidência de GPS, FGTS e outras contribuições sobre o Aviso Prévio Trabalhado | E59: ='Encargos Sociais'!E40 -> 0.0029 | F59: =TRUNC(E59*($F$17),2) -> 8.68
C60: F | D60: ='Encargos Sociais'!D41 -> Multa do FGTS | E60: ='Encargos Sociais'!E41 -> 0.032 | F60: =TRUNC(E60*($F$17+$F$48+$F$80),2) -> 118.1
D62: TOTAL DE PROVISÃO PARA RESCISÃO | F62: =TRUNC(SUM(F55:F60),2) -> 166.74
B64: MÓDULO 4 - CUSTO DO PROFISSIONAL AUSENTE | E64: Percentuais | F64: Valor
B65: Submódulo 4.1 - Ausências Legais
C66: A | D66: ='Encargos Sociais'!D25 -> Férias (Arts. 129 e 130, inc. I, da CLT) | E66: ='Encargos Sociais'!E25 -> 0.0909 | F66: =TRUNC(E66*$F$17,2) -> 272.29 | H66: * Nota 1 - O Módulo 4 refere-se às previsões para custear ausências do próprio profissional (titular do cargo)
C67: B | D67: ='Encargos Sociais'!D26 -> Ausências Legais (Arts. 131 e 473 da CLT) | E67: ='Encargos Sociais'!E26 -> 0.0079 | F67: 23.66 | H67: * Nota 2 - As férias foram calculadas dividindo-se por 11, para comportar os 11 meses presentes e ainda o ausente do posto
C68: C | D68: ='Encargos Sociais'!D27 -> Licença-Paternidade (Art. 7º, XIX, e art. 10, §1º, do ADCT, CF/1988 e Art. 1º, II, da Lei 11.770/2008) | E68: ='Encargos Sociais'!E27 -> 0.0008 | F68: 2.39
C69: D | D69: ='Encargos Sociais'!D28 -> Ausência por Acidente de Trabalho (Art. 131, III, da CLT) | E69: ='Encargos Sociais'!E28 -> 0.0009 | F69: 2.69
C70: E | D70: ='Encargos Sociais'!D29 -> Afastamento Maternidade (Art. 71 da Lei nº 8.213/1991) | E70: ='Encargos Sociais'!E29 -> 0.0033 | F70: 9.88
C71: F | D71: ='Encargos Sociais'!D30 -> Auxílio Enfermidade - Doença (Art. 59 da Lei nº 8.213/1991) | E71: ='Encargos Sociais'!E30 -> 0.0071 | F71: 21.26
B73: Submódulo 4.2 - Intrajornada
C74: A | D74: Intervalo para repouso ou alimentação | E74: ='Encargos Sociais'!E33 -> 0 | F74: =ROUND(E74*$F$17,2) -> 0
D76: QUADRO-RESUMO DO MÓDULO 4 | F76: Valor
D77: 4.1 - Ausências Legais | E77: =SUM(E66:E71) -> 0.1109 | F77: =SUM(F66:F71) -> 332.17
D78: 4.2 - Intrajornada | E78: =E74 -> 0 | F78: =ROUND(E78*$F$17,2) -> 0
D80: TOTAL DE CUSTO DO PROFISSIONAL AUSENTE E INTERVALO INTRAJORNADA | F80: =TRUNC(SUM(F77:F78),2) -> 332.17
B82: MÓDULO 5 - INSUMOS DIVERSOS | F82: Valor
C83: A | D83: Uniformes - aquisição | F83: =TRUNC(HLOOKUP($B$5,Uniformes!$K$3:$DZ$5,3,0)/12,2) -> 73.19
C84: B | D84: Materiais de consumo relacionados ao posto - aquisição | F84: 0
C85: C | D85: Ferramentas relacionadas ao posto - remuneração da sua depreciação / manutenção | F85: 0
C86: D | D86: Equipamentos relacionados ao posto - remuneração da sua depreciação / manutenção | F86: 0
C87: E | D87: Equipamentos de Proteção Individual - EPI - aquisição | F87: =TRUNC(HLOOKUP($B$5,EPI!$J$3:$DY$5,3,0)/12,2) -> 118.81
D89: TOTAL DE INSUMOS DIVERSOS | F89: =SUM(F83:F88) -> 192 | H89: * Nota - Valores mensais por empregado
B91: MÓDULO 6 - CUSTOS INDIRETOS, TRIBUTOS E LUCRO - BDI | E91: Percentuais | F91: Valor
C92: A | D92: Custos Indiretos | E92: ='BDI - Geral'!E7 -> 0.0227
C93: A.1 | D93: Administração Central | E93: ='BDI - Geral'!E8 -> 0.0173
C94: A.2 | D94: Seguros, Garantias e Riscos | E94: ='BDI - Geral'!E9 -> 0.0054
C95: B | D95: Lucro | E95: ='BDI - Geral'!E11 -> 0.0267
C96: C | D96: Tributos | E96: =SUM(E97:E98) -> 0.124
C97: C.1 | D97: Tributos Federais (COFINS, PIS e CPRB) | E97: ='BDI - Geral'!E19 -> 0.074
C98: C.2 | D98: Tributos Distritais (ISS) | E98: ='BDI - Geral'!E24 -> 0.05
C99: D | D99: Despesas Financeiras | E99: ='BDI - Geral'!E14 -> 0.0061
D101: TOTAL DE BDI | E101: ='BDI - Geral'!E27 -> 0.2059 | F101: =TRUNC(E101*E109,2) -> 1406.34
D103: QUADRO-RESUMO DO CUSTO MENSAL POR EMPREGADO | E103: Valor
D104: Módulo 1 - Composição da Remuneração | E104: =F17 -> 2995.52
D105: Módulo 2 - Encargos e Benefícios Anuais, Mensais e Diários | E105: =F52 -> 3143.81
D106: Módulo 3 - Provisão para Rescisão | E106: =F62 -> 166.74
D107: Módulo 4 - Custo do Profissional Ausente | E107: =F80 -> 332.17
D108: Módulo 5 - Insumos Diversos | E108: =F89 -> 192
D109: SUBTOTAL (A+B+C+D+E) | E109: =SUM(E104:E108) -> 6830.24
D110: Módulo 6 - Custos Indiretos, Tributos e Lucro | E110: =F101 -> 1406.34
D112: TOTAL DO POSTO | E112: =SUM(E109:E110) -> 8236.58

Sheet Dados Gerais
B4: INFORMAÇÕES DE ENTRADA
D6: 1 | E6: 2 | F6: 3 | G6: 4 | H6: 5 | I6: 6 | J6: 7 | K6: 8 | L6: 9 | M6: 10 | N6: 11 | O6: 12 | P6: 13 | Q6: 14 | R6: 15 | S6: 16 | T6: 17 | U6: 18 | V6: 19 | W6: 20 | X6: 21 | Y6: 22 | Z6: 23 | AA6: 24 | AB6: 25 | AC6: 26 | AD6: 27 | AE6: 28 | AF6: 29 | AG6: 30 | AH6: 31 | AI6: 32 | AJ6: 33 | AK6: 34 | AL6: 35 | AM6: 36 | AO6: 40 | AP6: 41 | AQ6: 42 | AR6: 43 | AS6: 44 | AT6: 45 | AU6: 46 | AV6: 47 | AW6: 48 | AX6: 49 | AY6: 50 | AZ6: 51 | BA6: 52 | BB6: 53 | BC6: 54 | BD6: 55 | BE6: 56 | BF6: 57 | BG6: 58 | BH6: 59 | BI6: 60
D7: CARGO 1 | E7: CARGO 2 | F7: CARGO 3 | G7: CARGO 4 | H7: CARGO 5 | I7: CARGO 6 | J7: CARGO 7 | K7: CARGO 8 | L7: CARGO 9 | M7: CARGO 10 | N7: CARGO 11 | O7: CARGO 12 | P7: CARGO 13 | Q7: CARGO 14 | R7: CARGO 15 | S7: CARGO 16 | T7: CARGO 17 | U7: CARGO 18 | V7: CARGO 19 | W7: CARGO 20 | X7: CARGO 21 | Y7: CARGO 22 | Z7: CARGO 23 | AA7: CARGO 24 | AB7: CARGO 25 | AC7: CARGO 26 | AD7: CARGO 27 | AE7: CARGO 28 | AF7: CARGO 29 | AG7: CARGO 30 | AH7: CARGO 31 | AI7: CARGO 32 | AJ7: CARGO 33 | AK7: CARGO 34 | AL7: CARGO 35 | AM7: CARGO 36 | AO7: CARGO 40 | AP7: CARGO 41 | AQ7: CARGO 42 | AR7: CARGO 43 | AS7: CARGO 44 | AT7: CARGO 45 | AU7: CARGO 46 | AV7: CARGO 47 | AW7: CARGO 48 | AX7: CARGO 49 | AY7: CARGO 50 | AZ7: CARGO 51 | BA7: CARGO 52 | BB7: CARGO 53 | BC7: CARGO 54 | BD7: CARGO 55 | BE7: CARGO 56 | BF7: CARGO 57 | BG7: CARGO 58 | BH7: CARGO 59 | BI7: CARGO 60
B8: INFORMAÇÕES BÁSICAS
B10: DESCRIÇÃO DOS POSTOS DE SERVIÇO
D11: ENCARREGADO GERAL | E11: ENCARREGADA DE SETOR | F11: COPEIRA | G11: COPEIRO | H11: GARÇONETE | I11: GARÇOM | J11: AUXILIAR DE ENCARREGADO (FEMININO) | K11: GARÇONETE DO GABINETE DA PRESIDÊNCIA | L11: GARÇOM DO GABINETE DA PRESIDÊNCIA | M11: ARRUMADEIRA | N11: AUXILIAR DE COZINHA (FEMININO) | O11: AUXILIAR DE COZINHA (MASCULINO) | P11: COZINHEIRA | Q11: COZINHEIRO | R11: CHEFE DE COZINHA (FEMININO) | S11: CHEFE DE COZINHA (MASCULINO) | T11: GARÇOM DA RESIDÊNCIA OFICIAL DO PRESIDENTE | U11: GARÇOM DA RESIDÊNCIA OFICIAL DO PRESIDENTE (COM ADICIONAL NOTURNO) | V11: AUXILIAR DE SERVIÇOS GERAIS
B12: REMUNERAÇÕES
D13: 9452.69 | E13: 4764.77 | F13: 2176.92 | G13: 2176.92 | H13: 3027.53 | I13: 3027.53 | J13: 3108.64 | K13: 4225.4 | L13: 4225.4 | M13: 3196.66 | N13: 2878.22 | O13: 2878.22 | P13: 3713.5 | Q13: 3713.5 | R13: 7350.75 | S13: 7350.75 | T13: 5343.2 | U13: 5343.2 | V13: 2995.52
B14: QUANTIDADE DE POSTOS
D15: 1 | E15: =4+1 -> 5 | F15: 201 | G15: 18 | H15: 10 | I15: 30 | J15: 1 | K15: 1 | L15: 2 | M15: 4 | N15: 2 | O15: 1 | P15: 2 | Q15: 1 | R15: 1 | S15: 2 | T15: 3 | U15: 2 | V15: 2
B16: JORNADA
C17: HORAS/DIA | D17: 08:48:00 | E17: =D17 -> 08:48:00 | F17: 08:48:00 | G17: 08:48:00 | H17: =G17 -> 08:48:00 | I17: =H17 -> 08:48:00 | J17: =I17 -> 08:48:00 | K17: =J17 -> 08:48:00 | L17: 08:48:00 | M17: 08:00:00 | N17: =M17 -> 08:00:00 | O17: 08:00:00 | P17: =O17 -> 08:00:00 | Q17: =P17 -> 08:00:00 | R17: =Q17 -> 08:00:00 | S17: =R17 -> 08:00:00 | T17: =S17 -> 08:00:00 | U17: 12:00:00 | V17: =M17 -> 08:00:00
C18: DIAS/MÊS | D18: 22 | E18: =D18 -> 22 | F18: =E18 -> 22 | G18: 22 | H18: 22 | I18: 22 | J18: =I18 -> 22 | K18: =J18 -> 22 | L18: =K18 -> 22 | M18: 26 | N18: =M18 -> 26 | O18: =N18 -> 26 | P18: =M18 -> 26 | Q18: =N18 -> 26 | R18: =Q18 -> 26 | S18: =R18 -> 26 | T18: =S18 -> 26 | U18: 15 | V18: =M18 -> 26
C19: HORAS/MÊS | D19: =44*5 -> 220 | E19: =D19 -> 220 | F19: =E19 -> 220 | G19: 220 | H19: 220 | I19: 220 | J19: 220 | K19: 220 | L19: 220 | M19: 220 | N19: 220 | O19: 220 | P19: 220 | Q19: 220 | R19: 220 | S19: 220 | T19: 220 | U19: 220 | V19: 220
B20: CCT UTILIZADA
C21: SINDICATOS E REFERÊNCIA | D21: SEAC/DF x SINDISERVIÇOS/DF CCT 2025/2026 N.º DF000042/2025 | E21: =D21 -> SEAC/DF x SINDISERVIÇOS/DF CCT 2025/2026 N.º DF000042/2025 | F21: =E21 -> SEAC/DF x SINDISERVIÇOS/DF CCT 2025/2026 N.º DF000042/2025 | G21: SEAC/DF x SINDISERVIÇOS/DF CCT 2025/2026 N.º DF000042/2025 | H21: SEAC/DF x SINDISERVIÇOS/DF CCT 2025/2026 N.º DF000042/2025 | I21: SEAC/DF x SINDISERVIÇOS/DF CCT 2025/2026 N.º DF000042/2025 | J21: SEAC/DF x SINDISERVIÇOS/DF CCT 2025/2026 N.º DF000042/2025 | K21: SEAC/DF x SINDISERVIÇOS/DF CCT 2025/2026 N.º DF000042/2025 | L21: SEAC/DF x SINDISERVIÇOS/DF CCT 2025/2026 N.º DF000042/2025 | M21: SEAC/DF x SINDISERVIÇOS/DF CCT 2025/2026 N.º DF000042/2025 | N21: SEAC/DF x SINDISERVIÇOS/DF CCT 2025/2026 N.º DF000042/2025 | O21: SEAC/DF x SINDISERVIÇOS/DF CCT 2025/2026 N.º DF000042/2025 | P21: SEAC/DF x SINDISERVIÇOS/DF CCT 2025/2026 N.º DF000042/2025 | Q21: SEAC/DF x SINDISERVIÇOS/DF CCT 2025/2026 N.º DF000042/2025 | R21: SEAC/DF x SINDISERVIÇOS/DF CCT 2025/2026 N.º DF000042/2025 | S21: SEAC/DF x SINDISERVIÇOS/DF CCT 2025/2026 N.º DF000042/2025 | T21: SEAC/DF x SINDISERVIÇOS/DF CCT 2025/2026 N.º DF000042/2025 | U21: SEAC/DF x SINDISERVIÇOS/DF CCT 2025/2026 N.º DF000042/2025 | V21: SEAC/DF x SINDISERVIÇOS/DF CCT 2025/2026 N.º DF000042/2025
C22: DATA-BASE | D22: 2025-01-01 | E22: =D22 -> 2025-01-01 | F22: =E22 -> 2025-01-01 | G22: 2025-01-01 | H22: 2025-01-01 | I22: 2025-01-01 | J22: 2025-01-01 | K22: 2025-01-01 | L22: 2025-01-01 | M22: 2025-01-01 | N22: 2025-01-01 | O22: 2025-01-01 | P22: 2025-01-01 | Q22: 2025-01-01 | R22: 2025-01-01 | S22: 2025-01-01 | T22: 2025-01-01 | U22: 2025-01-01 | V22: 2025-01-01
B24: ADICIONAIS LEGAIS E GRATIFICAÇÕES
B26: PERICULOSIDADE (PERCENTUAL)
D27: 0 | E27: 0 | F27: 0 | G27: 0 | H27: 0 | I27: 0 | J27: 0 | K27: 0 | L27: 0 | M27: 0 | N27: 0 | O27: 0 | P27: 0 | Q27: 0 | R27: 0 | S27: 0 | T27: 0 | U27: 0 | V27: 0 | Y27: 0.3 | Z27: 0.3 | AA27: 0 | AB27: 0 | AC27: 0 | AD27: 0 | AE27: 0 | AF27: 0 | AG27: 0 | AH27: 0 | AI27: 0 | AJ27: 0 | AK27: 0 | AL27: 0 | AM27: 0
B28: BASE DE CÁLCULO DO ADICIONAL DE PERICULOSIDADE (SALÁRIO BÁSICO)
D29: =D13 -> 9452.69 | E29: =E13 -> 4764.77 | F29: =F13 -> 2176.92 | G29: =G13 -> 2176.92 | H29: =H13 -> 3027.53 | I29: =I13 -> 3027.53 | J29: 3108.64 | K29: =K13 -> 4225.4 | L29: 4225.4 | M29: 3196.66 | N29: 2878.22 | O29: =O13 -> 2878.22 | P29: 3713.5 | Q29: =Q13 -> 3713.5 | R29: 7350.75 | S29: =S13 -> 7350.75 | T29: 5343.2 | U29: =U13 -> 5343.2 | V29: =V13 -> 2995.52 | Y29: =Y13 -> 0 | Z29: =Z13 -> 0 | AA29: =AA13 -> 0 | AB29: 0 | AC29: 0 | AD29: 0 | AE29: 0 | AF29: 0 | AG29: 0 | AH29: 0 | AI29: 0 | AJ29: 0 | AK29: 0 | AL29: 0 | AM29: 0
B30: VALOR MENSAL DO ADICIONAL DE PERICULOSIDADE
D31: =ROUND(D27*D13,2) -> 0 | E31: =ROUND(E27*E13,2) -> 0 | F31: =ROUND(F27*F13,2) -> 0 | G31: =ROUND(G27*G13,2) -> 0 | H31: =ROUND(H27*H13,2) -> 0 | I31: =ROUND(I27*I13,2) -> 0 | J31: 0 | K31: =ROUND(K27*K13,2) -> 0 | L31: 0 | M31: 0 | N31: 0 | O31: =ROUND(O27*O13,2) -> 0 | P31: 0 | Q31: =ROUND(Q27*Q13,2) -> 0 | R31: 0 | S31: =ROUND(S27*S13,2) -> 0 | T31: 0 | U31: =ROUND(U27*U13,2) -> 0 | V31: =ROUND(V27*V13,2) -> 0 | Y31: =ROUND(Y27*Y13,2) -> 0 | Z31: =ROUND(Z27*Z13,2) -> 0 | AA31: =ROUND(AA27*AA13,2) -> 0 | AB31: 0 | AC31: 0 | AD31: 0 | AE31: 0 | AF31: 0 | AG31: 0 | AH31: 0 | AI31: 0 | AJ31: 0 | AK31: 0 | AL31: 0 | AM31: 0
B32: INSALUBRIDADE (PERCENTUAL)
D33: 0 | E33: 0 | F33: 0 | G33: 0 | H33: 0 | I33: 0 | J33: 0 | K33: 0 | L33: 0 | M33: 0 | N33: 0 | O33: 0 | P33: 0.1 | Q33: 0.1 | R33: 0 | S33: 0 | T33: 0 | U33: 0 | V33: 0 | Y33: 0 | Z33: 0 | AA33: 0 | AB33: 0 | AC33: 0 | AD33: 0 | AE33: 0 | AF33: 0 | AG33: 0 | AH33: 0 | AI33: 0 | AJ33: 0 | AK33: 0 | AL33: 0 | AM33: 0
B34: BASE DE CÁLCULO DO ADICIONAL DE INSALUBRIDADE (SALÁRIO MÍNIMO LEGAL)
D35: 1518 | E35: =D35 -> 1518 | F35: =E35 -> 1518 | G35: 1518 | H35: 1518 | I35: 1518 | J35: 1518 | K35: 1518 | L35: 1518 | M35: 1518 | N35: 1518 | O35: 1518 | P35: 2917.79 | Q35: 2917.79 | R35: =P35 -> 2917.79 | S35: 2917.79 | T35: 2917.79 | U35: 2917.79 | V35: 2917.79 | Y35: 1100 | Z35: 1100 | AA35: 1100 | AB35: 1100 | AC35: 1100 | AD35: 1100 | AL35: 1100
B36: VALOR MENSAL DO ADICIONAL DE INSALUBRIDADE
D37: =ROUND(D33*D35,2) -> 0 | E37: =ROUND(E33*E35,2) -> 0 | F37: =ROUND(F33*F35,2) -> 0 | G37: =ROUND(G33*G35,2) -> 0 | H37: =ROUND(H33*H35,2) -> 0 | I37: =ROUND(I33*I35,2) -> 0 | J37: 0 | K37: =ROUND(K33*K35,2) -> 0 | L37: 0 | M37: 0 | N37: 0 | O37: =ROUND(O33*O35,2) -> 0 | P37: 291.78 | Q37: =ROUND(Q33*Q35,2) -> 291.78 | R37: =ROUND(R33*R35,2) -> 0 | S37: =ROUND(S33*S35,2) -> 0 | T37: =ROUND(T33*T35,2) -> 0 | U37: =ROUND(U33*U35,2) -> 0 | V37: =ROUND(V33*V35,2) -> 0 | Y37: =ROUND(Y33*Y35,2) -> 0 | Z37: 0 | AA37: 0 | AB37: 0 | AC37: 0 | AD37: 0 | AE37: =ROUND(AE33*AE35,2) -> 0 | AF37: 0 | AG37: 0 | AH37: 0 | AI37: 0 | AJ37: 0 | AK37: 0 | AL37: 0 | AM37: 0
B38: GRATIFICAÇÃO - VALOR MENSAL (R$)
D39: 0 | E39: 0 | F39: 0 | G39: 0 | H39: 0 | I39: 0 | J39: 0 | K39: 0 | L39: 0 | M39: 0 | N39: 0 | O39: 0 | P39: 0 | Q39: 0 | R39: 0 | S39: 0 | T39: 0 | U39: 0 | V39: 0 | Y39: 0 | Z39: 0 | AA39: 0 | AB39: 0 | AC39: 0 | AD39: 0 | AE39: 0 | AF39: 0 | AG39: 0 | AH39: 0 | AI39: 0 | AJ39: 0 | AK39: 0 | AL39: 0 | AM39: 0
B40: SOBREAVISO - VALOR MENSAL (R$)
D41: 0 | E41: 0 | F41: 0 | G41: 0 | H41: 0 | I41: 0 | J41: 0 | K41: 0 | L41: 0 | M41: 0 | N41: 0 | O41: 0 | P41: 0 | Q41: 0 | R41: 0 | S41: 0 | T41: 0 | U41: 0 | V41: 0 | Y41: 0 | Z41: 0 | AA41: 0 | AB41: 0 | AC41: 0 | AD41: 0 | AE41: 0 | AF41: 0 | AG41: 0 | AH41: 0 | AI41: 0 | AJ41: 0 | AK41: 0 | AL41: 0 | AM41: 0
B43: ADICIONAL NOTURNO
B45: INCIDÊNCIA (PERCENTUAL)
C46: *conforme parágrafo terceiro da cláusula quadragésima oitava da CCT | D46: 0.225 | E46: 0.225 | F46: 0.225 | G46: 0.225 | H46: 0.225 | I46: 0.225 | J46: 0.225 | K46: 0.225 | L46: 0.225 | M46: 0.225 | N46: 0.225 | O46: 0.225 | P46: 0.225 | Q46: 0.225 | R46: 0.225 | S46: 0.225 | T46: 0.225 | U46: 0.225 | V46: 0.225 | Y46: 0.2 | Z46: 0.2 | AA46: 0.2 | AB46: 0.2 | AC46: 0.2 | AD46: 0.2 | AE46: 0.2 | AF46: 0.2 | AG46: 0.2 | AH46: 0.2 | AI46: 0.2 | AJ46: 0.2 | AK46: 0.2 | AL46: 0.2 | AM46: 0.2
B47: HORAS REAIS POR DIA
C48: *considerando 1 hora de intervalo para alimentação | D48: 0 | E48: 0 | F48: 0 | G48: 0 | H48: 0 | I48: 0 | J48: 0 | K48: 0 | L48: 0 | M48: 0 | N48: 0 | O48: 0 | P48: 0 | Q48: 0 | R48: 0 | S48: 0 | T48: 0 | U48: =7-1 -> 6 | V48: 0 | Y48: 0 | Z48: 0 | AA48: 0 | AB48: 0 | AC48: 0 | AD48: 0 | AE48: 0 | AF48: 0 | AG48: 0 | AH48: 0 | AI48: 0 | AJ48: 0 | AK48: 0 | AL48: 0 | AM48: 0 | AN48: 0
B49: HORAS FICTAS POR DIA
C50: *conforme parágrafo terceiro da cláusula quadragésima oitava da CCT | D50: =D48*8/7 -> 0 | E50: =E48*8/7 -> 0 | F50: =F48*8/7 -> 0 | G50: =G48*8/7 -> 0 | H50: =H48*8/7 -> 0 | I50: =I48*8/7 -> 0 | J50: 0 | K50: =K48*8/7 -> 0 | L50: 0 | M50: 0 | N50: =N48 -> 0 | O50: =O48 -> 0 | P50: =P48*8/7 -> 0 | Q50: =Q48*8/7 -> 0 | R50: 0 | S50: =S48*8/7 -> 0 | T50: 0 | U50: =U48*8/8 -> 6 | V50: =V48*8/7 -> 0 | Y50: =Y48*8/7 -> 0 | Z50: =Z48*8/7 -> 0 | AA50: =AA48*8/7 -> 0 | AB50: 0 | AC50: 0 | AD50: 0 | AE50: 0 | AF50: 0 | AG50: 0 | AH50: 0 | AI50: 0 | AJ50: 0 | AK50: 0 | AL50: 0 | AM50: 0
B51: BASE DE CÁLCULO DO ADICIONAL NOTURNO (INCLUINDO ADICIONAIS E GRATIFICAÇÕES)
D52: =D13+D31+D37+D41 -> 9452.69 | E52: =E13+E31+E37+E41 -> 4764.77 | F52: =F13+F31+F37+F41 -> 2176.92 | G52: =G13+G31+G37+G41 -> 2176.92 | H52: =H13+H31+H37+H41 -> 3027.53 | I52: =I13+I31+I37+I41 -> 3027.53 | J52: 3108.64 | K52: =K13+K31+K37+K41 -> 4225.4 | L52: 4225.4 | M52: 3196.66 | N52: 2878.22 | O52: =O13+O31+O37+O41 -> 2878.22 | P52: 4005.28 | Q52: =Q13+Q31+Q37+Q41 -> 4005.28 | R52: 7350.75 | S52: =S13+S31+S37+S41 -> 7350.75 | T52: 5343.2 | U52: =U13+U31+U37+U41 -> 5343.2 | V52: =V13+V31+V37+V41 -> 2995.52 | Y52: =Y13+Y31+Y37+Y41 -> 0 | Z52: =Z13+Z31+Z37+Z41 -> 0 | AA52: =AA13+AA31+AA37+AA41 -> 0 | AB52: 0 | AC52: 0 | AD52: 0 | AE52: 0 | AF52: 0 | AG52: 0 | AH52: 0 | AI52: 0 | AJ52: 0 | AK52: 0 | AL52: 0 | AM52: 0
B53: VALOR MENSAL DO ADICIONAL NOTURNO (HORA NORMAL + HORA REDUZIDA) - POR POSTO
D54: =ROUND(D50*D18*D46*D52/D19,2) -> 0 | E54: 0 | F54: 0 | G54: 0 | H54: 0 | I54: 0 | J54: 0 | K54: 0 | L54: 0 | M54: 0 | N54: 0 | O54: 0 | P54: 0 | Q54: 0 | R54: 0 | S54: 0 | T54: 0 | U54: 491.82 | V54: 0 | Y54: =ROUND(Y50*Y18*Y46*Y52/Y19,2) -> 
B56: ADICIONAL DE HORA EXTRA
B58: INCIDÊNCIA (PERCENTUAL 1)
D59: 0.5 | E59: 0.5 | F59: 0.5 | G59: 0.5 | H59: 0.5 | I59: 0.5 | J59: 0.5 | K59: 0.5 | L59: 0.5 | M59: 0.5 | N59: 0.5 | O59: 0.5 | P59: 0.5 | Q59: 0.5 | R59: 0.5 | S59: 0.5 | T59: 0.5 | U59: 0.5 | V59: 0.5 | Y59: 0.5 | Z59: 0.5 | AA59: 0.5 | AB59: 0.5 | AC59: 0.5 | AD59: 0.5 | AE59: 0.5 | AF59: 0.5 | AG59: 0.5 | AH59: 0.5 | AI59: 0.5 | AJ59: 0.5 | AK59: 0.5 | AL59: 0.5 | AM59: 0.5
B60: HORAS EXTRAS POR MÊS (PERCENTUAL 1)
D61: 0 | E61: 0 | F61: 0 | G61: 0 | H61: 0 | I61: 0 | J61: 0 | K61: 0 | L61: 0 | M61: 0 | N61: 0 | O61: 0 | P61: 0 | Q61: 0 | R61: 0 | S61: 0 | T61: 0 | U61: 0 | V61: 0 | Y61: 0 | Z61: 0 | AA61: 0 | AB61: 0 | AC61: 0 | AD61: 0 | AE61: 0 | AF61: 0 | AG61: 0 | AH61: 0 | AI61: 0 | AJ61: 0 | AK61: 0 | AL61: 0 | AM61: 0
B62: VALOR MENSAL DO ADICIONAL DE HORAS EXTRAS (PERCENTUAL 1) - POR POSTO
D63: =ROUND(D61*D59*D13/D19,2) -> 0 | E63: 0 | F63: 0 | G63: 0 | H63: 0 | I63: 0 | J63: 0 | K63: 0 | L63: 0 | M63: 0 | N63: 0 | O63: 0 | P63: 0 | Q63: 0 | R63: 0 | S63: 0 | T63: 0 | U63: 0 | V63: 0 | Y63: =ROUND(Y61*Y59*Y13/Y19,2) -> 
B64: INCIDÊNCIA (PERCENTUAL 2)
D65: 1 | E65: 1 | F65: 1 | G65: 1 | H65: 1 | I65: 1 | J65: 1 | K65: 1 | L65: 1 | M65: 1 | N65: 1 | O65: 1 | P65: 1 | Q65: 1 | R65: 1 | S65: 1 | T65: 1 | U65: 1 | V65: 1 | Y65: 1 | Z65: 1 | AA65: 1 | AB65: 1 | AC65: 1 | AD65: 1 | AE65: 1 | AF65: 1 | AG65: 1 | AH65: 1 | AI65: 1 | AJ65: 1 | AK65: 1 | AL65: 1 | AM65: 1
B66: HORAS EXTRAS POR MÊS (PERCENTUAL 2)
D67: 0 | E67: 0 | F67: 0 | G67: 0 | H67: 0 | I67: 0 | J67: 0 | K67: 0 | L67: 0 | M67: 0 | N67: 0 | O67: 0 | P67: 0 | Q67: 0 | R67: 0 | S67: 0 | T67: 0 | U67: 0 | V67: 0 | Y67: 0 | Z67: 0 | AA67: 0 | AB67: 0 | AC67: 0 | AD67: 0 | AE67: 0 | AF67: 0 | AG67: 0 | AH67: 0 | AI67: 0 | AJ67: 0 | AK67: 0 | AL67: 0 | AM67: 0
B68: VALOR MENSAL DO ADICIONAL DE HORAS EXTRAS (PERCENTUAL 2) - POR POSTO
D69: =ROUND(D67*D65*D13/D19,2) -> 0 | E69: 0 | F69: 0 | G69: 0 | H69: 0 | I69: 0 | J69: 0 | K69: 0 | L69: 0 | M69: 0 | N69: 0 | O69: 0 | P69: 0 | Q69: 0 | R69: 0 | S69: 0 | T69: 0 | U69: 0 | V69: 0 | Y69: =ROUND(Y67*Y65*Y13/Y19,2) -> 
B70: TOTAL MENSAL DOS ADICIONAIS DE HORAS EXTRAS - POR POSTO
D71: =D69+D63 -> 0 | E71: =E69+E63 -> 0 | F71: =F69+F63 -> 0 | G71: =G69+G63 -> 0 | H71: =H69+H63 -> 0 | I71: =I69+I63 -> 0 | J71: 0 | K71: =K69+K63 -> 0 | L71: 0 | M71: 0 | N71: 0 | O71: =O69+O63 -> 0 | P71: 0 | Q71: =Q69+Q63 -> 0 | R71: 0 | S71: =S69+S63 -> 0 | T71: 0 | U71: =U69+U63 -> 0 | V71: =V69+V63 -> 0 | Y71: =Y69+Y63 ->  | Z71: =Z69+Z63 ->  | AA71: =AA69+AA63 -> 
B73: BENEFÍCIOS COMUNS - AUXÍLIO TRANSPORTE
B75: DISTRIBUIÇÃO ESTIMADA DE PROCEDÊNCIA
C76: Cidade-satélite | D76: =100%-D77 -> 0.8 | E76: =D76 -> 0.8 | F76: =E76 -> 0.8 | G76: 0.8 | H76: 0.8 | I76: 0.8 | J76: 0.8 | K76: 0.8 | L76: 0.8 | M76: 0.8 | N76: 0.8 | O76: 0.8 | P76: 0.8 | Q76: 0.8 | R76: 0.8 | S76: 0.8 | T76: 0.8 | U76: 0.8 | V76: 0.8 | Y76: 0.68 | Z76: 0.68 | AA76: 0.68 | AB76: 0.68 | AC76: 0.68 | AD76: 0.68 | AE76: 0.68 | AF76: 0.68 | AG76: 0.68 | AH76: 0.68 | AI76: 0.68 | AJ76: 0.68 | AK76: 0.68 | AL76: 0.68 | AM76: 0.68
C77: Região do entorno (média ponderada do contrato atual) | D77: =ROUND(59/SUM($D$15:$V$15),2) -> 0.2 | E77: =D77 -> 0.2 | F77: 0.2 | G77: 0.2 | H77: 0.2 | I77: 0.2 | J77: 0.2 | K77: 0.2 | L77: 0.2 | M77: 0.2 | N77: 0.2 | O77: 0.2 | P77: 0.2 | Q77: 0.2 | R77: 0.2 | S77: 0.2 | T77: 0.2 | U77: 0.2 | V77: 0.2 | Y77: 0.32 | Z77: 0.32 | AA77: 0.32 | AB77: 0.32 | AC77: 0.32 | AD77: 0.32 | AE77: 0.32 | AF77: 0.32 | AG77: 0.32 | AH77: 0.32 | AI77: 0.32 | AJ77: 0.32 | AK77: 0.32 | AL77: 0.32 | AM77: 0.32
C78: Esplanada - apenas para os que vêm do entorno | D78: =D77 -> 0.2 | E78: 0.2 | F78: 0.2 | G78: 0.2 | H78: 0.2 | I78: 0.2 | J78: 0.2 | K78: 0.2 | L78: 0.2 | M78: 0.2 | N78: 0.2 | O78: 0.2 | P78: 0.2 | Q78: 0.2 | R78: 0.2 | S78: 0.2 | T78: 0.2 | U78: 0.2 | V78: 0.2 | Y78: =Y77 -> 0.32 | Z78: =Z77 -> 0.32 | AA78: =AA77 -> 0.32 | AB78: 0.32 | AC78: 0.32 | AD78: 0.32 | AE78: 0.32 | AF78: 0.32 | AG78: 0.32 | AH78: 0.32 | AI78: 0.32 | AJ78: 0.32 | AK78: 0.32 | AL78: 0.32 | AM78: 0.32
B79: VALORES DOS VALES
C80: Cidade-satélite | D80: 5.5 | E80: =D80 -> 5.5 | F80: =E80 -> 5.5 | G80: =F80 -> 5.5 | H80: =G80 -> 5.5 | I80: =H80 -> 5.5 | J80: =I80 -> 5.5 | K80: =J80 -> 5.5 | L80: =K80 -> 5.5 | M80: =L80 -> 5.5 | N80: =M80 -> 5.5 | O80: =N80 -> 5.5 | P80: =O80 -> 5.5 | Q80: =P80 -> 5.5 | R80: =Q80 -> 5.5 | S80: =R80 -> 5.5 | T80: =S80 -> 5.5 | U80: =T80 -> 5.5 | V80: =U80 -> 5.5 | AA80: =V80 -> 5.5 | AB80: 0 | AC80: 0 | AD80: 0 | AE80: 0 | AF80: 5.5 | AG80: 0 | AH80: 0 | AI80: 0 | AJ80: 0 | AK80: 5.5 | AL80: 0 | AM80: 0
C81: Região do entorno (média ponderada do contrato atual) | D81: 9.9 | E81: =D81 -> 9.9 | F81: 9.9 | G81: 9.9 | H81: 9.9 | I81: 9.9 | J81: 9.9 | K81: 9.9 | L81: 9.9 | M81: 9.9 | N81: 9.9 | O81: 9.9 | P81: 9.9 | Q81: 9.9 | R81: 9.9 | S81: 9.9 | T81: 9.9 | U81: 9.9 | V81: 9.9 | AA81: 9.9 | AB81: 0 | AC81: 0 | AD81: 0 | AE81: 0 | AF81: 9.9 | AG81: 0 | AH81: 0 | AI81: 0 | AJ81: 0 | AK81: 9.9 | AL81: 0 | AM81: 0
C82: Esplanada | D82: 2.75 | E82: =D82 -> 2.75 | F82: 2.75 | G82: 2.75 | H82: 2.75 | I82: 2.75 | J82: 2.75 | K82: 2.75 | L82: 2.75 | M82: 2.75 | N82: 2.75 | O82: 2.75 | P82: 2.75 | Q82: 2.75 | R82: 2.75 | S82: 2.75 | T82: 2.75 | U82: 2.75 | V82: 2.75 | AA82: 2.75 | AB82: 0 | AC82: 0 | AD82: 0 | AE82: 0 | AF82: 2.75 | AG82: 0 | AH82: 0 | AI82: 0 | AJ82: 0 | AK82: 2.75 | AL82: 0 | AM82: 0
B83: VALOR MENSAL BRUTO DE PAGAMENTO - POR POSTO
D84: =ROUND((D76*D80+D77*D81+D78*D82)*2*D18,2) -> 304.92 | E84: 304.92 | F84: 304.92 | G84: 304.92 | H84: 304.92 | I84: 304.92 | J84: 304.92 | K84: 304.92 | L84: 304.92 | M84: 360.36 | N84: 360.36 | O84: 360.36 | P84: 360.36 | Q84: 360.36 | R84: 360.36 | S84: 360.36 | T84: 360.36 | U84: 207.9 | V84: 360.36 | Y84: =ROUND((Y76*Y80+Y77*Y81+Y78*Y82)*2*Y18,2) -> 0 | Z84: 0 | AA84: 0 | AB84: 0 | AC84: 0 | AD84: 0 | AE84: 0 | AF84: 0 | AG84: 0 | AH84: 0 | AI84: 0 | AJ84: 0 | AK84: 0 | AL84: 0 | AM84: 0
B85: PERCENTUAL DE DESCONTO
D86: 0.06 | E86: =D86 -> 0.06 | F86: =E86 -> 0.06 | G86: 0.06 | H86: 0.06 | I86: 0.06 | J86: 0.06 | K86: 0.06 | L86: 0.06 | M86: 0.06 | N86: 0.06 | O86: 0.06 | P86: 0.06 | Q86: 0.06 | R86: 0.06 | S86: 0.06 | T86: 0.06 | U86: 0.06 | V86: 0.06 | Y86: =X86 -> 0 | Z86: =Y86 -> 0 | AA86: =Z86 -> 0 | AB86: 0 | AC86: 0 | AD86: 0 | AE86: 0 | AF86: 0 | AG86: 0 | AH86: 0 | AI86: 0 | AJ86: 0 | AK86: 0 | AL86: 0 | AM86: 0
B87: VALOR MENSAL DO DESCONTO - POR POSTO
D88: =ROUND(D86*D13,2) -> 567.16 | E88: 285.89 | F88: 130.62 | G88: 130.62 | H88: 181.65 | I88: 181.65 | J88: 186.52 | K88: 253.52 | L88: 253.52 | M88: 191.8 | N88: 172.69 | O88: 172.69 | P88: 222.81 | Q88: 222.81 | R88: 441.05 | S88: 441.05 | T88: 320.59 | U88: 320.59 | V88: 179.73 | Y88: =ROUND(Y86*Y13,2) -> 0 | Z88: 0 | AA88: 0 | AB88: 0 | AC88: 0 | AD88: 0 | AE88: 0 | AF88: 0 | AG88: 0 | AH88: 0 | AI88: 0 | AJ88: 0 | AK88: 0 | AL88: 0 | AM88: 0
B89: VALOR MENSAL LÍQUIDO DO VALE TRANSPORTE - POR POSTO
D90: =IF(D84>D88,D84-D88,0) -> 0 | E90: =IF(E84>E88,E84-E88,0) -> 19.03 | F90: =IF(F84>F88,F84-F88,0) -> 174.3 | G90: 174.3 | H90: 123.27 | I90: 123.27 | J90: 118.4 | K90: 51.4 | L90: 51.4 | M90: 168.56 | N90: 187.67 | O90: 187.67 | P90: 137.55 | Q90: 137.55 | R90: 0 | S90: 0 | T90: 39.77 | U90: 0 | V90: 180.63 | Y90: =IF(Y84>Y88,Y84-Y88,0) -> 0 | Z90: =IF(Z84>Z88,Z84-Z88,0) -> 0 | AA90: =IF(AA84>AA88,AA84-AA88,0) -> 0 | AB90: 0 | AC90: 0 | AD90: 0 | AE90: 0 | AF90: 0 | AG90: 0 | AH90: 0 | AI90: 0 | AJ90: 0 | AK90: 0 | AL90: 0 | AM90: 0
D91: =D90*D15 -> 0 | E91: =E90*E15 -> 95.15 | F91: =F90*F15 -> 35034.3 | G91: =G90*G15 -> 3137.4
B92: BENEFÍCIOS COMUNS - AUXÍLIO ALIMENTAÇÃO
C94: VALOR CCT | D94: 44.3 | E94: =D94 -> 44.3 | F94: =E94 -> 44.3 | G94: =F94 -> 44.3 | H94: =G94 -> 44.3 | I94: =H94 -> 44.3 | J94: =I94 -> 44.3 | K94: =J94 -> 44.3 | L94: =K94 -> 44.3 | M94: =L94 -> 44.3 | N94: =M94 -> 44.3 | O94: =N94 -> 44.3 | P94: =O94 -> 44.3 | Q94: =P94 -> 44.3 | R94: =Q94 -> 44.3 | S94: =R94 -> 44.3 | T94: =S94 -> 44.3 | U94: =T94 -> 44.3 | V94: =U94 -> 44.3 | Y94: =X94 -> 0 | Z94: =Y94 -> 0 | AA94: =Z94 -> 0 | AB94: 0 | AC94: 0 | AD94: 0 | AE94: 0 | AF94: 0 | AG94: 0 | AH94: 0 | AI94: 0 | AJ94: 0 | AK94: 0 | AL94: 0 | AM94: 0
C95: VALOR CD | D95: 47.65 | E95: 47.65 | F95: 47.65 | G95: 47.65 | H95: 47.65 | I95: 47.65 | J95: 47.65 | K95: 47.65 | L95: 47.65 | M95: 47.65 | N95: 47.65 | O95: 47.65 | P95: 47.65 | Q95: 47.65 | R95: 47.65 | S95: 47.65 | T95: 47.65 | U95: 47.65 | V95: 47.65 | Y95: 24.31 | Z95: 24.31 | AA95: 24.31 | AB95: 24.31 | AC95: 24.31 | AD95: 24.31 | AE95: 24.31 | AF95: 24.31 | AG95: 24.31 | AH95: 24.31 | AI95: 24.31 | AJ95: 24.31 | AK95: 24.31 | AL95: 24.31 | AM95: 24.31
B96: VALOR MENSAL DO AUXÍLIO ALIMENTAÇÃO - POR POSTO
D97: =ROUND(LARGE(D94:D95,1)*D18,2) -> 1048.3 | E97: 1048.3 | F97: 1048.3 | G97: 1048.3 | H97: 1048.3 | I97: 1048.3 | J97: 1048.3 | K97: 1048.3 | L97: 1048.3 | M97: 1238.9 | N97: 1238.9 | O97: 1238.9 | P97: 1238.9 | Q97: 1238.9 | R97: 1238.9 | S97: 1238.9 | T97: 1238.9 | U97: 714.75 | V97: 1238.9 | Y97: =ROUND(LARGE(Y94:Y95,1)*Y18,2) -> 0 | Z97: 0 | AA97: 0 | AB97: 0 | AC97: 0 | AD97: 0 | AE97: 0 | AF97: 0 | AG97: 0 | AH97: 0 | AI97: 0 | AJ97: 0 | AK97: 0 | AL97: 0 | AM97: 0
B99: BENEFÍCIOS ESPECIAIS - ASSISTÊNCIA MÉDICA E FAMILIAR
C101: OBRIGAÇÃO DE PAGTO | D101: NÃO | E101: NÃO | F101: NÃO | G101: NÃO | H101: NÃO | I101: NÃO | J101: NÃO | K101: NÃO | L101: NÃO | M101: NÃO | N101: NÃO | O101: NÃO | P101: NÃO | Q101: NÃO | R101: NÃO | S101: NÃO | T101: NÃO | U101: NÃO | V101: NÃO | Y101: NÃO | Z101: NÃO | AA101: NÃO | AB101: NÃO | AC101: NÃO | AD101: NÃO | AE101: NÃO | AF101: NÃO | AG101: NÃO | AH101: NÃO | AI101: NÃO | AJ101: NÃO | AK101: NÃO | AL101: NÃO | AM101: NÃO
C102: VALOR CCT | D102: 0 | E102: 0 | F102: 0 | G102: 0 | H102: 0 | I102: 0 | J102: 0 | K102: 0 | L102: 0 | M102: 0 | N102: 0 | O102: 0 | P102: 0 | Q102: 0 | R102: 0 | S102: 0 | T102: 0 | U102: 0 | V102: 0 | Y102: 0 | Z102: 0 | AA102: 0 | AB102: 0 | AC102: 0 | AD102: 0 | AE102: 0 | AF102: 0 | AG102: 0 | AH102: 0 | AI102: 0 | AJ102: 0 | AK102: 0 | AL102: 0 | AM102: 0
C103: VALOR MERCADO | D103: 0 | E103: 0 | F103: 0 | G103: 0 | H103: 0 | I103: 0 | J103: 0 | K103: 0 | L103: 0 | M103: 0 | N103: 0 | O103: 0 | P103: 0 | Q103: 0 | R103: 0 | S103: 0 | T103: 0 | U103: 0 | V103: 0 | Y103: 0 | Z103: 0 | AA103: 0 | AB103: 0 | AC103: 0 | AD103: 0 | AE103: 0 | AF103: 0 | AG103: 0 | AH103: 0 | AI103: 0 | AJ103: 0 | AK103: 0 | AL103: 0 | AM103: 0
B104: VALOR MENSAL DO AUXÍLIO ESPECIAL - ASSISTÊNCIA MÉDICA E FAMILIAR - POR POSTO
D105: =IF(D101="SIM",ROUND(SMALL(D102:D103,1),2),0) -> 0 | E105: =IF(E101="SIM",ROUND(SMALL(E102:E103,1),2),0) -> 0 | F105: =IF(F101="SIM",ROUND(SMALL(F102:F103,1),2),0) -> 0 | G105: 0 | H105: 0 | I105: 0 | J105: 0 | K105: 0 | L105: 0 | M105: 0 | N105: 0 | O105: 0 | P105: 0 | Q105: 0 | R105: 0 | S105: 0 | T105: 0 | U105: 0 | V105: 0 | Y105: =IF(Y101="SIM",ROUND(SMALL(Y102:Y103,1),2),0) -> 0 | Z105: 0 | AA105: 0 | AB105: 0 | AC105: 0 | AD105: 0 | AE105: 0 | AF105: 0 | AG105: 0 | AH105: 0 | AI105: 0 | AJ105: 0 | AK105: 0 | AL105: 0 | AM105: 0
B107: BENEFÍCIOS ESPECIAIS - SEGURO DE VIDA E AUXÍLIO-FUNERAL, AUX ODONT, AUX CRECHE
B109: SEGURO DE VIDA E AUXÍLIO FUNERAL
C110: OBRIGAÇÃO DE PAGTO | D110: SIM | E110: =D110 -> SIM | F110: =E110 -> SIM | G110: SIM | H110: SIM | I110: SIM | J110: SIM | K110: SIM | L110: SIM | M110: SIM | N110: SIM | O110: SIM | P110: SIM | Q110: SIM | R110: SIM | S110: SIM | T110: SIM | U110: SIM | V110: SIM | W110: SIM | X110: SIM | Y110: SIM | Z110: SIM | AA110: SIM | AB110: SIM | AC110: SIM | AD110: SIM | AE110: SIM | AF110: SIM | AG110: SIM | AH110: SIM | AI110: SIM | AJ110: SIM | AK110: SIM | AL110: SIM | AM110: SIM | AN110: SIM | AO110: SIM | AP110: SIM | AQ110: SIM | AR110: SIM | AS110: SIM | AT110: SIM | AU110: SIM | AV110: SIM | AW110: SIM | AX110: SIM | AY110: SIM | AZ110: SIM | BA110: SIM | BB110: SIM | BC110: SIM | BD110: SIM | BE110: SIM | BF110: SIM | BG110: SIM | BH110: SIM | BI110: SIM
C111: VALOR CCT | E111: =D111 -> 0 | F111: 0 | G111: 0 | H111: 0 | I111: 0 | J111: 0 | K111: 0 | L111: 0 | M111: 0 | N111: 0 | O111: 0 | P111: 0 | Q111: 0 | R111: 0 | S111: 0 | T111: 0 | U111: 0 | V111: 0 | W111: 0 | X111: 0 | Y111: 0 | Z111: 0 | AA111: 0 | AB111: 0 | AC111: 0 | AD111: 0 | AE111: 0 | AF111: 0 | AG111: 0 | AH111: 0 | AI111: 0 | AJ111: 0 | AK111: 0 | AL111: 0 | AM111: 0 | AN111: 0 | AO111: 0 | AP111: 0 | AQ111: 0 | AR111: 0 | AS111: 0 | AT111: 0 | AU111: 0 | AV111: 0 | AW111: 0 | AX111: 0 | AY111: 0 | AZ111: 0 | BA111: 0 | BB111: 0 | BC111: 0 | BD111: 0 | BE111: 0 | BF111: 0 | BG111: 0 | BH111: 0 | BI111: 0
C112: VALOR MERCADO | D112: 3.61 | E112: 3.61 | F112: 3.61 | G112: 3.61 | H112: 3.61 | I112: 3.61 | J112: 3.61 | K112: 3.61 | L112: 3.61 | M112: 3.61 | N112: 3.61 | O112: 3.61 | P112: 3.61 | Q112: 3.61 | R112: 3.61 | S112: 3.61 | T112: 3.61 | U112: 3.61 | V112: 3.61 | W112: 3.61 | X112: 3.61 | Y112: 3.61 | Z112: 3.61 | AA112: 3.61 | AB112: 3.61 | AC112: 3.61 | AD112: 3.61 | AE112: 3.61 | AF112: 3.61 | AG112: 3.61 | AH112: 3.61 | AI112: 3.61 | AJ112: 3.61 | AK112: 3.61 | AL112: 3.61 | AM112: 3.61 | AN112: 3.61 | AO112: 3.61 | AP112: 3.61 | AQ112: 3.61 | AR112: 3.61 | AS112: 3.61 | AT112: 3.61 | AU112: 3.61 | AV112: 3.61 | AW112: 3.61 | AX112: 3.61 | AY112: 3.61 | AZ112: 3.61 | BA112: 3.61 | BB112: 3.61 | BC112: 3.61 | BD112: 3.61 | BE112: 3.61 | BF112: 3.61 | BG112: 3.61 | BH112: 3.61 | BI112: 3.61
B113: VALOR MENSAL DO AUXÍLIO ESPECIAL - SEGURO DE VIDA E AUXÍLIO FUNERAL - POR POSTO
D114: =IF(D110="SIM",ROUND(SMALL(D111:D112,1),2),0) -> 3.61 | E114: =D114 -> 3.61 | F114: =E114 -> 3.61 | G114: 3.61 | H114: 3.61 | I114: 3.61 | J114: 3.61 | K114: 3.61 | L114: 3.61 | M114: 3.61 | N114: 3.61 | O114: 3.61 | P114: 3.61 | Q114: 3.61 | R114: 3.61 | S114: 3.61 | T114: 3.61 | U114: 3.61 | V114: 3.61 | W114: 3.61 | X114: 3.61 | Y114: 3.61 | Z114: 3.61 | AA114: 3.61 | AB114: 3.61 | AC114: 3.61 | AD114: 3.61 | AE114: 3.61 | AF114: 3.61 | AG114: 3.61 | AH114: 3.61 | AI114: 3.61 | AJ114: 3.61 | AK114: 3.61 | AL114: 3.61 | AM114: 3.61 | AN114: 3.61 | AO114: 3.61 | AP114: 3.61 | AQ114: 3.61 | AR114: 3.61 | AS114: 3.61 | AT114: 3.61 | AU114: 3.61 | AV114: 3.61 | AW114: 3.61 | AX114: 3.61 | AY114: 3.61 | AZ114: 3.61 | BA114: 3.61 | BB114: 3.61 | BC114: 3.61 | BD114: 3.61 | BE114: 3.61 | BF114: 3.61 | BG114: 3.61 | BH114: 3.61 | BI114: 3.61
B115: AUXÍLIO ODONTOLÓGICO
C116: OBRIGAÇÃO DE PAGTO | D116: NÃO | E116: =D116 -> NÃO | F116: =E116 -> NÃO | G116: NÃO | H116: NÃO | I116: NÃO | J116: NÃO | K116: NÃO | L116: NÃO | M116: NÃO | N116: NÃO | O116: NÃO | P116: NÃO | Q116: NÃO | R116: NÃO | S116: NÃO | T116: NÃO | U116: NÃO | V116: NÃO | W116: NÃO | X116: NÃO | Y116: NÃO | Z116: NÃO | AA116: NÃO | AB116: NÃO | AC116: NÃO | AD116: NÃO | AE116: NÃO | AF116: NÃO | AG116: NÃO | AH116: NÃO | AI116: NÃO | AJ116: NÃO | AK116: NÃO | AL116: NÃO | AM116: NÃO | AN116: NÃO | AO116: NÃO | AP116: NÃO | AQ116: NÃO | AR116: NÃO | AS116: NÃO | AT116: NÃO | AU116: NÃO | AV116: NÃO | AW116: NÃO | AX116: NÃO | AY116: NÃO | AZ116: NÃO | BA116: NÃO | BB116: NÃO | BC116: NÃO | BD116: NÃO | BE116: NÃO | BF116: NÃO | BG116: NÃO | BH116: NÃO | BI116: NÃO
C117: VALOR CCT | D117: 0 | E117: =D117 -> 0 | F117: 0 | G117: 0 | H117: 0 | I117: 0 | J117: 0 | K117: 0 | L117: 0 | M117: 0 | N117: 0 | O117: 0 | P117: 0 | Q117: 0 | R117: 0 | S117: 0 | T117: 0 | U117: 0 | V117: 0 | W117: 0 | X117: 0 | Y117: 0 | Z117: 0 | AA117: 0 | AB117: 0 | AC117: 0 | AD117: 0 | AE117: 0 | AF117: 0 | AG117: 0 | AH117: 0 | AI117: 0 | AJ117: 0 | AK117: 0 | AL117: 0 | AM117: 0 | AN117: 0 | AO117: 0 | AP117: 0 | AQ117: 0 | AR117: 0 | AS117: 0 | AT117: 0 | AU117: 0 | AV117: 0 | AW117: 0 | AX117: 0 | AY117: 0 | AZ117: 0 | BA117: 0 | BB117: 0 | BC117: 0 | BD117: 0 | BE117: 0 | BF117: 0 | BG117: 0 | BH117: 0 | BI117: 0
C118: VALOR MERCADO | D118: 0 | E118: 0 | F118: 0 | G118: 0 | H118: 0 | I118: 0 | J118: 0 | K118: 0 | L118: 0 | M118: 0 | N118: 0 | O118: 0 | P118: 0 | Q118: 0 | R118: 0 | S118: 0 | T118: 0 | U118: 0 | V118: 0 | W118: 0 | X118: 0 | Y118: 0 | Z118: 0 | AA118: 0 | AB118: 0 | AC118: 0 | AD118: 0 | AE118: 0 | AF118: 0 | AG118: 0 | AH118: 0 | AI118: 0 | AJ118: 0 | AK118: 0 | AL118: 0 | AM118: 0 | AN118: 0 | AO118: 0 | AP118: 0 | AQ118: 0 | AR118: 0 | AS118: 0 | AT118: 0 | AU118: 0 | AV118: 0 | AW118: 0 | AX118: 0 | AY118: 0 | AZ118: 0 | BA118: 0 | BB118: 0 | BC118: 0 | BD118: 0 | BE118: 0 | BF118: 0 | BG118: 0 | BH118: 0 | BI118: 0
B119: VALOR MENSAL DO AUXÍLIO ESPECIAL - AUXILIO ODONTOLOGICO - POR POSTO
D120: =IF(D116="SIM",ROUND(SMALL(D117:D118,1),2),0) -> 0 | E120: =D120 -> 0 | F120: =E120 -> 0 | G120: 0 | H120: 0 | I120: 0 | J120: 0 | K120: 0 | L120: 0 | M120: 0 | N120: 0 | O120: 0 | P120: 0 | Q120: 0 | R120: 0 | S120: 0 | T120: 0 | U120: 0 | V120: 0 | W120: 0 | X120: 0 | Y120: 0 | Z120: 0 | AA120: 0 | AB120: 0 | AC120: 0 | AD120: 0 | AE120: 0 | AF120: 0 | AG120: 0 | AH120: 0 | AI120: 0 | AJ120: 0 | AK120: 0 | AL120: 0 | AM120: 0 | AN120: 0 | AO120: 0 | AP120: 0 | AQ120: 0 | AR120: 0 | AS120: 0 | AT120: 0 | AU120: 0 | AV120: 0 | AW120: 0 | AX120: 0 | AY120: 0 | AZ120: 0 | BA120: 0 | BB120: 0 | BC120: 0 | BD120: 0 | BE120: 0 | BF120: 0 | BG120: 0 | BH120: 0 | BI120: 0
B121: REEMBOLSO CRECHE
C122: OBRIGAÇÃO DE PAGTO | D122: NÃO | E122: =D122 -> NÃO | F122: =E122 -> NÃO | G122: NÃO | H122: NÃO | I122: NÃO | J122: NÃO | K122: NÃO | L122: NÃO | M122: NÃO | N122: NÃO | O122: NÃO | P122: NÃO | Q122: NÃO | R122: NÃO | S122: NÃO | T122: NÃO | U122: NÃO | V122: NÃO | W122: NÃO | X122: NÃO | Y122: NÃO | Z122: NÃO | AA122: NÃO | AB122: NÃO | AC122: NÃO | AD122: NÃO | AE122: NÃO | AF122: NÃO | AG122: NÃO | AH122: NÃO | AI122: NÃO | AJ122: NÃO | AK122: NÃO | AL122: NÃO | AM122: NÃO | AN122: NÃO | AO122: NÃO | AP122: NÃO | AQ122: NÃO | AR122: NÃO | AS122: NÃO | AT122: NÃO | AU122: NÃO | AV122: NÃO | AW122: NÃO | AX122: NÃO | AY122: NÃO | AZ122: NÃO | BA122: NÃO | BB122: NÃO | BC122: NÃO | BD122: NÃO | BE122: NÃO | BF122: NÃO | BG122: NÃO | BH122: NÃO | BI122: NÃO
C123: VALOR CCT | D123: 0 | E123: =D123 -> 0 | F123: 0 | G123: 0 | H123: 0 | I123: 0 | J123: 0 | K123: 0 | L123: 0 | M123: 0 | N123: 0 | O123: 0 | P123: 0 | Q123: 0 | R123: 0 | S123: 0 | T123: 0 | U123: 0 | V123: 0 | W123: 0 | X123: 0 | Y123: 0 | Z123: 0 | AA123: 0 | AB123: 0 | AC123: 0 | AD123: 0 | AE123: 0 | AF123: 0 | AG123: 0 | AH123: 0 | AI123: 0 | AJ123: 0 | AK123: 0 | AL123: 0 | AM123: 0 | AN123: 0 | AO123: 0 | AP123: 0 | AQ123: 0 | AR123: 0 | AS123: 0 | AT123: 0 | AU123: 0 | AV123: 0 | AW123: 0 | AX123: 0 | AY123: 0 | AZ123: 0 | BA123: 0 | BB123: 0 | BC123: 0 | BD123: 0 | BE123: 0 | BF123: 0 | BG123: 0 | BH123: 0 | BI123: 0
C124: VALOR CALCULADO - % PESSOAS COM CRIANCAS ATE 6A - 20% | D124: 0 | E124: 0 | F124: 0 | G124: 0 | H124: 0 | I124: 0 | J124: 0 | K124: 0 | L124: 0 | M124: 0 | N124: 0 | O124: 0 | P124: 0 | Q124: 0 | R124: 0 | S124: 0 | T124: 0 | U124: 0 | V124: 0 | W124: 0 | X124: 0 | Y124: 0 | Z124: 0 | AA124: 0 | AB124: 0 | AC124: 0 | AD124: 0 | AE124: 0 | AF124: 0 | AG124: 0 | AH124: 0 | AI124: 0 | AJ124: 0 | AK124: 0 | AL124: 0 | AM124: 0 | AN124: 0 | AO124: 0 | AP124: 0 | AQ124: 0 | AR124: 0 | AS124: 0 | AT124: 0 | AU124: 0 | AV124: 0 | AW124: 0 | AX124: 0 | AY124: 0 | AZ124: 0 | BA124: 0 | BB124: 0 | BC124: 0 | BD124: 0 | BE124: 0 | BF124: 0 | BG124: 0 | BH124: 0 | BI124: 0
B125: VALOR MENSAL DO AUXÍLIO ESPECIAL - REEMBOLSO CRECHE - POR POSTO
D126: =IF(D122="SIM",ROUND(SMALL(D123:D124,1),2),0) -> 0 | E126: =D126 -> 0 | F126: =E126 -> 0 | G126: 0 | H126: 0 | I126: 0 | J126: 0 | K126: 0 | L126: 0 | M126: 0 | N126: 0 | O126: 0 | P126: 0 | Q126: 0 | R126: 0 | S126: 0 | T126: 0 | U126: 0 | V126: 0 | W126: 0 | X126: 0 | Y126: 0 | Z126: 0 | AA126: 0 | AB126: 0 | AC126: 0 | AD126: 0 | AE126: 0 | AF126: 0 | AG126: 0 | AH126: 0 | AI126: 0 | AJ126: 0 | AK126: 0 | AL126: 0 | AM126: 0 | AN126: 0 | AO126: 0 | AP126: 0 | AQ126: 0 | AR126: 0 | AS126: 0 | AT126: 0 | AU126: 0 | AV126: 0 | AW126: 0 | AX126: 0 | AY126: 0 | AZ126: 0 | BA126: 0 | BB126: 0 | BC126: 0 | BD126: 0 | BE126: 0 | BF126: 0 | BG126: 0 | BH126: 0 | BI126: 0
B127: AUXÍLIO VESTUÁRIO ESPECIAL
C128: OBRIGAÇÃO DE PAGTO | D128: NÃO | E128: =D128 -> NÃO | F128: =E128 -> NÃO | G128: NÃO | H128: NÃO | I128: NÃO | J128: NÃO | K128: NÃO | L128: NÃO | M128: NÃO | N128: NÃO | O128: NÃO | P128: NÃO | Q128: NÃO | R128: NÃO | S128: NÃO | T128: NÃO | U128: NÃO | V128: NÃO | W128: NÃO | X128: NÃO | Y128: NÃO | Z128: NÃO | AA128: NÃO | AB128: NÃO | AC128: NÃO | AD128: NÃO | AE128: NÃO | AF128: NÃO | AG128: NÃO | AH128: NÃO | AI128: NÃO | AJ128: NÃO | AK128: NÃO | AL128: NÃO | AM128: NÃO | AN128: NÃO | AO128: NÃO | AP128: NÃO | AQ128: NÃO | AR128: NÃO | AS128: NÃO | AT128: NÃO | AU128: NÃO | AV128: NÃO | AW128: NÃO | AX128: NÃO | AY128: NÃO | AZ128: NÃO | BA128: NÃO | BB128: NÃO | BC128: NÃO | BD128: NÃO | BE128: NÃO | BF128: NÃO | BG128: NÃO | BH128: NÃO | BI128: NÃO
C129: VALOR CCT | D129: 0 | E129: =D129 -> 0 | F129: 0 | G129: 0 | H129: 0 | I129: 0 | J129: 0 | K129: 0 | L129: 0 | M129: 0 | N129: 0 | O129: 0 | P129: 0 | Q129: 0 | R129: 0 | S129: 0 | T129: 0 | U129: 0 | V129: 0 | W129: 0 | X129: 0 | Y129: 0 | Z129: 0 | AA129: 0 | AB129: 0 | AC129: 0 | AD129: 0 | AE129: 0 | AF129: 0 | AG129: 0 | AH129: 0 | AI129: 0 | AJ129: 0 | AK129: 0 | AL129: 0 | AM129: 0 | AN129: 0 | AO129: 0 | AP129: 0 | AQ129: 0 | AR129: 0 | AS129: 0 | AT129: 0 | AU129: 0 | AV129: 0 | AW129: 0 | AX129: 0 | AY129: 0 | AZ129: 0 | BA129: 0 | BB129: 0 | BC129: 0 | BD129: 0 | BE129: 0 | BF129: 0 | BG129: 0 | BH129: 0 | BI129: 0
C130: VALOR MERCADO | D130: 0 | E130: 0 | F130: 0 | G130: 0 | H130: 0 | I130: 0 | J130: 0 | K130: 0 | L130: 0 | M130: 0 | N130: 0 | O130: 0 | P130: 0 | Q130: 0 | R130: 0 | S130: 0 | T130: 0 | U130: 0 | V130: 0 | W130: 0 | X130: 0 | Y130: 0 | Z130: 0 | AA130: 0 | AB130: 0 | AC130: 0 | AD130: 0 | AE130: 0 | AF130: 0 | AG130: 0 | AH130: 0 | AI130: 0 | AJ130: 0 | AK130: 0 | AL130: 0 | AM130: 0 | AN130: 0 | AO130: 0 | AP130: 0 | AQ130: 0 | AR130: 0 | AS130: 0 | AT130: 0 | AU130: 0 | AV130: 0 | AW130: 0 | AX130: 0 | AY130: 0 | AZ130: 0 | BA130: 0 | BB130: 0 | BC130: 0 | BD130: 0 | BE130: 0 | BF130: 0 | BG130: 0 | BH130: 0 | BI130: 0
B131: VALOR MENSAL DO AUXÍLIO ESPECIAL - VESTUTUÁRIO - POR POSTO
D132: =IF(D128="SIM",ROUND(SMALL(D129:D130,1),2),0) -> 0 | E132: =D132 -> 0 | F132: =E132 -> 0 | G132: 0 | H132: 0 | I132: 0 | J132: 0 | K132: 0 | L132: 0 | M132: 0 | N132: 0 | O132: 0 | P132: 0 | Q132: 0 | R132: 0 | S132: 0 | T132: 0 | U132: 0 | V132: 0 | W132: 0 | X132: 0 | Y132: 0 | Z132: 0 | AA132: 0 | AB132: 0 | AC132: 0 | AD132: 0 | AE132: 0 | AF132: 0 | AG132: 0 | AH132: 0 | AI132: 0 | AJ132: 0 | AK132: 0 | AL132: 0 | AM132: 0 | AN132: 0 | AO132: 0 | AP132: 0 | AQ132: 0 | AR132: 0 | AS132: 0 | AT132: 0 | AU132: 0 | AV132: 0 | AW132: 0 | AX132: 0 | AY132: 0 | AZ132: 0 | BA132: 0 | BB132: 0 | BC132: 0 | BD132: 0 | BE132: 0 | BF132: 0 | BG132: 0 | BH132: 0 | BI132: 0
B133: BENEFÍCIO SOCIAL FAMILAR (§2º e §16º da CLÁUSULA 18ª DA CCT - obrigatório para empresas com menos de 100 empregados)
C134: OBRIGAÇÃO DE PAGTO | D134: NÃO | E134: =D134 -> NÃO | F134: =E134 -> NÃO | G134: NÃO | H134: NÃO | I134: NÃO | J134: NÃO | K134: NÃO | L134: NÃO | M134: NÃO | N134: NÃO | O134: NÃO | P134: NÃO | Q134: NÃO | R134: NÃO | S134: NÃO | T134: NÃO | U134: NÃO | V134: NÃO | W134: NÃO | X134: NÃO | Y134: NÃO | Z134: NÃO | AA134: NÃO | AB134: NÃO | AC134: NÃO | AD134: NÃO | AE134: NÃO | AF134: NÃO | AG134: NÃO | AH134: NÃO | AI134: NÃO | AJ134: NÃO | AK134: NÃO | AL134: NÃO | AM134: NÃO | AN134: NÃO | AO134: NÃO | AP134: NÃO | AQ134: NÃO | AR134: NÃO | AS134: NÃO | AT134: NÃO | AU134: NÃO | AV134: NÃO | AW134: NÃO | AX134: NÃO | AY134: NÃO | AZ134: NÃO | BA134: NÃO | BB134: NÃO | BC134: NÃO | BD134: NÃO | BE134: NÃO | BF134: NÃO | BG134: NÃO | BH134: NÃO | BI134: NÃO
C135: VALOR CCT | D135: 0 | E135: =D135 -> 0 | F135: 0 | G135: 0 | H135: 0 | I135: 0 | J135: 0 | K135: 0 | L135: 0 | M135: 0 | N135: 0 | O135: 0 | P135: 0 | Q135: 0 | R135: 0 | S135: 0 | T135: 0 | U135: 0 | V135: 0 | W135: 0 | X135: 0 | Y135: 0 | Z135: 0 | AA135: 0 | AB135: 0 | AC135: 0 | AD135: 0 | AE135: 0 | AF135: 0 | AG135: 0 | AH135: 0 | AI135: 0 | AJ135: 0 | AK135: 0 | AL135: 0 | AM135: 0 | AN135: 0 | AO135: 0 | AP135: 0 | AQ135: 0 | AR135: 0 | AS135: 0 | AT135: 0 | AU135: 0 | AV135: 0 | AW135: 0 | AX135: 0 | AY135: 0 | AZ135: 0 | BA135: 0 | BB135: 0 | BC135: 0 | BD135: 0 | BE135: 0 | BF135: 0 | BG135: 0 | BH135: 0 | BI135: 0
C136: VALOR MERCADO | D136: 0 | E136: 0 | F136: 0 | G136: 0 | H136: 0 | I136: 0 | J136: 0 | K136: 0 | L136: 0 | M136: 0 | N136: 0 | O136: 0 | P136: 0 | Q136: 0 | R136: 0 | S136: 0 | T136: 0 | U136: 0 | V136: 0 | W136: 0 | X136: 0 | Y136: 0 | Z136: 0 | AA136: 0 | AB136: 0 | AC136: 0 | AD136: 0 | AE136: 0 | AF136: 0 | AG136: 0 | AH136: 0 | AI136: 0 | AJ136: 0 | AK136: 0 | AL136: 0 | AM136: 0 | AN136: 0 | AO136: 0 | AP136: 0 | AQ136: 0 | AR136: 0 | AS136: 0 | AT136: 0 | AU136: 0 | AV136: 0 | AW136: 0 | AX136: 0 | AY136: 0 | AZ136: 0 | BA136: 0 | BB136: 0 | BC136: 0 | BD136: 0 | BE136: 0 | BF136: 0 | BG136: 0 | BH136: 0 | BI136: 0
B137: VALOR MENSAL DO AUXÍLIO ESPECIAL - BENEFÍCIO SOCIAL FAMILIAR - POR POSTO
D138: =IF(D134="SIM",ROUND(SMALL(D135:D136,1),2),0) -> 0 | E138: =D138 -> 0 | F138: =E138 -> 0 | G138: 0 | H138: 0 | I138: 0 | J138: 0 | K138: 0 | L138: 0 | M138: 0 | N138: 0 | O138: 0 | P138: 0 | Q138: 0 | R138: 0 | S138: 0 | T138: 0 | U138: 0 | V138: 0 | W138: 0 | X138: 0 | Y138: 0 | Z138: 0 | AA138: 0 | AB138: 0 | AC138: 0 | AD138: 0 | AE138: 0 | AF138: 0 | AG138: 0 | AH138: 0 | AI138: 0 | AJ138: 0 | AK138: 0 | AL138: 0 | AM138: 0 | AN138: 0 | AO138: 0 | AP138: 0 | AQ138: 0 | AR138: 0 | AS138: 0 | AT138: 0 | AU138: 0 | AV138: 0 | AW138: 0 | AX138: 0 | AY138: 0 | AZ138: 0 | BA138: 0 | BB138: 0 | BC138: 0 | BD138: 0 | BE138: 0 | BF138: 0 | BG138: 0 | BH138: 0 | BI138: 0
B139: TOTAL MENSAL DOS AUXÍLIOS ESPECIAIS - POR POSTO
D140: =+D114+D120+D126+D132+D138 -> 3.61 | E140: =D140 -> 3.61 | F140: =E140 -> 3.61 | G140: 3.61 | H140: 3.61 | I140: 3.61 | J140: 3.61 | K140: 3.61 | L140: 3.61 | M140: 3.61 | N140: 3.61 | O140: 3.61 | P140: 3.61 | Q140: 3.61 | R140: 3.61 | S140: 3.61 | T140: 3.61 | U140: 3.61 | V140: 3.61 | W140: 3.61 | X140: 3.61 | Y140: 3.61 | Z140: 3.61 | AA140: 3.61 | AB140: 3.61 | AC140: 3.61 | AD140: 3.61 | AE140: 3.61 | AF140: 3.61 | AG140: 3.61 | AH140: 3.61 | AI140: 3.61 | AJ140: 3.61 | AK140: 3.61 | AL140: 3.61 | AM140: 3.61 | AN140: 3.61 | AO140: 3.61 | AP140: 3.61 | AQ140: 3.61 | AR140: 3.61 | AS140: 3.61 | AT140: 3.61 | AU140: 3.61 | AV140: 3.61 | AW140: 3.61 | AX140: 3.61 | AY140: 3.61 | AZ140: 3.61 | BA140: 3.61 | BB140: 3.61 | BC140: 3.61 | BD140: 3.61 | BE140: 3.61 | BF140: 3.61 | BG140: 3.61 | BH140: 3.61 | BI140: 3.61
Y144: =Y97+Y90 -> 0 | Z144: 0 | AA144: 0 | AB144: 0 | AC144: 0 | AD144: 0 | AE144: 0 | AF144: 0 | AG144: 0 | AH144: 0 | AI144: 0 | AJ144: 0 | AK144: 0 | AL144: 0 | AM144: 0

Sheet Encargos Sociais
B4: ENCARGOS SOCIAIS SOBRE A MÃO DE OBRA
E5: Percentuais
B7: Referência:
C8: SINAPI/MPU
B10: Categorias:
C11: TODAS, EXCETO PLANTONISTAS
B13: GRUPO A: Encargos Sociais Básicos - Previdenciários (GPS), Fundo de Garantia por Tempo de Serviço (FGTS) e Outras Contribuições | E13: =ROUND(SUM(E14:E22),4) -> 0.368
C14: A | D14: INSS (art. 22, inciso I, Lei nº 8.212/91) | E14: 0.2
C15: B | D15: Salário Educação (art. 3º, inciso I, Decreto nº 87.043/82) | E15: 0.025 | G15: * Nota 1 - Os percentuais dos encargos previdenciários, do FGTS e demais contribuições são estabelecidos por legislação vigente.
C16: C | D16: SAT/RAT (art. 22, II, Lei 8.212/91 e Anexo V, Decreto 6.042/07) - Enquadramento 8121-4/00 | E16: 0.03 | G16: * Nota 2 - O SAT, a depender do grau de risco do serviço, irá variar entre 1%, para risco leve, de 2%, para risco médio, e de 3% para risco grave.
C17: D | D17: SESC ou SESI (art. 30, Lei nº 8.036/90 e art. 1º, Lei 8.154/90) | E17: 0.015 | G17: * Nota 3 - Os percentuais do Submódulo 2.2 incidem sobre o Módulo 1, o Submódulo 2.1, o Módulo 3, o Módulo 4 e o Módulo 6.
C18: E | D18: SENAI ou SENAC (Decreto nº 2.318/86) | E18: 0.01
C19: F | D19: SEBRAE (§ 3º, art. 8º, Lei 8.029/90, alterada pela Lei nº 8.154/90) | E19: 0.006
C20: G | D20: INCRA (art. 1º, I, Decreto Lei 1.146/70 e Lei 7.787, de 30/06/89) | E20: 0.002
C21: H | D21: FGTS (Lei Complementar nº 110/01 e art. 30, Lei nº 8.036/90) | E21: 0.08
C22: I | D22: SECONCI (Convenções Coletivas de Trabalho da construção) | E22: 0
B24: GRUPO B: Encargos Sociais Relacionados ao Custo do Profissional Ausente - Ausências Legais | E24: =ROUND(SUM(E25:E33),4) -> 0.2321
C25: A | D25: Férias (Arts. 129 e 130, inc. I, da CLT) | E25: =ROUND(1/11,4) -> 0.0909 | G25: * Nota 1 - As alíneas “A” a “F” referem-se somente ao custo que será pago ao repositor pelos dias trabalhados quando da necessidade de substituir a mão de obra alocada na prestação do serviço.
C26: B | D26: Ausências Legais (Arts. 131 e 473 da CLT) | E26: =ROUND(2/252,4) -> 0.0079 | G26: * Nota 2 - Adotou-se a estimativa do SINAPI de 2 dias por ano. Em 252 dias úteis por ano.
C27: C | D27: Licença-Paternidade (Art. 7º, XIX, e art. 10, §1º, do ADCT, CF/1988 e Art. 1º, II, da Lei 11.770/2008) | E27: =ROUND((5/(30*12))*0.0596,4) -> 0.0008 | G27: * Nota 3 - Utilizada a a estimativa de 5 dias de afastamento e a probabilidade de um trabalhador requerer a Licença Paternidade em 5,96%, conforme SINAPI (Anuário Estatístico da Previdência Social - 2017)
C28: D | D28: Ausência por Acidente de Trabalho (Art. 131, III, da CLT) | E28: =ROUND(0.0205*15/360,4) -> 0.0009 | G28: * Nota 4 - Utilzada a estatística de 2,05% dos contribuintes beneficiados com a emissão do auxílio, conforme Anuário Estatístico da Previdência Social. Afastamento de 15 dias a cargo da empresa.
C29: E | D29: Afastamento Maternidade (Art. 71 da Lei nº 8.213/1991) | E29: =ROUND(0.0508*(120/360)*(30+30*4/3)/360,4) -> 0.0033 | G29: * Nota 5 - Utilizada a estimativa de 120 dias de afastamento, e a probabilidade de uma trabalhadora requerer a Licença Maternidade em 5,08%, conforme SINAPI (citando dados do IBGE 2017) - A própria previdência paga o benefício pelos 120 dias, contudo o empregador arca com o 13º e com as férias
C30: F | D30: Auxílio Enfermidade - Doença (Art. 59 da Lei nº 8.213/1991) | E30: =ROUND(((0.0376*15)+2)/360,4) -> 0.0071 | G30: * Nota 6 - Utilizada a estatística de 3,76% dos contribuintes beneficiados com o auxílio, conforme Anuário Estatístico da Previdência Social de 2016 (acrescidos de 2 dias ao ano, para os quais o trabalhador nem requer o benefício da Previdência - conforme SINAPI)
C31: G | D31: Adicional de Férias (componente do Submódulo 2.1) | E31: =ROUND(1/3*1/11,4) -> 0.0303 | G31: * Nota 7 - O adicional de férias contido no Submódulo 2.1 corresponde a 1/3 da remuneração que, por sua vez, é dividida por 11 contome Nota 1.
C32: H | D32: 13º Salário (destacado na planilha de custos) | E32: =ROUND(1/11,4) -> 0.0909 | G32: * Nota 8 - Provisiona-se, mensalmente, o proporcional a 1/11 dos valores referentes a gratificação natalina
C33: I | D33: Intervalo para repouso ou alimentação (componente do Submódulo 4.2) | E33: 0
B35: GRUPO C: Encargos Sociais Relacionados à Previsão para Rescisão Trabalhista | E35: =ROUND(SUM(E36:E41),4) -> 0.0472
C36: A | D36: Aviso Prévio Indenizado (Art. 7º, inciso XXI, da CF/1988 e arts. 477, 487, §1º, e 491 da CLT) | E36: =ROUND(D54*30/360,4) -> 0.0042 | G36: * Nota 1 - Considerou-se 5% de demitidos sem justa causa ao ano e recebendo aviso indenizado (30 dias de aviso prévio / 360 dias ao ano)
C37: B | D37: Incidência do FGTS sobre o Aviso Prévio Indenizado (Súmula 305 TST) | E37: =ROUND(E21*E36,4) -> 0.0003
C38: C | D38: Multa do FGTS sobre o Aviso Prévio Indenizado (Art. 18, §1º, da Lei 8.036/1990) | E38: 0 | G38: * Nota 2 - como 100% da multa do FGTS está incidindo sobre o APT que será paga ao final do contrato, não é necessário prever a multa no API
C39: D | D39: Aviso Prévio Trabalhado (Art. 488, parágrafo único, CLT) | E39: =ROUND((7)*100%/(D56*30),4) -> 0.0078 | G39: * Nota 3 - Considerou-se demissões de 100% ao final do prazo do contrato. Assim, calcula-se 7 dias de aviso prévio trabalhado dividido pelo prazo do contrato.
C40: E | D40: Incidência de GPS, FGTS e outras contribuições sobre o Aviso Prévio Trabalhado | E40: =ROUND(E39*E13,4) -> 0.0029
C41: F | D41: Multa do FGTS | E41: =ROUND((0.4*E21),4) -> 0.032 | G41: * Nota 4 - 40% multa para o empregador x 8% FGTS
B43: GRUPO D: Reincidências | E43: =ROUND(SUM(E44:E44),4) -> 0.0854
C44: A | D44: Reincidência do Grupo A sobre o Grupo B | E44: =ROUND(E13*E24,4) -> 0.0854
D46: SOMATÓRIO - ENCARGOS SOCIAIS SOBRE A MÃO DE OBRA | E46: =E43+E35+E24+E13 -> 0.7327
C50: ENCARGOS SEM O 13º
D51: =E46-E32-E32*E13 -> 0.6083488
C53: % DEMITIDOS AO LONGO DO ANO
D54: 0.05
C55: PRAZO DO CONTRATO (EM MESES)
D56: 30

Sheet Encargos Sociais - HE (hidden)
B4: ENCARGOS SOCIAIS SOBRE A MÃO DE OBRA
E5: Percentuais
B7: Referência:
C8: SINAPI/MPU
B10: Categorias:
C11: TODAS, EXCETO PLANTONISTAS
B13: GRUPO A: Encargos Sociais Básicos - Previdenciários (GPS), Fundo de Garantia por Tempo de Serviço (FGTS) e Outras Contribuições | E13: =ROUND(SUM(E14:E22),4) -> 0.368
C14: ='Encargos Sociais'!C14 -> A | D14: ='Encargos Sociais'!D14 -> INSS (art. 22, inciso I, Lei nº 8.212/91) | E14: ='Encargos Sociais'!E14 -> 0.2
C15: ='Encargos Sociais'!C15 -> B | D15: ='Encargos Sociais'!D15 -> Salário Educação (art. 3º, inciso I, Decreto nº 87.043/82) | E15: ='Encargos Sociais'!E15 -> 0.025 | G15: * Nota 1 - Os percentuais dos encargos previdenciários, do FGTS e demais contribuições são estabelecidos por legislação vigente.
C16: ='Encargos Sociais'!C16 -> C | D16: ='Encargos Sociais'!D16 -> SAT/RAT (art. 22, II, Lei 8.212/91 e Anexo V, Decreto 6.042/07) - Enquadramento 8121-4/00 | E16: ='Encargos Sociais'!E16 -> 0.03 | G16: * Nota 2 - O SAT, a depender do grau de risco do serviço, irá variar entre 1%, para risco leve, de 2%, para risco médio, e de 3% para risco grave.
C17: ='Encargos Sociais'!C17 -> D | D17: ='Encargos Sociais'!D17 -> SESC ou SESI (art. 30, Lei nº 8.036/90 e art. 1º, Lei 8.154/90) | E17: ='Encargos Sociais'!E17 -> 0.015 | G17: * Nota 3 - Os percentuais do Submódulo 2.2 incidem sobre o Módulo 1, o Submódulo 2.1, o Módulo 3, o Módulo 4 e o Módulo 6.
C18: ='Encargos Sociais'!C18 -> E | D18: ='Encargos Sociais'!D18 -> SENAI ou SENAC (Decreto nº 2.318/86) | E18: ='Encargos Sociais'!E18 -> 0.01
C19: ='Encargos Sociais'!C19 -> F | D19: ='Encargos Sociais'!D19 -> SEBRAE (§ 3º, art. 8º, Lei 8.029/90, alterada pela Lei nº 8.154/90) | E19: ='Encargos Sociais'!E19 -> 0.006
C20: ='Encargos Sociais'!C20 -> G | D20: ='Encargos Sociais'!D20 -> INCRA (art. 1º, I, Decreto Lei 1.146/70 e Lei 7.787, de 30/06/89) | E20: ='Encargos Sociais'!E20 -> 0.002
C21: ='Encargos Sociais'!C21 -> H | D21: ='Encargos Sociais'!D21 -> FGTS (Lei Complementar nº 110/01 e art. 30, Lei nº 8.036/90) | E21: ='Encargos Sociais'!E21 -> 0.08
C22: ='Encargos Sociais'!C22 -> I | D22: ='Encargos Sociais'!D22 -> SECONCI (Convenções Coletivas de Trabalho da construção) | E22: ='Encargos Sociais'!E22 -> 0
B24: GRUPO B: Encargos Sociais Relacionados ao Custo do Profissional Ausente - Ausências Legais | E24: =ROUND(SUM(E25:E33),4) -> 0.3988
C25: ='Encargos Sociais'!C25 -> A | D25: ='Encargos Sociais'!D25 -> Férias (Arts. 129 e 130, inc. I, da CLT) | E25: ='Encargos Sociais'!E25 -> 0.0909 | G25: * Nota 1 - As alíneas “A” a “F” referem-se somente ao custo que será pago ao repositor pelos dias trabalhados quando da necessidade de substituir a mão de obra alocada na prestação do serviço.
C26: ='Encargos Sociais'!C26 -> B | D26: ='Encargos Sociais'!D26 -> Ausências Legais (Arts. 131 e 473 da CLT) | E26: ='Encargos Sociais'!E26 -> 0.0079 | G26: * Nota 2 - Adotou-se a estimativa do SINAPI de 2 dias por ano. Em 252 dias úteis por ano.
C27: ='Encargos Sociais'!C27 -> C | D27: ='Encargos Sociais'!D27 -> Licença-Paternidade (Art. 7º, XIX, e art. 10, §1º, do ADCT, CF/1988 e Art. 1º, II, da Lei 11.770/2008) | E27: ='Encargos Sociais'!E27 -> 0.0008 | G27: * Nota 3 - Utilizada a proporção de 50% para homens, 5 dias de afastamento, e a probabilidade de um trabalhador requerer a Licença Paternidade em 5,96%, conforme SINAPI (Anuário Estatístico da Previdência Social - 2017)
C28: ='Encargos Sociais'!C28 -> D | D28: ='Encargos Sociais'!D28 -> Ausência por Acidente de Trabalho (Art. 131, III, da CLT) | E28: ='Encargos Sociais'!E28 -> 0.0009 | G28: * Nota 4 - Utilzada a estatística de 2,05% dos contribuintes beneficiados com a emissão do auxílio, conforme Anuário Estatístico da Previdência Social. Afastamento de 15 dias a cargo da empresa.
C29: ='Encargos Sociais'!C29 -> E | D29: ='Encargos Sociais'!D29 -> Afastamento Maternidade (Art. 71 da Lei nº 8.213/1991) | E29: ='Encargos Sociais'!E29 -> 0.0033 | G29: * Nota 5 - Utilizada a estimativa de 120 dias de afastamento, e a probabilidade de uma trabalhadora requerer a Licença Maternidade em 5,08%, conforme SINAPI (citando dados do IBGE 2017) - A própria previdência paga o benefício pelos 120 dias, contudo o empregador arca com o 13º e com as férias
C30: ='Encargos Sociais'!C30 -> F | D30: ='Encargos Sociais'!D30 -> Auxílio Enfermidade - Doença (Art. 59 da Lei nº 8.213/1991) | E30: ='Encargos Sociais'!E30 -> 0.0071 | G30: * Nota 6 - Utilizada a estatística de 3,76% dos contribuintes beneficiados com o auxílio, conforme Anuário Estatístico da Previdência Social de 2016 (acrescidos de 2 dias ao ano, para os quais o trabalhador nem requer o benefício da Previdência - conforme SINAPI)
C31: ='Encargos Sociais'!C31 -> G | D31: ='Encargos Sociais'!D31 -> Adicional de Férias (componente do Submódulo 2.1) | E31: ='Encargos Sociais'!E31 -> 0.0303 | G31: * Nota 7 - O adicional de férias contido no Submódulo 2.1 corresponde a 1/3 da remuneração que, por sua vez, é dividida por 11 contome Nota 1.
C32: ='Encargos Sociais'!C32 -> H | D32: ='Encargos Sociais'!D32 -> 13º Salário (destacado na planilha de custos) | E32: ='Encargos Sociais'!E32 -> 0.0909 | G32: * Nota 8 - Provisiona-se, mensalmente, o proporcional a 1/12 dos valores referentes a gratificação natalina e adicional de férias.
C33: I | D33: Repouso Semanal Remunerado (DSR) | E33: =5/30 -> 0.1666666667
B35: GRUPO C: Encargos Sociais Relacionados à Previsão para Rescisão Trabalhista | E35: =ROUND(SUM(E36:E41),4) -> 0.0472
C36: ='Encargos Sociais'!C36 -> A | D36: ='Encargos Sociais'!D36 -> Aviso Prévio Indenizado (Art. 7º, inciso XXI, da CF/1988 e arts. 477, 487, §1º, e 491 da CLT) | E36: ='Encargos Sociais'!E36 -> 0.0042 | G36: * Nota 1 - Considerou-se 5% de demitidos sem justa causa ao ano e recebendo aviso indenizado (30 dias de aviso prévio / 360 dias ao ano)
C37: ='Encargos Sociais'!C37 -> B | D37: ='Encargos Sociais'!D37 -> Incidência do FGTS sobre o Aviso Prévio Indenizado (Súmula 305 TST) | E37: ='Encargos Sociais'!E37 -> 0.0003
C38: ='Encargos Sociais'!C38 -> C | D38: ='Encargos Sociais'!D38 -> Multa do FGTS sobre o Aviso Prévio Indenizado (Art. 18, §1º, da Lei 8.036/1990) | E38: ='Encargos Sociais'!E38 -> 0 | G38: * Nota 2 - Incide sobre a Remuneração + 13º salário (1/12) + Férias (1/12) + Adicional de Férias (1/36) x 40% multa para o empregador x 8% FGTS x taxa de rotatividade estimada 5%
C39: ='Encargos Sociais'!C39 -> D | D39: ='Encargos Sociais'!D39 -> Aviso Prévio Trabalhado (Art. 488, parágrafo único, CLT) | E39: ='Encargos Sociais'!E39 -> 0.0078 | G39: * Nota 3 - Considerou-se demissões de 100% ao final do prazo do contrato. Assim, calcula-se 7 dias de aviso prévio trabalhado dividido pelo prazo do contrato.
C40: ='Encargos Sociais'!C40 -> E | D40: ='Encargos Sociais'!D40 -> Incidência de GPS, FGTS e outras contribuições sobre o Aviso Prévio Trabalhado | E40: ='Encargos Sociais'!E40 -> 0.0029
C41: ='Encargos Sociais'!C41 -> F | D41: ='Encargos Sociais'!D41 -> Multa do FGTS | E41: ='Encargos Sociais'!E41 -> 0.032 | G41: * Nota 4 - Incide sobre a Remuneração + 13º salário (1/12) + Férias (1/12) + Adicional de Férias (1/36) x 40% multa para o empregador x 8% FGTS
B43: GRUPO D: Reincidências | E43: =ROUND(SUM(E44:E44),4) -> 0.1468
C44: A | D44: Reincidência do Grupo A sobre o Grupo B | E44: =ROUND(E13*E24,4) -> 0.1468
D46: SOMATÓRIO - ENCARGOS SOCIAIS SOBRE A MÃO DE OBRA | E46: =E43+E35+E24+E13 -> 0.9608
C50: ENCARGOS SEM O 13º
D51: =E46-E32-E32*E13 -> 0.8364488
C53: % DEMIDIDOS AO LONGO DO ANO
D54: 0.05
C55: PRAZO DO CONTRATO (EM MESES)
D56: 30

Sheet Encargos Sociais - Plant (hidden)
B4: ENCARGOS SOCIAIS SOBRE A MÃO DE OBRA
E5: Percentuais
B7: Referência:
C8: SINAPI/MPU
B10: Categorias:
C11: 8, 9, 13, 14
B13: GRUPO A: Encargos Sociais Básicos - Previdenciários (GPS), Fundo de Garantia por Tempo de Serviço (FGTS) e Outras Contribuições | E13: =ROUND(SUM(E14:E22),4) -> 0.358
C14: A | D14: INSS (art. 22, inciso I, Lei nº 8.212/91) | E14: 0.2
C15: B | D15: Salário Educação (art. 3º, inciso I, Decreto nº 87.043/82) | E15: 0.025 | G15: * Nota 1 - Os percentuais dos encargos previdenciários, do FGTS e demais contribuições são estabelecidos por legislação vigente.
C16: C | D16: SAT/RAT (art. 22, II, Lei 8.212/91 e Anexo V, Decreto 6.042/07) - Enquadramento 9103-1/00 | E16: 0.01 | G16: * Nota 2 - O SAT, a depender do grau de risco do serviço, irá variar entre 1%, para risco leve, de 2%, para risco médio, e de 3% para risco grave.
C17: D | D17: SESC ou SESI (art. 30, Lei nº 8.036/90 e art. 1º, Lei 8.154/90) | E17: 0.015 | G17: * Nota 3 - Os percentuais do Submódulo 2.2 incidem sobre o Módulo 1, o Submódulo 2.1, o Módulo 3, o Módulo 4 e o Módulo 6.
C18: E | D18: SENAI ou SENAC (Decreto nº 2.318/86) | E18: 0.01
C19: F | D19: SEBRAE (§ 3º, art. 8º, Lei 8.029/90, alterada pela Lei nº 8.154/90) | E19: 0.006
C20: G | D20: INCRA (art. 1º, I, Decreto Lei 1.146/70 e Lei 7.787, de 30/06/89) | E20: 0.002
C21: H | D21: FGTS (Lei Complementar nº 110/01 e art. 30, Lei nº 8.036/90) | E21: 0.08
C22: I | D22: SECONCI (Convenções Coletivas de Trabalho da construção) | E22: 0.01
B24: GRUPO B: Encargos Sociais Relacionados ao Custo do Profissional Ausente - Ausências Legais | E24: =ROUND(SUM(E25:E33),4) -> 0.2578
C25: A | D25: Férias (Arts. 129 e 130, inc. I, da CLT) | E25: =ROUND(1/11,4) -> 0.0909 | G25: * Nota 1 - As alíneas “A” a “F” referem-se somente ao custo que será pago ao repositor pelos dias trabalhados quando da necessidade de substituir a mão de obra alocada na prestação do serviço.
C26: B | D26: Ausências Legais (Arts. 131 e 473 da CLT) | E26: =ROUND(2/252,4) -> 0.0079 | G26: * Nota 2 - Adotou-se a estimativa do SINAPI de 2 dias por ano. Em 252 dias úteis por ano.
C27: C | D27: Licença-Paternidade (Art. 7º, XIX, e art. 10, §1º, do ADCT, CF/1988 e Art. 1º, II, da Lei 11.770/2008) | E27: =ROUND((5/(30*12))*0.0596,4) -> 0.0008 | G27: * Nota 3 - Utilizada a proporção de 50% para homens, 5 dias de afastamento, e a probabilidade de um trabalhador requerer a Licença Paternidade em 5,96%, conforme SINAPI (Anuário Estatístico da Previdência Social - 2017)
C28: D | D28: Ausência por Acidente de Trabalho (Art. 131, III, da CLT) | E28: =ROUND(0.0205*15/360,4) -> 0.0009 | G28: * Nota 4 - Utilzada a estatística de 2,05% dos contribuintes beneficiados com a emissão do auxílio, conforme Anuário Estatístico da Previdência Social. Afastamento de 15 dias a cargo da empresa.
